Workbook

Sheet Summary
A1: Clustering integrated samples including every transcript, only filtering out doublets and censuring cell cycle genes. Note some cell type markers you expect may not be included in the top 20. You can query their distribution in the LOOKUP tab.
A3: Cluster Number (Figure S1F) | B3: Cluster ID | D3: Top 20 DE genes in cluster, ranked left to right
C4: Rank: | D4: 1 | E4: 2 | F4: 3 | G4: 4 | H4: 5 | I4: 6 | J4: 7 | K4: 8 | L4: 9 | M4: 10 | N4: 11 | O4: 12 | P4: 13 | Q4: 14 | R4: 15 | S4: 16 | T4: 17 | U4: 18 | V4: 19 | W4: 20
A5: C0 | B5: Cortical Stroma | D5: 2810417H13Rik | E5: Hist1h2ap | F5: Top2a | G5: Pbx1 | H5: H2afx | I5: Spc25 | J5: Hmgb2 | K5: Birc5 | L5: Tk1 | M5: Lgals1 | N5: Ptn | O5: Cdk1 | P5: Cks2 | Q5: Emilin1 | R5: Tyms | S5: Cenpm | T5: Cks1b | U5: Smc2 | V5: Spc24 | W5: Tuba1b | X5: All markers in Tab 0
A6: C1 | B6: Nephron progenitor | D6: Crym | E6: Cited1 | F6: Fxyd6 | G6: Tsc22d1 | H6: Rspo1 | I6: Robo2 | J6: Gas1 | K6: Zfos1 | L6: Eef2 | M6: Vcan | N6: Ramp2 | O6: Six3 | P6: Fam213a | Q6: Tpm2 | R6: Tgfbi | S6: Hsp90ab1 | T6: Bcl2 | U6: Uncx | V6: Osr1 | W6: Shisa2 | X6: All markers in Tab 1
A7: C2 | B7: Renal Vesicle | D7: Wnt4 | E7: Fam132a | F7: Wt1 | G7: Pax8 | H7: Pax2 | I7: H19 | J7: Pdgfa | K7: Cxxc5 | L7: Gxylt2 | M7: Uncx | N7: Cldn5 | O7: Bcam | P7: Tmem100 | Q7: Npy | R7: Hey1 | S7: Osr2 | T7: Tenm4 | U7: Cdh4 | V7: Bmp4 | W7: A730017C20Rik | X7: All markers in Tab 2
A8: C3 | B8: Stroma | D8: Tspan13 | E8: Calml4 | F8: Mrpl23 | G8: Tsc22d1 | H8: Espn | I8: Nfib | J8: Postn | K8: S100a10 | L8: Aurkb | M8: Eya1 | N8: Tgfbi | O8: Cd83 | P8: Ghr | Q8: Ptms | R8: sept15 | S8: Cnrip1 | T8: Fcgrt | U8: Lpar1 | V8: Cst3 | W8: Mad2l1 | X8: All markers in Tab 3
A9: C4 | B9: Nephron progenitor | D9: Hist1h2ap | E9: Cited1 | F9: 2810417H13Rik | G9: Cenpw | H9: Top2a | I9: Fxyd6 | J9: Dut | K9: Stmn1 | L9: Crym | M9: Fabp5 | N9: Robo2 | O9: Uncx | P9: Six2 | Q9: Tsc22d1 | R9: Spc25 | S9: Rspo1 | T9: Eya1 | U9: Spock2 | V9: Bcl2 | W9: Vcan | X9: All markers in Tab 4
A10: C5 | B10: Medullary Stroma | D10: Tmsb4x | E10: Col1a2 | F10: Myl9 | G10: Col3a1 | H10: Ptn | I10: Acta2 | J10: Zeb2 | K10: Plac8 | L10: Cnn2 | M10: Bgn | N10: Lgals1 | O10: Igfbp7 | P10: Dcn | Q10: Col1a1 | R10: Fbln5 | S10: Gucy1a3 | T10: S100a6 | U10: S100a10 | V10: Cald1 | W10: Vim | X10: All markers in Tab 5
A11: C6 | B11: Erythrocytes | D11: Hba-a1 | E11: Hbb-bs | F11: Hba-a2 | G11: Hbb-bt | H11: Alas2 | I11: Mkrn1 | J11: Snca | K11: Fech | L11: Ube2l6 | M11: Fam220a | N11: March2 | O11: Oaz1 | P11: Dctn3 | Q11: Mrpl27 | R11: Ube2v2 | S11: Nap1l4 | T11: Zfand6 | U11: Rab7 | V11: Mrps7 | W11: Cops4 | X11: All markers in Tab 6
A12: C7 | B12: Ureteric Epithelium | D12: Calb1 | E12: Rprm | F12: Wfdc2 | G12: Epcam | H12: Krt18 | I12: Wfdc15b | J12: Spint2 | K12: Gata3 | L12: Cldn3 | M12: Bex1 | N12: Ldhb | O12: Cldn7 | P12: Hoxb7 | Q12: Bex4 | R12: Sct | S12: Krt8 | T12: Crlf1 | U12: Mgst1 | V12: Cldn6 | W12: Fam149a | X12: All markers in Tab 7
A13: C8 | B13: Cortical Stroma | D13: Hic1 | E13: Cenpa | F13: Ccnb2 | G13: Mest | H13: Pttg1 | I13: Anxa2 | J13: Maged2 | K13: Dynll1 | L13: Hmgb1 | M13: Fhl2 | N13: Lgals1 | O13: Hist1h2bc | P13: Sub1 | Q13: Fibin | R13: Emilin1 | S13: Emp3 | T13: Emp1 | U13: Hmgn2 | V13: Cald1 | W13: Tuba1b | X13: All markers in Tab 8
A14: C9 | B14: Erythrocytes | D14: Hbb-bt | E14: Hba-a2 | F14: Hbb-bs | G14: Hba-a1 | H14: Alas2 | I14: Snca | J14: Gypa | K14: Mkrn1 | L14: Bpgm | M14: Car2 | N14: Gpx1 | O14: Fech | P14: Ube2l6 | Q14: Blvrb | R14: Fam220a | S14: March2 | T14: Pnpo | U14: Fam210b | V14: Slc25a37 | W14: Trim10 | X14: All markers in Tab 9
A15: C10 | B15: Early Proximal Tubule | D15: Osr2 | E15: Fxyd2 | F15: Clu | G15: Lhx1os | H15: Ly6a | I15: Rab3ip | J15: Emid1 | K15: Prss23 | L15: Mpc2 | M15: Lhx1 | N15: Atp1b1 | O15: Pcbd1 | P15: Clec18a | Q15: Chchd10 | R15: Stard10 | S15: Spint2 | T15: Hes5 | U15: Emx2 | V15: Prnp | W15: Pdgfa | X15: All markers in Tab 10
A16: C11 | B16: Nephron progenitor | D16: Hist1h2bc | E16: Rspo1 | F16: Tsc22d1 | G16: Crym | H16: Osr1 | I16: Cd24a | J16: Uncx | K16: Eya1 | L16: Ptma | M16: Hnrnpa1 | N16: Ccnb2 | O16: 2610318N02Rik | P16: Cenpa | Q16: H3f3a | R16: Spock2 | S16: Gas1 | T16: Hmgb3 | U16: Des | V16: Gapdh | W16: Hsp90ab1 | X16: All markers in Tab 11
A17: C12 | B17: Early Distal Tubule | D17: Wfdc2 | E17: S100g | F17: Mt1 | G17: Mt2 | H17: Spint2 | I17: Lhx1os | J17: Cxcl14 | K17: Emx2 | L17: Fgf8 | M17: Rab3ip | N17: Epcam | O17: Lhx1 | P17: Tmem52b | Q17: 4930523C07Rik | R17: Cldn7 | S17: Tfap2b | T17: Cldn6 | U17: Pantr1 | V17: Cthrc1 | W17: Bmp2 | X17: All markers in Tab 12
A18: C13 | B18: stroma | D18: Ndufa4l2 | E18: Kcnj8 | F18: Akr1b7 | G18: Pdgfrb | H18: Gm13889 | I18: Cox4i2 | J18: Rergl | K18: Abcc9 | L18: Foxs1 | M18: Atp1b2 | N18: Tm4sf1 | O18: Mef2c | P18: Gucy1b3 | Q18: Ebf1 | R18: Rgs5 | S18: Afap1l2 | T18: Cygb | U18: Cspg4 | V18: Ace2 | W18: Heyl | X18: All markers in Tab 13
A19: C14 | B19: Vasculature | D19: Fabp4 | E19: Egfl7 | F19: Cldn5 | G19: Emcn | H19: Gpihbp1 | I19: Gimap4 | J19: Gng11 | K19: Plvap | L19: Cd34 | M19: Ecscr | N19: Icam2 | O19: Lmo2 | P19: Klf2 | Q19: Fam167b | R19: Prkcdbp | S19: Vamp5 | T19: Cdh5 | U19: Pecam1 | V19: Esam | W19: Gimap6 | X19: All markers in Tab 14
A20: C15 | B20: Ureteric stroma + | D20: Dcn | E20: Postn | F20: Mfap5 | G20: Lum | H20: Igf1 | I20: Ogn | J20: Col6a1 | K20: Klf4 | L20: Dkk2 | M20: Fbln2 | N20: Col6a2 | O20: Prrx1 | P20: Spon2 | Q20: Arhgap20 | R20: Sfrp4 | S20: Fmo1 | T20: Fgf18 | U20: Clec3b | V20: Angptl7 | W20: Ahnak2 | X20: All markers in Tab 15
A21: C16 | B21: Immune | D21: Lyz2 | E21: Fcer1g | F21: Tyrobp | G21: C1qb | H21: Pf4 | I21: C1qc | J21: C1qa | K21: Ctss | L21: Aif1 | M21: Fcgr3 | N21: Cd52 | O21: Ms4a6c | P21: Rac2 | Q21: Coro1a | R21: Lst1 | S21: Ctsc | T21: Laptm5 | U21: Ptpn18 | V21: Gmfg | W21: Ccl6 | X21: All markers in Tab 16
A22: C17 | B22: Unassigned | D22: Eya1 | E22: Six2 | F22: Robo2 | G22: Ttc28 | H22: Rspo1 | I22: Peg3 | J22: Cited1 | K22: Meis2 | L22: Rps5 | M22: Spock2 | N22: Uba52 | O22: Pbx1 | P22: Rpl35 | Q22: Nnat | R22: Mest | S22: Shisa3 | T22: Nr2f2 | U22: Gm10073 | V22: Hist3h2ba | W22: Gm10076 | X22: All markers in Tab 17
A23: C18 | B23: Erythrocytes | D23: Hbb-bh1 | E23: Hsd3b6 | F23: Hba-x | G23: Hba-a2 | H23: mt-Co1 | I23: H3f3a | J23: mt-Co2 | K23: mt-Co3 | L23: mt-Atp6 | M23: Atpif1 | N23: Actb | O23: Rpl18 | P23: Ndufa4 | Q23: Rpl3 | R23: Rps14 | S23: Rps19 | T23: Rps18 | U23: Chchd2 | V23: Rpl13 | W23: Ptma | X23: All markers in Tab 18
A24: C19 | B24: Collecting duct associated stroma | D24: Car3 | E24: Actg2 | F24: Fbxl22 | G24: Lum | H24: Cnn1 | I24: Myh11 | J24: Actc1 | K24: Gata2 | L24: Tbx18 | M24: Foxf1 | N24: Lmod1 | O24: Cpxm2 | P24: Myocd | Q24: Psd | R24: Asb2 | S24: Syt1 | T24: Tagln | U24: Tnnt2 | V24: Emilin3 | W24: Hspb6 | X24: All markers in Tab 19
A25: C20 | B25: Neurons | D25: Rpl39l | E25: Gm7293 | F25: Rpl7a-ps3 | G25: Gm6525 | H25: Gm5426 | I25: Esrrg | J25: Dynlrb2 | K25: Gm5449 | L25: Gm27028 | M25: Gm2178 | N25: Gm26735 | O25: Cpeb4 | P25: Satb2 | Q25: Unc5d | R25: Tub | S25: Erbb4 | T25: Slitrk4 | U25: Sytl1 | V25: Tnik | W25: Sh3tc1 | X25: All markers in Tab 20

Sheet Lookup
B1: 1) This tab enables analysis of gene expression across all cluster tabs at once. In row 9-71, the top 3 markers from each of our clusters compared with all other clusters, grouped by cell type reflecting the "continents" in the integration UMAP. Row 71-80 examines mitochondrial gene expression, row 81-104 examines unassigned transcripts.
B2: 2) To query the list, to explore if your gene of interest is enriched in one of our clusters, enter gene symbol in row 105 (Column B), Copy Vlookup formulas (by copy and paste cells C104:W104) into empty cells in columns C-W, and the LogFC values from Seurat DE analysis from each tab will be copied into the appropriate position. For example, we queried Hnf4a in row 105
B3: 3) VLOOKUP enters #N/A into the cell if there is no value matching Column "A" in the queried tab.
B5: Cluster Number | C5: C1 | D5: C4 | E5: C11 | F5: C2 | G5: C10 | H5: C12 | I5: C7 | J5: C0 | K5: C15 | L5: C5 | M5: C19 | N5: C8 | O5: C13 | P5: C3 | Q5: C9 | R5: C6 | S5: C18 | T5: C14 | U5: C16 | V5: C20 | W5: C17
B6: Display in Figure 1B
B7: Cluster ID | C7: Nephron progenitor | D7: Nephron progenitor | E7: Nephron progenitor | F7: Renal Vesicle | G7: Early Proximal Tubule | H7: Early Distal Tubule | I7: Ureteric Epithelium | J7: Cortical Stroma | K7: Ureteric stroma + | L7: Medullary Stroma | M7: Collecting duct associated stroma | N7: Cortical Stroma | O7: stroma | P7: Stroma | Q7: Erythrocytes | R7: Erythrocytes | S7: Erythrocytes | T7: Vasculature | U7: Immune | V7: Neurons | W7: Unassigned
B8: Gene symbol | C8: NPC | D8: NPC | E8: NPC | F8: RV | G8: ePT | H8: eDT | I8: UB | J8: Str-C | K8: Str-U | L8: Str-Med | M8: Str-CD | N8: Stroma | O8: Stroma | P8: Str | Q8: Eryth | R8: Eryth | S8: Eryth | T8: Vasc | U8: Imm | V8: Stroma
A9: C1 | B9: Crym | C9: =VLOOKUP($B9,'1'!$A:$G,3,) -> 1.38 | D9: =VLOOKUP($B9,'4'!$A:$H,3,) -> 0.67 | E9: =VLOOKUP($B9,'11'!$A:$G,3,) -> 0.60 | F9: =VLOOKUP($B9,'2'!$A:$G,3,) ->  | G9: =VLOOKUP($B9,'10'!$A:$G,3,) -> -0.69 | H9: =VLOOKUP($B9,'12'!$A:$G,3,) -> -0.75 | I9: =VLOOKUP($B9,'7'!$A:$H,3,) -> -0.73 | J9: =VLOOKUP($B9,'0'!$A:$H,3,) -> -0.79 | K9: =VLOOKUP($B9,'15'!$A:$G,3,) -> -0.44 | L9: =VLOOKUP($B9,'5'!$A:$G,3,) -> -0.72 | M9: =VLOOKUP($B9,'19'!$A:$H,3,) -> -0.65 | N9: =VLOOKUP($B9,'8'!$A:$G,3,) -> -0.73 | O9: =VLOOKUP($B9,'13'!$A:$H,3,) -> -0.71 | P9: =VLOOKUP($B9,'3'!$A:$H,3,) ->  | Q9: =VLOOKUP($B9,'9'!$A:$G,3,) -> -0.75 | R9: =VLOOKUP($B9,'6'!$A:$G,3,) -> -0.79 | S9: =VLOOKUP($B9,'18'!$A:$H,3,FALSE) -> -0.77 | T9: =VLOOKUP($B9,'14'!$A:$G,3,) -> -0.71 | U9: =VLOOKUP($B9,'16'!$A:$H,3,) -> -0.75 | V9: =VLOOKUP($B9,'20'!$A:$H,3,) -> -0.79 | W9: =VLOOKUP($B9,'17'!$A:$H,3,) -> 
B10: Cited1 | C10: =VLOOKUP($B10,'1'!$A:$G,3,) -> 1.18 | D10: =VLOOKUP($B10,'4'!$A:$H,3,) -> 0.90 | E10: =VLOOKUP($B10,'11'!$A:$G,3,) -> 0.57 | F10: =VLOOKUP($B10,'2'!$A:$G,3,) -> -0.56 | G10: =VLOOKUP($B10,'10'!$A:$G,3,) -> -0.49 | H10: =VLOOKUP($B10,'12'!$A:$G,3,) -> -0.30 | I10: =VLOOKUP($B10,'7'!$A:$H,3,) -> -0.58 | J10: =VLOOKUP($B10,'0'!$A:$H,3,) -> -0.69 | K10: =VLOOKUP($B10,'15'!$A:$G,3,) -> -0.63 | L10: =VLOOKUP($B10,'5'!$A:$G,3,) -> -0.68 | M10: =VLOOKUP($B10,'19'!$A:$H,3,) -> -0.60 | N10: =VLOOKUP($B10,'8'!$A:$G,3,) -> -0.66 | O10: =VLOOKUP($B10,'13'!$A:$H,3,) -> -0.65 | P10: =VLOOKUP($B10,'3'!$A:$H,3,) -> -0.67 | Q10: =VLOOKUP($B10,'9'!$A:$G,3,) -> -0.67 | R10: =VLOOKUP($B10,'6'!$A:$G,3,) -> -0.70 | S10: =VLOOKUP($B10,'18'!$A:$H,3,FALSE) -> -0.71 | T10: =VLOOKUP($B10,'14'!$A:$G,3,) -> -0.61 | U10: =VLOOKUP($B10,'16'!$A:$H,3,) -> -0.66 | V10: =VLOOKUP($B10,'20'!$A:$H,3,) -> -0.63 | W10: =VLOOKUP($B10,'17'!$A:$H,3,) -> 0.46
B11: Fxyd6 | C11: =VLOOKUP($B11,'1'!$A:$G,3,) -> 1.13 | D11: =VLOOKUP($B11,'4'!$A:$H,3,) -> 0.71 | E11: =VLOOKUP($B11,'11'!$A:$G,3,) -> 0.42 | F11: =VLOOKUP($B11,'2'!$A:$G,3,) ->  | G11: =VLOOKUP($B11,'10'!$A:$G,3,) -> -0.66 | H11: =VLOOKUP($B11,'12'!$A:$G,3,) -> -0.60 | I11: =VLOOKUP($B11,'7'!$A:$H,3,) -> -0.99 | J11: =VLOOKUP($B11,'0'!$A:$H,3,) ->  | K11: =VLOOKUP($B11,'15'!$A:$G,3,) ->  | L11: =VLOOKUP($B11,'5'!$A:$G,3,) -> -0.58 | M11: =VLOOKUP($B11,'19'!$A:$H,3,) ->  | N11: =VLOOKUP($B11,'8'!$A:$G,3,) -> -0.67 | O11: =VLOOKUP($B11,'13'!$A:$H,3,) -> -0.68 | P11: =VLOOKUP($B11,'3'!$A:$H,3,) -> -0.38 | Q11: =VLOOKUP($B11,'9'!$A:$G,3,) -> -1.26 | R11: =VLOOKUP($B11,'6'!$A:$G,3,) -> -1.34 | S11: =VLOOKUP($B11,'18'!$A:$H,3,FALSE) -> -1.28 | T11: =VLOOKUP($B11,'14'!$A:$G,3,) -> -0.86 | U11: =VLOOKUP($B11,'16'!$A:$H,3,) -> -1.13 | V11: =VLOOKUP($B11,'20'!$A:$H,3,) -> -1.05 | W11: =VLOOKUP($B11,'17'!$A:$H,3,) -> 0.27
A12: C4 | B12: Hist1h2ap | C12: =VLOOKUP($B12,'1'!$A:$G,3,) -> -1.42 | D12: =VLOOKUP($B12,'4'!$A:$H,3,) -> 1.05 | E12: =VLOOKUP($B12,'11'!$A:$G,3,) -> -1.13 | F12: =VLOOKUP($B12,'2'!$A:$G,3,) -> 0.41 | G12: =VLOOKUP($B12,'10'!$A:$G,3,) -> 0.33 | H12: =VLOOKUP($B12,'12'!$A:$G,3,) -> 0.47 | I12: =VLOOKUP($B12,'7'!$A:$H,3,) -> 0.27 | J12: =VLOOKUP($B12,'0'!$A:$H,3,) -> 0.98 | K12: =VLOOKUP($B12,'15'!$A:$G,3,) -> -1.06 | L12: =VLOOKUP($B12,'5'!$A:$G,3,) -> -1.44 | M12: =VLOOKUP($B12,'19'!$A:$H,3,) ->  | N12: =VLOOKUP($B12,'8'!$A:$G,3,) -> -1.34 | O12: =VLOOKUP($B12,'13'!$A:$H,3,) -> 0.27 | P12: =VLOOKUP($B12,'3'!$A:$H,3,) ->  | Q12: =VLOOKUP($B12,'9'!$A:$G,3,) -> -1.49 | R12: =VLOOKUP($B12,'6'!$A:$G,3,) -> -1.62 | S12: =VLOOKUP($B12,'18'!$A:$H,3,FALSE) -> -1.57 | T12: =VLOOKUP($B12,'14'!$A:$G,3,) ->  | U12: =VLOOKUP($B12,'16'!$A:$H,3,) ->  | V12: =VLOOKUP($B12,'20'!$A:$H,3,) -> -1.31 | W12: =VLOOKUP($B12,'17'!$A:$H,3,) -> 0.71
B13: Cenpw | C13: =VLOOKUP($B13,'1'!$A:$G,3,) ->  | D13: =VLOOKUP($B13,'4'!$A:$H,3,) -> 0.80 | E13: =VLOOKUP($B13,'11'!$A:$G,3,) -> 0.52 | F13: =VLOOKUP($B13,'2'!$A:$G,3,) ->  | G13: =VLOOKUP($B13,'10'!$A:$G,3,) ->  | H13: =VLOOKUP($B13,'12'!$A:$G,3,) ->  | I13: =VLOOKUP($B13,'7'!$A:$H,3,) ->  | J13: =VLOOKUP($B13,'0'!$A:$H,3,) ->  | K13: =VLOOKUP($B13,'15'!$A:$G,3,) -> -0.42 | L13: =VLOOKUP($B13,'5'!$A:$G,3,) -> -0.45 | M13: =VLOOKUP($B13,'19'!$A:$H,3,) ->  | N13: =VLOOKUP($B13,'8'!$A:$G,3,) ->  | O13: =VLOOKUP($B13,'13'!$A:$H,3,) ->  | P13: =VLOOKUP($B13,'3'!$A:$H,3,) ->  | Q13: =VLOOKUP($B13,'9'!$A:$G,3,) -> -0.71 | R13: =VLOOKUP($B13,'6'!$A:$G,3,) -> -0.79 | S13: =VLOOKUP($B13,'18'!$A:$H,3,FALSE) -> -0.76 | T13: =VLOOKUP($B13,'14'!$A:$G,3,) ->  | U13: =VLOOKUP($B13,'16'!$A:$H,3,) -> -0.42 | V13: =VLOOKUP($B13,'20'!$A:$H,3,) -> -0.64 | W13: =VLOOKUP($B13,'17'!$A:$H,3,) -> 0.26
B14: 2810417H13Rik | C14: =VLOOKUP($B14,'1'!$A:$G,3,) -> -1.48 | D14: =VLOOKUP($B14,'4'!$A:$H,3,) -> 0.81 | E14: =VLOOKUP($B14,'11'!$A:$G,3,) ->  | F14: =VLOOKUP($B14,'2'!$A:$G,3,) ->  | G14: =VLOOKUP($B14,'10'!$A:$G,3,) ->  | H14: =VLOOKUP($B14,'12'!$A:$G,3,) -> 0.32 | I14: =VLOOKUP($B14,'7'!$A:$H,3,) -> 0.26 | J14: =VLOOKUP($B14,'0'!$A:$H,3,) -> 1.01 | K14: =VLOOKUP($B14,'15'!$A:$G,3,) -> -0.55 | L14: =VLOOKUP($B14,'5'!$A:$G,3,) -> -0.78 | M14: =VLOOKUP($B14,'19'!$A:$H,3,) ->  | N14: =VLOOKUP($B14,'8'!$A:$G,3,) ->  | O14: =VLOOKUP($B14,'13'!$A:$H,3,) -> 0.26 | P14: =VLOOKUP($B14,'3'!$A:$H,3,) ->  | Q14: =VLOOKUP($B14,'9'!$A:$G,3,) -> -1.53 | R14: =VLOOKUP($B14,'6'!$A:$G,3,) -> -1.71 | S14: =VLOOKUP($B14,'18'!$A:$H,3,FALSE) -> -1.68 | T14: =VLOOKUP($B14,'14'!$A:$G,3,) ->  | U14: =VLOOKUP($B14,'16'!$A:$H,3,) ->  | V14: =VLOOKUP($B14,'20'!$A:$H,3,) -> -1.41 | W14: =VLOOKUP($B14,'17'!$A:$H,3,) -> 
A15: C11 | B15: Hist1h2bc | C15: =VLOOKUP($B15,'1'!$A:$G,3,) ->  | D15: =VLOOKUP($B15,'4'!$A:$H,3,) -> -0.28 | E15: =VLOOKUP($B15,'11'!$A:$G,3,) -> 1.16 | F15: =VLOOKUP($B15,'2'!$A:$G,3,) ->  | G15: =VLOOKUP($B15,'10'!$A:$G,3,) ->  | H15: =VLOOKUP($B15,'12'!$A:$G,3,) ->  | I15: =VLOOKUP($B15,'7'!$A:$H,3,) ->  | J15: =VLOOKUP($B15,'0'!$A:$H,3,) -> -0.26 | K15: =VLOOKUP($B15,'15'!$A:$G,3,) ->  | L15: =VLOOKUP($B15,'5'!$A:$G,3,) ->  | M15: =VLOOKUP($B15,'19'!$A:$H,3,) ->  | N15: =VLOOKUP($B15,'8'!$A:$G,3,) -> 0.77 | O15: =VLOOKUP($B15,'13'!$A:$H,3,) ->  | P15: =VLOOKUP($B15,'3'!$A:$H,3,) ->  | Q15: =VLOOKUP($B15,'9'!$A:$G,3,) ->  | R15: =VLOOKUP($B15,'6'!$A:$G,3,) -> -0.44 | S15: =VLOOKUP($B15,'18'!$A:$H,3,FALSE) -> -0.48 | T15: =VLOOKUP($B15,'14'!$A:$G,3,) ->  | U15: =VLOOKUP($B15,'16'!$A:$H,3,) ->  | V15: =VLOOKUP($B15,'20'!$A:$H,3,) ->  | W15: =VLOOKUP($B15,'17'!$A:$H,3,) -> 
B16: Rspo1 | C16: =VLOOKUP($B16,'1'!$A:$G,3,) -> 0.88 | D16: =VLOOKUP($B16,'4'!$A:$H,3,) -> 0.54 | E16: =VLOOKUP($B16,'11'!$A:$G,3,) -> 0.67 | F16: =VLOOKUP($B16,'2'!$A:$G,3,) -> 0.28 | G16: =VLOOKUP($B16,'10'!$A:$G,3,) ->  | H16: =VLOOKUP($B16,'12'!$A:$G,3,) -> -0.45 | I16: =VLOOKUP($B16,'7'!$A:$H,3,) -> -0.56 | J16: =VLOOKUP($B16,'0'!$A:$H,3,) -> -0.61 | K16: =VLOOKUP($B16,'15'!$A:$G,3,) -> -0.48 | L16: =VLOOKUP($B16,'5'!$A:$G,3,) -> -0.59 | M16: =VLOOKUP($B16,'19'!$A:$H,3,) -> -0.51 | N16: =VLOOKUP($B16,'8'!$A:$G,3,) -> -0.57 | O16: =VLOOKUP($B16,'13'!$A:$H,3,) -> -0.57 | P16: =VLOOKUP($B16,'3'!$A:$H,3,) ->  | Q16: =VLOOKUP($B16,'9'!$A:$G,3,) -> -0.58 | R16: =VLOOKUP($B16,'6'!$A:$G,3,) -> -0.60 | S16: =VLOOKUP($B16,'18'!$A:$H,3,FALSE) -> -0.55 | T16: =VLOOKUP($B16,'14'!$A:$G,3,) -> -0.52 | U16: =VLOOKUP($B16,'16'!$A:$H,3,) -> -0.56 | V16: =VLOOKUP($B16,'20'!$A:$H,3,) -> -0.59 | W16: =VLOOKUP($B16,'17'!$A:$H,3,) -> 0.26
B17: Tsc22d1 | C17: =VLOOKUP($B17,'1'!$A:$G,3,) -> 0.92 | D17: =VLOOKUP($B17,'4'!$A:$H,3,) -> 0.61 | E17: =VLOOKUP($B17,'11'!$A:$G,3,) -> 0.80 | F17: =VLOOKUP($B17,'2'!$A:$G,3,) -> 0.50 | G17: =VLOOKUP($B17,'10'!$A:$G,3,) -> -0.36 | H17: =VLOOKUP($B17,'12'!$A:$G,3,) ->  | I17: =VLOOKUP($B17,'7'!$A:$H,3,) ->  | J17: =VLOOKUP($B17,'0'!$A:$H,3,) -> -0.88 | K17: =VLOOKUP($B17,'15'!$A:$G,3,) ->  | L17: =VLOOKUP($B17,'5'!$A:$G,3,) -> -0.54 | M17: =VLOOKUP($B17,'19'!$A:$H,3,) -> -0.53 | N17: =VLOOKUP($B17,'8'!$A:$G,3,) -> -0.57 | O17: =VLOOKUP($B17,'13'!$A:$H,3,) -> -0.58 | P17: =VLOOKUP($B17,'3'!$A:$H,3,) -> -0.74 | Q17: =VLOOKUP($B17,'9'!$A:$G,3,) -> -1.82 | R17: =VLOOKUP($B17,'6'!$A:$G,3,) -> -2.05 | S17: =VLOOKUP($B17,'18'!$A:$H,3,FALSE) -> -2.01 | T17: =VLOOKUP($B17,'14'!$A:$G,3,) ->  | U17: =VLOOKUP($B17,'16'!$A:$H,3,) -> -1.75 | V17: =VLOOKUP($B17,'20'!$A:$H,3,) -> -1.29 | W17: =VLOOKUP($B17,'17'!$A:$H,3,) -> 
A18: C2 | B18: Wnt4 | C18: =VLOOKUP($B18,'1'!$A:$G,3,) -> -0.26 | D18: =VLOOKUP($B18,'4'!$A:$H,3,) ->  | E18: =VLOOKUP($B18,'11'!$A:$G,3,) ->  | F18: =VLOOKUP($B18,'2'!$A:$G,3,) -> 1.47 | G18: =VLOOKUP($B18,'10'!$A:$G,3,) -> 0.77 | H18: =VLOOKUP($B18,'12'!$A:$G,3,) ->  | I18: =VLOOKUP($B18,'7'!$A:$H,3,) -> -0.42 | J18: =VLOOKUP($B18,'0'!$A:$H,3,) -> -0.56 | K18: =VLOOKUP($B18,'15'!$A:$G,3,) -> -0.49 | L18: =VLOOKUP($B18,'5'!$A:$G,3,) -> -0.35 | M18: =VLOOKUP($B18,'19'!$A:$H,3,) -> -0.52 | N18: =VLOOKUP($B18,'8'!$A:$G,3,) -> -0.52 | O18: =VLOOKUP($B18,'13'!$A:$H,3,) -> -0.53 | P18: =VLOOKUP($B18,'3'!$A:$H,3,) -> -0.55 | Q18: =VLOOKUP($B18,'9'!$A:$G,3,) -> -0.54 | R18: =VLOOKUP($B18,'6'!$A:$G,3,) -> -0.56 | S18: =VLOOKUP($B18,'18'!$A:$H,3,FALSE) -> -0.54 | T18: =VLOOKUP($B18,'14'!$A:$G,3,) -> -0.51 | U18: =VLOOKUP($B18,'16'!$A:$H,3,) -> -0.51 | V18: =VLOOKUP($B18,'20'!$A:$H,3,) ->  | W18: =VLOOKUP($B18,'17'!$A:$H,3,) -> 
B19: Fam132a | C19: =VLOOKUP($B19,'1'!$A:$G,3,) ->  | D19: =VLOOKUP($B19,'4'!$A:$H,3,) ->  | E19: =VLOOKUP($B19,'11'!$A:$G,3,) -> 0.33 | F19: =VLOOKUP($B19,'2'!$A:$G,3,) -> 1.38 | G19: =VLOOKUP($B19,'10'!$A:$G,3,) ->  | H19: =VLOOKUP($B19,'12'!$A:$G,3,) ->  | I19: =VLOOKUP($B19,'7'!$A:$H,3,) -> -0.46 | J19: =VLOOKUP($B19,'0'!$A:$H,3,) -> -0.46 | K19: =VLOOKUP($B19,'15'!$A:$G,3,) -> -0.48 | L19: =VLOOKUP($B19,'5'!$A:$G,3,) -> -0.37 | M19: =VLOOKUP($B19,'19'!$A:$H,3,) -> -0.45 | N19: =VLOOKUP($B19,'8'!$A:$G,3,) -> -0.47 | O19: =VLOOKUP($B19,'13'!$A:$H,3,) -> -0.42 | P19: =VLOOKUP($B19,'3'!$A:$H,3,) -> -0.42 | Q19: =VLOOKUP($B19,'9'!$A:$G,3,) -> -0.73 | R19: =VLOOKUP($B19,'6'!$A:$G,3,) -> -0.79 | S19: =VLOOKUP($B19,'18'!$A:$H,3,FALSE) -> -0.75 | T19: =VLOOKUP($B19,'14'!$A:$G,3,) -> -0.65 | U19: =VLOOKUP($B19,'16'!$A:$H,3,) -> -0.62 | V19: =VLOOKUP($B19,'20'!$A:$H,3,) -> -0.50 | W19: =VLOOKUP($B19,'17'!$A:$H,3,) -> 
B20: Wt1 | C20: =VLOOKUP($B20,'1'!$A:$G,3,) -> 0.49 | D20: =VLOOKUP($B20,'4'!$A:$H,3,) -> 0.36 | E20: =VLOOKUP($B20,'11'!$A:$G,3,) -> 0.43 | F20: =VLOOKUP($B20,'2'!$A:$G,3,) -> 0.82 | G20: =VLOOKUP($B20,'10'!$A:$G,3,) -> -0.56 | H20: =VLOOKUP($B20,'12'!$A:$G,3,) -> -0.75 | I20: =VLOOKUP($B20,'7'!$A:$H,3,) -> -0.79 | J20: =VLOOKUP($B20,'0'!$A:$H,3,) -> -0.26 | K20: =VLOOKUP($B20,'15'!$A:$G,3,) ->  | L20: =VLOOKUP($B20,'5'!$A:$G,3,) -> -0.44 | M20: =VLOOKUP($B20,'19'!$A:$H,3,) -> -0.77 | N20: =VLOOKUP($B20,'8'!$A:$G,3,) ->  | O20: =VLOOKUP($B20,'13'!$A:$H,3,) -> -0.64 | P20: =VLOOKUP($B20,'3'!$A:$H,3,) ->  | Q20: =VLOOKUP($B20,'9'!$A:$G,3,) -> -0.82 | R20: =VLOOKUP($B20,'6'!$A:$G,3,) -> -0.83 | S20: =VLOOKUP($B20,'18'!$A:$H,3,FALSE) -> -0.81 | T20: =VLOOKUP($B20,'14'!$A:$G,3,) -> -0.79 | U20: =VLOOKUP($B20,'16'!$A:$H,3,) -> -0.77 | V20: =VLOOKUP($B20,'20'!$A:$H,3,) -> -0.80 | W20: =VLOOKUP($B20,'17'!$A:$H,3,) -> 
A21: C10 | B21: Osr2 | C21: =VLOOKUP($B21,'1'!$A:$G,3,) ->  | D21: =VLOOKUP($B21,'4'!$A:$H,3,) ->  | E21: =VLOOKUP($B21,'11'!$A:$G,3,) ->  | F21: =VLOOKUP($B21,'2'!$A:$G,3,) -> 0.43 | G21: =VLOOKUP($B21,'10'!$A:$G,3,) -> 1.58 | H21: =VLOOKUP($B21,'12'!$A:$G,3,) ->  | I21: =VLOOKUP($B21,'7'!$A:$H,3,) ->  | J21: =VLOOKUP($B21,'0'!$A:$H,3,) ->  | K21: =VLOOKUP($B21,'15'!$A:$G,3,) ->  | L21: =VLOOKUP($B21,'5'!$A:$G,3,) ->  | M21: =VLOOKUP($B21,'19'!$A:$H,3,) ->  | N21: =VLOOKUP($B21,'8'!$A:$G,3,) ->  | O21: =VLOOKUP($B21,'13'!$A:$H,3,) ->  | P21: =VLOOKUP($B21,'3'!$A:$H,3,) ->  | Q21: =VLOOKUP($B21,'9'!$A:$G,3,) ->  | R21: =VLOOKUP($B21,'6'!$A:$G,3,) ->  | S21: =VLOOKUP($B21,'18'!$A:$H,3,FALSE) ->  | T21: =VLOOKUP($B21,'14'!$A:$G,3,) ->  | U21: =VLOOKUP($B21,'16'!$A:$H,3,) ->  | V21: =VLOOKUP($B21,'20'!$A:$H,3,) ->  | W21: =VLOOKUP($B21,'17'!$A:$H,3,) -> 
B22: Fxyd2 | C22: =VLOOKUP($B22,'1'!$A:$G,3,) ->  | D22: =VLOOKUP($B22,'4'!$A:$H,3,) ->  | E22: =VLOOKUP($B22,'11'!$A:$G,3,) ->  | F22: =VLOOKUP($B22,'2'!$A:$G,3,) ->  | G22: =VLOOKUP($B22,'10'!$A:$G,3,) -> 1.44 | H22: =VLOOKUP($B22,'12'!$A:$G,3,) ->  | I22: =VLOOKUP($B22,'7'!$A:$H,3,) ->  | J22: =VLOOKUP($B22,'0'!$A:$H,3,) ->  | K22: =VLOOKUP($B22,'15'!$A:$G,3,) ->  | L22: =VLOOKUP($B22,'5'!$A:$G,3,) ->  | M22: =VLOOKUP($B22,'19'!$A:$H,3,) ->  | N22: =VLOOKUP($B22,'8'!$A:$G,3,) ->  | O22: =VLOOKUP($B22,'13'!$A:$H,3,) ->  | P22: =VLOOKUP($B22,'3'!$A:$H,3,) ->  | Q22: =VLOOKUP($B22,'9'!$A:$G,3,) ->  | R22: =VLOOKUP($B22,'6'!$A:$G,3,) ->  | S22: =VLOOKUP($B22,'18'!$A:$H,3,FALSE) ->  | T22: =VLOOKUP($B22,'14'!$A:$G,3,) ->  | U22: =VLOOKUP($B22,'16'!$A:$H,3,) ->  | V22: =VLOOKUP($B22,'20'!$A:$H,3,) ->  | W22: =VLOOKUP($B22,'17'!$A:$H,3,) -> 
B23: Clu | C23: =VLOOKUP($B23,'1'!$A:$G,3,) ->  | D23: =VLOOKUP($B23,'4'!$A:$H,3,) ->  | E23: =VLOOKUP($B23,'11'!$A:$G,3,) ->  | F23: =VLOOKUP($B23,'2'!$A:$G,3,) -> 0.27 | G23: =VLOOKUP($B23,'10'!$A:$G,3,) -> 1.20 | H23: =VLOOKUP($B23,'12'!$A:$G,3,) -> 0.30 | I23: =VLOOKUP($B23,'7'!$A:$H,3,) ->  | J23: =VLOOKUP($B23,'0'!$A:$H,3,) ->  | K23: =VLOOKUP($B23,'15'!$A:$G,3,) ->  | L23: =VLOOKUP($B23,'5'!$A:$G,3,) ->  | M23: =VLOOKUP($B23,'19'!$A:$H,3,) ->  | N23: =VLOOKUP($B23,'8'!$A:$G,3,) ->  | O23: =VLOOKUP($B23,'13'!$A:$H,3,) ->  | P23: =VLOOKUP($B23,'3'!$A:$H,3,) ->  | Q23: =VLOOKUP($B23,'9'!$A:$G,3,) ->  | R23: =VLOOKUP($B23,'6'!$A:$G,3,) ->  | S23: =VLOOKUP($B23,'18'!$A:$H,3,FALSE) ->  | T23: =VLOOKUP($B23,'14'!$A:$G,3,) ->  | U23: =VLOOKUP($B23,'16'!$A:$H,3,) ->  | V23: =VLOOKUP($B23,'20'!$A:$H,3,) ->  | W23: =VLOOKUP($B23,'17'!$A:$H,3,) -> 
A24: C12 | B24: Wfdc2 | C24: =VLOOKUP($B24,'1'!$A:$G,3,) -> -0.68 | D24: =VLOOKUP($B24,'4'!$A:$H,3,) -> -0.48 | E24: =VLOOKUP($B24,'11'!$A:$G,3,) ->  | F24: =VLOOKUP($B24,'2'!$A:$G,3,) ->  | G24: =VLOOKUP($B24,'10'!$A:$G,3,) -> 0.62 | H24: =VLOOKUP($B24,'12'!$A:$G,3,) -> 1.76 | I24: =VLOOKUP($B24,'7'!$A:$H,3,) -> 2.01 | J24: =VLOOKUP($B24,'0'!$A:$H,3,) -> -0.83 | K24: =VLOOKUP($B24,'15'!$A:$G,3,) -> -0.79 | L24: =VLOOKUP($B24,'5'!$A:$G,3,) -> -0.79 | M24: =VLOOKUP($B24,'19'!$A:$H,3,) -> -0.76 | N24: =VLOOKUP($B24,'8'!$A:$G,3,) -> -0.77 | O24: =VLOOKUP($B24,'13'!$A:$H,3,) -> -0.73 | P24: =VLOOKUP($B24,'3'!$A:$H,3,) -> -0.80 | Q24: =VLOOKUP($B24,'9'!$A:$G,3,) -> -0.79 | R24: =VLOOKUP($B24,'6'!$A:$G,3,) -> -0.84 | S24: =VLOOKUP($B24,'18'!$A:$H,3,FALSE) -> -0.81 | T24: =VLOOKUP($B24,'14'!$A:$G,3,) -> -0.75 | U24: =VLOOKUP($B24,'16'!$A:$H,3,) -> -0.74 | V24: =VLOOKUP($B24,'20'!$A:$H,3,) ->  | W24: =VLOOKUP($B24,'17'!$A:$H,3,) -> 
B25: S100g | C25: =VLOOKUP($B25,'1'!$A:$G,3,) ->  | D25: =VLOOKUP($B25,'4'!$A:$H,3,) ->  | E25: =VLOOKUP($B25,'11'!$A:$G,3,) ->  | F25: =VLOOKUP($B25,'2'!$A:$G,3,) ->  | G25: =VLOOKUP($B25,'10'!$A:$G,3,) ->  | H25: =VLOOKUP($B25,'12'!$A:$G,3,) -> 1.62 | I25: =VLOOKUP($B25,'7'!$A:$H,3,) ->  | J25: =VLOOKUP($B25,'0'!$A:$H,3,) ->  | K25: =VLOOKUP($B25,'15'!$A:$G,3,) ->  | L25: =VLOOKUP($B25,'5'!$A:$G,3,) ->  | M25: =VLOOKUP($B25,'19'!$A:$H,3,) ->  | N25: =VLOOKUP($B25,'8'!$A:$G,3,) ->  | O25: =VLOOKUP($B25,'13'!$A:$H,3,) ->  | P25: =VLOOKUP($B25,'3'!$A:$H,3,) ->  | Q25: =VLOOKUP($B25,'9'!$A:$G,3,) ->  | R25: =VLOOKUP($B25,'6'!$A:$G,3,) ->  | S25: =VLOOKUP($B25,'18'!$A:$H,3,FALSE) ->  | T25: =VLOOKUP($B25,'14'!$A:$G,3,) ->  | U25: =VLOOKUP($B25,'16'!$A:$H,3,) ->  | V25: =VLOOKUP($B25,'20'!$A:$H,3,) ->  | W25: =VLOOKUP($B25,'17'!$A:$H,3,) -> 
B26: Spint2 | C26: =VLOOKUP($B26,'1'!$A:$G,3,) ->  | D26: =VLOOKUP($B26,'4'!$A:$H,3,) ->  | E26: =VLOOKUP($B26,'11'!$A:$G,3,) ->  | F26: =VLOOKUP($B26,'2'!$A:$G,3,) ->  | G26: =VLOOKUP($B26,'10'!$A:$G,3,) -> 0.85 | H26: =VLOOKUP($B26,'12'!$A:$G,3,) -> 1.37 | I26: =VLOOKUP($B26,'7'!$A:$H,3,) -> 1.42 | J26: =VLOOKUP($B26,'0'!$A:$H,3,) -> -0.56 | K26: =VLOOKUP($B26,'15'!$A:$G,3,) -> -0.48 | L26: =VLOOKUP($B26,'5'!$A:$G,3,) -> -0.53 | M26: =VLOOKUP($B26,'19'!$A:$H,3,) -> -0.49 | N26: =VLOOKUP($B26,'8'!$A:$G,3,) -> -0.52 | O26: =VLOOKUP($B26,'13'!$A:$H,3,) -> -0.49 | P26: =VLOOKUP($B26,'3'!$A:$H,3,) -> -0.50 | Q26: =VLOOKUP($B26,'9'!$A:$G,3,) -> -0.51 | R26: =VLOOKUP($B26,'6'!$A:$G,3,) -> -0.55 | S26: =VLOOKUP($B26,'18'!$A:$H,3,FALSE) -> -0.52 | T26: =VLOOKUP($B26,'14'!$A:$G,3,) -> -0.47 | U26: =VLOOKUP($B26,'16'!$A:$H,3,) -> -0.43 | V26: =VLOOKUP($B26,'20'!$A:$H,3,) ->  | W26: =VLOOKUP($B26,'17'!$A:$H,3,) -> 
A27: C7 | B27: Calb1 | C27: =VLOOKUP($B27,'1'!$A:$G,3,) -> -0.74 | D27: =VLOOKUP($B27,'4'!$A:$H,3,) -> -0.70 | E27: =VLOOKUP($B27,'11'!$A:$G,3,) -> -0.69 | F27: =VLOOKUP($B27,'2'!$A:$G,3,) -> -0.72 | G27: =VLOOKUP($B27,'10'!$A:$G,3,) -> -0.70 | H27: =VLOOKUP($B27,'12'!$A:$G,3,) ->  | I27: =VLOOKUP($B27,'7'!$A:$H,3,) -> 2.78 | J27: =VLOOKUP($B27,'0'!$A:$H,3,) -> -0.74 | K27: =VLOOKUP($B27,'15'!$A:$G,3,) -> -0.68 | L27: =VLOOKUP($B27,'5'!$A:$G,3,) -> -0.69 | M27: =VLOOKUP($B27,'19'!$A:$H,3,) ->  | N27: =VLOOKUP($B27,'8'!$A:$G,3,) -> -0.70 | O27: =VLOOKUP($B27,'13'!$A:$H,3,) ->  | P27: =VLOOKUP($B27,'3'!$A:$H,3,) -> -0.71 | Q27: =VLOOKUP($B27,'9'!$A:$G,3,) -> -0.67 | R27: =VLOOKUP($B27,'6'!$A:$G,3,) -> -0.73 | S27: =VLOOKUP($B27,'18'!$A:$H,3,FALSE) -> -0.64 | T27: =VLOOKUP($B27,'14'!$A:$G,3,) ->  | U27: =VLOOKUP($B27,'16'!$A:$H,3,) ->  | V27: =VLOOKUP($B27,'20'!$A:$H,3,) ->  | W27: =VLOOKUP($B27,'17'!$A:$H,3,) -> 
B28: Rprm | C28: =VLOOKUP($B28,'1'!$A:$G,3,) -> -0.62 | D28: =VLOOKUP($B28,'4'!$A:$H,3,) -> -0.58 | E28: =VLOOKUP($B28,'11'!$A:$G,3,) -> -0.57 | F28: =VLOOKUP($B28,'2'!$A:$G,3,) -> -0.59 | G28: =VLOOKUP($B28,'10'!$A:$G,3,) -> -0.55 | H28: =VLOOKUP($B28,'12'!$A:$G,3,) ->  | I28: =VLOOKUP($B28,'7'!$A:$H,3,) -> 2.51 | J28: =VLOOKUP($B28,'0'!$A:$H,3,) -> -0.56 | K28: =VLOOKUP($B28,'15'!$A:$G,3,) -> -0.53 | L28: =VLOOKUP($B28,'5'!$A:$G,3,) -> -0.58 | M28: =VLOOKUP($B28,'19'!$A:$H,3,) ->  | N28: =VLOOKUP($B28,'8'!$A:$G,3,) -> -0.49 | O28: =VLOOKUP($B28,'13'!$A:$H,3,) -> -0.54 | P28: =VLOOKUP($B28,'3'!$A:$H,3,) -> -0.48 | Q28: =VLOOKUP($B28,'9'!$A:$G,3,) -> -0.57 | R28: =VLOOKUP($B28,'6'!$A:$G,3,) -> -0.60 | S28: =VLOOKUP($B28,'18'!$A:$H,3,FALSE) -> -0.55 | T28: =VLOOKUP($B28,'14'!$A:$G,3,) -> -0.55 | U28: =VLOOKUP($B28,'16'!$A:$H,3,) -> -0.48 | V28: =VLOOKUP($B28,'20'!$A:$H,3,) ->  | W28: =VLOOKUP($B28,'17'!$A:$H,3,) -> 
B29: Wfdc2 | C29: =VLOOKUP($B29,'1'!$A:$G,3,) -> -0.68 | D29: =VLOOKUP($B29,'4'!$A:$H,3,) -> -0.48 | E29: =VLOOKUP($B29,'11'!$A:$G,3,) ->  | F29: =VLOOKUP($B29,'2'!$A:$G,3,) ->  | G29: =VLOOKUP($B29,'10'!$A:$G,3,) -> 0.62 | H29: =VLOOKUP($B29,'12'!$A:$G,3,) -> 1.76 | I29: =VLOOKUP($B29,'7'!$A:$H,3,) -> 2.01 | J29: =VLOOKUP($B29,'0'!$A:$H,3,) -> -0.83 | K29: =VLOOKUP($B29,'15'!$A:$G,3,) -> -0.79 | L29: =VLOOKUP($B29,'5'!$A:$G,3,) -> -0.79 | M29: =VLOOKUP($B29,'19'!$A:$H,3,) -> -0.76 | N29: =VLOOKUP($B29,'8'!$A:$G,3,) -> -0.77 | O29: =VLOOKUP($B29,'13'!$A:$H,3,) -> -0.73 | P29: =VLOOKUP($B29,'3'!$A:$H,3,) -> -0.80 | Q29: =VLOOKUP($B29,'9'!$A:$G,3,) -> -0.79 | R29: =VLOOKUP($B29,'6'!$A:$G,3,) -> -0.84 | S29: =VLOOKUP($B29,'18'!$A:$H,3,FALSE) -> -0.81 | T29: =VLOOKUP($B29,'14'!$A:$G,3,) -> -0.75 | U29: =VLOOKUP($B29,'16'!$A:$H,3,) -> -0.74 | V29: =VLOOKUP($B29,'20'!$A:$H,3,) ->  | W29: =VLOOKUP($B29,'17'!$A:$H,3,) -> 
A30: C0 | B30: 2810417H13Rik | C30: =VLOOKUP($B30,'1'!$A:$G,3,) -> -1.48 | D30: =VLOOKUP($B30,'4'!$A:$H,3,) -> 0.81 | E30: =VLOOKUP($B30,'11'!$A:$G,3,) ->  | F30: =VLOOKUP($B30,'2'!$A:$G,3,) ->  | G30: =VLOOKUP($B30,'10'!$A:$G,3,) ->  | H30: =VLOOKUP($B30,'12'!$A:$G,3,) -> 0.32 | I30: =VLOOKUP($B30,'7'!$A:$H,3,) -> 0.26 | J30: =VLOOKUP($B30,'0'!$A:$H,3,) -> 1.01 | K30: =VLOOKUP($B30,'15'!$A:$G,3,) -> -0.55 | L30: =VLOOKUP($B30,'5'!$A:$G,3,) -> -0.78 | M30: =VLOOKUP($B30,'19'!$A:$H,3,) ->  | N30: =VLOOKUP($B30,'8'!$A:$G,3,) ->  | O30: =VLOOKUP($B30,'13'!$A:$H,3,) -> 0.26 | P30: =VLOOKUP($B30,'3'!$A:$H,3,) ->  | Q30: =VLOOKUP($B30,'9'!$A:$G,3,) -> -1.53 | R30: =VLOOKUP($B30,'6'!$A:$G,3,) -> -1.71 | S30: =VLOOKUP($B30,'18'!$A:$H,3,FALSE) -> -1.68 | T30: =VLOOKUP($B30,'14'!$A:$G,3,) ->  | U30: =VLOOKUP($B30,'16'!$A:$H,3,) ->  | V30: =VLOOKUP($B30,'20'!$A:$H,3,) -> -1.41 | W30: =VLOOKUP($B30,'17'!$A:$H,3,) -> 
B31: Hist1h2ap | C31: =VLOOKUP($B31,'1'!$A:$G,3,) -> -1.42 | D31: =VLOOKUP($B31,'4'!$A:$H,3,) -> 1.05 | E31: =VLOOKUP($B31,'11'!$A:$G,3,) -> -1.13 | F31: =VLOOKUP($B31,'2'!$A:$G,3,) -> 0.41 | G31: =VLOOKUP($B31,'10'!$A:$G,3,) -> 0.33 | H31: =VLOOKUP($B31,'12'!$A:$G,3,) -> 0.47 | I31: =VLOOKUP($B31,'7'!$A:$H,3,) -> 0.27 | J31: =VLOOKUP($B31,'0'!$A:$H,3,) -> 0.98 | K31: =VLOOKUP($B31,'15'!$A:$G,3,) -> -1.06 | L31: =VLOOKUP($B31,'5'!$A:$G,3,) -> -1.44 | M31: =VLOOKUP($B31,'19'!$A:$H,3,) ->  | N31: =VLOOKUP($B31,'8'!$A:$G,3,) -> -1.34 | O31: =VLOOKUP($B31,'13'!$A:$H,3,) -> 0.27 | P31: =VLOOKUP($B31,'3'!$A:$H,3,) ->  | Q31: =VLOOKUP($B31,'9'!$A:$G,3,) -> -1.49 | R31: =VLOOKUP($B31,'6'!$A:$G,3,) -> -1.62 | S31: =VLOOKUP($B31,'18'!$A:$H,3,FALSE) -> -1.57 | T31: =VLOOKUP($B31,'14'!$A:$G,3,) ->  | U31: =VLOOKUP($B31,'16'!$A:$H,3,) ->  | V31: =VLOOKUP($B31,'20'!$A:$H,3,) -> -1.31 | W31: =VLOOKUP($B31,'17'!$A:$H,3,) -> 0.71
B32: Top2a | C32: =VLOOKUP($B32,'1'!$A:$G,3,) -> -0.89 | D32: =VLOOKUP($B32,'4'!$A:$H,3,) -> 0.75 | E32: =VLOOKUP($B32,'11'!$A:$G,3,) -> -0.59 | F32: =VLOOKUP($B32,'2'!$A:$G,3,) ->  | G32: =VLOOKUP($B32,'10'!$A:$G,3,) ->  | H32: =VLOOKUP($B32,'12'!$A:$G,3,) -> 0.26 | I32: =VLOOKUP($B32,'7'!$A:$H,3,) ->  | J32: =VLOOKUP($B32,'0'!$A:$H,3,) -> 0.91 | K32: =VLOOKUP($B32,'15'!$A:$G,3,) -> -0.34 | L32: =VLOOKUP($B32,'5'!$A:$G,3,) -> -0.74 | M32: =VLOOKUP($B32,'19'!$A:$H,3,) ->  | N32: =VLOOKUP($B32,'8'!$A:$G,3,) -> -0.54 | O32: =VLOOKUP($B32,'13'!$A:$H,3,) ->  | P32: =VLOOKUP($B32,'3'!$A:$H,3,) ->  | Q32: =VLOOKUP($B32,'9'!$A:$G,3,) -> -0.85 | R32: =VLOOKUP($B32,'6'!$A:$G,3,) -> -0.93 | S32: =VLOOKUP($B32,'18'!$A:$H,3,FALSE) -> -0.91 | T32: =VLOOKUP($B32,'14'!$A:$G,3,) ->  | U32: =VLOOKUP($B32,'16'!$A:$H,3,) ->  | V32: =VLOOKUP($B32,'20'!$A:$H,3,) -> -0.72 | W32: =VLOOKUP($B32,'17'!$A:$H,3,) -> 
A33: C15 | B33: Dcn | C33: =VLOOKUP($B33,'1'!$A:$G,3,) -> -0.49 | D33: =VLOOKUP($B33,'4'!$A:$H,3,) -> -0.51 | E33: =VLOOKUP($B33,'11'!$A:$G,3,) -> -0.49 | F33: =VLOOKUP($B33,'2'!$A:$G,3,) -> -0.48 | G33: =VLOOKUP($B33,'10'!$A:$G,3,) -> -0.50 | H33: =VLOOKUP($B33,'12'!$A:$G,3,) -> -0.50 | I33: =VLOOKUP($B33,'7'!$A:$H,3,) -> -0.51 | J33: =VLOOKUP($B33,'0'!$A:$H,3,) ->  | K33: =VLOOKUP($B33,'15'!$A:$G,3,) -> 2.34 | L33: =VLOOKUP($B33,'5'!$A:$G,3,) -> 1.03 | M33: =VLOOKUP($B33,'19'!$A:$H,3,) -> 1.81 | N33: =VLOOKUP($B33,'8'!$A:$G,3,) ->  | O33: =VLOOKUP($B33,'13'!$A:$H,3,) ->  | P33: =VLOOKUP($B33,'3'!$A:$H,3,) ->  | Q33: =VLOOKUP($B33,'9'!$A:$G,3,) -> -0.48 | R33: =VLOOKUP($B33,'6'!$A:$G,3,) -> -0.52 | S33: =VLOOKUP($B33,'18'!$A:$H,3,FALSE) ->  | T33: =VLOOKUP($B33,'14'!$A:$G,3,) -> -0.41 | U33: =VLOOKUP($B33,'16'!$A:$H,3,) -> -0.49 | V33: =VLOOKUP($B33,'20'!$A:$H,3,) ->  | W33: =VLOOKUP($B33,'17'!$A:$H,3,) -> 
B34: Postn | C34: =VLOOKUP($B34,'1'!$A:$G,3,) -> -0.28 | D34: =VLOOKUP($B34,'4'!$A:$H,3,) ->  | E34: =VLOOKUP($B34,'11'!$A:$G,3,) ->  | F34: =VLOOKUP($B34,'2'!$A:$G,3,) ->  | G34: =VLOOKUP($B34,'10'!$A:$G,3,) ->  | H34: =VLOOKUP($B34,'12'!$A:$G,3,) ->  | I34: =VLOOKUP($B34,'7'!$A:$H,3,) ->  | J34: =VLOOKUP($B34,'0'!$A:$H,3,) ->  | K34: =VLOOKUP($B34,'15'!$A:$G,3,) -> 1.97 | L34: =VLOOKUP($B34,'5'!$A:$G,3,) ->  | M34: =VLOOKUP($B34,'19'!$A:$H,3,) -> 0.29 | N34: =VLOOKUP($B34,'8'!$A:$G,3,) ->  | O34: =VLOOKUP($B34,'13'!$A:$H,3,) ->  | P34: =VLOOKUP($B34,'3'!$A:$H,3,) -> 0.31 | Q34: =VLOOKUP($B34,'9'!$A:$G,3,) ->  | R34: =VLOOKUP($B34,'6'!$A:$G,3,) ->  | S34: =VLOOKUP($B34,'18'!$A:$H,3,FALSE) ->  | T34: =VLOOKUP($B34,'14'!$A:$G,3,) ->  | U34: =VLOOKUP($B34,'16'!$A:$H,3,) ->  | V34: =VLOOKUP($B34,'20'!$A:$H,3,) ->  | W34: =VLOOKUP($B34,'17'!$A:$H,3,) -> 
B35: Mfap5 | C35: =VLOOKUP($B35,'1'!$A:$G,3,) ->  | D35: =VLOOKUP($B35,'4'!$A:$H,3,) ->  | E35: =VLOOKUP($B35,'11'!$A:$G,3,) ->  | F35: =VLOOKUP($B35,'2'!$A:$G,3,) ->  | G35: =VLOOKUP($B35,'10'!$A:$G,3,) ->  | H35: =VLOOKUP($B35,'12'!$A:$G,3,) ->  | I35: =VLOOKUP($B35,'7'!$A:$H,3,) ->  | J35: =VLOOKUP($B35,'0'!$A:$H,3,) ->  | K35: =VLOOKUP($B35,'15'!$A:$G,3,) -> 1.82 | L35: =VLOOKUP($B35,'5'!$A:$G,3,) ->  | M35: =VLOOKUP($B35,'19'!$A:$H,3,) -> 0.26 | N35: =VLOOKUP($B35,'8'!$A:$G,3,) ->  | O35: =VLOOKUP($B35,'13'!$A:$H,3,) ->  | P35: =VLOOKUP($B35,'3'!$A:$H,3,) ->  | Q35: =VLOOKUP($B35,'9'!$A:$G,3,) ->  | R35: =VLOOKUP($B35,'6'!$A:$G,3,) ->  | S35: =VLOOKUP($B35,'18'!$A:$H,3,FALSE) ->  | T35: =VLOOKUP($B35,'14'!$A:$G,3,) ->  | U35: =VLOOKUP($B35,'16'!$A:$H,3,) ->  | V35: =VLOOKUP($B35,'20'!$A:$H,3,) ->  | W35: =VLOOKUP($B35,'17'!$A:$H,3,) -> 
A36: C5 | B36: Tmsb4x | C36: =VLOOKUP($B36,'1'!$A:$G,3,) -> -1.46 | D36: =VLOOKUP($B36,'4'!$A:$H,3,) -> -1.47 | E36: =VLOOKUP($B36,'11'!$A:$G,3,) -> -1.21 | F36: =VLOOKUP($B36,'2'!$A:$G,3,) -> -1.37 | G36: =VLOOKUP($B36,'10'!$A:$G,3,) -> -1.36 | H36: =VLOOKUP($B36,'12'!$A:$G,3,) -> -0.66 | I36: =VLOOKUP($B36,'7'!$A:$H,3,) ->  | J36: =VLOOKUP($B36,'0'!$A:$H,3,) -> 0.33 | K36: =VLOOKUP($B36,'15'!$A:$G,3,) -> 0.74 | L36: =VLOOKUP($B36,'5'!$A:$G,3,) -> 1.44 | M36: =VLOOKUP($B36,'19'!$A:$H,3,) -> 1.24 | N36: =VLOOKUP($B36,'8'!$A:$G,3,) ->  | O36: =VLOOKUP($B36,'13'!$A:$H,3,) -> 0.67 | P36: =VLOOKUP($B36,'3'!$A:$H,3,) ->  | Q36: =VLOOKUP($B36,'9'!$A:$G,3,) -> -2.40 | R36: =VLOOKUP($B36,'6'!$A:$G,3,) -> -2.75 | S36: =VLOOKUP($B36,'18'!$A:$H,3,FALSE) -> -2.72 | T36: =VLOOKUP($B36,'14'!$A:$G,3,) -> 1.17 | U36: =VLOOKUP($B36,'16'!$A:$H,3,) -> 2.68 | V36: =VLOOKUP($B36,'20'!$A:$H,3,) ->  | W36: =VLOOKUP($B36,'17'!$A:$H,3,) -> 
B37: Col1a2 | C37: =VLOOKUP($B37,'1'!$A:$G,3,) -> -1.15 | D37: =VLOOKUP($B37,'4'!$A:$H,3,) -> -1.12 | E37: =VLOOKUP($B37,'11'!$A:$G,3,) -> -1.12 | F37: =VLOOKUP($B37,'2'!$A:$G,3,) -> -1.01 | G37: =VLOOKUP($B37,'10'!$A:$G,3,) -> -1.12 | H37: =VLOOKUP($B37,'12'!$A:$G,3,) -> -1.09 | I37: =VLOOKUP($B37,'7'!$A:$H,3,) -> -1.12 | J37: =VLOOKUP($B37,'0'!$A:$H,3,) -> 0.44 | K37: =VLOOKUP($B37,'15'!$A:$G,3,) -> 2.19 | L37: =VLOOKUP($B37,'5'!$A:$G,3,) -> 1.27 | M37: =VLOOKUP($B37,'19'!$A:$H,3,) -> 0.98 | N37: =VLOOKUP($B37,'8'!$A:$G,3,) ->  | O37: =VLOOKUP($B37,'13'!$A:$H,3,) -> 0.29 | P37: =VLOOKUP($B37,'3'!$A:$H,3,) ->  | Q37: =VLOOKUP($B37,'9'!$A:$G,3,) -> -1.11 | R37: =VLOOKUP($B37,'6'!$A:$G,3,) -> -1.16 | S37: =VLOOKUP($B37,'18'!$A:$H,3,FALSE) -> -1.05 | T37: =VLOOKUP($B37,'14'!$A:$G,3,) -> -0.96 | U37: =VLOOKUP($B37,'16'!$A:$H,3,) -> -0.97 | V37: =VLOOKUP($B37,'20'!$A:$H,3,) -> -1.05 | W37: =VLOOKUP($B37,'17'!$A:$H,3,) -> 
B38: Myl9 | C38: =VLOOKUP($B38,'1'!$A:$G,3,) -> -0.79 | D38: =VLOOKUP($B38,'4'!$A:$H,3,) -> -0.90 | E38: =VLOOKUP($B38,'11'!$A:$G,3,) -> -0.86 | F38: =VLOOKUP($B38,'2'!$A:$G,3,) -> -0.83 | G38: =VLOOKUP($B38,'10'!$A:$G,3,) -> -0.97 | H38: =VLOOKUP($B38,'12'!$A:$G,3,) -> -0.90 | I38: =VLOOKUP($B38,'7'!$A:$H,3,) -> -0.91 | J38: =VLOOKUP($B38,'0'!$A:$H,3,) -> 0.33 | K38: =VLOOKUP($B38,'15'!$A:$G,3,) -> 0.36 | L38: =VLOOKUP($B38,'5'!$A:$G,3,) -> 1.24 | M38: =VLOOKUP($B38,'19'!$A:$H,3,) -> 2.64 | N38: =VLOOKUP($B38,'8'!$A:$G,3,) -> 0.34 | O38: =VLOOKUP($B38,'13'!$A:$H,3,) -> 0.58 | P38: =VLOOKUP($B38,'3'!$A:$H,3,) ->  | Q38: =VLOOKUP($B38,'9'!$A:$G,3,) -> -1.00 | R38: =VLOOKUP($B38,'6'!$A:$G,3,) -> -1.03 | S38: =VLOOKUP($B38,'18'!$A:$H,3,FALSE) -> -1.02 | T38: =VLOOKUP($B38,'14'!$A:$G,3,) -> -0.79 | U38: =VLOOKUP($B38,'16'!$A:$H,3,) -> -0.83 | V38: =VLOOKUP($B38,'20'!$A:$H,3,) ->  | W38: =VLOOKUP($B38,'17'!$A:$H,3,) -> 
A39: C19 | B39: Car3 | C39: =VLOOKUP($B39,'1'!$A:$G,3,) ->  | D39: =VLOOKUP($B39,'4'!$A:$H,3,) ->  | E39: =VLOOKUP($B39,'11'!$A:$G,3,) ->  | F39: =VLOOKUP($B39,'2'!$A:$G,3,) ->  | G39: =VLOOKUP($B39,'10'!$A:$G,3,) ->  | H39: =VLOOKUP($B39,'12'!$A:$G,3,) ->  | I39: =VLOOKUP($B39,'7'!$A:$H,3,) ->  | J39: =VLOOKUP($B39,'0'!$A:$H,3,) ->  | K39: =VLOOKUP($B39,'15'!$A:$G,3,) ->  | L39: =VLOOKUP($B39,'5'!$A:$G,3,) ->  | M39: =VLOOKUP($B39,'19'!$A:$H,3,) -> 3.25 | N39: =VLOOKUP($B39,'8'!$A:$G,3,) ->  | O39: =VLOOKUP($B39,'13'!$A:$H,3,) ->  | P39: =VLOOKUP($B39,'3'!$A:$H,3,) ->  | Q39: =VLOOKUP($B39,'9'!$A:$G,3,) ->  | R39: =VLOOKUP($B39,'6'!$A:$G,3,) ->  | S39: =VLOOKUP($B39,'18'!$A:$H,3,FALSE) ->  | T39: =VLOOKUP($B39,'14'!$A:$G,3,) ->  | U39: =VLOOKUP($B39,'16'!$A:$H,3,) ->  | V39: =VLOOKUP($B39,'20'!$A:$H,3,) ->  | W39: =VLOOKUP($B39,'17'!$A:$H,3,) -> 
B40: Actg2 | C40: =VLOOKUP($B40,'1'!$A:$G,3,) ->  | D40: =VLOOKUP($B40,'4'!$A:$H,3,) ->  | E40: =VLOOKUP($B40,'11'!$A:$G,3,) ->  | F40: =VLOOKUP($B40,'2'!$A:$G,3,) ->  | G40: =VLOOKUP($B40,'10'!$A:$G,3,) ->  | H40: =VLOOKUP($B40,'12'!$A:$G,3,) ->  | I40: =VLOOKUP($B40,'7'!$A:$H,3,) ->  | J40: =VLOOKUP($B40,'0'!$A:$H,3,) ->  | K40: =VLOOKUP($B40,'15'!$A:$G,3,) ->  | L40: =VLOOKUP($B40,'5'!$A:$G,3,) ->  | M40: =VLOOKUP($B40,'19'!$A:$H,3,) -> 2.58 | N40: =VLOOKUP($B40,'8'!$A:$G,3,) ->  | O40: =VLOOKUP($B40,'13'!$A:$H,3,) ->  | P40: =VLOOKUP($B40,'3'!$A:$H,3,) ->  | Q40: =VLOOKUP($B40,'9'!$A:$G,3,) ->  | R40: =VLOOKUP($B40,'6'!$A:$G,3,) ->  | S40: =VLOOKUP($B40,'18'!$A:$H,3,FALSE) ->  | T40: =VLOOKUP($B40,'14'!$A:$G,3,) ->  | U40: =VLOOKUP($B40,'16'!$A:$H,3,) ->  | V40: =VLOOKUP($B40,'20'!$A:$H,3,) ->  | W40: =VLOOKUP($B40,'17'!$A:$H,3,) -> 
B41: Fbxl22 | C41: =VLOOKUP($B41,'1'!$A:$G,3,) ->  | D41: =VLOOKUP($B41,'4'!$A:$H,3,) ->  | E41: =VLOOKUP($B41,'11'!$A:$G,3,) ->  | F41: =VLOOKUP($B41,'2'!$A:$G,3,) ->  | G41: =VLOOKUP($B41,'10'!$A:$G,3,) ->  | H41: =VLOOKUP($B41,'12'!$A:$G,3,) ->  | I41: =VLOOKUP($B41,'7'!$A:$H,3,) ->  | J41: =VLOOKUP($B41,'0'!$A:$H,3,) ->  | K41: =VLOOKUP($B41,'15'!$A:$G,3,) ->  | L41: =VLOOKUP($B41,'5'!$A:$G,3,) ->  | M41: =VLOOKUP($B41,'19'!$A:$H,3,) -> 1.99 | N41: =VLOOKUP($B41,'8'!$A:$G,3,) ->  | O41: =VLOOKUP($B41,'13'!$A:$H,3,) ->  | P41: =VLOOKUP($B41,'3'!$A:$H,3,) ->  | Q41: =VLOOKUP($B41,'9'!$A:$G,3,) ->  | R41: =VLOOKUP($B41,'6'!$A:$G,3,) ->  | S41: =VLOOKUP($B41,'18'!$A:$H,3,FALSE) ->  | T41: =VLOOKUP($B41,'14'!$A:$G,3,) ->  | U41: =VLOOKUP($B41,'16'!$A:$H,3,) ->  | V41: =VLOOKUP($B41,'20'!$A:$H,3,) ->  | W41: =VLOOKUP($B41,'17'!$A:$H,3,) -> 
A42: C8 | B42: Hic1 | C42: =VLOOKUP($B42,'1'!$A:$G,3,) -> -0.72 | D42: =VLOOKUP($B42,'4'!$A:$H,3,) -> -0.68 | E42: =VLOOKUP($B42,'11'!$A:$G,3,) -> -0.69 | F42: =VLOOKUP($B42,'2'!$A:$G,3,) -> -0.70 | G42: =VLOOKUP($B42,'10'!$A:$G,3,) -> -0.67 | H42: =VLOOKUP($B42,'12'!$A:$G,3,) -> -0.66 | I42: =VLOOKUP($B42,'7'!$A:$H,3,) -> -0.69 | J42: =VLOOKUP($B42,'0'!$A:$H,3,) -> 0.62 | K42: =VLOOKUP($B42,'15'!$A:$G,3,) -> 0.43 | L42: =VLOOKUP($B42,'5'!$A:$G,3,) -> 0.47 | M42: =VLOOKUP($B42,'19'!$A:$H,3,) -> -0.44 | N42: =VLOOKUP($B42,'8'!$A:$G,3,) -> 0.78 | O42: =VLOOKUP($B42,'13'!$A:$H,3,) ->  | P42: =VLOOKUP($B42,'3'!$A:$H,3,) ->  | Q42: =VLOOKUP($B42,'9'!$A:$G,3,) -> -0.67 | R42: =VLOOKUP($B42,'6'!$A:$G,3,) -> -0.70 | S42: =VLOOKUP($B42,'18'!$A:$H,3,FALSE) -> -0.67 | T42: =VLOOKUP($B42,'14'!$A:$G,3,) -> -0.41 | U42: =VLOOKUP($B42,'16'!$A:$H,3,) -> -0.60 | V42: =VLOOKUP($B42,'20'!$A:$H,3,) -> -0.59 | W42: =VLOOKUP($B42,'17'!$A:$H,3,) -> 
B43: Cenpa | C43: =VLOOKUP($B43,'1'!$A:$G,3,) -> -1.02 | D43: =VLOOKUP($B43,'4'!$A:$H,3,) ->  | E43: =VLOOKUP($B43,'11'!$A:$G,3,) -> 0.71 | F43: =VLOOKUP($B43,'2'!$A:$G,3,) ->  | G43: =VLOOKUP($B43,'10'!$A:$G,3,) ->  | H43: =VLOOKUP($B43,'12'!$A:$G,3,) -> 0.27 | I43: =VLOOKUP($B43,'7'!$A:$H,3,) ->  | J43: =VLOOKUP($B43,'0'!$A:$H,3,) -> 0.42 | K43: =VLOOKUP($B43,'15'!$A:$G,3,) -> -0.35 | L43: =VLOOKUP($B43,'5'!$A:$G,3,) ->  | M43: =VLOOKUP($B43,'19'!$A:$H,3,) ->  | N43: =VLOOKUP($B43,'8'!$A:$G,3,) -> 1.08 | O43: =VLOOKUP($B43,'13'!$A:$H,3,) -> 0.46 | P43: =VLOOKUP($B43,'3'!$A:$H,3,) ->  | Q43: =VLOOKUP($B43,'9'!$A:$G,3,) -> -0.95 | R43: =VLOOKUP($B43,'6'!$A:$G,3,) -> -1.09 | S43: =VLOOKUP($B43,'18'!$A:$H,3,FALSE) -> -1.05 | T43: =VLOOKUP($B43,'14'!$A:$G,3,) ->  | U43: =VLOOKUP($B43,'16'!$A:$H,3,) ->  | V43: =VLOOKUP($B43,'20'!$A:$H,3,) -> -0.97 | W43: =VLOOKUP($B43,'17'!$A:$H,3,) -> 
B44: Ccnb2 | C44: =VLOOKUP($B44,'1'!$A:$G,3,) -> -0.50 | D44: =VLOOKUP($B44,'4'!$A:$H,3,) ->  | E44: =VLOOKUP($B44,'11'!$A:$G,3,) -> 0.57 | F44: =VLOOKUP($B44,'2'!$A:$G,3,) ->  | G44: =VLOOKUP($B44,'10'!$A:$G,3,) ->  | H44: =VLOOKUP($B44,'12'!$A:$G,3,) ->  | I44: =VLOOKUP($B44,'7'!$A:$H,3,) ->  | J44: =VLOOKUP($B44,'0'!$A:$H,3,) ->  | K44: =VLOOKUP($B44,'15'!$A:$G,3,) -> -0.28 | L44: =VLOOKUP($B44,'5'!$A:$G,3,) ->  | M44: =VLOOKUP($B44,'19'!$A:$H,3,) ->  | N44: =VLOOKUP($B44,'8'!$A:$G,3,) -> 0.87 | O44: =VLOOKUP($B44,'13'!$A:$H,3,) ->  | P44: =VLOOKUP($B44,'3'!$A:$H,3,) ->  | Q44: =VLOOKUP($B44,'9'!$A:$G,3,) -> -0.43 | R44: =VLOOKUP($B44,'6'!$A:$G,3,) -> -0.52 | S44: =VLOOKUP($B44,'18'!$A:$H,3,FALSE) -> -0.53 | T44: =VLOOKUP($B44,'14'!$A:$G,3,) ->  | U44: =VLOOKUP($B44,'16'!$A:$H,3,) ->  | V44: =VLOOKUP($B44,'20'!$A:$H,3,) -> -0.46 | W44: =VLOOKUP($B44,'17'!$A:$H,3,) -> 
A45: C13 | B45: Ndufa4l2 | C45: =VLOOKUP($B45,'1'!$A:$G,3,) ->  | D45: =VLOOKUP($B45,'4'!$A:$H,3,) ->  | E45: =VLOOKUP($B45,'11'!$A:$G,3,) ->  | F45: =VLOOKUP($B45,'2'!$A:$G,3,) ->  | G45: =VLOOKUP($B45,'10'!$A:$G,3,) ->  | H45: =VLOOKUP($B45,'12'!$A:$G,3,) ->  | I45: =VLOOKUP($B45,'7'!$A:$H,3,) ->  | J45: =VLOOKUP($B45,'0'!$A:$H,3,) ->  | K45: =VLOOKUP($B45,'15'!$A:$G,3,) ->  | L45: =VLOOKUP($B45,'5'!$A:$G,3,) -> 0.55 | M45: =VLOOKUP($B45,'19'!$A:$H,3,) ->  | N45: =VLOOKUP($B45,'8'!$A:$G,3,) ->  | O45: =VLOOKUP($B45,'13'!$A:$H,3,) -> 1.54 | P45: =VLOOKUP($B45,'3'!$A:$H,3,) ->  | Q45: =VLOOKUP($B45,'9'!$A:$G,3,) ->  | R45: =VLOOKUP($B45,'6'!$A:$G,3,) ->  | S45: =VLOOKUP($B45,'18'!$A:$H,3,FALSE) ->  | T45: =VLOOKUP($B45,'14'!$A:$G,3,) ->  | U45: =VLOOKUP($B45,'16'!$A:$H,3,) ->  | V45: =VLOOKUP($B45,'20'!$A:$H,3,) ->  | W45: =VLOOKUP($B45,'17'!$A:$H,3,) -> 
B46: Kcnj8 | C46: =VLOOKUP($B46,'1'!$A:$G,3,) ->  | D46: =VLOOKUP($B46,'4'!$A:$H,3,) ->  | E46: =VLOOKUP($B46,'11'!$A:$G,3,) ->  | F46: =VLOOKUP($B46,'2'!$A:$G,3,) ->  | G46: =VLOOKUP($B46,'10'!$A:$G,3,) ->  | H46: =VLOOKUP($B46,'12'!$A:$G,3,) ->  | I46: =VLOOKUP($B46,'7'!$A:$H,3,) ->  | J46: =VLOOKUP($B46,'0'!$A:$H,3,) ->  | K46: =VLOOKUP($B46,'15'!$A:$G,3,) ->  | L46: =VLOOKUP($B46,'5'!$A:$G,3,) ->  | M46: =VLOOKUP($B46,'19'!$A:$H,3,) ->  | N46: =VLOOKUP($B46,'8'!$A:$G,3,) ->  | O46: =VLOOKUP($B46,'13'!$A:$H,3,) -> 1.27 | P46: =VLOOKUP($B46,'3'!$A:$H,3,) ->  | Q46: =VLOOKUP($B46,'9'!$A:$G,3,) ->  | R46: =VLOOKUP($B46,'6'!$A:$G,3,) ->  | S46: =VLOOKUP($B46,'18'!$A:$H,3,FALSE) ->  | T46: =VLOOKUP($B46,'14'!$A:$G,3,) ->  | U46: =VLOOKUP($B46,'16'!$A:$H,3,) ->  | V46: =VLOOKUP($B46,'20'!$A:$H,3,) ->  | W46: =VLOOKUP($B46,'17'!$A:$H,3,) -> 
B47: Akr1b7 | C47: =VLOOKUP($B47,'1'!$A:$G,3,) ->  | D47: =VLOOKUP($B47,'4'!$A:$H,3,) ->  | E47: =VLOOKUP($B47,'11'!$A:$G,3,) ->  | F47: =VLOOKUP($B47,'2'!$A:$G,3,) ->  | G47: =VLOOKUP($B47,'10'!$A:$G,3,) ->  | H47: =VLOOKUP($B47,'12'!$A:$G,3,) ->  | I47: =VLOOKUP($B47,'7'!$A:$H,3,) ->  | J47: =VLOOKUP($B47,'0'!$A:$H,3,) ->  | K47: =VLOOKUP($B47,'15'!$A:$G,3,) ->  | L47: =VLOOKUP($B47,'5'!$A:$G,3,) ->  | M47: =VLOOKUP($B47,'19'!$A:$H,3,) ->  | N47: =VLOOKUP($B47,'8'!$A:$G,3,) ->  | O47: =VLOOKUP($B47,'13'!$A:$H,3,) -> 1.21 | P47: =VLOOKUP($B47,'3'!$A:$H,3,) ->  | Q47: =VLOOKUP($B47,'9'!$A:$G,3,) ->  | R47: =VLOOKUP($B47,'6'!$A:$G,3,) ->  | S47: =VLOOKUP($B47,'18'!$A:$H,3,FALSE) ->  | T47: =VLOOKUP($B47,'14'!$A:$G,3,) ->  | U47: =VLOOKUP($B47,'16'!$A:$H,3,) ->  | V47: =VLOOKUP($B47,'20'!$A:$H,3,) ->  | W47: =VLOOKUP($B47,'17'!$A:$H,3,) -> 
A48: C3 | B48: Tspan13 | C48: =VLOOKUP($B48,'1'!$A:$G,3,) ->  | D48: =VLOOKUP($B48,'4'!$A:$H,3,) ->  | E48: =VLOOKUP($B48,'11'!$A:$G,3,) ->  | F48: =VLOOKUP($B48,'2'!$A:$G,3,) -> 0.26 | G48: =VLOOKUP($B48,'10'!$A:$G,3,) -> 0.64 | H48: =VLOOKUP($B48,'12'!$A:$G,3,) -> 0.47 | I48: =VLOOKUP($B48,'7'!$A:$H,3,) -> 0.37 | J48: =VLOOKUP($B48,'0'!$A:$H,3,) -> -0.36 | K48: =VLOOKUP($B48,'15'!$A:$G,3,) -> -0.33 | L48: =VLOOKUP($B48,'5'!$A:$G,3,) -> -0.36 | M48: =VLOOKUP($B48,'19'!$A:$H,3,) ->  | N48: =VLOOKUP($B48,'8'!$A:$G,3,) -> -0.30 | O48: =VLOOKUP($B48,'13'!$A:$H,3,) -> -0.30 | P48: =VLOOKUP($B48,'3'!$A:$H,3,) -> -0.34 | Q48: =VLOOKUP($B48,'9'!$A:$G,3,) -> -0.38 | R48: =VLOOKUP($B48,'6'!$A:$G,3,) -> -0.41 | S48: =VLOOKUP($B48,'18'!$A:$H,3,FALSE) -> -0.40 | T48: =VLOOKUP($B48,'14'!$A:$G,3,) ->  | U48: =VLOOKUP($B48,'16'!$A:$H,3,) ->  | V48: =VLOOKUP($B48,'20'!$A:$H,3,) -> -0.36 | W48: =VLOOKUP($B48,'17'!$A:$H,3,) -> 
B49: Calml4 | C49: =VLOOKUP($B49,'1'!$A:$G,3,) ->  | D49: =VLOOKUP($B49,'4'!$A:$H,3,) ->  | E49: =VLOOKUP($B49,'11'!$A:$G,3,) ->  | F49: =VLOOKUP($B49,'2'!$A:$G,3,) ->  | G49: =VLOOKUP($B49,'10'!$A:$G,3,) -> 0.73 | H49: =VLOOKUP($B49,'12'!$A:$G,3,) ->  | I49: =VLOOKUP($B49,'7'!$A:$H,3,) ->  | J49: =VLOOKUP($B49,'0'!$A:$H,3,) ->  | K49: =VLOOKUP($B49,'15'!$A:$G,3,) -> 0.78 | L49: =VLOOKUP($B49,'5'!$A:$G,3,) ->  | M49: =VLOOKUP($B49,'19'!$A:$H,3,) -> 0.41 | N49: =VLOOKUP($B49,'8'!$A:$G,3,) ->  | O49: =VLOOKUP($B49,'13'!$A:$H,3,) ->  | P49: =VLOOKUP($B49,'3'!$A:$H,3,) -> 0.32 | Q49: =VLOOKUP($B49,'9'!$A:$G,3,) ->  | R49: =VLOOKUP($B49,'6'!$A:$G,3,) -> -0.26 | S49: =VLOOKUP($B49,'18'!$A:$H,3,FALSE) ->  | T49: =VLOOKUP($B49,'14'!$A:$G,3,) ->  | U49: =VLOOKUP($B49,'16'!$A:$H,3,) ->  | V49: =VLOOKUP($B49,'20'!$A:$H,3,) ->  | W49: =VLOOKUP($B49,'17'!$A:$H,3,) -> 
B50: Mrpl23 | C50: =VLOOKUP($B50,'1'!$A:$G,3,) -> 0.36 | D50: =VLOOKUP($B50,'4'!$A:$H,3,) -> 0.30 | E50: =VLOOKUP($B50,'11'!$A:$G,3,) -> 0.44 | F50: =VLOOKUP($B50,'2'!$A:$G,3,) -> 0.35 | G50: =VLOOKUP($B50,'10'!$A:$G,3,) ->  | H50: =VLOOKUP($B50,'12'!$A:$G,3,) ->  | I50: =VLOOKUP($B50,'7'!$A:$H,3,) -> 0.34 | J50: =VLOOKUP($B50,'0'!$A:$H,3,) -> -0.36 | K50: =VLOOKUP($B50,'15'!$A:$G,3,) -> -0.35 | L50: =VLOOKUP($B50,'5'!$A:$G,3,) ->  | M50: =VLOOKUP($B50,'19'!$A:$H,3,) ->  | N50: =VLOOKUP($B50,'8'!$A:$G,3,) -> -0.36 | O50: =VLOOKUP($B50,'13'!$A:$H,3,) ->  | P50: =VLOOKUP($B50,'3'!$A:$H,3,) -> -0.40 | Q50: =VLOOKUP($B50,'9'!$A:$G,3,) -> -0.95 | R50: =VLOOKUP($B50,'6'!$A:$G,3,) -> -1.05 | S50: =VLOOKUP($B50,'18'!$A:$H,3,FALSE) -> -0.99 | T50: =VLOOKUP($B50,'14'!$A:$G,3,) ->  | U50: =VLOOKUP($B50,'16'!$A:$H,3,) -> 0.33 | V50: =VLOOKUP($B50,'20'!$A:$H,3,) -> -0.74 | W50: =VLOOKUP($B50,'17'!$A:$H,3,) -> 
A51: C6 | B51: Hba-a1 | C51: =VLOOKUP($B51,'1'!$A:$G,3,) -> -3.28 | D51: =VLOOKUP($B51,'4'!$A:$H,3,) -> -3.73 | E51: =VLOOKUP($B51,'11'!$A:$G,3,) ->  | F51: =VLOOKUP($B51,'2'!$A:$G,3,) -> -3.57 | G51: =VLOOKUP($B51,'10'!$A:$G,3,) -> -3.76 | H51: =VLOOKUP($B51,'12'!$A:$G,3,) -> -3.52 | I51: =VLOOKUP($B51,'7'!$A:$H,3,) -> -3.11 | J51: =VLOOKUP($B51,'0'!$A:$H,3,) -> -3.40 | K51: =VLOOKUP($B51,'15'!$A:$G,3,) -> -2.75 | L51: =VLOOKUP($B51,'5'!$A:$G,3,) -> -3.38 | M51: =VLOOKUP($B51,'19'!$A:$H,3,) ->  | N51: =VLOOKUP($B51,'8'!$A:$G,3,) ->  | O51: =VLOOKUP($B51,'13'!$A:$H,3,) -> -3.60 | P51: =VLOOKUP($B51,'3'!$A:$H,3,) -> -2.89 | Q51: =VLOOKUP($B51,'9'!$A:$G,3,) -> 2.47 | R51: =VLOOKUP($B51,'6'!$A:$G,3,) -> 2.97 | S51: =VLOOKUP($B51,'18'!$A:$H,3,FALSE) -> 2.23 | T51: =VLOOKUP($B51,'14'!$A:$G,3,) -> -2.67 | U51: =VLOOKUP($B51,'16'!$A:$H,3,) ->  | V51: =VLOOKUP($B51,'20'!$A:$H,3,) -> -5.17 | W51: =VLOOKUP($B51,'17'!$A:$H,3,) -> 
B52: Hbb-bs | C52: =VLOOKUP($B52,'1'!$A:$G,3,) -> -3.17 | D52: =VLOOKUP($B52,'4'!$A:$H,3,) -> -3.38 | E52: =VLOOKUP($B52,'11'!$A:$G,3,) ->  | F52: =VLOOKUP($B52,'2'!$A:$G,3,) -> -3.33 | G52: =VLOOKUP($B52,'10'!$A:$G,3,) -> -3.60 | H52: =VLOOKUP($B52,'12'!$A:$G,3,) -> -3.24 | I52: =VLOOKUP($B52,'7'!$A:$H,3,) -> -2.93 | J52: =VLOOKUP($B52,'0'!$A:$H,3,) -> -3.16 | K52: =VLOOKUP($B52,'15'!$A:$G,3,) -> -2.51 | L52: =VLOOKUP($B52,'5'!$A:$G,3,) -> -3.15 | M52: =VLOOKUP($B52,'19'!$A:$H,3,) ->  | N52: =VLOOKUP($B52,'8'!$A:$G,3,) ->  | O52: =VLOOKUP($B52,'13'!$A:$H,3,) -> -3.35 | P52: =VLOOKUP($B52,'3'!$A:$H,3,) -> -2.81 | Q52: =VLOOKUP($B52,'9'!$A:$G,3,) -> 2.55 | R52: =VLOOKUP($B52,'6'!$A:$G,3,) -> 2.90 | S52: =VLOOKUP($B52,'18'!$A:$H,3,FALSE) -> 2.02 | T52: =VLOOKUP($B52,'14'!$A:$G,3,) ->  | U52: =VLOOKUP($B52,'16'!$A:$H,3,) ->  | V52: =VLOOKUP($B52,'20'!$A:$H,3,) -> -4.63 | W52: =VLOOKUP($B52,'17'!$A:$H,3,) -> 
B53: Hba-a2 | C53: =VLOOKUP($B53,'1'!$A:$G,3,) -> -3.18 | D53: =VLOOKUP($B53,'4'!$A:$H,3,) -> -3.36 | E53: =VLOOKUP($B53,'11'!$A:$G,3,) -> -3.02 | F53: =VLOOKUP($B53,'2'!$A:$G,3,) -> -3.39 | G53: =VLOOKUP($B53,'10'!$A:$G,3,) -> -3.62 | H53: =VLOOKUP($B53,'12'!$A:$G,3,) -> -3.36 | I53: =VLOOKUP($B53,'7'!$A:$H,3,) -> -2.92 | J53: =VLOOKUP($B53,'0'!$A:$H,3,) -> -3.10 | K53: =VLOOKUP($B53,'15'!$A:$G,3,) -> -2.50 | L53: =VLOOKUP($B53,'5'!$A:$G,3,) -> -3.07 | M53: =VLOOKUP($B53,'19'!$A:$H,3,) ->  | N53: =VLOOKUP($B53,'8'!$A:$G,3,) ->  | O53: =VLOOKUP($B53,'13'!$A:$H,3,) -> -3.21 | P53: =VLOOKUP($B53,'3'!$A:$H,3,) -> -2.92 | Q53: =VLOOKUP($B53,'9'!$A:$G,3,) -> 2.59 | R53: =VLOOKUP($B53,'6'!$A:$G,3,) -> 2.79 | S53: =VLOOKUP($B53,'18'!$A:$H,3,FALSE) -> 2.38 | T53: =VLOOKUP($B53,'14'!$A:$G,3,) ->  | U53: =VLOOKUP($B53,'16'!$A:$H,3,) ->  | V53: =VLOOKUP($B53,'20'!$A:$H,3,) -> -4.10 | W53: =VLOOKUP($B53,'17'!$A:$H,3,) -> 
A54: C9 | B54: Hbb-bt | C54: =VLOOKUP($B54,'1'!$A:$G,3,) -> -3.29 | D54: =VLOOKUP($B54,'4'!$A:$H,3,) -> -3.46 | E54: =VLOOKUP($B54,'11'!$A:$G,3,) ->  | F54: =VLOOKUP($B54,'2'!$A:$G,3,) -> -3.53 | G54: =VLOOKUP($B54,'10'!$A:$G,3,) -> -3.62 | H54: =VLOOKUP($B54,'12'!$A:$G,3,) -> -3.43 | I54: =VLOOKUP($B54,'7'!$A:$H,3,) -> -3.05 | J54: =VLOOKUP($B54,'0'!$A:$H,3,) -> -3.19 | K54: =VLOOKUP($B54,'15'!$A:$G,3,) -> -2.80 | L54: =VLOOKUP($B54,'5'!$A:$G,3,) -> -3.19 | M54: =VLOOKUP($B54,'19'!$A:$H,3,) -> -2.47 | N54: =VLOOKUP($B54,'8'!$A:$G,3,) ->  | O54: =VLOOKUP($B54,'13'!$A:$H,3,) -> -3.25 | P54: =VLOOKUP($B54,'3'!$A:$H,3,) -> -2.94 | Q54: =VLOOKUP($B54,'9'!$A:$G,3,) -> 2.80 | R54: =VLOOKUP($B54,'6'!$A:$G,3,) -> 2.77 | S54: =VLOOKUP($B54,'18'!$A:$H,3,FALSE) -> 1.35 | T54: =VLOOKUP($B54,'14'!$A:$G,3,) -> -2.61 | U54: =VLOOKUP($B54,'16'!$A:$H,3,) ->  | V54: =VLOOKUP($B54,'20'!$A:$H,3,) -> -4.58 | W54: =VLOOKUP($B54,'17'!$A:$H,3,) -> 
B55: Hba-a2 | C55: =VLOOKUP($B55,'1'!$A:$G,3,) -> -3.18 | D55: =VLOOKUP($B55,'4'!$A:$H,3,) -> -3.36 | E55: =VLOOKUP($B55,'11'!$A:$G,3,) -> -3.02 | F55: =VLOOKUP($B55,'2'!$A:$G,3,) -> -3.39 | G55: =VLOOKUP($B55,'10'!$A:$G,3,) -> -3.62 | H55: =VLOOKUP($B55,'12'!$A:$G,3,) -> -3.36 | I55: =VLOOKUP($B55,'7'!$A:$H,3,) -> -2.92 | J55: =VLOOKUP($B55,'0'!$A:$H,3,) -> -3.10 | K55: =VLOOKUP($B55,'15'!$A:$G,3,) -> -2.50 | L55: =VLOOKUP($B55,'5'!$A:$G,3,) -> -3.07 | M55: =VLOOKUP($B55,'19'!$A:$H,3,) ->  | N55: =VLOOKUP($B55,'8'!$A:$G,3,) ->  | O55: =VLOOKUP($B55,'13'!$A:$H,3,) -> -3.21 | P55: =VLOOKUP($B55,'3'!$A:$H,3,) -> -2.92 | Q55: =VLOOKUP($B55,'9'!$A:$G,3,) -> 2.59 | R55: =VLOOKUP($B55,'6'!$A:$G,3,) -> 2.79 | S55: =VLOOKUP($B55,'18'!$A:$H,3,FALSE) -> 2.38 | T55: =VLOOKUP($B55,'14'!$A:$G,3,) ->  | U55: =VLOOKUP($B55,'16'!$A:$H,3,) ->  | V55: =VLOOKUP($B55,'20'!$A:$H,3,) -> -4.10 | W55: =VLOOKUP($B55,'17'!$A:$H,3,) -> 
B56: Hbb-bs | C56: =VLOOKUP($B56,'1'!$A:$G,3,) -> -3.17 | D56: =VLOOKUP($B56,'4'!$A:$H,3,) -> -3.38 | E56: =VLOOKUP($B56,'11'!$A:$G,3,) ->  | F56: =VLOOKUP($B56,'2'!$A:$G,3,) -> -3.33 | G56: =VLOOKUP($B56,'10'!$A:$G,3,) -> -3.60 | H56: =VLOOKUP($B56,'12'!$A:$G,3,) -> -3.24 | I56: =VLOOKUP($B56,'7'!$A:$H,3,) -> -2.93 | J56: =VLOOKUP($B56,'0'!$A:$H,3,) -> -3.16 | K56: =VLOOKUP($B56,'15'!$A:$G,3,) -> -2.51 | L56: =VLOOKUP($B56,'5'!$A:$G,3,) -> -3.15 | M56: =VLOOKUP($B56,'19'!$A:$H,3,) ->  | N56: =VLOOKUP($B56,'8'!$A:$G,3,) ->  | O56: =VLOOKUP($B56,'13'!$A:$H,3,) -> -3.35 | P56: =VLOOKUP($B56,'3'!$A:$H,3,) -> -2.81 | Q56: =VLOOKUP($B56,'9'!$A:$G,3,) -> 2.55 | R56: =VLOOKUP($B56,'6'!$A:$G,3,) -> 2.90 | S56: =VLOOKUP($B56,'18'!$A:$H,3,FALSE) -> 2.02 | T56: =VLOOKUP($B56,'14'!$A:$G,3,) ->  | U56: =VLOOKUP($B56,'16'!$A:$H,3,) ->  | V56: =VLOOKUP($B56,'20'!$A:$H,3,) -> -4.63 | W56: =VLOOKUP($B56,'17'!$A:$H,3,) -> 
A57: C18 | B57: Hbb-bh1 | C57: =VLOOKUP($B57,'1'!$A:$G,3,) ->  | D57: =VLOOKUP($B57,'4'!$A:$H,3,) ->  | E57: =VLOOKUP($B57,'11'!$A:$G,3,) ->  | F57: =VLOOKUP($B57,'2'!$A:$G,3,) ->  | G57: =VLOOKUP($B57,'10'!$A:$G,3,) ->  | H57: =VLOOKUP($B57,'12'!$A:$G,3,) ->  | I57: =VLOOKUP($B57,'7'!$A:$H,3,) ->  | J57: =VLOOKUP($B57,'0'!$A:$H,3,) ->  | K57: =VLOOKUP($B57,'15'!$A:$G,3,) ->  | L57: =VLOOKUP($B57,'5'!$A:$G,3,) ->  | M57: =VLOOKUP($B57,'19'!$A:$H,3,) ->  | N57: =VLOOKUP($B57,'8'!$A:$G,3,) ->  | O57: =VLOOKUP($B57,'13'!$A:$H,3,) ->  | P57: =VLOOKUP($B57,'3'!$A:$H,3,) ->  | Q57: =VLOOKUP($B57,'9'!$A:$G,3,) ->  | R57: =VLOOKUP($B57,'6'!$A:$G,3,) ->  | S57: =VLOOKUP($B57,'18'!$A:$H,3,FALSE) -> 2.09 | T57: =VLOOKUP($B57,'14'!$A:$G,3,) ->  | U57: =VLOOKUP($B57,'16'!$A:$H,3,) ->  | V57: =VLOOKUP($B57,'20'!$A:$H,3,) ->  | W57: =VLOOKUP($B57,'17'!$A:$H,3,) -> 
B58: Hsd3b6 | C58: =VLOOKUP($B58,'1'!$A:$G,3,) ->  | D58: =VLOOKUP($B58,'4'!$A:$H,3,) ->  | E58: =VLOOKUP($B58,'11'!$A:$G,3,) ->  | F58: =VLOOKUP($B58,'2'!$A:$G,3,) ->  | G58: =VLOOKUP($B58,'10'!$A:$G,3,) ->  | H58: =VLOOKUP($B58,'12'!$A:$G,3,) ->  | I58: =VLOOKUP($B58,'7'!$A:$H,3,) ->  | J58: =VLOOKUP($B58,'0'!$A:$H,3,) ->  | K58: =VLOOKUP($B58,'15'!$A:$G,3,) ->  | L58: =VLOOKUP($B58,'5'!$A:$G,3,) ->  | M58: =VLOOKUP($B58,'19'!$A:$H,3,) ->  | N58: =VLOOKUP($B58,'8'!$A:$G,3,) ->  | O58: =VLOOKUP($B58,'13'!$A:$H,3,) ->  | P58: =VLOOKUP($B58,'3'!$A:$H,3,) ->  | Q58: =VLOOKUP($B58,'9'!$A:$G,3,) ->  | R58: =VLOOKUP($B58,'6'!$A:$G,3,) ->  | S58: =VLOOKUP($B58,'18'!$A:$H,3,FALSE) -> 0.57 | T58: =VLOOKUP($B58,'14'!$A:$G,3,) ->  | U58: =VLOOKUP($B58,'16'!$A:$H,3,) ->  | V58: =VLOOKUP($B58,'20'!$A:$H,3,) ->  | W58: =VLOOKUP($B58,'17'!$A:$H,3,) -> 
B59: Hba-x | C59: =VLOOKUP($B59,'1'!$A:$G,3,) ->  | D59: =VLOOKUP($B59,'4'!$A:$H,3,) ->  | E59: =VLOOKUP($B59,'11'!$A:$G,3,) ->  | F59: =VLOOKUP($B59,'2'!$A:$G,3,) ->  | G59: =VLOOKUP($B59,'10'!$A:$G,3,) ->  | H59: =VLOOKUP($B59,'12'!$A:$G,3,) ->  | I59: =VLOOKUP($B59,'7'!$A:$H,3,) ->  | J59: =VLOOKUP($B59,'0'!$A:$H,3,) ->  | K59: =VLOOKUP($B59,'15'!$A:$G,3,) ->  | L59: =VLOOKUP($B59,'5'!$A:$G,3,) ->  | M59: =VLOOKUP($B59,'19'!$A:$H,3,) ->  | N59: =VLOOKUP($B59,'8'!$A:$G,3,) ->  | O59: =VLOOKUP($B59,'13'!$A:$H,3,) ->  | P59: =VLOOKUP($B59,'3'!$A:$H,3,) ->  | Q59: =VLOOKUP($B59,'9'!$A:$G,3,) ->  | R59: =VLOOKUP($B59,'6'!$A:$G,3,) ->  | S59: =VLOOKUP($B59,'18'!$A:$H,3,FALSE) -> 4.27 | T59: =VLOOKUP($B59,'14'!$A:$G,3,) ->  | U59: =VLOOKUP($B59,'16'!$A:$H,3,) ->  | V59: =VLOOKUP($B59,'20'!$A:$H,3,) ->  | W59: =VLOOKUP($B59,'17'!$A:$H,3,) -> 
A60: C14 | B60: Fabp4 | C60: =VLOOKUP($B60,'1'!$A:$G,3,) ->  | D60: =VLOOKUP($B60,'4'!$A:$H,3,) ->  | E60: =VLOOKUP($B60,'11'!$A:$G,3,) ->  | F60: =VLOOKUP($B60,'2'!$A:$G,3,) ->  | G60: =VLOOKUP($B60,'10'!$A:$G,3,) ->  | H60: =VLOOKUP($B60,'12'!$A:$G,3,) ->  | I60: =VLOOKUP($B60,'7'!$A:$H,3,) ->  | J60: =VLOOKUP($B60,'0'!$A:$H,3,) ->  | K60: =VLOOKUP($B60,'15'!$A:$G,3,) ->  | L60: =VLOOKUP($B60,'5'!$A:$G,3,) ->  | M60: =VLOOKUP($B60,'19'!$A:$H,3,) ->  | N60: =VLOOKUP($B60,'8'!$A:$G,3,) ->  | O60: =VLOOKUP($B60,'13'!$A:$H,3,) -> -0.52 | P60: =VLOOKUP($B60,'3'!$A:$H,3,) ->  | Q60: =VLOOKUP($B60,'9'!$A:$G,3,) ->  | R60: =VLOOKUP($B60,'6'!$A:$G,3,) ->  | S60: =VLOOKUP($B60,'18'!$A:$H,3,FALSE) ->  | T60: =VLOOKUP($B60,'14'!$A:$G,3,) -> 3.85 | U60: =VLOOKUP($B60,'16'!$A:$H,3,) ->  | V60: =VLOOKUP($B60,'20'!$A:$H,3,) ->  | W60: =VLOOKUP($B60,'17'!$A:$H,3,) -> 
B61: Egfl7 | C61: =VLOOKUP($B61,'1'!$A:$G,3,) ->  | D61: =VLOOKUP($B61,'4'!$A:$H,3,) ->  | E61: =VLOOKUP($B61,'11'!$A:$G,3,) ->  | F61: =VLOOKUP($B61,'2'!$A:$G,3,) ->  | G61: =VLOOKUP($B61,'10'!$A:$G,3,) ->  | H61: =VLOOKUP($B61,'12'!$A:$G,3,) ->  | I61: =VLOOKUP($B61,'7'!$A:$H,3,) ->  | J61: =VLOOKUP($B61,'0'!$A:$H,3,) ->  | K61: =VLOOKUP($B61,'15'!$A:$G,3,) ->  | L61: =VLOOKUP($B61,'5'!$A:$G,3,) ->  | M61: =VLOOKUP($B61,'19'!$A:$H,3,) ->  | N61: =VLOOKUP($B61,'8'!$A:$G,3,) ->  | O61: =VLOOKUP($B61,'13'!$A:$H,3,) ->  | P61: =VLOOKUP($B61,'3'!$A:$H,3,) ->  | Q61: =VLOOKUP($B61,'9'!$A:$G,3,) -> -0.34 | R61: =VLOOKUP($B61,'6'!$A:$G,3,) -> -0.36 | S61: =VLOOKUP($B61,'18'!$A:$H,3,FALSE) -> -0.35 | T61: =VLOOKUP($B61,'14'!$A:$G,3,) -> 2.03 | U61: =VLOOKUP($B61,'16'!$A:$H,3,) ->  | V61: =VLOOKUP($B61,'20'!$A:$H,3,) -> -0.36 | W61: =VLOOKUP($B61,'17'!$A:$H,3,) -> 
B62: Cldn5 | C62: =VLOOKUP($B62,'1'!$A:$G,3,) ->  | D62: =VLOOKUP($B62,'4'!$A:$H,3,) ->  | E62: =VLOOKUP($B62,'11'!$A:$G,3,) ->  | F62: =VLOOKUP($B62,'2'!$A:$G,3,) -> 0.59 | G62: =VLOOKUP($B62,'10'!$A:$G,3,) ->  | H62: =VLOOKUP($B62,'12'!$A:$G,3,) ->  | I62: =VLOOKUP($B62,'7'!$A:$H,3,) ->  | J62: =VLOOKUP($B62,'0'!$A:$H,3,) ->  | K62: =VLOOKUP($B62,'15'!$A:$G,3,) ->  | L62: =VLOOKUP($B62,'5'!$A:$G,3,) ->  | M62: =VLOOKUP($B62,'19'!$A:$H,3,) ->  | N62: =VLOOKUP($B62,'8'!$A:$G,3,) ->  | O62: =VLOOKUP($B62,'13'!$A:$H,3,) ->  | P62: =VLOOKUP($B62,'3'!$A:$H,3,) ->  | Q62: =VLOOKUP($B62,'9'!$A:$G,3,) ->  | R62: =VLOOKUP($B62,'6'!$A:$G,3,) ->  | S62: =VLOOKUP($B62,'18'!$A:$H,3,FALSE) ->  | T62: =VLOOKUP($B62,'14'!$A:$G,3,) -> 2.00 | U62: =VLOOKUP($B62,'16'!$A:$H,3,) ->  | V62: =VLOOKUP($B62,'20'!$A:$H,3,) ->  | W62: =VLOOKUP($B62,'17'!$A:$H,3,) -> 
A63: C16 | B63: Lyz2 | C63: =VLOOKUP($B63,'1'!$A:$G,3,) ->  | D63: =VLOOKUP($B63,'4'!$A:$H,3,) ->  | E63: =VLOOKUP($B63,'11'!$A:$G,3,) ->  | F63: =VLOOKUP($B63,'2'!$A:$G,3,) ->  | G63: =VLOOKUP($B63,'10'!$A:$G,3,) ->  | H63: =VLOOKUP($B63,'12'!$A:$G,3,) ->  | I63: =VLOOKUP($B63,'7'!$A:$H,3,) ->  | J63: =VLOOKUP($B63,'0'!$A:$H,3,) ->  | K63: =VLOOKUP($B63,'15'!$A:$G,3,) ->  | L63: =VLOOKUP($B63,'5'!$A:$G,3,) ->  | M63: =VLOOKUP($B63,'19'!$A:$H,3,) ->  | N63: =VLOOKUP($B63,'8'!$A:$G,3,) ->  | O63: =VLOOKUP($B63,'13'!$A:$H,3,) ->  | P63: =VLOOKUP($B63,'3'!$A:$H,3,) ->  | Q63: =VLOOKUP($B63,'9'!$A:$G,3,) ->  | R63: =VLOOKUP($B63,'6'!$A:$G,3,) ->  | S63: =VLOOKUP($B63,'18'!$A:$H,3,FALSE) ->  | T63: =VLOOKUP($B63,'14'!$A:$G,3,) ->  | U63: =VLOOKUP($B63,'16'!$A:$H,3,) -> 3.50 | V63: =VLOOKUP($B63,'20'!$A:$H,3,) ->  | W63: =VLOOKUP($B63,'17'!$A:$H,3,) -> 
B64: Fcer1g | C64: =VLOOKUP($B64,'1'!$A:$G,3,) ->  | D64: =VLOOKUP($B64,'4'!$A:$H,3,) ->  | E64: =VLOOKUP($B64,'11'!$A:$G,3,) ->  | F64: =VLOOKUP($B64,'2'!$A:$G,3,) ->  | G64: =VLOOKUP($B64,'10'!$A:$G,3,) ->  | H64: =VLOOKUP($B64,'12'!$A:$G,3,) ->  | I64: =VLOOKUP($B64,'7'!$A:$H,3,) ->  | J64: =VLOOKUP($B64,'0'!$A:$H,3,) ->  | K64: =VLOOKUP($B64,'15'!$A:$G,3,) ->  | L64: =VLOOKUP($B64,'5'!$A:$G,3,) ->  | M64: =VLOOKUP($B64,'19'!$A:$H,3,) ->  | N64: =VLOOKUP($B64,'8'!$A:$G,3,) ->  | O64: =VLOOKUP($B64,'13'!$A:$H,3,) ->  | P64: =VLOOKUP($B64,'3'!$A:$H,3,) ->  | Q64: =VLOOKUP($B64,'9'!$A:$G,3,) ->  | R64: =VLOOKUP($B64,'6'!$A:$G,3,) ->  | S64: =VLOOKUP($B64,'18'!$A:$H,3,FALSE) ->  | T64: =VLOOKUP($B64,'14'!$A:$G,3,) ->  | U64: =VLOOKUP($B64,'16'!$A:$H,3,) -> 3.40 | V64: =VLOOKUP($B64,'20'!$A:$H,3,) ->  | W64: =VLOOKUP($B64,'17'!$A:$H,3,) -> 
B65: Tyrobp | C65: =VLOOKUP($B65,'1'!$A:$G,3,) ->  | D65: =VLOOKUP($B65,'4'!$A:$H,3,) ->  | E65: =VLOOKUP($B65,'11'!$A:$G,3,) ->  | F65: =VLOOKUP($B65,'2'!$A:$G,3,) ->  | G65: =VLOOKUP($B65,'10'!$A:$G,3,) ->  | H65: =VLOOKUP($B65,'12'!$A:$G,3,) ->  | I65: =VLOOKUP($B65,'7'!$A:$H,3,) ->  | J65: =VLOOKUP($B65,'0'!$A:$H,3,) ->  | K65: =VLOOKUP($B65,'15'!$A:$G,3,) ->  | L65: =VLOOKUP($B65,'5'!$A:$G,3,) ->  | M65: =VLOOKUP($B65,'19'!$A:$H,3,) ->  | N65: =VLOOKUP($B65,'8'!$A:$G,3,) ->  | O65: =VLOOKUP($B65,'13'!$A:$H,3,) ->  | P65: =VLOOKUP($B65,'3'!$A:$H,3,) ->  | Q65: =VLOOKUP($B65,'9'!$A:$G,3,) ->  | R65: =VLOOKUP($B65,'6'!$A:$G,3,) ->  | S65: =VLOOKUP($B65,'18'!$A:$H,3,FALSE) ->  | T65: =VLOOKUP($B65,'14'!$A:$G,3,) ->  | U65: =VLOOKUP($B65,'16'!$A:$H,3,) -> 3.35 | V65: =VLOOKUP($B65,'20'!$A:$H,3,) ->  | W65: =VLOOKUP($B65,'17'!$A:$H,3,) -> 
A66: C20 | B66: Rpl39l | C66: =VLOOKUP($B66,'1'!$A:$G,3,) ->  | D66: =VLOOKUP($B66,'4'!$A:$H,3,) ->  | E66: =VLOOKUP($B66,'11'!$A:$G,3,) ->  | F66: =VLOOKUP($B66,'2'!$A:$G,3,) ->  | G66: =VLOOKUP($B66,'10'!$A:$G,3,) ->  | H66: =VLOOKUP($B66,'12'!$A:$G,3,) ->  | I66: =VLOOKUP($B66,'7'!$A:$H,3,) ->  | J66: =VLOOKUP($B66,'0'!$A:$H,3,) ->  | K66: =VLOOKUP($B66,'15'!$A:$G,3,) ->  | L66: =VLOOKUP($B66,'5'!$A:$G,3,) ->  | M66: =VLOOKUP($B66,'19'!$A:$H,3,) ->  | N66: =VLOOKUP($B66,'8'!$A:$G,3,) ->  | O66: =VLOOKUP($B66,'13'!$A:$H,3,) ->  | P66: =VLOOKUP($B66,'3'!$A:$H,3,) ->  | Q66: =VLOOKUP($B66,'9'!$A:$G,3,) ->  | R66: =VLOOKUP($B66,'6'!$A:$G,3,) ->  | S66: =VLOOKUP($B66,'18'!$A:$H,3,FALSE) ->  | T66: =VLOOKUP($B66,'14'!$A:$G,3,) ->  | U66: =VLOOKUP($B66,'16'!$A:$H,3,) ->  | V66: =VLOOKUP($B66,'20'!$A:$H,3,) -> 2.65 | W66: =VLOOKUP($B66,'17'!$A:$H,3,) -> 
B67: Gm7293 | C67: =VLOOKUP($B67,'1'!$A:$G,3,) ->  | D67: =VLOOKUP($B67,'4'!$A:$H,3,) ->  | E67: =VLOOKUP($B67,'11'!$A:$G,3,) ->  | F67: =VLOOKUP($B67,'2'!$A:$G,3,) ->  | G67: =VLOOKUP($B67,'10'!$A:$G,3,) ->  | H67: =VLOOKUP($B67,'12'!$A:$G,3,) ->  | I67: =VLOOKUP($B67,'7'!$A:$H,3,) ->  | J67: =VLOOKUP($B67,'0'!$A:$H,3,) ->  | K67: =VLOOKUP($B67,'15'!$A:$G,3,) ->  | L67: =VLOOKUP($B67,'5'!$A:$G,3,) ->  | M67: =VLOOKUP($B67,'19'!$A:$H,3,) ->  | N67: =VLOOKUP($B67,'8'!$A:$G,3,) ->  | O67: =VLOOKUP($B67,'13'!$A:$H,3,) ->  | P67: =VLOOKUP($B67,'3'!$A:$H,3,) ->  | Q67: =VLOOKUP($B67,'9'!$A:$G,3,) ->  | R67: =VLOOKUP($B67,'6'!$A:$G,3,) ->  | S67: =VLOOKUP($B67,'18'!$A:$H,3,FALSE) ->  | T67: =VLOOKUP($B67,'14'!$A:$G,3,) ->  | U67: =VLOOKUP($B67,'16'!$A:$H,3,) ->  | V67: =VLOOKUP($B67,'20'!$A:$H,3,) -> 1.77 | W67: =VLOOKUP($B67,'17'!$A:$H,3,) -> 
B68: Rpl7a-ps3 | C68: =VLOOKUP($B68,'1'!$A:$G,3,) ->  | D68: =VLOOKUP($B68,'4'!$A:$H,3,) ->  | E68: =VLOOKUP($B68,'11'!$A:$G,3,) ->  | F68: =VLOOKUP($B68,'2'!$A:$G,3,) ->  | G68: =VLOOKUP($B68,'10'!$A:$G,3,) ->  | H68: =VLOOKUP($B68,'12'!$A:$G,3,) ->  | I68: =VLOOKUP($B68,'7'!$A:$H,3,) ->  | J68: =VLOOKUP($B68,'0'!$A:$H,3,) ->  | K68: =VLOOKUP($B68,'15'!$A:$G,3,) ->  | L68: =VLOOKUP($B68,'5'!$A:$G,3,) ->  | M68: =VLOOKUP($B68,'19'!$A:$H,3,) ->  | N68: =VLOOKUP($B68,'8'!$A:$G,3,) ->  | O68: =VLOOKUP($B68,'13'!$A:$H,3,) ->  | P68: =VLOOKUP($B68,'3'!$A:$H,3,) ->  | Q68: =VLOOKUP($B68,'9'!$A:$G,3,) ->  | R68: =VLOOKUP($B68,'6'!$A:$G,3,) ->  | S68: =VLOOKUP($B68,'18'!$A:$H,3,FALSE) ->  | T68: =VLOOKUP($B68,'14'!$A:$G,3,) ->  | U68: =VLOOKUP($B68,'16'!$A:$H,3,) ->  | V68: =VLOOKUP($B68,'20'!$A:$H,3,) -> 1.61 | W68: =VLOOKUP($B68,'17'!$A:$H,3,) -> 
A69: C17 | B69: Eya1 | C69: =VLOOKUP($B69,'1'!$A:$G,3,) -> 0.63 | D69: =VLOOKUP($B69,'4'!$A:$H,3,) -> 0.53 | E69: =VLOOKUP($B69,'11'!$A:$G,3,) -> 0.48 | F69: =VLOOKUP($B69,'2'!$A:$G,3,) ->  | G69: =VLOOKUP($B69,'10'!$A:$G,3,) -> -0.33 | H69: =VLOOKUP($B69,'12'!$A:$G,3,) -> -0.34 | I69: =VLOOKUP($B69,'7'!$A:$H,3,) -> -0.35 | J69: =VLOOKUP($B69,'0'!$A:$H,3,) -> -0.38 | K69: =VLOOKUP($B69,'15'!$A:$G,3,) -> -0.32 | L69: =VLOOKUP($B69,'5'!$A:$G,3,) -> -0.37 | M69: =VLOOKUP($B69,'19'!$A:$H,3,) -> -0.31 | N69: =VLOOKUP($B69,'8'!$A:$G,3,) -> -0.35 | O69: =VLOOKUP($B69,'13'!$A:$H,3,) -> -0.34 | P69: =VLOOKUP($B69,'3'!$A:$H,3,) -> -0.36 | Q69: =VLOOKUP($B69,'9'!$A:$G,3,) -> -0.35 | R69: =VLOOKUP($B69,'6'!$A:$G,3,) -> -0.36 | S69: =VLOOKUP($B69,'18'!$A:$H,3,FALSE) -> -0.35 | T69: =VLOOKUP($B69,'14'!$A:$G,3,) -> -0.33 | U69: =VLOOKUP($B69,'16'!$A:$H,3,) -> -0.33 | V69: =VLOOKUP($B69,'20'!$A:$H,3,) -> -0.36 | W69: =VLOOKUP($B69,'17'!$A:$H,3,) -> 0.25
B70: Six2 | C70: =VLOOKUP($B70,'1'!$A:$G,3,) -> 0.63 | D70: =VLOOKUP($B70,'4'!$A:$H,3,) -> 0.61 | E70: =VLOOKUP($B70,'11'!$A:$G,3,) -> 0.38 | F70: =VLOOKUP($B70,'2'!$A:$G,3,) ->  | G70: =VLOOKUP($B70,'10'!$A:$G,3,) -> -0.32 | H70: =VLOOKUP($B70,'12'!$A:$G,3,) -> -0.30 | I70: =VLOOKUP($B70,'7'!$A:$H,3,) -> -0.30 | J70: =VLOOKUP($B70,'0'!$A:$H,3,) -> -0.35 | K70: =VLOOKUP($B70,'15'!$A:$G,3,) -> -0.30 | L70: =VLOOKUP($B70,'5'!$A:$G,3,) -> -0.33 | M70: =VLOOKUP($B70,'19'!$A:$H,3,) -> -0.30 | N70: =VLOOKUP($B70,'8'!$A:$G,3,) -> -0.33 | O70: =VLOOKUP($B70,'13'!$A:$H,3,) -> -0.32 | P70: =VLOOKUP($B70,'3'!$A:$H,3,) -> -0.33 | Q70: =VLOOKUP($B70,'9'!$A:$G,3,) -> -0.34 | R70: =VLOOKUP($B70,'6'!$A:$G,3,) -> -0.35 | S70: =VLOOKUP($B70,'18'!$A:$H,3,FALSE) -> -0.30 | T70: =VLOOKUP($B70,'14'!$A:$G,3,) -> -0.31 | U70: =VLOOKUP($B70,'16'!$A:$H,3,) -> -0.29 | V70: =VLOOKUP($B70,'20'!$A:$H,3,) -> -0.33 | W70: =VLOOKUP($B70,'17'!$A:$H,3,) -> 0.27
B71: Robo2 | C71: =VLOOKUP($B71,'1'!$A:$G,3,) -> 0.84 | D71: =VLOOKUP($B71,'4'!$A:$H,3,) -> 0.65 | E71: =VLOOKUP($B71,'11'!$A:$G,3,) -> 0.35 | F71: =VLOOKUP($B71,'2'!$A:$G,3,) ->  | G71: =VLOOKUP($B71,'10'!$A:$G,3,) -> -0.55 | H71: =VLOOKUP($B71,'12'!$A:$G,3,) -> -0.50 | I71: =VLOOKUP($B71,'7'!$A:$H,3,) -> -0.53 | J71: =VLOOKUP($B71,'0'!$A:$H,3,) -> -0.31 | K71: =VLOOKUP($B71,'15'!$A:$G,3,) -> -0.39 | L71: =VLOOKUP($B71,'5'!$A:$G,3,) -> -0.32 | M71: =VLOOKUP($B71,'19'!$A:$H,3,) -> -0.47 | N71: =VLOOKUP($B71,'8'!$A:$G,3,) -> -0.31 | O71: =VLOOKUP($B71,'13'!$A:$H,3,) -> -0.52 | P71: =VLOOKUP($B71,'3'!$A:$H,3,) ->  | Q71: =VLOOKUP($B71,'9'!$A:$G,3,) -> -0.60 | R71: =VLOOKUP($B71,'6'!$A:$G,3,) -> -0.61 | S71: =VLOOKUP($B71,'18'!$A:$H,3,FALSE) -> -0.58 | T71: =VLOOKUP($B71,'14'!$A:$G,3,) -> -0.56 | U71: =VLOOKUP($B71,'16'!$A:$H,3,) -> -0.54 | V71: =VLOOKUP($B71,'20'!$A:$H,3,) -> -0.47 | W71: =VLOOKUP($B71,'17'!$A:$H,3,) -> 0.36
B72: Mt1 | C72: =VLOOKUP($B72,'1'!$A:$G,3,) -> -0.37 | D72: =VLOOKUP($B72,'4'!$A:$H,3,) -> -0.34 | E72: =VLOOKUP($B72,'11'!$A:$G,3,) -> -0.30 | F72: =VLOOKUP($B72,'2'!$A:$G,3,) ->  | G72: =VLOOKUP($B72,'10'!$A:$G,3,) -> 0.67 | H72: =VLOOKUP($B72,'12'!$A:$G,3,) -> 1.45 | I72: =VLOOKUP($B72,'7'!$A:$H,3,) -> 0.41 | J72: =VLOOKUP($B72,'0'!$A:$H,3,FALSE) -> -0.40 | K72: =VLOOKUP($B72,'15'!$A:$G,3,) -> -0.32 | L72: =VLOOKUP($B72,'5'!$A:$G,3,) -> -0.33 | M72: =VLOOKUP($B72,'19'!$A:$H,3,) -> -0.37 | N72: =VLOOKUP($B72,'8'!$A:$G,3,) -> -0.37 | O72: =VLOOKUP($B72,'13'!$A:$H,3,) -> -0.29 | P72: =VLOOKUP($B72,'3'!$A:$H,3,) -> -0.37 | Q72: =VLOOKUP($B72,'9'!$A:$G,3,) -> 0.52 | R72: =VLOOKUP($B72,'6'!$A:$G,3,) -> -0.35 | S72: =VLOOKUP($B72,'18'!$A:$H,3,FALSE) -> -0.33 | T72: =VLOOKUP($B72,'14'!$A:$G,3,) ->  | U72: =VLOOKUP($B72,'16'!$A:$H,3,) -> 2.07 | V72: =VLOOKUP($B72,'20'!$A:$H,3,) ->  | W72: =VLOOKUP($B72,'17'!$A:$H,3,) -> 
B73: Mt2 | C73: =VLOOKUP($B73,'1'!$A:$G,3,) -> -0.27 | D73: =VLOOKUP($B73,'4'!$A:$H,3,) -> -0.27 | E73: =VLOOKUP($B73,'11'!$A:$G,3,) ->  | F73: =VLOOKUP($B73,'2'!$A:$G,3,) ->  | G73: =VLOOKUP($B73,'10'!$A:$G,3,) -> 0.44 | H73: =VLOOKUP($B73,'12'!$A:$G,3,) -> 1.43 | I73: =VLOOKUP($B73,'7'!$A:$H,3,) -> 0.71 | J73: =VLOOKUP($B73,'0'!$A:$H,3,) -> -0.28 | K73: =VLOOKUP($B73,'15'!$A:$G,3,) -> -0.27 | L73: =VLOOKUP($B73,'5'!$A:$G,3,) -> -0.27 | M73: =VLOOKUP($B73,'19'!$A:$H,3,) -> -0.27 | N73: =VLOOKUP($B73,'8'!$A:$G,3,) ->  | O73: =VLOOKUP($B73,'13'!$A:$H,3,) -> -0.26 | P73: =VLOOKUP($B73,'3'!$A:$H,3,) ->  | Q73: =VLOOKUP($B73,'9'!$A:$G,3,) ->  | R73: =VLOOKUP($B73,'6'!$A:$G,3,) -> -0.28 | S73: =VLOOKUP($B73,'18'!$A:$H,3,FALSE) -> -0.27 | T73: =VLOOKUP($B73,'14'!$A:$G,3,) ->  | U73: =VLOOKUP($B73,'16'!$A:$H,3,) -> 0.66 | V73: =VLOOKUP($B73,'20'!$A:$H,3,) ->  | W73: =VLOOKUP($B73,'17'!$A:$H,3,) -> 
B74: mt-Co1 | C74: =VLOOKUP($B74,'1'!$A:$G,3,) -> 0.34 | D74: =VLOOKUP($B74,'4'!$A:$H,3,) ->  | E74: =VLOOKUP($B74,'11'!$A:$G,3,) ->  | F74: =VLOOKUP($B74,'2'!$A:$G,3,) ->  | G74: =VLOOKUP($B74,'10'!$A:$G,3,) ->  | H74: =VLOOKUP($B74,'12'!$A:$G,3,) ->  | I74: =VLOOKUP($B74,'7'!$A:$H,3,) ->  | J74: =VLOOKUP($B74,'0'!$A:$H,3,) ->  | K74: =VLOOKUP($B74,'15'!$A:$G,3,) ->  | L74: =VLOOKUP($B74,'5'!$A:$G,3,) ->  | M74: =VLOOKUP($B74,'19'!$A:$H,3,) ->  | N74: =VLOOKUP($B74,'8'!$A:$G,3,) ->  | O74: =VLOOKUP($B74,'13'!$A:$H,3,) ->  | P74: =VLOOKUP($B74,'3'!$A:$H,3,) ->  | Q74: =VLOOKUP($B74,'9'!$A:$G,3,) -> -1.64 | R74: =VLOOKUP($B74,'6'!$A:$G,3,) -> -2.21 | S74: =VLOOKUP($B74,'18'!$A:$H,3,FALSE) -> -2.75 | T74: =VLOOKUP($B74,'14'!$A:$G,3,) ->  | U74: =VLOOKUP($B74,'16'!$A:$H,3,) -> 0.29 | V74: =VLOOKUP($B74,'20'!$A:$H,3,) -> -2.24 | W74: =VLOOKUP($B74,'17'!$A:$H,3,) -> 
B75: mt-Nd3 | C75: =VLOOKUP($B75,'1'!$A:$G,3,) -> 0.25 | D75: =VLOOKUP($B75,'4'!$A:$H,3,) ->  | E75: =VLOOKUP($B75,'11'!$A:$G,3,) ->  | F75: =VLOOKUP($B75,'2'!$A:$G,3,) ->  | G75: =VLOOKUP($B75,'10'!$A:$G,3,) ->  | H75: =VLOOKUP($B75,'12'!$A:$G,3,) ->  | I75: =VLOOKUP($B75,'7'!$A:$H,3,) ->  | J75: =VLOOKUP($B75,'0'!$A:$H,3,) ->  | K75: =VLOOKUP($B75,'15'!$A:$G,3,) ->  | L75: =VLOOKUP($B75,'5'!$A:$G,3,) ->  | M75: =VLOOKUP($B75,'19'!$A:$H,3,) ->  | N75: =VLOOKUP($B75,'8'!$A:$G,3,) ->  | O75: =VLOOKUP($B75,'13'!$A:$H,3,) ->  | P75: =VLOOKUP($B75,'3'!$A:$H,3,) ->  | Q75: =VLOOKUP($B75,'9'!$A:$G,3,) -> -1.15 | R75: =VLOOKUP($B75,'6'!$A:$G,3,) -> -1.18 | S75: =VLOOKUP($B75,'18'!$A:$H,3,FALSE) -> -1.12 | T75: =VLOOKUP($B75,'14'!$A:$G,3,) ->  | U75: =VLOOKUP($B75,'16'!$A:$H,3,) ->  | V75: =VLOOKUP($B75,'20'!$A:$H,3,) -> -1.16 | W75: =VLOOKUP($B75,'17'!$A:$H,3,) -> 
B76: mt-Cytb | C76: =VLOOKUP($B76,'1'!$A:$G,3,) ->  | D76: =VLOOKUP($B76,'4'!$A:$H,3,) ->  | E76: =VLOOKUP($B76,'11'!$A:$G,3,) ->  | F76: =VLOOKUP($B76,'2'!$A:$G,3,) ->  | G76: =VLOOKUP($B76,'10'!$A:$G,3,) ->  | H76: =VLOOKUP($B76,'12'!$A:$G,3,) ->  | I76: =VLOOKUP($B76,'7'!$A:$H,3,) ->  | J76: =VLOOKUP($B76,'0'!$A:$H,3,) ->  | K76: =VLOOKUP($B76,'15'!$A:$G,3,) ->  | L76: =VLOOKUP($B76,'5'!$A:$G,3,) ->  | M76: =VLOOKUP($B76,'19'!$A:$H,3,) ->  | N76: =VLOOKUP($B76,'8'!$A:$G,3,) ->  | O76: =VLOOKUP($B76,'13'!$A:$H,3,) ->  | P76: =VLOOKUP($B76,'3'!$A:$H,3,) ->  | Q76: =VLOOKUP($B76,'9'!$A:$G,3,) -> -2.34 | R76: =VLOOKUP($B76,'6'!$A:$G,3,) -> -2.72 | S76: =VLOOKUP($B76,'18'!$A:$H,3,FALSE) -> -2.71 | T76: =VLOOKUP($B76,'14'!$A:$G,3,) ->  | U76: =VLOOKUP($B76,'16'!$A:$H,3,) ->  | V76: =VLOOKUP($B76,'20'!$A:$H,3,) -> -2.20 | W76: =VLOOKUP($B76,'17'!$A:$H,3,) -> 
B77: mt-Nd1 | C77: =VLOOKUP($B77,'1'!$A:$G,3,) ->  | D77: =VLOOKUP($B77,'4'!$A:$H,3,) ->  | E77: =VLOOKUP($B77,'11'!$A:$G,3,) ->  | F77: =VLOOKUP($B77,'2'!$A:$G,3,) ->  | G77: =VLOOKUP($B77,'10'!$A:$G,3,) ->  | H77: =VLOOKUP($B77,'12'!$A:$G,3,) ->  | I77: =VLOOKUP($B77,'7'!$A:$H,3,) ->  | J77: =VLOOKUP($B77,'0'!$A:$H,3,) ->  | K77: =VLOOKUP($B77,'15'!$A:$G,3,) ->  | L77: =VLOOKUP($B77,'5'!$A:$G,3,) ->  | M77: =VLOOKUP($B77,'19'!$A:$H,3,) ->  | N77: =VLOOKUP($B77,'8'!$A:$G,3,) ->  | O77: =VLOOKUP($B77,'13'!$A:$H,3,) ->  | P77: =VLOOKUP($B77,'3'!$A:$H,3,) ->  | Q77: =VLOOKUP($B77,'9'!$A:$G,3,) -> -2.49 | R77: =VLOOKUP($B77,'6'!$A:$G,3,) -> -2.82 | S77: =VLOOKUP($B77,'18'!$A:$H,3,FALSE) -> -2.74 | T77: =VLOOKUP($B77,'14'!$A:$G,3,) ->  | U77: =VLOOKUP($B77,'16'!$A:$H,3,) ->  | V77: =VLOOKUP($B77,'20'!$A:$H,3,) -> -2.21 | W77: =VLOOKUP($B77,'17'!$A:$H,3,) -> 
B78: mt-Nd2 | C78: =VLOOKUP($B78,'1'!$A:$G,3,) -> 0.26 | D78: =VLOOKUP($B78,'4'!$A:$H,3,) ->  | E78: =VLOOKUP($B78,'11'!$A:$G,3,) ->  | F78: =VLOOKUP($B78,'2'!$A:$G,3,) ->  | G78: =VLOOKUP($B78,'10'!$A:$G,3,) ->  | H78: =VLOOKUP($B78,'12'!$A:$G,3,) ->  | I78: =VLOOKUP($B78,'7'!$A:$H,3,) ->  | J78: =VLOOKUP($B78,'0'!$A:$H,3,) ->  | K78: =VLOOKUP($B78,'15'!$A:$G,3,) ->  | L78: =VLOOKUP($B78,'5'!$A:$G,3,) ->  | M78: =VLOOKUP($B78,'19'!$A:$H,3,) ->  | N78: =VLOOKUP($B78,'8'!$A:$G,3,) ->  | O78: =VLOOKUP($B78,'13'!$A:$H,3,) ->  | P78: =VLOOKUP($B78,'3'!$A:$H,3,) ->  | Q78: =VLOOKUP($B78,'9'!$A:$G,3,) -> -2.11 | R78: =VLOOKUP($B78,'6'!$A:$G,3,) -> -2.30 | S78: =VLOOKUP($B78,'18'!$A:$H,3,FALSE) -> -2.28 | T78: =VLOOKUP($B78,'14'!$A:$G,3,) ->  | U78: =VLOOKUP($B78,'16'!$A:$H,3,) ->  | V78: =VLOOKUP($B78,'20'!$A:$H,3,) -> -2.03 | W78: =VLOOKUP($B78,'17'!$A:$H,3,) -> 
B79: mt-Nd3 | C79: =VLOOKUP($B79,'1'!$A:$G,3,) -> 0.25 | D79: =VLOOKUP($B79,'4'!$A:$H,3,) ->  | E79: =VLOOKUP($B79,'11'!$A:$G,3,) ->  | F79: =VLOOKUP($B79,'2'!$A:$G,3,) ->  | G79: =VLOOKUP($B79,'10'!$A:$G,3,) ->  | H79: =VLOOKUP($B79,'12'!$A:$G,3,) ->  | I79: =VLOOKUP($B79,'7'!$A:$H,3,) ->  | J79: =VLOOKUP($B79,'0'!$A:$H,3,) ->  | K79: =VLOOKUP($B79,'15'!$A:$G,3,) ->  | L79: =VLOOKUP($B79,'5'!$A:$G,3,) ->  | M79: =VLOOKUP($B79,'19'!$A:$H,3,) ->  | N79: =VLOOKUP($B79,'8'!$A:$G,3,) ->  | O79: =VLOOKUP($B79,'13'!$A:$H,3,) ->  | P79: =VLOOKUP($B79,'3'!$A:$H,3,) ->  | Q79: =VLOOKUP($B79,'9'!$A:$G,3,) -> -1.15 | R79: =VLOOKUP($B79,'6'!$A:$G,3,) -> -1.18 | S79: =VLOOKUP($B79,'18'!$A:$H,3,FALSE) -> -1.12 | T79: =VLOOKUP($B79,'14'!$A:$G,3,) ->  | U79: =VLOOKUP($B79,'16'!$A:$H,3,) ->  | V79: =VLOOKUP($B79,'20'!$A:$H,3,) -> -1.16 | W79: =VLOOKUP($B79,'17'!$A:$H,3,) -> 
B80: mt-Nd4 | C80: =VLOOKUP($B80,'1'!$A:$G,3,) ->  | D80: =VLOOKUP($B80,'4'!$A:$H,3,) ->  | E80: =VLOOKUP($B80,'11'!$A:$G,3,) ->  | F80: =VLOOKUP($B80,'2'!$A:$G,3,) ->  | G80: =VLOOKUP($B80,'10'!$A:$G,3,) ->  | H80: =VLOOKUP($B80,'12'!$A:$G,3,) ->  | I80: =VLOOKUP($B80,'7'!$A:$H,3,) ->  | J80: =VLOOKUP($B80,'0'!$A:$H,3,) ->  | K80: =VLOOKUP($B80,'15'!$A:$G,3,) -> 0.26 | L80: =VLOOKUP($B80,'5'!$A:$G,3,) ->  | M80: =VLOOKUP($B80,'19'!$A:$H,3,) ->  | N80: =VLOOKUP($B80,'8'!$A:$G,3,) ->  | O80: =VLOOKUP($B80,'13'!$A:$H,3,) ->  | P80: =VLOOKUP($B80,'3'!$A:$H,3,) ->  | Q80: =VLOOKUP($B80,'9'!$A:$G,3,) -> -2.24 | R80: =VLOOKUP($B80,'6'!$A:$G,3,) -> -2.54 | S80: =VLOOKUP($B80,'18'!$A:$H,3,FALSE) -> -2.54 | T80: =VLOOKUP($B80,'14'!$A:$G,3,) ->  | U80: =VLOOKUP($B80,'16'!$A:$H,3,) ->  | V80: =VLOOKUP($B80,'20'!$A:$H,3,) -> -2.18 | W80: =VLOOKUP($B80,'17'!$A:$H,3,) -> 
B81: Gm8730 | C81: =VLOOKUP($B81,'1'!$A:$G,3,) -> 0.31 | D81: =VLOOKUP($B81,'4'!$A:$H,3,) -> 0.38 | E81: =VLOOKUP($B81,'11'!$A:$G,3,) ->  | F81: =VLOOKUP($B81,'2'!$A:$G,3,) ->  | G81: =VLOOKUP($B81,'10'!$A:$G,3,) ->  | H81: =VLOOKUP($B81,'12'!$A:$G,3,) ->  | I81: =VLOOKUP($B81,'7'!$A:$H,3,) ->  | J81: =VLOOKUP($B81,'0'!$A:$H,3,) ->  | K81: =VLOOKUP($B81,'15'!$A:$G,3,) ->  | L81: =VLOOKUP($B81,'5'!$A:$G,3,) ->  | M81: =VLOOKUP($B81,'19'!$A:$H,3,) ->  | N81: =VLOOKUP($B81,'8'!$A:$G,3,) ->  | O81: =VLOOKUP($B81,'13'!$A:$H,3,) ->  | P81: =VLOOKUP($B81,'3'!$A:$H,3,) ->  | Q81: =VLOOKUP($B81,'9'!$A:$G,3,) -> -1.57 | R81: =VLOOKUP($B81,'6'!$A:$G,3,) -> -1.74 | S81: =VLOOKUP($B81,'18'!$A:$H,3,FALSE) -> -1.54 | T81: =VLOOKUP($B81,'14'!$A:$G,3,) ->  | U81: =VLOOKUP($B81,'16'!$A:$H,3,) ->  | V81: =VLOOKUP($B81,'20'!$A:$H,3,) -> 1.98 | W81: =VLOOKUP($B81,'17'!$A:$H,3,) -> 0.32
B82: Gm10709 | C82: =VLOOKUP($B82,'1'!$A:$G,3,) -> 0.38 | D82: =VLOOKUP($B82,'4'!$A:$H,3,) ->  | E82: =VLOOKUP($B82,'11'!$A:$G,3,) ->  | F82: =VLOOKUP($B82,'2'!$A:$G,3,) ->  | G82: =VLOOKUP($B82,'10'!$A:$G,3,) ->  | H82: =VLOOKUP($B82,'12'!$A:$G,3,) ->  | I82: =VLOOKUP($B82,'7'!$A:$H,3,) ->  | J82: =VLOOKUP($B82,'0'!$A:$H,3,) ->  | K82: =VLOOKUP($B82,'15'!$A:$G,3,) ->  | L82: =VLOOKUP($B82,'5'!$A:$G,3,) ->  | M82: =VLOOKUP($B82,'19'!$A:$H,3,) ->  | N82: =VLOOKUP($B82,'8'!$A:$G,3,) ->  | O82: =VLOOKUP($B82,'13'!$A:$H,3,) ->  | P82: =VLOOKUP($B82,'3'!$A:$H,3,) ->  | Q82: =VLOOKUP($B82,'9'!$A:$G,3,) -> -1.94 | R82: =VLOOKUP($B82,'6'!$A:$G,3,) -> -2.09 | S82: =VLOOKUP($B82,'18'!$A:$H,3,FALSE) -> -1.93 | T82: =VLOOKUP($B82,'14'!$A:$G,3,) ->  | U82: =VLOOKUP($B82,'16'!$A:$H,3,) -> -0.29 | V82: =VLOOKUP($B82,'20'!$A:$H,3,) -> -1.71 | W82: =VLOOKUP($B82,'17'!$A:$H,3,) -> 
B83: Gm10260 | C83: =VLOOKUP($B83,'1'!$A:$G,3,) -> 0.38 | D83: =VLOOKUP($B83,'4'!$A:$H,3,) ->  | E83: =VLOOKUP($B83,'11'!$A:$G,3,) ->  | F83: =VLOOKUP($B83,'2'!$A:$G,3,) ->  | G83: =VLOOKUP($B83,'10'!$A:$G,3,) ->  | H83: =VLOOKUP($B83,'12'!$A:$G,3,) ->  | I83: =VLOOKUP($B83,'7'!$A:$H,3,) ->  | J83: =VLOOKUP($B83,'0'!$A:$H,3,) ->  | K83: =VLOOKUP($B83,'15'!$A:$G,3,) -> -0.29 | L83: =VLOOKUP($B83,'5'!$A:$G,3,) ->  | M83: =VLOOKUP($B83,'19'!$A:$H,3,) ->  | N83: =VLOOKUP($B83,'8'!$A:$G,3,) ->  | O83: =VLOOKUP($B83,'13'!$A:$H,3,) ->  | P83: =VLOOKUP($B83,'3'!$A:$H,3,) ->  | Q83: =VLOOKUP($B83,'9'!$A:$G,3,) -> -2.01 | R83: =VLOOKUP($B83,'6'!$A:$G,3,) -> -2.16 | S83: =VLOOKUP($B83,'18'!$A:$H,3,FALSE) -> -2.15 | T83: =VLOOKUP($B83,'14'!$A:$G,3,) ->  | U83: =VLOOKUP($B83,'16'!$A:$H,3,) ->  | V83: =VLOOKUP($B83,'20'!$A:$H,3,) -> -1.69 | W83: =VLOOKUP($B83,'17'!$A:$H,3,) -> 0.39
B84: Gm266 | C84: =VLOOKUP($B84,'1'!$A:$G,3,) -> 0.44 | D84: =VLOOKUP($B84,'4'!$A:$H,3,) -> 0.46 | E84: =VLOOKUP($B84,'11'!$A:$G,3,) -> 0.39 | F84: =VLOOKUP($B84,'2'!$A:$G,3,) -> 0.48 | G84: =VLOOKUP($B84,'10'!$A:$G,3,) -> 0.80 | H84: =VLOOKUP($B84,'12'!$A:$G,3,) ->  | I84: =VLOOKUP($B84,'7'!$A:$H,3,) -> -0.47 | J84: =VLOOKUP($B84,'0'!$A:$H,3,) -> -0.52 | K84: =VLOOKUP($B84,'15'!$A:$G,3,) -> -0.34 | L84: =VLOOKUP($B84,'5'!$A:$G,3,) -> -0.38 | M84: =VLOOKUP($B84,'19'!$A:$H,3,) -> -0.36 | N84: =VLOOKUP($B84,'8'!$A:$G,3,) -> -0.44 | O84: =VLOOKUP($B84,'13'!$A:$H,3,) -> -0.45 | P84: =VLOOKUP($B84,'3'!$A:$H,3,) ->  | Q84: =VLOOKUP($B84,'9'!$A:$G,3,) -> -0.61 | R84: =VLOOKUP($B84,'6'!$A:$G,3,) -> -0.64 | S84: =VLOOKUP($B84,'18'!$A:$H,3,FALSE) -> -0.62 | T84: =VLOOKUP($B84,'14'!$A:$G,3,) -> -0.53 | U84: =VLOOKUP($B84,'16'!$A:$H,3,) -> -0.56 | V84: =VLOOKUP($B84,'20'!$A:$H,3,) -> -0.42 | W84: =VLOOKUP($B84,'17'!$A:$H,3,) -> 
B85: Gm8797 | C85: =VLOOKUP($B85,'1'!$A:$G,3,) ->  | D85: =VLOOKUP($B85,'4'!$A:$H,3,) ->  | E85: =VLOOKUP($B85,'11'!$A:$G,3,) ->  | F85: =VLOOKUP($B85,'2'!$A:$G,3,) ->  | G85: =VLOOKUP($B85,'10'!$A:$G,3,) ->  | H85: =VLOOKUP($B85,'12'!$A:$G,3,) ->  | I85: =VLOOKUP($B85,'7'!$A:$H,3,) ->  | J85: =VLOOKUP($B85,'0'!$A:$H,3,) ->  | K85: =VLOOKUP($B85,'15'!$A:$G,3,) ->  | L85: =VLOOKUP($B85,'5'!$A:$G,3,) ->  | M85: =VLOOKUP($B85,'19'!$A:$H,3,) ->  | N85: =VLOOKUP($B85,'8'!$A:$G,3,) -> 0.29 | O85: =VLOOKUP($B85,'13'!$A:$H,3,) ->  | P85: =VLOOKUP($B85,'3'!$A:$H,3,) ->  | Q85: =VLOOKUP($B85,'9'!$A:$G,3,) -> -0.49 | R85: =VLOOKUP($B85,'6'!$A:$G,3,) -> -1.20 | S85: =VLOOKUP($B85,'18'!$A:$H,3,FALSE) -> -1.65 | T85: =VLOOKUP($B85,'14'!$A:$G,3,) ->  | U85: =VLOOKUP($B85,'16'!$A:$H,3,) -> -0.42 | V85: =VLOOKUP($B85,'20'!$A:$H,3,) -> -1.56 | W85: =VLOOKUP($B85,'17'!$A:$H,3,) -> 
B86: Gm1673 | C86: =VLOOKUP($B86,'1'!$A:$G,3,) ->  | D86: =VLOOKUP($B86,'4'!$A:$H,3,) -> 0.34 | E86: =VLOOKUP($B86,'11'!$A:$G,3,) ->  | F86: =VLOOKUP($B86,'2'!$A:$G,3,) ->  | G86: =VLOOKUP($B86,'10'!$A:$G,3,) ->  | H86: =VLOOKUP($B86,'12'!$A:$G,3,) -> 0.33 | I86: =VLOOKUP($B86,'7'!$A:$H,3,) ->  | J86: =VLOOKUP($B86,'0'!$A:$H,3,) ->  | K86: =VLOOKUP($B86,'15'!$A:$G,3,) ->  | L86: =VLOOKUP($B86,'5'!$A:$G,3,) ->  | M86: =VLOOKUP($B86,'19'!$A:$H,3,) ->  | N86: =VLOOKUP($B86,'8'!$A:$G,3,) -> -0.28 | O86: =VLOOKUP($B86,'13'!$A:$H,3,) ->  | P86: =VLOOKUP($B86,'3'!$A:$H,3,) ->  | Q86: =VLOOKUP($B86,'9'!$A:$G,3,) -> -0.77 | R86: =VLOOKUP($B86,'6'!$A:$G,3,) -> -0.82 | S86: =VLOOKUP($B86,'18'!$A:$H,3,FALSE) -> -0.78 | T86: =VLOOKUP($B86,'14'!$A:$G,3,) -> -0.29 | U86: =VLOOKUP($B86,'16'!$A:$H,3,) -> -0.34 | V86: =VLOOKUP($B86,'20'!$A:$H,3,) -> -0.77 | W86: =VLOOKUP($B86,'17'!$A:$H,3,) -> 
B87: Gm13305 | C87: =VLOOKUP($B87,'1'!$A:$G,3,) ->  | D87: =VLOOKUP($B87,'4'!$A:$H,3,) ->  | E87: =VLOOKUP($B87,'11'!$A:$G,3,) ->  | F87: =VLOOKUP($B87,'2'!$A:$G,3,) ->  | G87: =VLOOKUP($B87,'10'!$A:$G,3,) ->  | H87: =VLOOKUP($B87,'12'!$A:$G,3,) ->  | I87: =VLOOKUP($B87,'7'!$A:$H,3,) ->  | J87: =VLOOKUP($B87,'0'!$A:$H,3,) ->  | K87: =VLOOKUP($B87,'15'!$A:$G,3,) -> 0.36 | L87: =VLOOKUP($B87,'5'!$A:$G,3,) -> 0.28 | M87: =VLOOKUP($B87,'19'!$A:$H,3,) ->  | N87: =VLOOKUP($B87,'8'!$A:$G,3,) ->  | O87: =VLOOKUP($B87,'13'!$A:$H,3,) ->  | P87: =VLOOKUP($B87,'3'!$A:$H,3,) ->  | Q87: =VLOOKUP($B87,'9'!$A:$G,3,) -> -0.34 | R87: =VLOOKUP($B87,'6'!$A:$G,3,) -> -0.35 | S87: =VLOOKUP($B87,'18'!$A:$H,3,FALSE) -> -0.33 | T87: =VLOOKUP($B87,'14'!$A:$G,3,) ->  | U87: =VLOOKUP($B87,'16'!$A:$H,3,) -> -0.28 | V87: =VLOOKUP($B87,'20'!$A:$H,3,) -> -0.29 | W87: =VLOOKUP($B87,'17'!$A:$H,3,) -> 
B88: Gm9843 | C88: =VLOOKUP($B88,'1'!$A:$G,3,) ->  | D88: =VLOOKUP($B88,'4'!$A:$H,3,) ->  | E88: =VLOOKUP($B88,'11'!$A:$G,3,) ->  | F88: =VLOOKUP($B88,'2'!$A:$G,3,) ->  | G88: =VLOOKUP($B88,'10'!$A:$G,3,) ->  | H88: =VLOOKUP($B88,'12'!$A:$G,3,) ->  | I88: =VLOOKUP($B88,'7'!$A:$H,3,) ->  | J88: =VLOOKUP($B88,'0'!$A:$H,3,) ->  | K88: =VLOOKUP($B88,'15'!$A:$G,3,) ->  | L88: =VLOOKUP($B88,'5'!$A:$G,3,) ->  | M88: =VLOOKUP($B88,'19'!$A:$H,3,) ->  | N88: =VLOOKUP($B88,'8'!$A:$G,3,) ->  | O88: =VLOOKUP($B88,'13'!$A:$H,3,) ->  | P88: =VLOOKUP($B88,'3'!$A:$H,3,) ->  | Q88: =VLOOKUP($B88,'9'!$A:$G,3,) -> -0.93 | R88: =VLOOKUP($B88,'6'!$A:$G,3,) -> -1.01 | S88: =VLOOKUP($B88,'18'!$A:$H,3,FALSE) -> -0.89 | T88: =VLOOKUP($B88,'14'!$A:$G,3,) ->  | U88: =VLOOKUP($B88,'16'!$A:$H,3,) -> 0.27 | V88: =VLOOKUP($B88,'20'!$A:$H,3,) -> 2.19 | W88: =VLOOKUP($B88,'17'!$A:$H,3,) -> 
B89: Gm26699 | C89: =VLOOKUP($B89,'1'!$A:$G,3,) ->  | D89: =VLOOKUP($B89,'4'!$A:$H,3,) ->  | E89: =VLOOKUP($B89,'11'!$A:$G,3,) ->  | F89: =VLOOKUP($B89,'2'!$A:$G,3,) ->  | G89: =VLOOKUP($B89,'10'!$A:$G,3,) ->  | H89: =VLOOKUP($B89,'12'!$A:$G,3,) ->  | I89: =VLOOKUP($B89,'7'!$A:$H,3,) ->  | J89: =VLOOKUP($B89,'0'!$A:$H,3,) ->  | K89: =VLOOKUP($B89,'15'!$A:$G,3,) ->  | L89: =VLOOKUP($B89,'5'!$A:$G,3,) ->  | M89: =VLOOKUP($B89,'19'!$A:$H,3,) ->  | N89: =VLOOKUP($B89,'8'!$A:$G,3,) ->  | O89: =VLOOKUP($B89,'13'!$A:$H,3,) ->  | P89: =VLOOKUP($B89,'3'!$A:$H,3,) ->  | Q89: =VLOOKUP($B89,'9'!$A:$G,3,) -> -0.46 | R89: =VLOOKUP($B89,'6'!$A:$G,3,) -> -0.47 | S89: =VLOOKUP($B89,'18'!$A:$H,3,FALSE) -> -0.44 | T89: =VLOOKUP($B89,'14'!$A:$G,3,) ->  | U89: =VLOOKUP($B89,'16'!$A:$H,3,) ->  | V89: =VLOOKUP($B89,'20'!$A:$H,3,) -> -0.46 | W89: =VLOOKUP($B89,'17'!$A:$H,3,) -> 
B90: Gm12166 | C90: =VLOOKUP($B90,'1'!$A:$G,3,) ->  | D90: =VLOOKUP($B90,'4'!$A:$H,3,) ->  | E90: =VLOOKUP($B90,'11'!$A:$G,3,) ->  | F90: =VLOOKUP($B90,'2'!$A:$G,3,) ->  | G90: =VLOOKUP($B90,'10'!$A:$G,3,) ->  | H90: =VLOOKUP($B90,'12'!$A:$G,3,) ->  | I90: =VLOOKUP($B90,'7'!$A:$H,3,) ->  | J90: =VLOOKUP($B90,'0'!$A:$H,3,) ->  | K90: =VLOOKUP($B90,'15'!$A:$G,3,) ->  | L90: =VLOOKUP($B90,'5'!$A:$G,3,) ->  | M90: =VLOOKUP($B90,'19'!$A:$H,3,) ->  | N90: =VLOOKUP($B90,'8'!$A:$G,3,) ->  | O90: =VLOOKUP($B90,'13'!$A:$H,3,) ->  | P90: =VLOOKUP($B90,'3'!$A:$H,3,) ->  | Q90: =VLOOKUP($B90,'9'!$A:$G,3,) ->  | R90: =VLOOKUP($B90,'6'!$A:$G,3,) ->  | S90: =VLOOKUP($B90,'18'!$A:$H,3,FALSE) ->  | T90: =VLOOKUP($B90,'14'!$A:$G,3,) ->  | U90: =VLOOKUP($B90,'16'!$A:$H,3,) -> 0.28 | V90: =VLOOKUP($B90,'20'!$A:$H,3,) ->  | W90: =VLOOKUP($B90,'17'!$A:$H,3,) -> 
B91: Gm26740 | C91: =VLOOKUP($B91,'1'!$A:$G,3,) ->  | D91: =VLOOKUP($B91,'4'!$A:$H,3,) ->  | E91: =VLOOKUP($B91,'11'!$A:$G,3,) ->  | F91: =VLOOKUP($B91,'2'!$A:$G,3,) ->  | G91: =VLOOKUP($B91,'10'!$A:$G,3,) ->  | H91: =VLOOKUP($B91,'12'!$A:$G,3,) ->  | I91: =VLOOKUP($B91,'7'!$A:$H,3,) ->  | J91: =VLOOKUP($B91,'0'!$A:$H,3,) ->  | K91: =VLOOKUP($B91,'15'!$A:$G,3,) ->  | L91: =VLOOKUP($B91,'5'!$A:$G,3,) ->  | M91: =VLOOKUP($B91,'19'!$A:$H,3,) ->  | N91: =VLOOKUP($B91,'8'!$A:$G,3,) ->  | O91: =VLOOKUP($B91,'13'!$A:$H,3,) ->  | P91: =VLOOKUP($B91,'3'!$A:$H,3,) ->  | Q91: =VLOOKUP($B91,'9'!$A:$G,3,) ->  | R91: =VLOOKUP($B91,'6'!$A:$G,3,) ->  | S91: =VLOOKUP($B91,'18'!$A:$H,3,FALSE) ->  | T91: =VLOOKUP($B91,'14'!$A:$G,3,) ->  | U91: =VLOOKUP($B91,'16'!$A:$H,3,) -> 0.33 | V91: =VLOOKUP($B91,'20'!$A:$H,3,) ->  | W91: =VLOOKUP($B91,'17'!$A:$H,3,) -> 
B92: Gm26917 | C92: =VLOOKUP($B92,'1'!$A:$G,3,) ->  | D92: =VLOOKUP($B92,'4'!$A:$H,3,) ->  | E92: =VLOOKUP($B92,'11'!$A:$G,3,) ->  | F92: =VLOOKUP($B92,'2'!$A:$G,3,) ->  | G92: =VLOOKUP($B92,'10'!$A:$G,3,) ->  | H92: =VLOOKUP($B92,'12'!$A:$G,3,) ->  | I92: =VLOOKUP($B92,'7'!$A:$H,3,) ->  | J92: =VLOOKUP($B92,'0'!$A:$H,3,) ->  | K92: =VLOOKUP($B92,'15'!$A:$G,3,) ->  | L92: =VLOOKUP($B92,'5'!$A:$G,3,) ->  | M92: =VLOOKUP($B92,'19'!$A:$H,3,) ->  | N92: =VLOOKUP($B92,'8'!$A:$G,3,) ->  | O92: =VLOOKUP($B92,'13'!$A:$H,3,) ->  | P92: =VLOOKUP($B92,'3'!$A:$H,3,) ->  | Q92: =VLOOKUP($B92,'9'!$A:$G,3,) ->  | R92: =VLOOKUP($B92,'6'!$A:$G,3,) ->  | S92: =VLOOKUP($B92,'18'!$A:$H,3,FALSE) ->  | T92: =VLOOKUP($B92,'14'!$A:$G,3,) ->  | U92: =VLOOKUP($B92,'16'!$A:$H,3,) -> 0.56 | V92: =VLOOKUP($B92,'20'!$A:$H,3,) ->  | W92: =VLOOKUP($B92,'17'!$A:$H,3,) -> 
B93: Gm10116 | C93: =VLOOKUP($B93,'1'!$A:$G,3,) ->  | D93: =VLOOKUP($B93,'4'!$A:$H,3,) ->  | E93: =VLOOKUP($B93,'11'!$A:$G,3,) ->  | F93: =VLOOKUP($B93,'2'!$A:$G,3,) ->  | G93: =VLOOKUP($B93,'10'!$A:$G,3,) ->  | H93: =VLOOKUP($B93,'12'!$A:$G,3,) ->  | I93: =VLOOKUP($B93,'7'!$A:$H,3,) ->  | J93: =VLOOKUP($B93,'0'!$A:$H,3,) ->  | K93: =VLOOKUP($B93,'15'!$A:$G,3,) ->  | L93: =VLOOKUP($B93,'5'!$A:$G,3,) ->  | M93: =VLOOKUP($B93,'19'!$A:$H,3,) ->  | N93: =VLOOKUP($B93,'8'!$A:$G,3,) ->  | O93: =VLOOKUP($B93,'13'!$A:$H,3,) ->  | P93: =VLOOKUP($B93,'3'!$A:$H,3,) ->  | Q93: =VLOOKUP($B93,'9'!$A:$G,3,) ->  | R93: =VLOOKUP($B93,'6'!$A:$G,3,) ->  | S93: =VLOOKUP($B93,'18'!$A:$H,3,FALSE) ->  | T93: =VLOOKUP($B93,'14'!$A:$G,3,) ->  | U93: =VLOOKUP($B93,'16'!$A:$H,3,) -> 0.61 | V93: =VLOOKUP($B93,'20'!$A:$H,3,) ->  | W93: =VLOOKUP($B93,'17'!$A:$H,3,) -> 
B94: Gm14964 | C94: =VLOOKUP($B94,'1'!$A:$G,3,) -> 0.29 | D94: =VLOOKUP($B94,'4'!$A:$H,3,) ->  | E94: =VLOOKUP($B94,'11'!$A:$G,3,) ->  | F94: =VLOOKUP($B94,'2'!$A:$G,3,) ->  | G94: =VLOOKUP($B94,'10'!$A:$G,3,) ->  | H94: =VLOOKUP($B94,'12'!$A:$G,3,) ->  | I94: =VLOOKUP($B94,'7'!$A:$H,3,) ->  | J94: =VLOOKUP($B94,'0'!$A:$H,3,) ->  | K94: =VLOOKUP($B94,'15'!$A:$G,3,) ->  | L94: =VLOOKUP($B94,'5'!$A:$G,3,) ->  | M94: =VLOOKUP($B94,'19'!$A:$H,3,) ->  | N94: =VLOOKUP($B94,'8'!$A:$G,3,) ->  | O94: =VLOOKUP($B94,'13'!$A:$H,3,) ->  | P94: =VLOOKUP($B94,'3'!$A:$H,3,) ->  | Q94: =VLOOKUP($B94,'9'!$A:$G,3,) ->  | R94: =VLOOKUP($B94,'6'!$A:$G,3,) ->  | S94: =VLOOKUP($B94,'18'!$A:$H,3,FALSE) ->  | T94: =VLOOKUP($B94,'14'!$A:$G,3,) ->  | U94: =VLOOKUP($B94,'16'!$A:$H,3,) ->  | V94: =VLOOKUP($B94,'20'!$A:$H,3,) ->  | W94: =VLOOKUP($B94,'17'!$A:$H,3,) -> 
B95: Gm29771 | C95: =VLOOKUP($B95,'1'!$A:$G,3,) ->  | D95: =VLOOKUP($B95,'4'!$A:$H,3,) ->  | E95: =VLOOKUP($B95,'11'!$A:$G,3,) ->  | F95: =VLOOKUP($B95,'2'!$A:$G,3,) ->  | G95: =VLOOKUP($B95,'10'!$A:$G,3,) ->  | H95: =VLOOKUP($B95,'12'!$A:$G,3,) ->  | I95: =VLOOKUP($B95,'7'!$A:$H,3,) ->  | J95: =VLOOKUP($B95,'0'!$A:$H,3,) ->  | K95: =VLOOKUP($B95,'15'!$A:$G,3,) ->  | L95: =VLOOKUP($B95,'5'!$A:$G,3,) ->  | M95: =VLOOKUP($B95,'19'!$A:$H,3,) ->  | N95: =VLOOKUP($B95,'8'!$A:$G,3,) ->  | O95: =VLOOKUP($B95,'13'!$A:$H,3,) ->  | P95: =VLOOKUP($B95,'3'!$A:$H,3,) ->  | Q95: =VLOOKUP($B95,'9'!$A:$G,3,) ->  | R95: =VLOOKUP($B95,'6'!$A:$G,3,) ->  | S95: =VLOOKUP($B95,'18'!$A:$H,3,FALSE) ->  | T95: =VLOOKUP($B95,'14'!$A:$G,3,) ->  | U95: =VLOOKUP($B95,'16'!$A:$H,3,) ->  | V95: =VLOOKUP($B95,'20'!$A:$H,3,) ->  | W95: =VLOOKUP($B95,'17'!$A:$H,3,) -> 
B96: Gm16136 | C96: =VLOOKUP($B96,'1'!$A:$G,3,) ->  | D96: =VLOOKUP($B96,'4'!$A:$H,3,) ->  | E96: =VLOOKUP($B96,'11'!$A:$G,3,) ->  | F96: =VLOOKUP($B96,'2'!$A:$G,3,) ->  | G96: =VLOOKUP($B96,'10'!$A:$G,3,) ->  | H96: =VLOOKUP($B96,'12'!$A:$G,3,) ->  | I96: =VLOOKUP($B96,'7'!$A:$H,3,) -> 0.46 | J96: =VLOOKUP($B96,'0'!$A:$H,3,) ->  | K96: =VLOOKUP($B96,'15'!$A:$G,3,) ->  | L96: =VLOOKUP($B96,'5'!$A:$G,3,) ->  | M96: =VLOOKUP($B96,'19'!$A:$H,3,) ->  | N96: =VLOOKUP($B96,'8'!$A:$G,3,) ->  | O96: =VLOOKUP($B96,'13'!$A:$H,3,) ->  | P96: =VLOOKUP($B96,'3'!$A:$H,3,) ->  | Q96: =VLOOKUP($B96,'9'!$A:$G,3,) ->  | R96: =VLOOKUP($B96,'6'!$A:$G,3,) ->  | S96: =VLOOKUP($B96,'18'!$A:$H,3,FALSE) ->  | T96: =VLOOKUP($B96,'14'!$A:$G,3,) ->  | U96: =VLOOKUP($B96,'16'!$A:$H,3,) ->  | V96: =VLOOKUP($B96,'20'!$A:$H,3,) ->  | W96: =VLOOKUP($B96,'17'!$A:$H,3,) -> 
B97: Gm17750 | C97: =VLOOKUP($B97,'1'!$A:$G,3,) ->  | D97: =VLOOKUP($B97,'4'!$A:$H,3,) ->  | E97: =VLOOKUP($B97,'11'!$A:$G,3,) ->  | F97: =VLOOKUP($B97,'2'!$A:$G,3,) ->  | G97: =VLOOKUP($B97,'10'!$A:$G,3,) -> 0.70 | H97: =VLOOKUP($B97,'12'!$A:$G,3,) ->  | I97: =VLOOKUP($B97,'7'!$A:$H,3,) -> 0.40 | J97: =VLOOKUP($B97,'0'!$A:$H,3,) ->  | K97: =VLOOKUP($B97,'15'!$A:$G,3,) ->  | L97: =VLOOKUP($B97,'5'!$A:$G,3,) ->  | M97: =VLOOKUP($B97,'19'!$A:$H,3,) ->  | N97: =VLOOKUP($B97,'8'!$A:$G,3,) ->  | O97: =VLOOKUP($B97,'13'!$A:$H,3,) ->  | P97: =VLOOKUP($B97,'3'!$A:$H,3,) ->  | Q97: =VLOOKUP($B97,'9'!$A:$G,3,) ->  | R97: =VLOOKUP($B97,'6'!$A:$G,3,) ->  | S97: =VLOOKUP($B97,'18'!$A:$H,3,FALSE) ->  | T97: =VLOOKUP($B97,'14'!$A:$G,3,) ->  | U97: =VLOOKUP($B97,'16'!$A:$H,3,) ->  | V97: =VLOOKUP($B97,'20'!$A:$H,3,) ->  | W97: =VLOOKUP($B97,'17'!$A:$H,3,) -> 
B98: Gm4450 | C98: =VLOOKUP($B98,'1'!$A:$G,3,) ->  | D98: =VLOOKUP($B98,'4'!$A:$H,3,) ->  | E98: =VLOOKUP($B98,'11'!$A:$G,3,) ->  | F98: =VLOOKUP($B98,'2'!$A:$G,3,) ->  | G98: =VLOOKUP($B98,'10'!$A:$G,3,) ->  | H98: =VLOOKUP($B98,'12'!$A:$G,3,) ->  | I98: =VLOOKUP($B98,'7'!$A:$H,3,) ->  | J98: =VLOOKUP($B98,'0'!$A:$H,3,) ->  | K98: =VLOOKUP($B98,'15'!$A:$G,3,) ->  | L98: =VLOOKUP($B98,'5'!$A:$G,3,) ->  | M98: =VLOOKUP($B98,'19'!$A:$H,3,) ->  | N98: =VLOOKUP($B98,'8'!$A:$G,3,) ->  | O98: =VLOOKUP($B98,'13'!$A:$H,3,) ->  | P98: =VLOOKUP($B98,'3'!$A:$H,3,) ->  | Q98: =VLOOKUP($B98,'9'!$A:$G,3,) ->  | R98: =VLOOKUP($B98,'6'!$A:$G,3,) ->  | S98: =VLOOKUP($B98,'18'!$A:$H,3,FALSE) ->  | T98: =VLOOKUP($B98,'14'!$A:$G,3,) ->  | U98: =VLOOKUP($B98,'16'!$A:$H,3,) ->  | V98: =VLOOKUP($B98,'20'!$A:$H,3,) ->  | W98: =VLOOKUP($B98,'17'!$A:$H,3,) -> 
B99: Gm13889 | C99: =VLOOKUP($B99,'1'!$A:$G,3,) ->  | D99: =VLOOKUP($B99,'4'!$A:$H,3,) ->  | E99: =VLOOKUP($B99,'11'!$A:$G,3,) ->  | F99: =VLOOKUP($B99,'2'!$A:$G,3,) ->  | G99: =VLOOKUP($B99,'10'!$A:$G,3,) ->  | H99: =VLOOKUP($B99,'12'!$A:$G,3,) ->  | I99: =VLOOKUP($B99,'7'!$A:$H,3,) ->  | J99: =VLOOKUP($B99,'0'!$A:$H,3,) ->  | K99: =VLOOKUP($B99,'15'!$A:$G,3,) ->  | L99: =VLOOKUP($B99,'5'!$A:$G,3,) ->  | M99: =VLOOKUP($B99,'19'!$A:$H,3,) ->  | N99: =VLOOKUP($B99,'8'!$A:$G,3,) ->  | O99: =VLOOKUP($B99,'13'!$A:$H,3,) -> 0.90 | P99: =VLOOKUP($B99,'3'!$A:$H,3,) ->  | Q99: =VLOOKUP($B99,'9'!$A:$G,3,) ->  | R99: =VLOOKUP($B99,'6'!$A:$G,3,) ->  | S99: =VLOOKUP($B99,'18'!$A:$H,3,FALSE) ->  | T99: =VLOOKUP($B99,'14'!$A:$G,3,) -> 0.30 | U99: =VLOOKUP($B99,'16'!$A:$H,3,) ->  | V99: =VLOOKUP($B99,'20'!$A:$H,3,) ->  | W99: =VLOOKUP($B99,'17'!$A:$H,3,) -> 
B100: Gm13470 | C100: =VLOOKUP($B100,'1'!$A:$G,3,) ->  | D100: =VLOOKUP($B100,'4'!$A:$H,3,) ->  | E100: =VLOOKUP($B100,'11'!$A:$G,3,) ->  | F100: =VLOOKUP($B100,'2'!$A:$G,3,) ->  | G100: =VLOOKUP($B100,'10'!$A:$G,3,) ->  | H100: =VLOOKUP($B100,'12'!$A:$G,3,) ->  | I100: =VLOOKUP($B100,'7'!$A:$H,3,) ->  | J100: =VLOOKUP($B100,'0'!$A:$H,3,) ->  | K100: =VLOOKUP($B100,'15'!$A:$G,3,) ->  | L100: =VLOOKUP($B100,'5'!$A:$G,3,) ->  | M100: =VLOOKUP($B100,'19'!$A:$H,3,) ->  | N100: =VLOOKUP($B100,'8'!$A:$G,3,) ->  | O100: =VLOOKUP($B100,'13'!$A:$H,3,) -> 0.29 | P100: =VLOOKUP($B100,'3'!$A:$H,3,) ->  | Q100: =VLOOKUP($B100,'9'!$A:$G,3,) ->  | R100: =VLOOKUP($B100,'6'!$A:$G,3,) ->  | S100: =VLOOKUP($B100,'18'!$A:$H,3,FALSE) ->  | T100: =VLOOKUP($B100,'14'!$A:$G,3,) ->  | U100: =VLOOKUP($B100,'16'!$A:$H,3,) ->  | V100: =VLOOKUP($B100,'20'!$A:$H,3,) ->  | W100: =VLOOKUP($B100,'17'!$A:$H,3,) -> 
B101: Gm16104 | C101: =VLOOKUP($B101,'1'!$A:$G,3,) ->  | D101: =VLOOKUP($B101,'4'!$A:$H,3,) ->  | E101: =VLOOKUP($B101,'11'!$A:$G,3,) ->  | F101: =VLOOKUP($B101,'2'!$A:$G,3,) ->  | G101: =VLOOKUP($B101,'10'!$A:$G,3,) ->  | H101: =VLOOKUP($B101,'12'!$A:$G,3,) ->  | I101: =VLOOKUP($B101,'7'!$A:$H,3,) ->  | J101: =VLOOKUP($B101,'0'!$A:$H,3,) ->  | K101: =VLOOKUP($B101,'15'!$A:$G,3,) ->  | L101: =VLOOKUP($B101,'5'!$A:$G,3,) ->  | M101: =VLOOKUP($B101,'19'!$A:$H,3,) ->  | N101: =VLOOKUP($B101,'8'!$A:$G,3,) ->  | O101: =VLOOKUP($B101,'13'!$A:$H,3,) ->  | P101: =VLOOKUP($B101,'3'!$A:$H,3,) ->  | Q101: =VLOOKUP($B101,'9'!$A:$G,3,) ->  | R101: =VLOOKUP($B101,'6'!$A:$G,3,) ->  | S101: =VLOOKUP($B101,'18'!$A:$H,3,FALSE) ->  | T101: =VLOOKUP($B101,'14'!$A:$G,3,) -> 0.48 | U101: =VLOOKUP($B101,'16'!$A:$H,3,) ->  | V101: =VLOOKUP($B101,'20'!$A:$H,3,) ->  | W101: =VLOOKUP($B101,'17'!$A:$H,3,) -> 
B102: Gm11627 | C102: =VLOOKUP($B102,'1'!$A:$G,3,) ->  | D102: =VLOOKUP($B102,'4'!$A:$H,3,) ->  | E102: =VLOOKUP($B102,'11'!$A:$G,3,) ->  | F102: =VLOOKUP($B102,'2'!$A:$G,3,) ->  | G102: =VLOOKUP($B102,'10'!$A:$G,3,) ->  | H102: =VLOOKUP($B102,'12'!$A:$G,3,) ->  | I102: =VLOOKUP($B102,'7'!$A:$H,3,) ->  | J102: =VLOOKUP($B102,'0'!$A:$H,3,) ->  | K102: =VLOOKUP($B102,'15'!$A:$G,3,) -> 0.30 | L102: =VLOOKUP($B102,'5'!$A:$G,3,) ->  | M102: =VLOOKUP($B102,'19'!$A:$H,3,) -> 0.43 | N102: =VLOOKUP($B102,'8'!$A:$G,3,) ->  | O102: =VLOOKUP($B102,'13'!$A:$H,3,) ->  | P102: =VLOOKUP($B102,'3'!$A:$H,3,) ->  | Q102: =VLOOKUP($B102,'9'!$A:$G,3,) ->  | R102: =VLOOKUP($B102,'6'!$A:$G,3,) ->  | S102: =VLOOKUP($B102,'18'!$A:$H,3,FALSE) ->  | T102: =VLOOKUP($B102,'14'!$A:$G,3,) ->  | U102: =VLOOKUP($B102,'16'!$A:$H,3,) ->  | V102: =VLOOKUP($B102,'20'!$A:$H,3,) ->  | W102: =VLOOKUP($B102,'17'!$A:$H,3,) -> 
B103: Gm16141 | C103: =VLOOKUP($B103,'1'!$A:$G,3,) ->  | D103: =VLOOKUP($B103,'4'!$A:$H,3,) ->  | E103: =VLOOKUP($B103,'11'!$A:$G,3,) ->  | F103: =VLOOKUP($B103,'2'!$A:$G,3,) ->  | G103: =VLOOKUP($B103,'10'!$A:$G,3,) ->  | H103: =VLOOKUP($B103,'12'!$A:$G,3,) ->  | I103: =VLOOKUP($B103,'7'!$A:$H,3,) ->  | J103: =VLOOKUP($B103,'0'!$A:$H,3,) ->  | K103: =VLOOKUP($B103,'15'!$A:$G,3,) -> 0.27 | L103: =VLOOKUP($B103,'5'!$A:$G,3,) ->  | M103: =VLOOKUP($B103,'19'!$A:$H,3,) ->  | N103: =VLOOKUP($B103,'8'!$A:$G,3,) ->  | O103: =VLOOKUP($B103,'13'!$A:$H,3,) ->  | P103: =VLOOKUP($B103,'3'!$A:$H,3,) ->  | Q103: =VLOOKUP($B103,'9'!$A:$G,3,) ->  | R103: =VLOOKUP($B103,'6'!$A:$G,3,) ->  | S103: =VLOOKUP($B103,'18'!$A:$H,3,FALSE) ->  | T103: =VLOOKUP($B103,'14'!$A:$G,3,) ->  | U103: =VLOOKUP($B103,'16'!$A:$H,3,) ->  | V103: =VLOOKUP($B103,'20'!$A:$H,3,) ->  | W103: =VLOOKUP($B103,'17'!$A:$H,3,) -> 
B104: Gm42418 | C104: =VLOOKUP($B104,'1'!$A:$G,3,) ->  | D104: =VLOOKUP($B104,'4'!$A:$H,3,) ->  | E104: =VLOOKUP($B104,'11'!$A:$G,3,) ->  | F104: =VLOOKUP($B104,'2'!$A:$G,3,) ->  | G104: =VLOOKUP($B104,'10'!$A:$G,3,) ->  | H104: =VLOOKUP($B104,'12'!$A:$G,3,) ->  | I104: =VLOOKUP($B104,'7'!$A:$H,3,) ->  | J104: =VLOOKUP($B104,'0'!$A:$H,3,) ->  | K104: =VLOOKUP($B104,'15'!$A:$G,3,) ->  | L104: =VLOOKUP($B104,'5'!$A:$G,3,) ->  | M104: =VLOOKUP($B104,'19'!$A:$H,3,) ->  | N104: =VLOOKUP($B104,'8'!$A:$G,3,) ->  | O104: =VLOOKUP($B104,'13'!$A:$H,3,) ->  | P104: =VLOOKUP($B104,'3'!$A:$H,3,) ->  | Q104: =VLOOKUP($B104,'9'!$A:$G,3,) ->  | R104: =VLOOKUP($B104,'6'!$A:$G,3,) ->  | S104: =VLOOKUP($B104,'18'!$A:$H,3,FALSE) ->  | T104: =VLOOKUP($B104,'14'!$A:$G,3,) ->  | U104: =VLOOKUP($B104,'16'!$A:$H,3,) ->  | V104: =VLOOKUP($B104,'20'!$A:$H,3,) -> 1.57 | W104: =VLOOKUP($B104,'17'!$A:$H,3,) -> 
B105: Hnf4a | C105: =VLOOKUP($B105,'1'!$A:$G,3,) ->  | D105: =VLOOKUP($B105,'4'!$A:$H,3,) ->  | E105: =VLOOKUP($B105,'11'!$A:$G,3,) ->  | F105: =VLOOKUP($B105,'2'!$A:$G,3,) ->  | G105: =VLOOKUP($B105,'10'!$A:$G,3,) -> 0.36 | H105: =VLOOKUP($B105,'12'!$A:$G,3,) ->  | I105: =VLOOKUP($B105,'7'!$A:$H,3,) ->  | J105: =VLOOKUP($B105,'0'!$A:$H,3,) ->  | K105: =VLOOKUP($B105,'15'!$A:$G,3,) ->  | L105: =VLOOKUP($B105,'5'!$A:$G,3,) ->  | M105: =VLOOKUP($B105,'19'!$A:$H,3,) ->  | N105: =VLOOKUP($B105,'8'!$A:$G,3,) ->  | O105: =VLOOKUP($B105,'13'!$A:$H,3,) ->  | P105: =VLOOKUP($B105,'3'!$A:$H,3,) ->  | Q105: =VLOOKUP($B105,'9'!$A:$G,3,) ->  | R105: =VLOOKUP($B105,'6'!$A:$G,3,) ->  | S105: =VLOOKUP($B105,'18'!$A:$H,3,FALSE) ->  | T105: =VLOOKUP($B105,'14'!$A:$G,3,) ->  | U105: =VLOOKUP($B105,'16'!$A:$H,3,) ->  | V105: =VLOOKUP($B105,'20'!$A:$H,3,) ->  | W105: =VLOOKUP($B105,'17'!$A:$H,3,) -> 

Sheet 0
A1: gene | B1: p_val | C1: avg_logFC | D1: pct.1 | E1: pct.2 | F1: p_val_adj | G1: cluster #
A2: 2810417H13Rik | B2: 0.00E+00 | C2: 1.007467755 | D2: 0.976 | E2: 0.55 | F2: 0 | G2: 0
A3: Hist1h2ap | B3: 0.00E+00 | C3: 0.975411764 | D3: 0.807 | E3: 0.391 | F3: 0 | G3: 0
A4: Top2a | B4: 0.00E+00 | C4: 0.906418336 | D4: 0.878 | E4: 0.339 | F4: 0 | G4: 0
A5: Pbx1 | B5: 0.00E+00 | C5: 0.886833723 | D5: 0.993 | E5: 0.728 | F5: 0 | G5: 0
A6: H2afx | B6: 0.00E+00 | C6: 0.855368193 | D6: 0.933 | E6: 0.64 | F6: 0 | G6: 0
A7: Spc25 | B7: 0.00E+00 | C7: 0.797166948 | D7: 0.841 | E7: 0.383 | F7: 0 | G7: 0
A8: Hmgb2 | B8: 0.00E+00 | C8: 0.789924204 | D8: 0.997 | E8: 0.792 | F8: 0 | G8: 0
A9: Birc5 | B9: 0.00E+00 | C9: 0.789028681 | D9: 0.866 | E9: 0.468 | F9: 0 | G9: 0
A10: Tk1 | B10: 0.00E+00 | C10: 0.787862117 | D10: 0.793 | E10: 0.261 | F10: 0 | G10: 0
A11: Lgals1 | B11: 0.00E+00 | C11: 0.755400033 | D11: 0.999 | E11: 0.784 | F11: 0 | G11: 0
A12: Ptn | B12: 0.00E+00 | C12: 0.751352753 | D12: 0.966 | E12: 0.668 | F12: 0 | G12: 0
A13: Cdk1 | B13: 0.00E+00 | C13: 0.747424676 | D13: 0.806 | E13: 0.334 | F13: 0 | G13: 0
A14: Cks2 | B14: 0.00E+00 | C14: 0.737903861 | D14: 0.886 | E14: 0.545 | F14: 0 | G14: 0
A15: Emilin1 | B15: 0.00E+00 | C15: 0.698800109 | D15: 0.892 | E15: 0.344 | F15: 0 | G15: 0
A16: Tyms | B16: 0.00E+00 | C16: 0.696307276 | D16: 0.883 | E16: 0.465 | F16: 0 | G16: 0
A17: Cenpm | B17: 0.00E+00 | C17: 0.687062144 | D17: 0.869 | E17: 0.405 | F17: 0 | G17: 0
A18: Cks1b | B18: 0.00E+00 | C18: 0.68127662 | D18: 0.993 | E18: 0.773 | F18: 0 | G18: 0
A19: Smc2 | B19: 0.00E+00 | C19: 0.675236958 | D19: 0.88 | E19: 0.429 | F19: 0 | G19: 0
A20: Spc24 | B20: 0.00E+00 | C20: 0.664257891 | D20: 0.82 | E20: 0.396 | F20: 0 | G20: 0
A21: Tuba1b | B21: 0.00E+00 | C21: 0.635727777 | D21: 0.999 | E21: 0.9 | F21: 0 | G21: 0
A22: Eva1b | B22: 0.00E+00 | C22: 0.63212274 | D22: 0.98 | E22: 0.655 | F22: 0 | G22: 0
A23: Fhl2 | B23: 0.00E+00 | C23: 0.628937298 | D23: 0.826 | E23: 0.313 | F23: 0 | G23: 0
A24: Tubb6 | B24: 0.00E+00 | C24: 0.617575992 | D24: 0.674 | E24: 0.206 | F24: 0 | G24: 0
A25: Meis1 | B25: 0.00E+00 | C25: 0.616084366 | D25: 0.871 | E25: 0.341 | F25: 0 | G25: 0
A26: Hic1 | B26: 0.00E+00 | C26: 0.615973865 | D26: 0.845 | E26: 0.275 | F26: 0 | G26: 0
A27: Ecm1 | B27: 0.00E+00 | C27: 0.614115693 | D27: 0.758 | E27: 0.246 | F27: 0 | G27: 0
A28: Alcam | B28: 0.00E+00 | C28: 0.612796932 | D28: 0.885 | E28: 0.498 | F28: 0 | G28: 0
A29: Mki67 | B29: 0.00E+00 | C29: 0.611402641 | D29: 0.694 | E29: 0.287 | F29: 0 | G29: 0
A30: Dek | B30: 0.00E+00 | C30: 0.609519216 | D30: 0.979 | E30: 0.73 | F30: 0 | G30: 0
A31: Cald1 | B31: 0.00E+00 | C31: 0.603800234 | D31: 0.949 | E31: 0.537 | F31: 0 | G31: 0
A32: Aurkb | B32: 0.00E+00 | C32: 0.591273463 | D32: 0.645 | E32: 0.203 | F32: 0 | G32: 0
A33: Fn1 | B33: 0.00E+00 | C33: 0.59117522 | D33: 0.856 | E33: 0.359 | F33: 0 | G33: 0
A34: Maged2 | B34: 0.00E+00 | C34: 0.589683921 | D34: 0.969 | E34: 0.669 | F34: 0 | G34: 0
A35: Arpc1b | B35: 0.00E+00 | C35: 0.586312951 | D35: 0.947 | E35: 0.55 | F35: 0 | G35: 0
A36: Nusap1 | B36: 0.00E+00 | C36: 0.578664492 | D36: 0.575 | E36: 0.242 | F36: 0 | G36: 0
A37: Lsm2 | B37: 0.00E+00 | C37: 0.574456248 | D37: 0.969 | E37: 0.708 | F37: 0 | G37: 0
A38: Lig1 | B38: 0.00E+00 | C38: 0.568588971 | D38: 0.774 | E38: 0.409 | F38: 0 | G38: 0
A39: Mest | B39: 0.00E+00 | C39: 0.563107534 | D39: 0.994 | E39: 0.842 | F39: 0 | G39: 0
A40: Emp3 | B40: 0.00E+00 | C40: 0.556914196 | D40: 0.924 | E40: 0.486 | F40: 0 | G40: 0
A41: Gpc3 | B41: 0.00E+00 | C41: 0.552188927 | D41: 0.966 | E41: 0.68 | F41: 0 | G41: 0
A42: Nsg1 | B42: 0.00E+00 | C42: 0.545154071 | D42: 0.758 | E42: 0.324 | F42: 0 | G42: 0
A43: Ube2s | B43: 0.00E+00 | C43: 0.544373087 | D43: 0.989 | E43: 0.872 | F43: 0 | G43: 0
A44: Aldh1a2 | B44: 0.00E+00 | C44: 0.541650411 | D44: 0.789 | E44: 0.492 | F44: 0 | G44: 0
A45: Ccnd2 | B45: 0.00E+00 | C45: 0.541158579 | D45: 0.926 | E45: 0.624 | F45: 0 | G45: 0
A46: Syce2 | B46: 0.00E+00 | C46: 0.539262969 | D46: 0.797 | E46: 0.418 | F46: 0 | G46: 0
A47: Ebf1 | B47: 0.00E+00 | C47: 0.537938784 | D47: 0.774 | E47: 0.248 | F47: 0 | G47: 0
A48: Camk2n1 | B48: 0.00E+00 | C48: 0.534465095 | D48: 0.791 | E48: 0.481 | F48: 0 | G48: 0
A49: Serpine2 | B49: 0.00E+00 | C49: 0.529421261 | D49: 0.732 | E49: 0.313 | F49: 0 | G49: 0
A50: Mxd3 | B50: 0.00E+00 | C50: 0.52885849 | D50: 0.533 | E50: 0.122 | F50: 0 | G50: 0
A51: Anxa2 | B51: 0.00E+00 | C51: 0.526063852 | D51: 0.918 | E51: 0.444 | F51: 0 | G51: 0
A52: Smc4 | B52: 0.00E+00 | C52: 0.524184222 | D52: 0.827 | E52: 0.447 | F52: 0 | G52: 0
A53: Slbp | B53: 0.00E+00 | C53: 0.523861012 | D53: 0.855 | E53: 0.583 | F53: 0 | G53: 0
A54: Col3a1 | B54: 0.00E+00 | C54: 0.522881541 | D54: 0.927 | E54: 0.337 | F54: 0 | G54: 0
A55: Prc1 | B55: 0.00E+00 | C55: 0.521983166 | D55: 0.539 | E55: 0.187 | F55: 0 | G55: 0
A56: Lbh | B56: 0.00E+00 | C56: 0.520604417 | D56: 0.662 | E56: 0.243 | F56: 0 | G56: 0
A57: H2afz | B57: 0.00E+00 | C57: 0.517289311 | D57: 1 | E57: 0.937 | F57: 0 | G57: 0
A58: Hjurp | B58: 0.00E+00 | C58: 0.515614263 | D58: 0.685 | E58: 0.28 | F58: 0 | G58: 0
A59: Rrm2 | B59: 0.00E+00 | C59: 0.508740555 | D59: 0.662 | E59: 0.298 | F59: 0 | G59: 0
A60: Fibin | B60: 0.00E+00 | C60: 0.506905636 | D60: 0.568 | E60: 0.155 | F60: 0 | G60: 0
A61: Ywhah | B61: 0.00E+00 | C61: 0.506546907 | D61: 0.948 | E61: 0.698 | F61: 0 | G61: 0
A62: Bub3 | B62: 0.00E+00 | C62: 0.506334951 | D62: 0.849 | E62: 0.575 | F62: 0 | G62: 0
A63: Tpm4 | B63: 0.00E+00 | C63: 0.505014167 | D63: 0.976 | E63: 0.75 | F63: 0 | G63: 0
A64: Pbk | B64: 0.00E+00 | C64: 0.504114873 | D64: 0.641 | E64: 0.241 | F64: 0 | G64: 0
A65: Cdca8 | B65: 0.00E+00 | C65: 0.50403734 | D65: 0.702 | E65: 0.347 | F65: 0 | G65: 0
A66: Cmc2 | B66: 0.00E+00 | C66: 0.499649758 | D66: 0.795 | E66: 0.443 | F66: 0 | G66: 0
A67: Sfrp1 | B67: 0.00E+00 | C67: 0.49278258 | D67: 0.81 | E67: 0.321 | F67: 0 | G67: 0
A68: Uqcc2 | B68: 0.00E+00 | C68: 0.492140118 | D68: 0.954 | E68: 0.747 | F68: 0 | G68: 0
A69: Nfia | B69: 0.00E+00 | C69: 0.492079771 | D69: 0.697 | E69: 0.222 | F69: 0 | G69: 0
A70: Dtymk | B70: 0.00E+00 | C70: 0.486925209 | D70: 0.967 | E70: 0.73 | F70: 0 | G70: 0
A71: Tmpo | B71: 0.00E+00 | C71: 0.485479247 | D71: 0.93 | E71: 0.639 | F71: 0 | G71: 0
A72: Snai2 | B72: 0.00E+00 | C72: 0.485235612 | D72: 0.6 | E72: 0.202 | F72: 0 | G72: 0
A73: Ccna2 | B73: 0.00E+00 | C73: 0.47986884 | D73: 0.674 | E73: 0.293 | F73: 0 | G73: 0
A74: Gins2 | B74: 0.00E+00 | C74: 0.474239934 | D74: 0.752 | E74: 0.424 | F74: 0 | G74: 0
A75: Marcks | B75: 0.00E+00 | C75: 0.473290831 | D75: 0.963 | E75: 0.736 | F75: 0 | G75: 0
A76: Dnajc9 | B76: 0.00E+00 | C76: 0.472813219 | D76: 0.862 | E76: 0.52 | F76: 0 | G76: 0
A77: Tipin | B77: 0.00E+00 | C77: 0.472297881 | D77: 0.901 | E77: 0.608 | F77: 0 | G77: 0
A78: Hmgn2 | B78: 0.00E+00 | C78: 0.469921203 | D78: 1 | E78: 0.896 | F78: 0 | G78: 0
A79: Nfib | B79: 0.00E+00 | C79: 0.469147394 | D79: 0.745 | E79: 0.267 | F79: 0 | G79: 0
A80: 2700094K13Rik | B80: 0.00E+00 | C80: 0.466453835 | D80: 0.992 | E80: 0.836 | F80: 0 | G80: 0
A81: Pmf1 | B81: 0.00E+00 | C81: 0.463016443 | D81: 0.849 | E81: 0.522 | F81: 0 | G81: 0
A82: Meis2 | B82: 0.00E+00 | C82: 0.462199723 | D82: 0.976 | E82: 0.706 | F82: 0 | G82: 0
A83: Ranbp1 | B83: 0.00E+00 | C83: 0.462107817 | D83: 0.997 | E83: 0.873 | F83: 0 | G83: 0
A84: Polr2m | B84: 0.00E+00 | C84: 0.462011219 | D84: 0.991 | E84: 0.85 | F84: 0 | G84: 0
A85: Ccdc34 | B85: 0.00E+00 | C85: 0.461286682 | D85: 0.92 | E85: 0.653 | F85: 0 | G85: 0
A86: Tcf19 | B86: 0.00E+00 | C86: 0.458804014 | D86: 0.528 | E86: 0.189 | F86: 0 | G86: 0
A87: Plagl1 | B87: 0.00E+00 | C87: 0.454593562 | D87: 0.734 | E87: 0.309 | F87: 0 | G87: 0
A88: Cnn2 | B88: 0.00E+00 | C88: 0.45435161 | D88: 0.843 | E88: 0.399 | F88: 0 | G88: 0
A89: Aurka | B89: 0.00E+00 | C89: 0.449233466 | D89: 0.471 | E89: 0.176 | F89: 0 | G89: 0
A90: Lhfp | B90: 0.00E+00 | C90: 0.448508208 | D90: 0.804 | E90: 0.42 | F90: 0 | G90: 0
A91: Fbxo5 | B91: 0.00E+00 | C91: 0.447266464 | D91: 0.58 | E91: 0.207 | F91: 0 | G91: 0
A92: Meg3 | B92: 0.00E+00 | C92: 0.44271243 | D92: 0.879 | E92: 0.374 | F92: 0 | G92: 0
A93: Col1a2 | B93: 0.00E+00 | C93: 0.4401274 | D93: 0.865 | E93: 0.341 | F93: 0 | G93: 0
A94: Lmnb1 | B94: 0.00E+00 | C94: 0.435635111 | D94: 0.86 | E94: 0.551 | F94: 0 | G94: 0
A95: Cdkn2d | B95: 0.00E+00 | C95: 0.431737524 | D95: 0.598 | E95: 0.28 | F95: 0 | G95: 0
A96: Pfn1 | B96: 0.00E+00 | C96: 0.429847268 | D96: 1 | E96: 0.933 | F96: 0 | G96: 0
A97: Snrpd1 | B97: 0.00E+00 | C97: 0.429420621 | D97: 0.994 | E97: 0.851 | F97: 0 | G97: 0
A98: Fam111a | B98: 0.00E+00 | C98: 0.427000417 | D98: 0.522 | E98: 0.172 | F98: 0 | G98: 0
A99: Dhrs3 | B99: 0.00E+00 | C99: 0.426147716 | D99: 0.721 | E99: 0.32 | F99: 0 | G99: 0
A100: Col1a1 | B100: 0.00E+00 | C100: 0.423460627 | D100: 0.943 | E100: 0.381 | F100: 0 | G100: 0
A101: Incenp | B101: 0.00E+00 | C101: 0.419406489 | D101: 0.533 | E101: 0.194 | F101: 0 | G101: 0
A102: Ran | B102: 0.00E+00 | C102: 0.41883665 | D102: 0.999 | E102: 0.899 | F102: 0 | G102: 0
A103: Selm | B103: 0.00E+00 | C103: 0.416723766 | D103: 0.877 | E103: 0.464 | F103: 0 | G103: 0
A104: Ifitm3 | B104: 0.00E+00 | C104: 0.414373183 | D104: 0.855 | E104: 0.403 | F104: 0 | G104: 0
A105: Gmnn | B105: 0.00E+00 | C105: 0.413098793 | D105: 0.747 | E105: 0.38 | F105: 0 | G105: 0
A106: Mfap2 | B106: 0.00E+00 | C106: 0.411940032 | D106: 0.987 | E106: 0.795 | F106: 0 | G106: 0
A107: Calm2 | B107: 0.00E+00 | C107: 0.411541847 | D107: 0.999 | E107: 0.885 | F107: 0 | G107: 0
A108: Hmgb1 | B108: 0.00E+00 | C108: 0.409847352 | D108: 1 | E108: 0.908 | F108: 0 | G108: 0
A109: Slc40a1 | B109: 0.00E+00 | C109: 0.403795539 | D109: 0.581 | E109: 0.182 | F109: 0 | G109: 0
A110: H3f3b | B110: 0.00E+00 | C110: 0.40238148 | D110: 1 | E110: 0.933 | F110: 0 | G110: 0
A111: Pdlim2 | B111: 0.00E+00 | C111: 0.402327484 | D111: 0.729 | E111: 0.305 | F111: 0 | G111: 0
A112: Ifitm2 | B112: 0.00E+00 | C112: 0.394333085 | D112: 0.998 | E112: 0.882 | F112: 0 | G112: 0
A113: Pdgfra | B113: 0.00E+00 | C113: 0.393577934 | D113: 0.572 | E113: 0.154 | F113: 0 | G113: 0
A114: Atad2 | B114: 0.00E+00 | C114: 0.389531841 | D114: 0.537 | E114: 0.206 | F114: 0 | G114: 0
A115: Rad51ap1 | B115: 0.00E+00 | C115: 0.386637402 | D115: 0.511 | E115: 0.178 | F115: 0 | G115: 0
A116: Asf1b | B116: 0.00E+00 | C116: 0.382936102 | D116: 0.532 | E116: 0.192 | F116: 0 | G116: 0
A117: Ldb2 | B117: 0.00E+00 | C117: 0.382106376 | D117: 0.601 | E117: 0.172 | F117: 0 | G117: 0
A118: Tagln2 | B118: 0.00E+00 | C118: 0.378248085 | D118: 0.735 | E118: 0.357 | F118: 0 | G118: 0
A119: Timp3 | B119: 0.00E+00 | C119: 0.375219647 | D119: 0.55 | E119: 0.199 | F119: 0 | G119: 0
A120: Fam212a | B120: 0.00E+00 | C120: 0.368990634 | D120: 0.617 | E120: 0.218 | F120: 0 | G120: 0
A121: Cenpq | B121: 0.00E+00 | C121: 0.363591746 | D121: 0.529 | E121: 0.211 | F121: 0 | G121: 0
A122: Cfh | B122: 0.00E+00 | C122: 0.361896958 | D122: 0.572 | E122: 0.167 | F122: 0 | G122: 0
A123: Ntn1 | B123: 0.00E+00 | C123: 0.358831328 | D123: 0.383 | E123: 0.101 | F123: 0 | G123: 0
A124: Sgol1 | B124: 0.00E+00 | C124: 0.357497032 | D124: 0.486 | E124: 0.168 | F124: 0 | G124: 0
A125: Itga9 | B125: 0.00E+00 | C125: 0.355445141 | D125: 0.552 | E125: 0.192 | F125: 0 | G125: 0
A126: Pid1 | B126: 0.00E+00 | C126: 0.354057375 | D126: 0.502 | E126: 0.157 | F126: 0 | G126: 0
A127: Sepp1 | B127: 0.00E+00 | C127: 0.351864171 | D127: 0.83 | E127: 0.428 | F127: 0 | G127: 0
A128: Ska1 | B128: 0.00E+00 | C128: 0.349771982 | D128: 0.486 | E128: 0.159 | F128: 0 | G128: 0
A129: Olfml3 | B129: 0.00E+00 | C129: 0.349113843 | D129: 0.611 | E129: 0.203 | F129: 0 | G129: 0
A130: Tmsb4x | B130: 0.00E+00 | C130: 0.334073757 | D130: 0.999 | E130: 0.899 | F130: 0 | G130: 0
A131: Myl9 | B131: 0.00E+00 | C131: 0.328305829 | D131: 0.787 | E131: 0.362 | F131: 0 | G131: 0
A132: Cdkn2c | B132: 0.00E+00 | C132: 0.298471016 | D132: 0.259 | E132: 0.044 | F132: 0 | G132: 0
A133: Scarf2 | B133: 0.00E+00 | C133: 0.28320273 | D133: 0.46 | E133: 0.141 | F133: 0 | G133: 0
A134: Ntm | B134: 0.00E+00 | C134: 0.277319801 | D134: 0.387 | E134: 0.11 | F134: 0 | G134: 0
A135: Dlk1 | B135: 0.00E+00 | C135: 0.259393087 | D135: 0.551 | E135: 0.186 | F135: 0 | G135: 0
A136: Cd24a | B136: 0.00E+00 | C136: -0.910954918 | D136: 0.699 | E136: 0.836 | F136: 0 | G136: 0
A137: Slc43a3 | B137: 6.11E-308 | C137: 0.294174764 | D137: 0.419 | E137: 0.137 | F137: 1.12E-303 | G137: 0
A138: Cdkn1c | B138: 2.17E-307 | C138: 0.421347321 | D138: 0.941 | E138: 0.732 | F138: 3.97E-303 | G138: 0
A139: Mis18bp1 | B139: 3.12E-300 | C139: 0.359441161 | D139: 0.484 | E139: 0.184 | F139: 5.70E-296 | G139: 0
A140: Uncx | B140: 3.56E-299 | C140: -0.730389105 | D140: 0.046 | E140: 0.409 | F140: 6.50E-295 | G140: 0
A141: Pax2 | B141: 8.44E-299 | C141: -0.556627981 | D141: 0.045 | E141: 0.409 | F141: 1.54e-294 | G141: 0
A142: Loxl1 | B142: 1.98E-298 | C142: 0.34263305 | D142: 0.546 | E142: 0.207 | F142: 3.62E-294 | G142: 0
A143: Fam64a | B143: 2.22E-297 | C143: 0.447376691 | D143: 0.536 | E143: 0.222 | F143: 4.06E-293 | G143: 0
A144: Wbp5 | B144: 2.96e-294 | C144: 0.373179914 | D144: 0.998 | E144: 0.869 | F144: 5.41E-290 | G144: 0
A145: Prdx1 | B145: 1.02e-293 | C145: 0.360289308 | D145: 1 | E145: 0.909 | F145: 1.86E-289 | G145: 0
A146: 6030408B16Rik | B146: 1.46E-291 | C146: 0.343440098 | D146: 0.532 | E146: 0.211 | F146: 2.68E-287 | G146: 0
A147: Stub1 | B147: 1.86E-291 | C147: 0.388132147 | D147: 0.963 | E147: 0.78 | F147: 3.40E-287 | G147: 0
A148: Tnnt1 | B148: 3.08E-291 | C148: 0.275966457 | D148: 0.442 | E148: 0.142 | F148: 5.63e-287 | G148: 0
A149: C1qtnf2 | B149: 1.25E-289 | C149: 0.323205051 | D149: 0.434 | E149: 0.137 | F149: 2.28E-285 | G149: 0
A150: Cenpe | B150: 1.42E-287 | C150: 0.440622297 | D150: 0.571 | E150: 0.26 | F150: 2.60E-283 | G150: 0
A151: Lsm8 | B151: 6.60E-287 | C151: 0.407675804 | D151: 0.941 | E151: 0.727 | F151: 1.21e-282 | G151: 0
A152: S100a10 | B152: 7.74E-287 | C152: 0.345167033 | D152: 0.882 | E152: 0.56 | F152: 1.41e-282 | G152: 0
A153: Sumo2 | B153: 8.85E-287 | C153: 0.324408828 | D153: 1 | E153: 0.905 | F153: 1.62E-282 | G153: 0
A154: Batf3 | B154: 5.70E-285 | C154: 0.265793928 | D154: 0.35 | E154: 0.1 | F154: 1.04e-280 | G154: 0
A155: 4930579G24Rik | B155: 6.76E-283 | C155: 0.289512735 | D155: 0.429 | E155: 0.156 | F155: 1.23e-278 | G155: 0
A156: Cdca2 | B156: 2.94E-281 | C156: 0.312695367 | D156: 0.421 | E156: 0.151 | F156: 5.38E-277 | G156: 0
A157: Tpx2 | B157: 1.20E-280 | C157: 0.420795724 | D157: 0.577 | E157: 0.262 | F157: 2.19E-276 | G157: 0
A158: Anapc11 | B158: 1.26E-280 | C158: 0.387635496 | D158: 0.96 | E158: 0.768 | F158: 2.30E-276 | G158: 0
A159: Lsm6 | B159: 3.39e-280 | C159: 0.38318065 | D159: 0.963 | E159: 0.773 | F159: 6.19E-276 | G159: 0
A160: Rspo1 | B160: 8.27e-280 | C160: -0.609236696 | D160: 0.044 | E160: 0.393 | F160: 1.51E-275 | G160: 0
A161: Lpar1 | B161: 8.46E-280 | C161: 0.281075518 | D161: 0.453 | E161: 0.158 | F161: 1.55E-275 | G161: 0
A162: Piezo2 | B162: 2.26E-278 | C162: 0.257238767 | D162: 0.384 | E162: 0.114 | F162: 4.12E-274 | G162: 0
A163: Chd3 | B163: 3.31e-278 | C163: 0.390951196 | D163: 0.88 | E163: 0.599 | F163: 6.05E-274 | G163: 0
A164: Igfbp7 | B164: 2.91E-277 | C164: 0.361005387 | D164: 0.804 | E164: 0.421 | F164: 5.32E-273 | G164: 0
A165: Shisa3 | B165: 3.27E-276 | C165: 0.463851232 | D165: 0.759 | E165: 0.436 | F165: 5.98E-272 | G165: 0
A166: Usp1 | B166: 4.15E-276 | C166: 0.383549967 | D166: 0.775 | E166: 0.45 | F166: 7.59E-272 | G166: 0
A167: Tubb5 | B167: 4.92E-276 | C167: 0.442471664 | D167: 1 | E167: 0.922 | F167: 8.99E-272 | G167: 0
A168: Fzd1 | B168: 1.08E-275 | C168: 0.297982271 | D168: 0.478 | E168: 0.177 | F168: 1.97E-271 | G168: 0
A169: Ube2c | B169: 3.15E-275 | C169: 0.79617967 | D169: 0.756 | E169: 0.484 | F169: 5.75E-271 | G169: 0
A170: Cdca4 | B170: 2.38E-273 | C170: 0.350716466 | D170: 0.611 | E170: 0.303 | F170: 4.34E-269 | G170: 0
A171: Basp1 | B171: 5.20E-273 | C171: 0.406396183 | D171: 0.74 | E171: 0.433 | F171: 9.50E-269 | G171: 0
A172: Erh | B172: 2.55E-272 | C172: 0.34274167 | D172: 1 | E172: 0.901 | F172: 4.66E-268 | G172: 0
A173: Pdgfrb | B173: 2.76e-271 | C173: 0.268174263 | D173: 0.402 | E173: 0.124 | F173: 5.03E-267 | G173: 0
A174: Myh10 | B174: 3.16e-271 | C174: 0.373319575 | D174: 0.779 | E174: 0.476 | F174: 5.78E-267 | G174: 0
A175: Ccne1 | B175: 6.91E-271 | C175: 0.365948296 | D175: 0.526 | E175: 0.226 | F175: 1.26E-266 | G175: 0
A176: Foxd1 | B176: 3.34E-267 | C176: 0.440973766 | D176: 0.514 | E176: 0.217 | F176: 6.10E-263 | G176: 0
A177: Ckap2l | B177: 8.92E-267 | C177: 0.341775466 | D177: 0.446 | E177: 0.172 | F177: 1.63E-262 | G177: 0
A178: Hist1h1b | B178: 2.31E-266 | C178: 0.338791334 | D178: 0.411 | E178: 0.148 | F178: 4.22E-262 | G178: 0
A179: Bgn | B179: 3.37e-266 | C179: 0.276593204 | D179: 0.536 | E179: 0.202 | F179: 6.15E-262 | G179: 0
A180: Srsf3 | B180: 6.28e-266 | C180: 0.36220875 | D180: 0.998 | E180: 0.884 | F180: 1.15e-261 | G180: 0
A181: Rbm3 | B181: 5.51E-265 | C181: 0.327193979 | D181: 1 | E181: 0.906 | F181: 1.01E-260 | G181: 0
A182: Nuf2 | B182: 7.36E-265 | C182: 0.29398571 | D182: 0.411 | E182: 0.15 | F182: 1.34E-260 | G182: 0
A183: Tspan4 | B183: 1.35e-264 | C183: 0.349296592 | D183: 0.62 | E183: 0.3 | F183: 2.46E-260 | G183: 0
A184: Cd81 | B184: 3.60E-263 | C184: 0.341996066 | D184: 0.977 | E184: 0.8 | F184: 6.58E-259 | G184: 0
A185: Rbms1 | B185: 3.91E-262 | C185: 0.367196592 | D185: 0.771 | E185: 0.469 | F185: 7.15E-258 | G185: 0
A186: Kpna2 | B186: 1.50E-261 | C186: 0.407668636 | D186: 0.436 | E186: 0.172 | F186: 2.73E-257 | G186: 0
A187: Rbbp7 | B187: 5.64E-261 | C187: 0.375363062 | D187: 0.923 | E187: 0.698 | F187: 1.03E-256 | G187: 0
A188: Eef2 | B188: 1.19e-260 | C188: -0.588473714 | D188: 0.993 | E188: 0.924 | F188: 2.18E-256 | G188: 0
A189: Tsc22d1 | B189: 5.70E-260 | C189: -0.876702922 | D189: 0.898 | E189: 0.868 | F189: 1.04e-255 | G189: 0
A190: Depdc1a | B190: 1.03E-257 | C190: 0.25671201 | D190: 0.32 | E190: 0.095 | F190: 1.88E-253 | G190: 0
A191: Akap12 | B191: 6.18E-257 | C191: 0.278094054 | D191: 0.634 | E191: 0.286 | F191: 1.13E-252 | G191: 0
A192: Smc6 | B192: 8.27e-257 | C192: 0.397945063 | D192: 0.857 | E192: 0.59 | F192: 1.51e-252 | G192: 0
A193: Racgap1 | B193: 6.26E-256 | C193: 0.361059005 | D193: 0.525 | E193: 0.235 | F193: 1.14e-251 | G193: 0
A194: Crabp1 | B194: 1.29E-255 | C194: 0.454304415 | D194: 0.456 | E194: 0.178 | F194: 2.36E-251 | G194: 0
A195: Dhfr | B195: 6.99E-255 | C195: 0.374472176 | D195: 0.617 | E195: 0.315 | F195: 1.28E-250 | G195: 0
A196: Penk | B196: 2.54E-254 | C196: 0.437913202 | D196: 0.428 | E196: 0.15 | F196: 4.64E-250 | G196: 0
A197: Actb | B197: 6.95E-254 | C197: 0.409164003 | D197: 1 | E197: 0.946 | F197: 1.27E-249 | G197: 0
A198: Nr2f2 | B198: 1.72E-253 | C198: 0.396597935 | D198: 0.962 | E198: 0.735 | F198: 3.15E-249 | G198: 0
A199: Fbln1 | B199: 5.47E-253 | C199: 0.366288599 | D199: 0.663 | E199: 0.353 | F199: 9.99E-249 | G199: 0
A200: Rrm1 | B200: 9.05E-253 | C200: 0.353848839 | D200: 0.622 | E200: 0.321 | F200: 1.65E-248 | G200: 0
... 282 more rows

Sheet 1
A1: Symbol | B1: p_val | C1: avg_logFC | D1: pct.1 | E1: pct.2 | F1: p_val_adj | G1: cluster
A2: Crym | B2: 0.00E+00 | C2: 1.379667756 | D2: 0.932 | E2: 0.217 | F2: 0 | G2: 1
A3: Cited1 | B3: 0.00E+00 | C3: 1.178263669 | D3: 0.72 | E3: 0.186 | F3: 0 | G3: 1
A4: Fxyd6 | B4: 0.00E+00 | C4: 1.128577624 | D4: 0.992 | E4: 0.633 | F4: 0 | G4: 1
A5: Tsc22d1 | B5: 0.00E+00 | C5: 0.924228111 | D5: 0.999 | E5: 0.852 | F5: 0 | G5: 1
A6: Rspo1 | B6: 0.00E+00 | C6: 0.877189159 | D6: 0.895 | E6: 0.258 | F6: 0 | G6: 1
A7: Robo2 | B7: 0.00E+00 | C7: 0.843253513 | D7: 0.863 | E7: 0.315 | F7: 0 | G7: 1
A8: Gas1 | B8: 0.00E+00 | C8: 0.838649622 | D8: 0.968 | E8: 0.593 | F8: 0 | G8: 1
A9: Zfos1 | B9: 0.00E+00 | C9: 0.822113672 | D9: 0.984 | E9: 0.744 | F9: 0 | G9: 1
A10: Eef2 | B10: 0.00E+00 | C10: 0.81866477 | D10: 1 | E10: 0.923 | F10: 0 | G10: 1
A11: Vcan | B11: 0.00E+00 | C11: 0.76387797 | D11: 0.872 | E11: 0.381 | F11: 0 | G11: 1
A12: Ramp2 | B12: 0.00E+00 | C12: 0.743820562 | D12: 0.905 | E12: 0.505 | F12: 0 | G12: 1
A13: Six3 | B13: 0.00E+00 | C13: 0.731222062 | D13: 0.557 | E13: 0.112 | F13: 0 | G13: 1
A14: Fam213a | B14: 0.00E+00 | C14: 0.720300295 | D14: 0.841 | E14: 0.393 | F14: 0 | G14: 1
A15: Tpm2 | B15: 0.00E+00 | C15: 0.702375858 | D15: 0.888 | E15: 0.489 | F15: 0 | G15: 1
A16: Tgfbi | B16: 0.00E+00 | C16: 0.682735511 | D16: 0.844 | E16: 0.456 | F16: 0 | G16: 1
A17: Hsp90ab1 | B17: 0.00E+00 | C17: 0.678035627 | D17: 1 | E17: 0.923 | F17: 0 | G17: 1
A18: Bcl2 | B18: 0.00E+00 | C18: 0.672450711 | D18: 0.816 | E18: 0.381 | F18: 0 | G18: 1
A19: Uncx | B19: 0.00E+00 | C19: 0.669643965 | D19: 0.838 | E19: 0.283 | F19: 0 | G19: 1
A20: Osr1 | B20: 0.00E+00 | C20: 0.651311693 | D20: 0.622 | E20: 0.157 | F20: 0 | G20: 1
A21: Shisa2 | B21: 0.00E+00 | C21: 0.638956184 | D21: 0.658 | E21: 0.194 | F21: 0 | G21: 1
A22: Hist3h2ba | B22: 0.00E+00 | C22: 0.63715529 | D22: 0.781 | E22: 0.408 | F22: 0 | G22: 1
A23: Eya1 | B23: 0.00E+00 | C23: 0.632625903 | D23: 0.713 | E23: 0.185 | F23: 0 | G23: 1
A24: Six2 | B24: 0.00E+00 | C24: 0.62794863 | D24: 0.693 | E24: 0.165 | F24: 0 | G24: 1
A25: Des | B25: 0.00E+00 | C25: 0.605263966 | D25: 0.64 | E25: 0.199 | F25: 0 | G25: 1
A26: Eef1a1 | B26: 0.00E+00 | C26: 0.604895395 | D26: 1 | E26: 0.981 | F26: 0 | G26: 1
A27: Spock2 | B27: 0.00E+00 | C27: 0.601648412 | D27: 0.684 | E27: 0.202 | F27: 0 | G27: 1
A28: Hs3st6 | B28: 0.00E+00 | C28: 0.585335639 | D28: 0.635 | E28: 0.176 | F28: 0 | G28: 1
A29: Zbtb20 | B29: 0.00E+00 | C29: 0.578778481 | D29: 0.856 | E29: 0.478 | F29: 0 | G29: 1
A30: Rpl3 | B30: 0.00E+00 | C30: 0.513199672 | D30: 1 | E30: 0.944 | F30: 0 | G30: 1
A31: Ppp1r1a | B31: 0.00E+00 | C31: 0.508814686 | D31: 0.549 | E31: 0.208 | F31: 0 | G31: 1
A32: Rpl10a | B32: 0.00E+00 | C32: 0.505977842 | D32: 1 | E32: 0.961 | F32: 0 | G32: 1
A33: Eif3m | B33: 0.00E+00 | C33: 0.496899717 | D33: 0.987 | E33: 0.805 | F33: 0 | G33: 1
A34: Wt1 | B34: 0.00E+00 | C34: 0.487690907 | D34: 0.861 | E34: 0.46 | F34: 0 | G34: 1
A35: Ttc28 | B35: 0.00E+00 | C35: 0.486640325 | D35: 0.73 | E35: 0.365 | F35: 0 | G35: 1
A36: Npm1 | B36: 0.00E+00 | C36: 0.482729329 | D36: 1 | E36: 0.917 | F36: 0 | G36: 1
A37: Tcf4 | B37: 0.00E+00 | C37: 0.482057663 | D37: 0.816 | E37: 0.504 | F37: 0 | G37: 1
A38: Cox7a2l | B38: 0.00E+00 | C38: 0.481635587 | D38: 0.999 | E38: 0.89 | F38: 0 | G38: 1
A39: Rspo3 | B39: 0.00E+00 | C39: 0.478703252 | D39: 0.522 | E39: 0.197 | F39: 0 | G39: 1
A40: Eif3e | B40: 0.00E+00 | C40: 0.474505853 | D40: 0.997 | E40: 0.86 | F40: 0 | G40: 1
A41: Rps9 | B41: 0.00E+00 | C41: 0.468148009 | D41: 1 | E41: 0.977 | F41: 0 | G41: 1
A42: Foxp1 | B42: 0.00E+00 | C42: 0.46668966 | D42: 0.684 | E42: 0.329 | F42: 0 | G42: 1
A43: Grb10 | B43: 0.00E+00 | C43: 0.465068182 | D43: 0.91 | E43: 0.66 | F43: 0 | G43: 1
A44: Cntfr | B44: 0.00E+00 | C44: 0.461197913 | D44: 0.653 | E44: 0.304 | F44: 0 | G44: 1
A45: Cldn9 | B45: 0.00E+00 | C45: 0.45977996 | D45: 0.522 | E45: 0.164 | F45: 0 | G45: 1
A46: Slc1a3 | B46: 0.00E+00 | C46: 0.457006317 | D46: 0.474 | E46: 0.173 | F46: 0 | G46: 1
A47: Cped1 | B47: 0.00E+00 | C47: 0.450888483 | D47: 0.615 | E47: 0.24 | F47: 0 | G47: 1
A48: Tpbg | B48: 0.00E+00 | C48: 0.450107515 | D48: 0.558 | E48: 0.234 | F48: 0 | G48: 1
A49: Impdh2 | B49: 0.00E+00 | C49: 0.44865205 | D49: 0.946 | E49: 0.75 | F49: 0 | G49: 1
A50: Rplp0 | B50: 0.00E+00 | C50: 0.445282575 | D50: 1 | E50: 0.993 | F50: 0 | G50: 1
A51: Espn | B51: 0.00E+00 | C51: 0.44518839 | D51: 0.55 | E51: 0.2 | F51: 0 | G51: 1
A52: Ocm | B52: 0.00E+00 | C52: 0.444968095 | D52: 0.308 | E52: 0.03 | F52: 0 | G52: 1
A53: Rem1 | B53: 0.00E+00 | C53: 0.44443803 | D53: 0.674 | E53: 0.323 | F53: 0 | G53: 1
A54: Gm266 | B54: 0.00E+00 | C54: 0.444175258 | D54: 0.785 | E54: 0.356 | F54: 0 | G54: 1
A55: Pabpn1 | B55: 0.00E+00 | C55: 0.44135413 | D55: 0.8 | E55: 0.502 | F55: 0 | G55: 1
A56: Ptov1 | B56: 0.00E+00 | C56: 0.440556738 | D56: 0.989 | E56: 0.85 | F56: 0 | G56: 1
A57: Slc12a2 | B57: 0.00E+00 | C57: 0.440488538 | D57: 0.536 | E57: 0.197 | F57: 0 | G57: 1
A58: Ckb | B58: 0.00E+00 | C58: 0.43962067 | D58: 0.56 | E58: 0.235 | F58: 0 | G58: 1
A59: Meox1 | B59: 0.00E+00 | C59: 0.43310582 | D59: 0.403 | E59: 0.097 | F59: 0 | G59: 1
A60: Rpl4 | B60: 0.00E+00 | C60: 0.432922648 | D60: 1 | E60: 0.954 | F60: 0 | G60: 1
A61: Gltscr2 | B61: 0.00E+00 | C61: 0.432700852 | D61: 0.978 | E61: 0.818 | F61: 0 | G61: 1
A62: Eef1g | B62: 0.00E+00 | C62: 0.420902158 | D62: 1 | E62: 0.917 | F62: 0 | G62: 1
A63: Rps4x | B63: 0.00E+00 | C63: 0.416801564 | D63: 1 | E63: 0.962 | F63: 0 | G63: 1
A64: Hnrnpa1 | B64: 0.00E+00 | C64: 0.409387164 | D64: 1 | E64: 0.907 | F64: 0 | G64: 1
A65: Slc25a3 | B65: 0.00E+00 | C65: 0.408078892 | D65: 0.992 | E65: 0.855 | F65: 0 | G65: 1
A66: Rpl7 | B66: 0.00E+00 | C66: 0.408040902 | D66: 1 | E66: 0.971 | F66: 0 | G66: 1
A67: Dst | B67: 0.00E+00 | C67: 0.393236345 | D67: 0.544 | E67: 0.216 | F67: 0 | G67: 1
A68: Gnb2l1 | B68: 0.00E+00 | C68: 0.390712792 | D68: 1 | E68: 0.921 | F68: 0 | G68: 1
A69: Bmp7 | B69: 0.00E+00 | C69: 0.389659737 | D69: 0.551 | E69: 0.224 | F69: 0 | G69: 1
A70: Rps18 | B70: 0.00E+00 | C70: 0.386463142 | D70: 1 | E70: 0.957 | F70: 0 | G70: 1
A71: Rps5 | B71: 0.00E+00 | C71: 0.384608295 | D71: 1 | E71: 0.978 | F71: 0 | G71: 1
A72: Fam189b | B72: 0.00E+00 | C72: 0.384594476 | D72: 0.555 | E72: 0.235 | F72: 0 | G72: 1
A73: Slc9a3r1 | B73: 0.00E+00 | C73: 0.38195194 | D73: 0.554 | E73: 0.236 | F73: 0 | G73: 1
A74: Eif3h | B74: 0.00E+00 | C74: 0.381316284 | D74: 0.997 | E74: 0.888 | F74: 0 | G74: 1
A75: Rpl23a | B75: 0.00E+00 | C75: 0.378441363 | D75: 1 | E75: 0.975 | F75: 0 | G75: 1
A76: Pabpc1 | B76: 0.00E+00 | C76: 0.373771296 | D76: 0.999 | E76: 0.943 | F76: 0 | G76: 1
A77: Eif3f | B77: 0.00E+00 | C77: 0.373271586 | D77: 1 | E77: 0.899 | F77: 0 | G77: 1
A78: Slc25a4 | B78: 0.00E+00 | C78: 0.372670442 | D78: 1 | E78: 0.895 | F78: 0 | G78: 1
A79: Rpl9 | B79: 0.00E+00 | C79: 0.370926729 | D79: 1 | E79: 0.952 | F79: 0 | G79: 1
A80: Rpl18a | B80: 0.00E+00 | C80: 0.36704507 | D80: 1 | E80: 0.984 | F80: 0 | G80: 1
A81: Rpl13a | B81: 0.00E+00 | C81: 0.36670805 | D81: 1 | E81: 0.971 | F81: 0 | G81: 1
A82: Rps3 | B82: 0.00E+00 | C82: 0.364657691 | D82: 1 | E82: 0.958 | F82: 0 | G82: 1
A83: Kif26b | B83: 0.00E+00 | C83: 0.35921631 | D83: 0.478 | E83: 0.166 | F83: 0 | G83: 1
A84: Rpl23 | B84: 0.00E+00 | C84: 0.35533155 | D84: 1 | E84: 0.969 | F84: 0 | G84: 1
A85: Hoxd12 | B85: 0.00E+00 | C85: 0.353437728 | D85: 0.384 | E85: 0.081 | F85: 0 | G85: 1
A86: Rps28 | B86: 0.00E+00 | C86: 0.349112785 | D86: 1 | E86: 0.93 | F86: 0 | G86: 1
A87: Rpl15 | B87: 0.00E+00 | C87: 0.348521249 | D87: 1 | E87: 0.922 | F87: 0 | G87: 1
A88: Rpl6 | B88: 0.00E+00 | C88: 0.346880803 | D88: 1 | E88: 0.953 | F88: 0 | G88: 1
A89: Wdr66 | B89: 0.00E+00 | C89: 0.344378737 | D89: 0.322 | E89: 0.051 | F89: 0 | G89: 1
A90: Rps20 | B90: 0.00E+00 | C90: 0.344265823 | D90: 1 | E90: 0.961 | F90: 0 | G90: 1
A91: mt-Co1 | B91: 0.00E+00 | C91: 0.344210829 | D91: 1 | E91: 0.976 | F91: 0 | G91: 1
A92: Rps27 | B92: 0.00E+00 | C92: 0.339941266 | D92: 1 | E92: 0.948 | F92: 0 | G92: 1
A93: Rpl32 | B93: 0.00E+00 | C93: 0.338560015 | D93: 1 | E93: 0.981 | F93: 0 | G93: 1
A94: Rps14 | B94: 0.00E+00 | C94: 0.33168142 | D94: 1 | E94: 0.987 | F94: 0 | G94: 1
A95: Rps7 | B95: 0.00E+00 | C95: 0.330017491 | D95: 1 | E95: 0.967 | F95: 0 | G95: 1
A96: Rpl7a | B96: 0.00E+00 | C96: 0.323383066 | D96: 1 | E96: 0.926 | F96: 0 | G96: 1
A97: Rps27a | B97: 0.00E+00 | C97: 0.321656864 | D97: 1 | E97: 0.969 | F97: 0 | G97: 1
A98: Naca | B98: 0.00E+00 | C98: 0.320407607 | D98: 1 | E98: 0.932 | F98: 0 | G98: 1
A99: H3f3a | B99: 0.00E+00 | C99: 0.317596555 | D99: 1 | E99: 0.974 | F99: 0 | G99: 1
A100: Rpl27a | B100: 0.00E+00 | C100: 0.316544537 | D100: 1 | E100: 0.963 | F100: 0 | G100: 1
A101: Rpl5 | B101: 0.00E+00 | C101: 0.314269066 | D101: 1 | E101: 0.915 | F101: 0 | G101: 1
A102: Rps15a | B102: 0.00E+00 | C102: 0.311681863 | D102: 1 | E102: 0.968 | F102: 0 | G102: 1
A103: Rpl10 | B103: 0.00E+00 | C103: 0.308802947 | D103: 1 | E103: 0.97 | F103: 0 | G103: 1
A104: Rpl12 | B104: 0.00E+00 | C104: 0.30785914 | D104: 1 | E104: 0.95 | F104: 0 | G104: 1
A105: Rpl18 | B105: 0.00E+00 | C105: 0.306981667 | D105: 1 | E105: 0.945 | F105: 0 | G105: 1
A106: Rps10 | B106: 0.00E+00 | C106: 0.30509421 | D106: 1 | E106: 0.943 | F106: 0 | G106: 1
A107: Rpl17 | B107: 0.00E+00 | C107: 0.304333048 | D107: 1 | E107: 0.973 | F107: 0 | G107: 1
A108: Rps23 | B108: 0.00E+00 | C108: 0.302423088 | D108: 1 | E108: 0.976 | F108: 0 | G108: 1
A109: Fau | B109: 0.00E+00 | C109: 0.300388611 | D109: 1 | E109: 0.947 | F109: 0 | G109: 1
A110: Rpsa | B110: 0.00E+00 | C110: 0.296421273 | D110: 1 | E110: 0.981 | F110: 0 | G110: 1
A111: Sobp | B111: 0.00E+00 | C111: 0.295822024 | D111: 0.347 | E111: 0.095 | F111: 0 | G111: 1
A112: Rps13 | B112: 0.00E+00 | C112: 0.294173903 | D112: 1 | E112: 0.953 | F112: 0 | G112: 1
A113: Rps3a1 | B113: 0.00E+00 | C113: 0.293190285 | D113: 1 | E113: 0.956 | F113: 0 | G113: 1
A114: Rpl37 | B114: 0.00E+00 | C114: 0.290024359 | D114: 1 | E114: 0.96 | F114: 0 | G114: 1
A115: Nell1 | B115: 0.00E+00 | C115: 0.288086302 | D115: 0.303 | E115: 0.057 | F115: 0 | G115: 1
A116: Rps6 | B116: 0.00E+00 | C116: 0.285965412 | D116: 1 | E116: 0.963 | F116: 0 | G116: 1
A117: Rpl39 | B117: 0.00E+00 | C117: 0.285162649 | D117: 1 | E117: 0.974 | F117: 0 | G117: 1
A118: Rpl36a | B118: 0.00E+00 | C118: 0.284555837 | D118: 1 | E118: 0.949 | F118: 0 | G118: 1
A119: Rpl14 | B119: 0.00E+00 | C119: 0.27907533 | D119: 1 | E119: 0.958 | F119: 0 | G119: 1
A120: Rplp2 | B120: 0.00E+00 | C120: 0.277171298 | D120: 1 | E120: 0.981 | F120: 0 | G120: 1
A121: Rps8 | B121: 0.00E+00 | C121: 0.272708671 | D121: 1 | E121: 0.974 | F121: 0 | G121: 1
A122: Traf1 | B122: 0.00E+00 | C122: 0.272362671 | D122: 0.27 | E122: 0.045 | F122: 0 | G122: 1
A123: Tpt1 | B123: 0.00E+00 | C123: 0.27012488 | D123: 1 | E123: 0.997 | F123: 0 | G123: 1
A124: Rpl37a | B124: 0.00E+00 | C124: 0.266184161 | D124: 1 | E124: 0.976 | F124: 0 | G124: 1
A125: Sgip1 | B125: 0.00E+00 | C125: 0.261500344 | D125: 0.28 | E125: 0.062 | F125: 0 | G125: 1
A126: Rbfox1 | B126: 0.00E+00 | C126: 0.256276363 | D126: 0.269 | E126: 0.053 | F126: 0 | G126: 1
A127: Rpl11 | B127: 0.00E+00 | C127: 0.254081363 | D127: 1 | E127: 0.963 | F127: 0 | G127: 1
A128: Spc24 | B128: 0.00E+00 | C128: -0.599250509 | D128: 0.119 | E128: 0.507 | F128: 0 | G128: 1
A129: Fn1 | B129: 0.00E+00 | C129: -0.71657722 | D129: 0.058 | E129: 0.486 | F129: 0 | G129: 1
A130: Sfrp1 | B130: 0.00E+00 | C130: -0.881209752 | D130: 0.061 | E130: 0.44 | F130: 0 | G130: 1
A131: S100a10 | B131: 0.00E+00 | C131: -0.997536278 | D131: 0.304 | E131: 0.652 | F131: 0 | G131: 1
A132: Ifitm3 | B132: 0.00E+00 | C132: -0.999708131 | D132: 0.133 | E132: 0.518 | F132: 0 | G132: 1
A133: Anxa2 | B133: 0.00E+00 | C133: -1.006614476 | D133: 0.152 | E133: 0.566 | F133: 0 | G133: 1
A134: Birc5 | B134: 0.00E+00 | C134: -1.049351903 | D134: 0.169 | E134: 0.578 | F134: 0 | G134: 1
A135: Igfbp7 | B135: 0.00E+00 | C135: -1.201717088 | D135: 0.114 | E135: 0.531 | F135: 0 | G135: 1
A136: Col3a1 | B136: 0.00E+00 | C136: -1.276048628 | D136: 0.076 | E136: 0.473 | F136: 0 | G136: 1
A137: Ptn | B137: 0.00E+00 | C137: -1.360974911 | D137: 0.468 | E137: 0.747 | F137: 0 | G137: 1
A138: Hmgb2 | B138: 0.00E+00 | C138: -1.374381007 | D138: 0.77 | E138: 0.828 | F138: 0 | G138: 1
A139: 2810417H13Rik | B139: 0.00E+00 | C139: -1.481534658 | D139: 0.259 | E139: 0.664 | F139: 0 | G139: 1
A140: Rps25 | B140: 6.42E-305 | C140: 0.273329041 | D140: 1 | E140: 0.93 | F140: 1.17e-300 | G140: 1
A141: Eno3 | B141: 1.81e-304 | C141: 0.334128653 | D141: 0.414 | E141: 0.14 | F141: 3.31E-300 | G141: 1
A142: Scx | B142: 1.65E-303 | C142: 0.355052938 | D142: 0.477 | E142: 0.18 | F142: 3.01E-299 | G142: 1
A143: Nr2f6 | B143: 4.72E-303 | C143: 0.426469325 | D143: 0.807 | E143: 0.509 | F143: 8.63E-299 | G143: 1
A144: Hes6 | B144: 2.04E-302 | C144: 0.414767589 | D144: 0.666 | E144: 0.355 | F144: 3.73E-298 | G144: 1
A145: Pcbp4 | B145: 4.79E-302 | C145: 0.437866651 | D145: 0.859 | E145: 0.581 | F145: 8.76e-298 | G145: 1
A146: Rps24 | B146: 5.08E-302 | C146: 0.261731134 | D146: 1 | E146: 0.966 | F146: 9.27E-298 | G146: 1
A147: Ube2c | B147: 6.32E-302 | C147: -1.112718695 | D147: 0.228 | E147: 0.568 | F147: 1.15e-297 | G147: 1
A148: Plac8 | B148: 8.18e-302 | C148: -0.891708924 | D148: 0.057 | E148: 0.425 | F148: 1.49e-297 | G148: 1
A149: Rps11 | B149: 1.15E-301 | C149: 0.255794976 | D149: 1 | E149: 0.957 | F149: 2.10E-297 | G149: 1
A150: Top2a | B150: 1.03e-300 | C150: -0.894714367 | D150: 0.102 | E150: 0.463 | F150: 1.89E-296 | G150: 1
A151: Cenpa | B151: 5.48E-299 | C151: -1.021436513 | D151: 0.156 | E151: 0.508 | F151: 1.00E-294 | G151: 1
A152: Sox4 | B152: 5.73E-299 | C152: 0.475448932 | D152: 0.954 | E152: 0.761 | F152: 1.05E-294 | G152: 1
A153: Serpinf1 | B153: 4.18E-294 | C153: 0.339732332 | D153: 0.49 | E153: 0.195 | F153: 7.63E-290 | G153: 1
A154: Tagln2 | B154: 1.97E-293 | C154: -0.625517574 | D154: 0.092 | E154: 0.459 | F154: 3.60E-289 | G154: 1
A155: Trp53i11 | B155: 7.92E-291 | C155: 0.350753919 | D155: 0.439 | E155: 0.163 | F155: 1.45E-286 | G155: 1
A156: Pgf | B156: 1.52E-289 | C156: 0.293447977 | D156: 0.282 | E156: 0.067 | F156: 2.79E-285 | G156: 1
A157: Capn6 | B157: 1.32e-288 | C157: 0.416161728 | D157: 0.535 | E157: 0.236 | F157: 2.41E-284 | G157: 1
A158: Dhx34 | B158: 1.46E-285 | C158: 0.307530058 | D158: 0.315 | E158: 0.087 | F158: 2.67E-281 | G158: 1
A159: Eif3k | B159: 5.03E-285 | C159: 0.342539384 | D159: 0.996 | E159: 0.91 | F159: 9.18E-281 | G159: 1
A160: Rps26 | B160: 1.16e-283 | C160: 0.268489719 | D160: 1 | E160: 0.961 | F160: 2.12E-279 | G160: 1
A161: Cdca8 | B161: 1.83E-282 | C161: -0.599382353 | D161: 0.088 | E161: 0.445 | F161: 3.34E-278 | G161: 1
A162: Fgfr1 | B162: 1.72e-281 | C162: 0.423967635 | D162: 0.812 | E162: 0.527 | F162: 3.14E-277 | G162: 1
A163: Hic1 | B163: 3.10E-281 | C163: -0.716798401 | D163: 0.051 | E163: 0.401 | F163: 5.66E-277 | G163: 1
A164: Nfib | B164: 5.64E-281 | C164: -0.576037468 | D164: 0.031 | E164: 0.381 | F164: 1.03E-276 | G164: 1
A165: Btg1 | B165: 2.85e-279 | C165: 0.427969251 | D165: 0.836 | E165: 0.554 | F165: 5.20E-275 | G165: 1
A166: Rps2 | B166: 4.07E-278 | C166: 0.264455061 | D166: 1 | E166: 0.995 | F166: 7.44E-274 | G166: 1
A167: Cct4 | B167: 3.21E-277 | C167: 0.397062972 | D167: 0.957 | E167: 0.781 | F167: 5.87E-273 | G167: 1
A168: Enho | B168: 2.05E-274 | C168: 0.332210451 | D168: 0.469 | E168: 0.187 | F168: 3.74E-270 | G168: 1
A169: Ebf1 | B169: 9.91E-273 | C169: -0.757008424 | D169: 0.027 | E169: 0.367 | F169: 1.81E-268 | G169: 1
A170: Ccna2 | B170: 5.81E-272 | C170: -0.489094593 | D170: 0.045 | E170: 0.393 | F170: 1.06E-267 | G170: 1
A171: Sncaip | B171: 9.15E-272 | C171: 0.300841805 | D171: 0.464 | E171: 0.18 | F171: 1.67E-267 | G171: 1
A172: Cdk1 | B172: 2.08E-271 | C172: -0.570095597 | D172: 0.096 | E172: 0.446 | F172: 3.80E-267 | G172: 1
A173: Rps12 | B173: 3.81E-271 | C173: 0.271658177 | D173: 1 | E173: 0.946 | F173: 6.96E-267 | G173: 1
A174: Sparc | B174: 3.42e-270 | C174: 0.295424336 | D174: 0.97 | E174: 0.743 | F174: 6.25E-266 | G174: 1
A175: Hoxc10 | B175: 1.97E-268 | C175: 0.406718162 | D175: 0.897 | E175: 0.597 | F175: 3.60E-264 | G175: 1
A176: Phgdh | B176: 2.86E-268 | C176: 0.44168444 | D176: 0.828 | E176: 0.545 | F176: 5.23E-264 | G176: 1
A177: Col1a2 | B177: 1.06E-267 | C177: -1.151225506 | D177: 0.126 | E177: 0.458 | F177: 1.94E-263 | G177: 1
A178: Pttg1 | B178: 2.40E-267 | C178: -0.609131849 | D178: 0.204 | E178: 0.548 | F178: 4.38E-263 | G178: 1
A179: Rpl22 | B179: 2.53e-265 | C179: 0.282923225 | D179: 1 | E179: 0.925 | F179: 4.62E-261 | G179: 1
A180: Phactr1 | B180: 1.03e-264 | C180: 0.334354019 | D180: 0.397 | E180: 0.141 | F180: 1.87E-260 | G180: 1
A181: Hsd11b2 | B181: 5.19E-264 | C181: 0.291442786 | D181: 0.347 | E181: 0.11 | F181: 9.48E-260 | G181: 1
A182: Bbx | B182: 1.54E-263 | C182: 0.436208693 | D182: 0.687 | E182: 0.412 | F182: 2.80E-259 | G182: 1
A183: Gapdh | B183: 6.12E-263 | C183: 0.344999186 | D183: 0.999 | E183: 0.932 | F183: 1.12e-258 | G183: 1
A184: Serpine2 | B184: 6.21E-263 | C184: -0.681629816 | D184: 0.074 | E184: 0.417 | F184: 1.13E-258 | G184: 1
A185: Mfap4 | B185: 1.23E-262 | C185: 0.324322347 | D185: 0.914 | E185: 0.591 | F185: 2.25e-258 | G185: 1
A186: Col1a1 | B186: 1.53e-260 | C186: -1.242374174 | D186: 0.183 | E186: 0.502 | F186: 2.79E-256 | G186: 1
A187: Cenpm | B187: 1.98e-260 | C187: -0.508227148 | D187: 0.173 | E187: 0.515 | F187: 3.62E-256 | G187: 1
A188: Hmgb1 | B188: 5.22E-260 | C188: -0.47061645 | D188: 0.997 | E188: 0.909 | F188: 9.53E-256 | G188: 1
A189: Cenpf | B189: 2.22E-258 | C189: -0.703288287 | D189: 0.051 | E189: 0.386 | F189: 4.05E-254 | G189: 1
A190: Myl6 | B190: 2.35E-257 | C190: -0.615013211 | D190: 0.911 | E190: 0.935 | F190: 4.30E-253 | G190: 1
A191: Btf3 | B191: 3.81E-256 | C191: 0.287610809 | D191: 1 | E191: 0.92 | F191: 6.96E-252 | G191: 1
A192: Smc2 | B192: 3.91E-256 | C192: -0.573179104 | D192: 0.216 | E192: 0.534 | F192: 7.13E-252 | G192: 1
A193: Mki67 | B193: 3.85E-255 | C193: -0.520979776 | D193: 0.055 | E193: 0.388 | F193: 7.04E-251 | G193: 1
A194: Fzd2 | B194: 1.02E-254 | C194: 0.402935352 | D194: 0.656 | E194: 0.37 | F194: 1.87e-250 | G194: 1
A195: Clmp | B195: 7.30E-254 | C195: 0.374474135 | D195: 0.73 | E195: 0.409 | F195: 1.33E-249 | G195: 1
A196: Rpl36 | B196: 7.14E-253 | C196: 0.264999476 | D196: 1 | E196: 0.951 | F196: 1.30E-248 | G196: 1
A197: Cdca3 | B197: 1.20E-252 | C197: -0.559218601 | D197: 0.11 | E197: 0.446 | F197: 2.19E-248 | G197: 1
A198: Plagl1 | B198: 4.49E-249 | C198: -0.588273956 | D198: 0.083 | E198: 0.412 | F198: 8.21E-245 | G198: 1
A199: Tshz2 | B199: 4.92E-249 | C199: 0.373087802 | D199: 0.918 | E199: 0.655 | F199: 8.98E-245 | G199: 1
A200: Rps21 | B200: 1.35E-246 | C200: 0.274682106 | D200: 1 | E200: 0.942 | F200: 2.47e-242 | G200: 1
... 329 more rows

Sheet 2
A1: Symbol | B1: p_val | C1: avg_logFC | D1: pct.1 | E1: pct.2 | F1: p_val_adj | G1: cluster
A2: Wnt4 | B2: 0.00E+00 | C2: 1.46643009 | D2: 0.814 | E2: 0.121 | F2: 0 | G2: 2
A3: Fam132a | B3: 0.00E+00 | C3: 1.379676064 | D3: 0.902 | E3: 0.395 | F3: 0 | G3: 2
A4: Wt1 | B4: 0.00E+00 | C4: 0.818798376 | D4: 0.924 | E4: 0.471 | F4: 0 | G4: 2
A5: Pax8 | B5: 0.00E+00 | C5: 0.704191195 | D5: 0.693 | E5: 0.259 | F5: 0 | G5: 2
A6: Pax2 | B6: 0.00E+00 | C6: 0.702856814 | D6: 0.837 | E6: 0.308 | F6: 0 | G6: 2
A7: H19 | B7: 0.00E+00 | C7: 0.702752399 | D7: 0.976 | E7: 0.836 | F7: 0 | G7: 2
A8: Pdgfa | B8: 0.00E+00 | C8: 0.645935081 | D8: 0.739 | E8: 0.223 | F8: 0 | G8: 2
A9: Cxxc5 | B9: 0.00E+00 | C9: 0.625115616 | D9: 0.888 | E9: 0.496 | F9: 0 | G9: 2
A10: Gxylt2 | B10: 0.00E+00 | C10: 0.619992273 | D10: 0.701 | E10: 0.186 | F10: 0 | G10: 2
A11: Uncx | B11: 0.00E+00 | C11: 0.596959588 | D11: 0.776 | E11: 0.315 | F11: 0 | G11: 2
A12: Cldn5 | B12: 0.00E+00 | C12: 0.588045773 | D12: 0.27 | E12: 0.043 | F12: 0 | G12: 2
A13: Bcam | B13: 0.00E+00 | C13: 0.576943458 | D13: 0.741 | E13: 0.247 | F13: 0 | G13: 2
A14: Tmem100 | B14: 0.00E+00 | C14: 0.557904845 | D14: 0.417 | E14: 0.059 | F14: 0 | G14: 2
A15: Npy | B15: 0.00E+00 | C15: 0.54642808 | D15: 0.395 | E15: 0.045 | F15: 0 | G15: 2
A16: Hey1 | B16: 0.00E+00 | C16: 0.44558426 | D16: 0.489 | E16: 0.106 | F16: 0 | G16: 2
A17: Osr2 | B17: 0.00E+00 | C17: 0.427744737 | D17: 0.294 | E17: 0.053 | F17: 0 | G17: 2
A18: Tenm4 | B18: 0.00E+00 | C18: 0.427245628 | D18: 0.598 | E18: 0.214 | F18: 0 | G18: 2
A19: Cdh4 | B19: 0.00E+00 | C19: 0.379554901 | D19: 0.484 | E19: 0.108 | F19: 0 | G19: 2
A20: Bmp4 | B20: 0.00E+00 | C20: 0.364909734 | D20: 0.45 | E20: 0.126 | F20: 0 | G20: 2
A21: A730017C20Rik | B21: 0.00E+00 | C21: 0.34771783 | D21: 0.487 | E21: 0.105 | F21: 0 | G21: 2
A22: Scube3 | B22: 0.00E+00 | C22: 0.320987453 | D22: 0.361 | E22: 0.059 | F22: 0 | G22: 2
A23: Fam107a | B23: 0.00E+00 | C23: 0.3108665 | D23: 0.355 | E23: 0.054 | F23: 0 | G23: 2
A24: Fam19a5 | B24: 0.00E+00 | C24: 0.304954402 | D24: 0.376 | E24: 0.072 | F24: 0 | G24: 2
A25: Bmper | B25: 0.00E+00 | C25: 0.281264535 | D25: 0.345 | E25: 0.074 | F25: 0 | G25: 2
A26: Rnase12 | B26: 0.00E+00 | C26: 0.275865576 | D26: 0.257 | E26: 0.027 | F26: 0 | G26: 2
A27: Sfrp2 | B27: 3.37E-301 | C27: 0.494803938 | D27: 0.557 | E27: 0.193 | F27: 6.15E-297 | G27: 2
A28: Col2a1 | B28: 3.29E-300 | C28: 0.329584823 | D28: 0.439 | E28: 0.124 | F28: 6.00E-296 | G28: 2
A29: 2010111I01Rik | B29: 9.40E-300 | C29: 0.392866418 | D29: 0.618 | E29: 0.241 | F29: 1.72E-295 | G29: 2
A30: Clec18a | B30: 2.99E-285 | C30: 0.285527528 | D30: 0.299 | E30: 0.059 | F30: 5.46E-281 | G30: 2
A31: Sox11 | B31: 2.12e-284 | C31: 0.596296017 | D31: 0.9 | E31: 0.573 | F31: 3.88e-280 | G31: 2
A32: Dach1 | B32: 3.93E-281 | C32: 0.288304335 | D32: 0.493 | E32: 0.157 | F32: 7.18E-277 | G32: 2
A33: Cited2 | B33: 2.80E-279 | C33: 0.539084451 | D33: 0.861 | E33: 0.482 | F33: 5.12E-275 | G33: 2
A34: Lgals1 | B34: 1.73E-272 | C34: -1.420440588 | D34: 0.673 | E34: 0.829 | F34: 3.16E-268 | G34: 2
A35: Col9a1 | B35: 1.47E-268 | C35: 0.271058289 | D35: 0.274 | E35: 0.054 | F35: 2.68E-264 | G35: 2
A36: Sncaip | B36: 2.62E-248 | C36: 0.316035706 | D36: 0.525 | E36: 0.187 | F36: 4.78E-244 | G36: 2
A37: Frzb | B37: 3.71E-248 | C37: 0.270816429 | D37: 0.314 | E37: 0.075 | F37: 6.78E-244 | G37: 2
A38: Csrp2 | B38: 6.18E-246 | C38: 0.622920251 | D38: 0.866 | E38: 0.539 | F38: 1.13e-241 | G38: 2
A39: Tsc22d1 | B39: 2.90E-241 | C39: 0.502009373 | D39: 0.995 | E39: 0.859 | F39: 5.29E-237 | G39: 2
A40: Rpl7 | B40: 1.69E-239 | C40: 0.319091592 | D40: 1 | E40: 0.973 | F40: 3.09e-235 | G40: 2
A41: Gm266 | B41: 8.80E-235 | C41: 0.47964135 | D41: 0.765 | E41: 0.377 | F41: 1.61E-230 | G41: 2
A42: Gja1 | B42: 4.93E-233 | C42: 0.382835872 | D42: 0.606 | E42: 0.265 | F42: 9.01E-229 | G42: 2
A43: Serf1 | B43: 2.48E-232 | C43: 0.414823538 | D43: 0.97 | E43: 0.77 | F43: 4.52e-228 | G43: 2
A44: Rps2 | B44: 1.01e-223 | C44: 0.267982826 | D44: 1 | E44: 0.995 | F44: 1.85e-219 | G44: 2
A45: Tmsb4x | B45: 4.29E-214 | C45: -1.371815537 | D45: 0.91 | E45: 0.913 | F45: 7.84E-210 | G45: 2
A46: Ncam1 | B46: 1.53e-213 | C46: 0.420908464 | D46: 0.772 | E46: 0.441 | F46: 2.79E-209 | G46: 2
A47: Mycn | B47: 2.74E-213 | C47: 0.388088915 | D47: 0.63 | E47: 0.293 | F47: 5.01E-209 | G47: 2
A48: Ier5 | B48: 2.98e-213 | C48: 0.363542979 | D48: 0.656 | E48: 0.308 | F48: 5.45E-209 | G48: 2
A49: Hs3st6 | B49: 4.27E-207 | C49: 0.316389276 | D49: 0.53 | E49: 0.208 | F49: 7.80E-203 | G49: 2
A50: Cox8a | B50: 3.49E-204 | C50: 0.297711178 | D50: 1 | E50: 0.957 | F50: 6.38E-200 | G50: 2
A51: Slit2 | B51: 2.72E-203 | C51: 0.359429294 | D51: 0.583 | E51: 0.262 | F51: 4.98E-199 | G51: 2
A52: Mest | B52: 5.02e-201 | C52: -0.905764593 | D52: 0.893 | E52: 0.859 | F52: 9.18e-197 | G52: 2
A53: St3gal6 | B53: 4.14e-199 | C53: 0.256976751 | D53: 0.487 | E53: 0.187 | F53: 7.57E-195 | G53: 2
A54: Pla2g12a | B54: 9.84E-198 | C54: 0.310941286 | D54: 0.672 | E54: 0.334 | F54: 1.80E-193 | G54: 2
A55: Emid1 | B55: 5.13e-197 | C55: 0.367327475 | D55: 0.545 | E55: 0.231 | F55: 9.37e-193 | G55: 2
A56: Col3a1 | B56: 6.85E-194 | C56: -0.929371355 | D56: 0.113 | E56: 0.451 | F56: 1.25E-189 | G56: 2
A57: Pcp4 | B57: 6.56e-192 | C57: 1.070670143 | D57: 0.379 | E57: 0.134 | F57: 1.20E-187 | G57: 2
A58: Nt5dc2 | B58: 7.96E-191 | C58: 0.385489477 | D58: 0.943 | E58: 0.713 | F58: 1.45E-186 | G58: 2
A59: Mrpl23 | B59: 4.22E-190 | C59: 0.348506657 | D59: 0.954 | E59: 0.691 | F59: 7.70E-186 | G59: 2
A60: Ltbp1 | B60: 5.37E-189 | C60: 0.281763671 | D60: 0.534 | E60: 0.227 | F60: 9.82E-185 | G60: 2
A61: Col1a1 | B61: 5.72E-189 | C61: -1.066478485 | D61: 0.167 | E61: 0.489 | F61: 1.04E-184 | G61: 2
A62: Hic1 | B62: 9.82E-188 | C62: -0.703193491 | D62: 0.057 | E62: 0.385 | F62: 1.79E-183 | G62: 2
A63: Ptma | B63: 1.85E-184 | C63: 0.359885993 | D63: 1 | E63: 0.959 | F63: 3.39E-180 | G63: 2
A64: Eva1a | B64: 2.94E-181 | C64: 0.309497834 | D64: 0.364 | E64: 0.127 | F64: 5.37E-177 | G64: 2
A65: Rspo1 | B65: 2.00E-180 | C65: 0.276684304 | D65: 0.689 | E65: 0.309 | F65: 3.65E-176 | G65: 2
A66: Plac8 | B66: 3.96E-179 | C66: -0.843856949 | D66: 0.089 | E66: 0.406 | F66: 7.23E-175 | G66: 2
A67: Hoxc9 | B67: 2.88E-178 | C67: 0.375073187 | D67: 0.772 | E67: 0.447 | F67: 5.26E-174 | G67: 2
A68: Ifitm3 | B68: 8.84E-176 | C68: -0.92190275 | D68: 0.201 | E68: 0.494 | F68: 1.61E-171 | G68: 2
A69: Id1 | B69: 1.20E-174 | C69: 0.429328943 | D69: 0.815 | E69: 0.504 | F69: 2.19e-170 | G69: 2
A70: Msi2 | B70: 4.18E-174 | C70: 0.30749144 | D70: 0.611 | E70: 0.309 | F70: 7.64E-170 | G70: 2
A71: Ebf1 | B71: 1.04E-173 | C71: -0.724150495 | D71: 0.039 | E71: 0.351 | F71: 1.90E-169 | G71: 2
A72: Atp5g2 | B72: 9.34e-170 | C72: 0.299054672 | D72: 1 | E72: 0.894 | F72: 1.71e-165 | G72: 2
A73: Ppp1r1a | B73: 3.21E-165 | C73: 0.252928114 | D73: 0.525 | E73: 0.226 | F73: 5.86e-161 | G73: 2
A74: Fabp5 | B74: 1.44E-164 | C74: 0.424174014 | D74: 0.876 | E74: 0.611 | F74: 2.63e-160 | G74: 2
A75: Anxa2 | B75: 2.80E-163 | C75: -0.766532574 | D75: 0.26 | E75: 0.536 | F75: 5.12E-159 | G75: 2
A76: Rplp0 | B76: 1.49E-161 | C76: 0.27081001 | D76: 1 | E76: 0.993 | F76: 2.72E-157 | G76: 2
A77: Eva1b | B77: 2.88E-161 | C77: -0.684121655 | D77: 0.562 | E77: 0.715 | F77: 5.26E-157 | G77: 2
A78: Col1a2 | B78: 7.01E-160 | C78: -1.006270375 | D78: 0.145 | E78: 0.441 | F78: 1.28E-155 | G78: 2
A79: Emilin1 | B79: 3.19E-159 | C79: -0.73667385 | D79: 0.167 | E79: 0.447 | F79: 5.83E-155 | G79: 2
A80: Bri3 | B80: 8.38e-157 | C80: 0.316825177 | D80: 0.978 | E80: 0.808 | F80: 1.53e-152 | G80: 2
A81: Pkig | B81: 3.39e-155 | C81: 0.32035611 | D81: 0.911 | E81: 0.671 | F81: 6.19E-151 | G81: 2
A82: Id3 | B82: 1.01e-154 | C82: 0.356398945 | D82: 0.982 | E82: 0.831 | F82: 1.85e-150 | G82: 2
A83: Rdh10 | B83: 4.14E-154 | C83: 0.318968241 | D83: 0.6 | E83: 0.302 | F83: 7.57E-150 | G83: 2
A84: S100a1 | B84: 6.13E-152 | C84: 0.311860121 | D84: 0.47 | E84: 0.21 | F84: 1.12e-147 | G84: 2
A85: Dut | B85: 1.06e-149 | C85: 0.376789554 | D85: 0.945 | E85: 0.751 | F85: 1.94E-145 | G85: 2
A86: Stmn1 | B86: 8.71E-149 | C86: 0.470415257 | D86: 0.976 | E86: 0.85 | F86: 1.59E-144 | G86: 2
A87: Emp3 | B87: 4.37E-147 | C87: -0.637593007 | D87: 0.348 | E87: 0.567 | F87: 7.98E-143 | G87: 2
A88: Cnn2 | B88: 2.09E-146 | C88: -0.762612084 | D88: 0.224 | E88: 0.485 | F88: 3.83e-142 | G88: 2
A89: Siva1 | B89: 1.15e-145 | C89: 0.371081436 | D89: 0.978 | E89: 0.832 | F89: 2.09e-141 | G89: 2
A90: Nfib | B90: 4.74E-141 | C90: -0.46331337 | D90: 0.081 | E90: 0.36 | F90: 8.67e-137 | G90: 2
A91: Fth1 | B91: 1.52E-137 | C91: -0.287958906 | D91: 1 | E91: 0.994 | F91: 2.77E-133 | G91: 2
A92: Fam60a | B92: 1.61E-135 | C92: 0.267032302 | D92: 0.663 | E92: 0.373 | F92: 2.94e-131 | G92: 2
A93: Hmgb3 | B93: 1.86e-135 | C93: 0.3437173 | D93: 0.954 | E93: 0.789 | F93: 3.40E-131 | G93: 2
A94: Arpc1b | B94: 5.26E-135 | C94: -0.738327552 | D94: 0.458 | E94: 0.62 | F94: 9.60E-131 | G94: 2
A95: Ecm1 | B95: 1.31E-134 | C95: -0.783865438 | D95: 0.082 | E95: 0.342 | F95: 2.40E-130 | G95: 2
A96: Apex1 | B96: 2.28E-134 | C96: 0.32145469 | D96: 0.919 | E96: 0.693 | F96: 4.16E-130 | G96: 2
A97: Tcf4 | B97: 1.19e-133 | C97: 0.31296437 | D97: 0.793 | E97: 0.52 | F97: 2.18e-129 | G97: 2
A98: Meg3 | B98: 1.02e-132 | C98: -0.999521913 | D98: 0.203 | E98: 0.469 | F98: 1.87e-128 | G98: 2
A99: Fam212a | B99: 1.72E-132 | C99: -0.398624931 | D99: 0.04 | E99: 0.297 | F99: 3.14E-128 | G99: 2
A100: Gas2 | B100: 8.50E-131 | C100: 0.277604375 | D100: 0.446 | E100: 0.204 | F100: 1.55E-126 | G100: 2
A101: Igf2 | B101: 2.36E-130 | C101: 0.347212151 | D101: 0.789 | E101: 0.527 | F101: 4.31E-126 | G101: 2
A102: Lhx1 | B102: 2.23E-128 | C102: 0.355919877 | D102: 0.264 | E102: 0.09 | F102: 4.08E-124 | G102: 2
A103: Hoxc10 | B103: 9.58E-128 | C103: 0.344343592 | D103: 0.872 | E103: 0.613 | F103: 1.75E-123 | G103: 2
A104: Hnrnpa1 | B104: 9.97E-124 | C104: 0.25068392 | D104: 0.999 | E104: 0.911 | F104: 1.82E-119 | G104: 2
A105: Id2 | B105: 9.35E-123 | C105: 0.326706844 | D105: 0.869 | E105: 0.609 | F105: 1.71E-118 | G105: 2
A106: Tspan13 | B106: 1.25e-122 | C106: 0.259021567 | D106: 0.582 | E106: 0.302 | F106: 2.29E-118 | G106: 2
A107: H2afz | B107: 1.64e-122 | C107: 0.351882444 | D107: 1 | E107: 0.94 | F107: 3.00E-118 | G107: 2
A108: Kdm2b | B108: 2.08e-122 | C108: 0.330157353 | D108: 0.61 | E108: 0.347 | F108: 3.81E-118 | G108: 2
A109: Eif3m | B109: 1.01E-120 | C109: 0.379466133 | D109: 0.975 | E109: 0.815 | F109: 1.85E-116 | G109: 2
A110: Smim4 | B110: 7.82E-120 | C110: 0.25826082 | D110: 0.636 | E110: 0.368 | F110: 1.43E-115 | G110: 2
A111: Map1b | B111: 5.25e-116 | C111: 0.251369885 | D111: 0.424 | E111: 0.194 | F111: 9.58E-112 | G111: 2
A112: Dhrs3 | B112: 7.64E-116 | C112: -0.457350018 | D112: 0.155 | E112: 0.398 | F112: 1.40E-111 | G112: 2
A113: Prdx6 | B113: 9.03E-116 | C113: 0.291300496 | D113: 0.962 | E113: 0.785 | F113: 1.65e-111 | G113: 2
A114: Lsp1 | B114: 1.62e-114 | C114: 0.433503629 | D114: 0.891 | E114: 0.645 | F114: 2.96E-110 | G114: 2
A115: Ifitm1 | B115: 5.75E-114 | C115: -0.5594341 | D115: 0.152 | E115: 0.39 | F115: 1.05e-109 | G115: 2
A116: Ppa1 | B116: 2.31e-113 | C116: 0.305813885 | D116: 0.795 | E116: 0.547 | F116: 4.21E-109 | G116: 2
A117: Slc40a1 | B117: 3.59E-113 | C117: -0.389563032 | D117: 0.031 | E117: 0.259 | F117: 6.55E-109 | G117: 2
A118: Nop10 | B118: 5.54E-113 | C118: 0.28301143 | D118: 0.982 | E118: 0.85 | F118: 1.01E-108 | G118: 2
A119: Timm8b | B119: 6.61E-113 | C119: 0.266859095 | D119: 0.955 | E119: 0.8 | F119: 1.21E-108 | G119: 2
A120: Tagln2 | B120: 4.21E-112 | C120: -0.45576219 | D120: 0.203 | E120: 0.43 | F120: 7.69E-108 | G120: 2
A121: Peg3 | B121: 1.74E-111 | C121: -0.50210141 | D121: 0.555 | E121: 0.691 | F121: 3.17E-107 | G121: 2
A122: Plagl1 | B122: 4.24E-111 | C122: -0.48222369 | D122: 0.154 | E122: 0.39 | F122: 7.75E-107 | G122: 2
A123: S100a6 | B123: 7.38E-111 | C123: -0.525038787 | D123: 0.109 | E123: 0.348 | F123: 1.35E-106 | G123: 2
A124: Clu | B124: 7.79E-110 | C124: 0.268607966 | D124: 0.299 | E124: 0.117 | F124: 1.42E-105 | G124: 2
A125: Myl9 | B125: 4.27E-109 | C125: -0.831809613 | D125: 0.222 | E125: 0.441 | F125: 7.80E-105 | G125: 2
A126: Ndufa12 | B126: 6.09E-109 | C126: 0.261989335 | D126: 0.981 | E126: 0.844 | F126: 1.11E-104 | G126: 2
A127: Ctxn1 | B127: 1.17e-108 | C127: 0.258266588 | D127: 0.851 | E127: 0.593 | F127: 2.14E-104 | G127: 2
A128: Myl6 | B128: 3.27E-108 | C128: -0.434456511 | D128: 0.951 | E128: 0.93 | F128: 5.98E-104 | G128: 2
A129: Slc25a3 | B129: 3.62E-108 | C129: 0.264999821 | D129: 0.992 | E129: 0.861 | F129: 6.62E-104 | G129: 2
A130: Lbh | B130: 1.32e-106 | C130: -0.438267268 | D130: 0.097 | E130: 0.322 | F130: 2.41E-102 | G130: 2
A131: Hoxc8 | B131: 1.56e-106 | C131: 0.298701441 | D131: 0.664 | E131: 0.401 | F131: 2.84E-102 | G131: 2
A132: Cfh | B132: 1.13e-104 | C132: -0.374266359 | D132: 0.03 | E132: 0.243 | F132: 2.06E-100 | G132: 2
A133: Vdac1 | B133: 1.38E-104 | C133: 0.269768964 | D133: 0.962 | E133: 0.788 | F133: 2.52E-100 | G133: 2
A134: Ldb2 | B134: 1.66E-104 | C134: -0.350528751 | D134: 0.037 | E134: 0.252 | F134: 3.04E-100 | G134: 2
A135: Ptov1 | B135: 1.81E-104 | C135: 0.265882659 | D135: 0.99 | E135: 0.856 | F135: 3.31E-100 | G135: 2
A136: Mafb | B136: 1.41E-103 | C136: 0.440860355 | D136: 0.222 | E136: 0.076 | F136: 2.58E-99 | G136: 2
A137: H2afy | B137: 2.23e-103 | C137: 0.260348087 | D137: 0.958 | E137: 0.791 | F137: 4.07E-99 | G137: 2
A138: Ccnd1 | B138: 3.02e-103 | C138: 0.824248041 | D138: 0.64 | E138: 0.448 | F138: 5.52E-99 | G138: 2
A139: Sfrp1 | B139: 3.25E-100 | C139: -0.725150265 | D139: 0.206 | E139: 0.408 | F139: 5.94E-96 | G139: 2
A140: Btg1 | B140: 9.50E-100 | C140: 0.263995223 | D140: 0.827 | E140: 0.567 | F140: 1.74E-95 | G140: 2
A141: Hoxd11 | B141: 2.48E-99 | C141: 0.255116634 | D141: 0.744 | E141: 0.478 | F141: 4.52E-95 | G141: 2
A142: Acaa2 | B142: 2.78E-99 | C142: 0.289345776 | D142: 0.786 | E142: 0.546 | F142: 5.07e-95 | G142: 2
A143: Eef2 | B143: 2.85E-99 | C143: 0.296539267 | D143: 1 | E143: 0.926 | F143: 5.21E-95 | G143: 2
A144: Pdgfra | B144: 9.58E-99 | C144: -0.327584596 | D144: 0.027 | E144: 0.231 | F144: 1.75e-94 | G144: 2
A145: Maged2 | B145: 6.56E-98 | C145: -0.784450559 | D145: 0.675 | E145: 0.714 | F145: 1.20E-93 | G145: 2
A146: Cald1 | B146: 1.14e-97 | C146: -0.682133917 | D146: 0.501 | E146: 0.604 | F146: 2.08e-93 | G146: 2
A147: Fhl2 | B147: 2.05e-97 | C147: -0.655148949 | D147: 0.201 | E147: 0.403 | F147: 3.75E-93 | G147: 2
A148: Aars | B148: 2.95E-97 | C148: 0.298220532 | D148: 0.768 | E148: 0.555 | F148: 5.38E-93 | G148: 2
A149: Olfml3 | B149: 1.10E-95 | C149: -0.436155626 | D149: 0.071 | E149: 0.279 | F149: 2.00E-91 | G149: 2
A150: Lhx1os | B150: 6.52E-93 | C150: 0.250382118 | D150: 0.28 | E150: 0.115 | F150: 1.19E-88 | G150: 2
A151: Selm | B151: 1.98E-91 | C151: -0.562472039 | D151: 0.387 | E151: 0.535 | F151: 3.62E-87 | G151: 2
A152: Blvrb | B152: 2.57e-91 | C152: -0.393655575 | D152: 0.273 | E152: 0.466 | F152: 4.70E-87 | G152: 2
A153: Mfap2 | B153: 1.12e-90 | C153: -0.528904346 | D153: 0.857 | E153: 0.817 | F153: 2.04E-86 | G153: 2
A154: Igfbp7 | B154: 4.04E-90 | C154: -0.494549185 | D154: 0.279 | E154: 0.494 | F154: 7.38E-86 | G154: 2
A155: S100a10 | B155: 1.77E-89 | C155: -0.641093721 | D155: 0.492 | E155: 0.617 | F155: 3.23E-85 | G155: 2
A156: Jund | B156: 9.74E-89 | C156: 0.2751024 | D156: 0.923 | E156: 0.762 | F156: 1.78E-84 | G156: 2
A157: Efnb1 | B157: 2.11e-88 | C157: 0.259811303 | D157: 0.682 | E157: 0.448 | F157: 3.85e-84 | G157: 2
A158: Cdkn1c | B158: 6.94E-88 | C158: -0.633438729 | D158: 0.731 | E158: 0.764 | F158: 1.27e-83 | G158: 2
A159: Mecom | B159: 1.14e-86 | C159: -0.34307029 | D159: 0.105 | E159: 0.306 | F159: 2.08E-82 | G159: 2
A160: Pdlim2 | B160: 1.20E-86 | C160: -0.512620808 | D160: 0.191 | E160: 0.382 | F160: 2.19e-82 | G160: 2
A161: Hist1h2ap | B161: 2.31E-86 | C161: 0.411382332 | D161: 0.664 | E161: 0.426 | F161: 4.21E-82 | G161: 2
A162: Nfia | B162: 8.15E-86 | C162: -0.365664235 | D162: 0.109 | E162: 0.307 | F162: 1.49e-81 | G162: 2
A163: Hba-a1 | B163: 3.25e-85 | C163: -3.567061289 | D163: 0.848 | E163: 0.911 | F163: 5.94E-81 | G163: 2
A164: Sepp1 | B164: 3.43e-84 | C164: -0.530369547 | D164: 0.333 | E164: 0.499 | F164: 6.26E-80 | G164: 2
A165: Vim | B165: 2.33E-81 | C165: -0.491007488 | D165: 0.445 | E165: 0.605 | F165: 4.26E-77 | G165: 2
A166: Dctpp1 | B166: 3.42E-81 | C166: 0.250820133 | D166: 0.921 | E166: 0.751 | F166: 6.24E-77 | G166: 2
A167: Nrp1 | B167: 1.36E-80 | C167: -0.367471424 | D167: 0.343 | E167: 0.517 | F167: 2.48E-76 | G167: 2
A168: Ifitm2 | B168: 1.62e-80 | C168: -0.370083332 | D168: 0.977 | E168: 0.89 | F168: 2.96e-76 | G168: 2
A169: Hbb-bs | B169: 1.56e-78 | C169: -3.327645298 | D169: 0.906 | E169: 0.945 | F169: 2.86E-74 | G169: 2
A170: C1qtnf2 | B170: 2.75E-78 | C170: -0.333315851 | D170: 0.025 | E170: 0.194 | F170: 5.03E-74 | G170: 2
A171: Anxa6 | B171: 3.66E-78 | C171: -0.329373281 | D171: 0.198 | E171: 0.381 | F171: 6.68E-74 | G171: 2
A172: Pid1 | B172: 4.59E-78 | C172: -0.330862084 | D172: 0.046 | E172: 0.222 | F172: 8.39E-74 | G172: 2
A173: Chd3 | B173: 7.15E-74 | C173: -0.366740061 | D173: 0.562 | E173: 0.645 | F173: 1.31e-69 | G173: 2
A174: Tpm2 | B174: 5.36E-73 | C174: -0.49798384 | D174: 0.45 | E174: 0.554 | F174: 9.80E-69 | G174: 2
A175: Meis1 | B175: 7.37E-73 | C175: -0.476361294 | D175: 0.285 | E175: 0.428 | F175: 1.35E-68 | G175: 2
A176: Penk | B176: 3.33e-72 | C176: -0.591913342 | D176: 0.041 | E176: 0.204 | F176: 6.09E-68 | G176: 2
A177: Cdc42ep3 | B177: 7.41e-72 | C177: -0.353580618 | D177: 0.111 | E177: 0.292 | F177: 1.35E-67 | G177: 2
A178: Shisa3 | B178: 8.23E-72 | C178: -0.44712027 | D178: 0.359 | E178: 0.494 | F178: 1.50E-67 | G178: 2
A179: Hsp90aa1 | B179: 3.40E-71 | C179: 0.250388145 | D179: 0.968 | E179: 0.82 | F179: 6.22E-67 | G179: 2
A180: Fibin | B180: 7.24E-71 | C180: -0.388930948 | D180: 0.061 | E180: 0.228 | F180: 1.32E-66 | G180: 2
A181: Tpm4 | B181: 1.26E-70 | C181: -0.437584792 | D181: 0.783 | E181: 0.78 | F181: 2.30E-66 | G181: 2
A182: Ranbp1 | B182: 5.07E-70 | C182: 0.250559107 | D182: 0.991 | E182: 0.879 | F182: 9.26e-66 | G182: 2
A183: Serpine2 | B183: 2.03e-69 | C183: -0.543928763 | D183: 0.231 | E183: 0.385 | F183: 3.70E-65 | G183: 2
A184: Mfap4 | B184: 4.79E-68 | C184: -0.504179644 | D184: 0.585 | E184: 0.64 | F184: 8.76E-64 | G184: 2
A185: Cryab | B185: 1.13e-67 | C185: 0.274242902 | D185: 0.114 | E185: 0.032 | F185: 2.06E-63 | G185: 2
A186: Gng11 | B186: 3.41E-67 | C186: -0.398045914 | D186: 0.123 | E186: 0.291 | F186: 6.22E-63 | G186: 2
A187: Foxc2 | B187: 7.57E-67 | C187: 0.268862158 | D187: 0.53 | E187: 0.338 | F187: 1.38e-62 | G187: 2
A188: Tnnt1 | B188: 1.69E-66 | C188: -0.254097698 | D188: 0.043 | E188: 0.198 | F188: 3.08E-62 | G188: 2
A189: 6030408B16Rik | B189: 1.03E-63 | C189: -0.269896607 | D189: 0.11 | E189: 0.271 | F189: 1.88e-59 | G189: 2
A190: Cygb | B190: 1.10E-63 | C190: -0.348603359 | D190: 0.036 | E190: 0.183 | F190: 2.00E-59 | G190: 2
A191: Mgp | B191: 2.75E-63 | C191: -0.52336153 | D191: 0.503 | E191: 0.267 | F191: 5.02E-59 | G191: 2
A192: Emp1 | B192: 9.30E-62 | C192: -0.279876581 | D192: 0.075 | E192: 0.228 | F192: 1.70E-57 | G192: 2
A193: Fbln5 | B193: 1.44E-60 | C193: -0.376145215 | D193: 0.041 | E193: 0.186 | F193: 2.63E-56 | G193: 2
A194: Uqcc2 | B194: 1.09E-58 | C194: -0.309980851 | D194: 0.767 | E194: 0.776 | F194: 2.00E-54 | G194: 2
A195: Rarres2 | B195: 1.30E-58 | C195: -0.269140272 | D195: 0.122 | E195: 0.282 | F195: 2.38e-54 | G195: 2
A196: Tpi1 | B196: 2.21e-58 | C196: -0.292354137 | D196: 0.911 | E196: 0.834 | F196: 4.04E-54 | G196: 2
A197: Hbb-bt | B197: 2.90E-58 | C197: -3.525500336 | D197: 0.677 | E197: 0.741 | F197: 5.31E-54 | G197: 2
A198: Tubb6 | B198: 3.18E-58 | C198: -0.359137078 | D198: 0.132 | E198: 0.285 | F198: 5.81E-54 | G198: 2
A199: Etl4 | B199: 3.44E-56 | C199: -0.250915066 | D199: 0.178 | E199: 0.329 | F199: 6.28E-52 | G199: 2
A200: Fn1 | B200: 1.02e-55 | C200: -0.405338892 | D200: 0.314 | E200: 0.44 | F200: 1.87e-51 | G200: 2
... 122 more rows

Sheet 3
A1: Symbol | B1: p_val | C1: avg_logFC | D1: pct.1 | E1: pct.2 | F1: p_val_adj | G1: cluster | H1: gene
A2: Tspan13 | B2: 2.30E-112 | C2: -0.335761921 | D2: 0.071 | E2: 0.352 | F2: 4.20E-108 | G2: 3
A3: Calml4 | B3: 2.52E-112 | C3: 0.31826204 | D3: 0.348 | E3: 0.15 | F3: 4.60E-108 | G3: 3
A4: Mrpl23 | B4: 7.49E-112 | C4: -0.396010608 | D4: 0.498 | E4: 0.736 | F4: 1.37e-107 | G4: 3
A5: Tsc22d1 | B5: 1.61E-111 | C5: -0.743787076 | D5: 0.861 | E5: 0.874 | F5: 2.94E-107 | G5: 3
A6: Espn | B6: 2.57E-111 | C6: -0.298365585 | D6: 0.015 | E6: 0.268 | F6: 4.70E-107 | G6: 3
A7: Nfib | B7: 2.75E-111 | C7: 0.359951263 | D7: 0.557 | E7: 0.313 | F7: 5.03E-107 | G7: 3
A8: Postn | B8: 8.01E-111 | C8: 0.308659895 | D8: 0.241 | E8: 0.078 | F8: 1.46E-106 | G8: 3
A9: S100a10 | B9: 1.30E-110 | C9: 0.28948582 | D9: 0.801 | E9: 0.587 | F9: 2.38e-106 | G9: 3
A10: Aurkb | B10: 1.52E-110 | C10: -0.331550484 | D10: 0.028 | E10: 0.285 | F10: 2.77E-106 | G10: 3
A11: Eya1 | B11: 2.39e-110 | C11: -0.355746026 | D11: 0.023 | E11: 0.278 | F11: 4.36E-106 | G11: 3
A12: Tgfbi | B12: 4.44E-110 | C12: 0.350505167 | D12: 0.711 | E12: 0.491 | F12: 8.12E-106 | G12: 3
A13: Cd83 | B13: 1.02E-108 | C13: 0.343573983 | D13: 0.416 | E13: 0.21 | F13: 1.86E-104 | G13: 3
A14: Ghr | B14: 1.29E-108 | C14: 0.386112408 | D14: 0.469 | E14: 0.273 | F14: 2.35e-104 | G14: 3
A15: Ptms | B15: 1.34e-108 | C15: 0.309967319 | D15: 0.943 | E15: 0.845 | F15: 2.44E-104 | G15: 3
A16: sept15 | B16: 1.30E-107 | C16: 0.305741976 | D16: 0.972 | E16: 0.877 | F16: 2.38E-103 | G16: 3
A17: Cnrip1 | B17: 2.23e-107 | C17: 0.316042949 | D17: 0.452 | E17: 0.241 | F17: 4.07E-103 | G17: 3
A18: Fcgrt | B18: 2.65e-107 | C18: 0.355885276 | D18: 0.536 | E18: 0.335 | F18: 4.84E-103 | G18: 3
A19: Lpar1 | B19: 6.99E-107 | C19: 0.322470899 | D19: 0.38 | E19: 0.182 | F19: 1.28E-102 | G19: 3
A20: Cst3 | B20: 8.15E-107 | C20: 0.282670725 | D20: 0.897 | E20: 0.803 | F20: 1.49e-102 | G20: 3
A21: Mad2l1 | B21: 1.17e-106 | C21: -0.263816422 | D21: 0.057 | E21: 0.33 | F21: 2.13E-102 | G21: 3
A22: Racgap1 | B22: 1.82e-106 | C22: -0.309592407 | D22: 0.039 | E22: 0.296 | F22: 3.33E-102 | G22: 3
A23: Chchd10 | B23: 1.12e-105 | C23: -0.411704762 | D23: 0.088 | E23: 0.361 | F23: 2.05E-101 | G23: 3
A24: Adgrl2 | B24: 1.16e-105 | C24: 0.404798321 | D24: 0.523 | E24: 0.345 | F24: 2.12E-101 | G24: 3
A25: Aldh2 | B25: 2.16E-105 | C25: 0.373284783 | D25: 0.686 | E25: 0.548 | F25: 3.95E-101 | G25: 3
A26: Fam64a | B26: 4.97E-105 | C26: -0.378284455 | D26: 0.034 | E26: 0.285 | F26: 9.08E-101 | G26: 3
A27: Uhrf1 | B27: 6.55e-104 | C27: -0.300747777 | D27: 0.095 | E27: 0.374 | F27: 1.20E-99 | G27: 3
A28: Acta2 | B28: 1.88e-103 | C28: 0.588170451 | D28: 0.38 | E28: 0.18 | F28: 3.43E-99 | G28: 3
A29: Rgl1 | B29: 2.22e-103 | C29: 0.280437861 | D29: 0.324 | E29: 0.142 | F29: 4.06E-99 | G29: 3
A30: Hs3st6 | B30: 1.53e-102 | C30: -0.321842594 | D30: 0.019 | E30: 0.258 | F30: 2.80E-98 | G30: 3
A31: Gpc6 | B31: 4.91E-102 | C31: 0.400611995 | D31: 0.708 | E31: 0.546 | F31: 8.96E-98 | G31: 3
A32: Pcbd1 | B32: 5.08E-102 | C32: -0.364151778 | D32: 0.067 | E32: 0.327 | F32: 9.29E-98 | G32: 3
A33: Laptm4a | B33: 2.39E-101 | C33: 0.328904761 | D33: 0.897 | E33: 0.797 | F33: 4.36E-97 | G33: 3
A34: Ranbp1 | B34: 2.49E-101 | C34: -0.429576927 | D34: 0.908 | E34: 0.888 | F34: 4.56E-97 | G34: 3
A35: Cenpm | B35: 3.01E-101 | C35: -0.378946524 | D35: 0.202 | E35: 0.492 | F35: 5.50E-97 | G35: 3
A36: Eif3e | B36: 3.63E-101 | C36: 0.294354397 | D36: 0.975 | E36: 0.87 | F36: 6.64E-97 | G36: 3
A37: Nucks1 | B37: 5.64E-100 | C37: -0.439414955 | D37: 0.612 | E37: 0.768 | F37: 1.03E-95 | G37: 3
A38: Six2 | B38: 1.14E-99 | C38: -0.328343155 | D38: 0.021 | E38: 0.256 | F38: 2.08E-95 | G38: 3
A39: Vstm2b | B39: 2.44e-99 | C39: 0.277107471 | D39: 0.259 | E39: 0.099 | F39: 4.45e-95 | G39: 3
A40: Dctpp1 | B40: 2.88E-99 | C40: -0.398489902 | D40: 0.608 | E40: 0.781 | F40: 5.26E-95 | G40: 3
A41: Emid1 | B41: 7.17e-99 | C41: -0.377069611 | D41: 0.039 | E41: 0.281 | F41: 1.31E-94 | G41: 3
A42: Lig1 | B42: 1.33e-98 | C42: -0.419370043 | D42: 0.2 | E42: 0.482 | F42: 2.42E-94 | G42: 3
A43: Cnpy2 | B43: 7.57E-98 | C43: 0.312138134 | D43: 0.902 | E43: 0.808 | F43: 1.38E-93 | G43: 3
A44: Shisa2 | B44: 8.71E-98 | C44: -0.314371208 | D44: 0.035 | E44: 0.277 | F44: 1.59E-93 | G44: 3
A45: Dut | B45: 9.81E-98 | C45: -0.45326576 | D45: 0.649 | E45: 0.78 | F45: 1.79e-93 | G45: 3
A46: H2afy | B46: 1.20E-97 | C46: -0.352415694 | D46: 0.684 | E46: 0.818 | F46: 2.19E-93 | G46: 3
A47: Arf5 | B47: 3.06e-97 | C47: 0.272355545 | D47: 0.963 | E47: 0.924 | F47: 5.59E-93 | G47: 3
A48: Ppib | B48: 7.82E-97 | C48: 0.295140938 | D48: 0.96 | E48: 0.87 | F48: 1.43e-92 | G48: 3
A49: 2700094K13Rik | B49: 2.50E-96 | C49: -0.423546316 | D49: 0.833 | E49: 0.86 | F49: 4.56E-92 | G49: 3
A50: Rrm2 | B50: 2.60E-96 | C50: -0.40883747 | D50: 0.11 | E50: 0.369 | F50: 4.75E-92 | G50: 3
A51: Prc1 | B51: 2.62E-96 | C51: -0.320075425 | D51: 0.024 | E51: 0.254 | F51: 4.78E-92 | G51: 3
A52: Atxn7l3b | B52: 5.73e-96 | C52: 0.289993496 | D52: 0.952 | E52: 0.86 | F52: 1.05e-91 | G52: 3
A53: Itga9 | B53: 1.47e-95 | C53: 0.325273272 | D53: 0.417 | E53: 0.226 | F53: 2.69E-91 | G53: 3
A54: Spint2 | B54: 1.58E-95 | C54: -0.502341741 | D54: 0.051 | E54: 0.291 | F54: 2.88E-91 | G54: 3
A55: Pdgfa | B55: 1.34e-93 | C55: -0.325065546 | D55: 0.053 | E55: 0.292 | F55: 2.44e-89 | G55: 3
A56: Wfdc2 | B56: 2.02E-93 | C56: -0.803454318 | D56: 0.073 | E56: 0.313 | F56: 3.69E-89 | G56: 3
A57: Pkig | B57: 2.93E-93 | C57: -0.355765965 | D57: 0.472 | E57: 0.714 | F57: 5.36E-89 | G57: 3
A58: Tacc3 | B58: 3.33E-93 | C58: -0.26995778 | D58: 0.049 | E58: 0.287 | F58: 6.08E-89 | G58: 3
A59: Lockd | B59: 3.55e-93 | C59: -0.348923466 | D59: 0.093 | E59: 0.349 | F59: 6.48E-89 | G59: 3
A60: Mis18bp1 | B60: 4.46E-93 | C60: -0.254221783 | D60: 0.02 | E60: 0.244 | F60: 8.14E-89 | G60: 3
A61: Anxa6 | B61: 5.19E-93 | C61: 0.325971864 | D61: 0.54 | E61: 0.348 | F61: 9.48E-89 | G61: 3
A62: Ezh2 | B62: 1.43e-92 | C62: -0.314409244 | D62: 0.274 | E62: 0.561 | F62: 2.61E-88 | G62: 3
A63: Spock2 | B63: 3.68E-92 | C63: -0.305686086 | D63: 0.049 | E63: 0.287 | F63: 6.73E-88 | G63: 3
A64: Lsp1 | B64: 8.43E-92 | C64: 0.29459673 | D64: 0.868 | E64: 0.651 | F64: 1.54e-87 | G64: 3
A65: P3h3 | B65: 8.60E-92 | C65: 0.323329657 | D65: 0.461 | E65: 0.273 | F65: 1.57e-87 | G65: 3
A66: Kif22 | B66: 8.71E-92 | C66: -0.266345039 | D66: 0.037 | E66: 0.267 | F66: 1.59E-87 | G66: 3
A67: Bmp7 | B67: 1.06E-91 | C67: -0.269217987 | D67: 0.05 | E67: 0.288 | F67: 1.94E-87 | G67: 3
A68: Cited1 | B68: 4.68E-91 | C68: -0.66895218 | D68: 0.048 | E68: 0.278 | F68: 8.54e-87 | G68: 3
A69: Ybx1 | B69: 7.54E-91 | C69: -0.255590955 | D69: 0.994 | E69: 0.914 | F69: 1.38E-86 | G69: 3
A70: Cdk1 | B70: 8.89E-91 | C70: -0.418351387 | D70: 0.163 | E70: 0.42 | F70: 1.62E-86 | G70: 3
A71: Ly6h | B71: 2.22E-90 | C71: 0.280950052 | D71: 0.291 | E71: 0.123 | F71: 4.06E-86 | G71: 3
A72: Tyms | B72: 1.20E-89 | C72: -0.405668452 | D72: 0.281 | E72: 0.544 | F72: 2.20E-85 | G72: 3
A73: Ubald2 | B73: 2.51E-89 | C73: -0.341999463 | D73: 0.367 | E73: 0.636 | F73: 4.59E-85 | G73: 3
A74: Dnajc9 | B74: 3.45E-87 | C74: -0.325572726 | D74: 0.317 | E74: 0.589 | F74: 6.29E-83 | G74: 3
A75: C1qtnf4 | B75: 6.13E-87 | C75: 0.333783454 | D75: 0.434 | E75: 0.264 | F75: 1.12e-82 | G75: 3
A76: Timp3 | B76: 9.33E-87 | C76: 0.332624342 | D76: 0.428 | E76: 0.231 | F76: 1.71e-82 | G76: 3
A77: Slit2 | B77: 1.83e-86 | C77: -0.275804669 | D77: 0.073 | E77: 0.313 | F77: 3.34E-82 | G77: 3
A78: Ppp1r1a | B78: 4.95E-86 | C78: -0.295348917 | D78: 0.048 | E78: 0.273 | F78: 9.05E-82 | G78: 3
A79: Cenpe | B79: 5.99E-86 | C79: -0.328936895 | D79: 0.084 | E79: 0.322 | F79: 1.09e-81 | G79: 3
A80: Cadm1 | B80: 2.28E-85 | C80: 0.366053188 | D80: 0.49 | E80: 0.326 | F80: 4.17e-81 | G80: 3
A81: Lyar | B81: 3.33E-85 | C81: -0.325861848 | D81: 0.453 | E81: 0.696 | F81: 6.08E-81 | G81: 3
A82: Aurka | B82: 8.57E-85 | C82: -0.267801916 | D82: 0.024 | E82: 0.234 | F82: 1.57e-80 | G82: 3
A83: Nasp | B83: 1.18e-84 | C83: -0.357253567 | D83: 0.395 | E83: 0.647 | F83: 2.16E-80 | G83: 3
A84: Fbxo5 | B84: 1.85e-84 | C84: -0.250442995 | D84: 0.051 | E84: 0.276 | F84: 3.38E-80 | G84: 3
A85: Rsu1 | B85: 2.01E-83 | C85: 0.3314432 | D85: 0.605 | E85: 0.459 | F85: 3.67E-79 | G85: 3
A86: Des | B86: 2.83E-83 | C86: -0.312764742 | D86: 0.056 | E86: 0.278 | F86: 5.16E-79 | G86: 3
A87: Uba7 | B87: 4.50E-83 | C87: 0.274101117 | D87: 0.312 | E87: 0.15 | F87: 8.21E-79 | G87: 3
A88: Tpbg | B88: 6.68E-83 | C88: -0.25821615 | D88: 0.066 | E88: 0.297 | F88: 1.22E-78 | G88: 3
A89: A230065H16Rik | B89: 7.10E-83 | C89: 0.254647955 | D89: 0.229 | E89: 0.088 | F89: 1.30E-78 | G89: 3
A90: Sfr1 | B90: 1.01E-82 | C90: 0.348971954 | D90: 0.898 | E90: 0.834 | F90: 1.84E-78 | G90: 3
A91: Ppdpf | B91: 5.06e-82 | C91: 0.287803614 | D91: 0.929 | E91: 0.842 | F91: 9.24E-78 | G91: 3
A92: Ubc | B92: 1.14e-81 | C92: 0.325838468 | D92: 0.863 | E92: 0.774 | F92: 2.08E-77 | G92: 3
A93: Lsm2 | B93: 2.32E-81 | C93: -0.385951435 | D93: 0.606 | E93: 0.756 | F93: 4.24E-77 | G93: 3
A94: Rad21 | B94: 3.48e-81 | C94: -0.267323002 | D94: 0.193 | E94: 0.464 | F94: 6.35E-77 | G94: 3
A95: Tpd52l1 | B95: 5.05e-81 | C95: 0.312399291 | D95: 0.402 | E95: 0.232 | F95: 9.22E-77 | G95: 3
A96: Ndufa6 | B96: 6.03E-81 | C96: 0.286471501 | D96: 0.947 | E96: 0.866 | F96: 1.10E-76 | G96: 3
A97: Nr2f2 | B97: 8.37E-81 | C97: 0.286560183 | D97: 0.902 | E97: 0.754 | F97: 1.53e-76 | G97: 3
A98: Hsp90aa1 | B98: 1.55E-80 | C98: -0.368501749 | D98: 0.762 | E98: 0.841 | F98: 2.82E-76 | G98: 3
A99: Tubb4b | B99: 1.68E-80 | C99: -0.481890908 | D99: 0.353 | E99: 0.6 | F99: 3.08E-76 | G99: 3
A100: Hoxb5os | B100: 1.78e-80 | C100: -0.254984533 | D100: 0.054 | E100: 0.274 | F100: 3.25E-76 | G100: 3
A101: Efemp2 | B101: 1.42E-79 | C101: 0.296622157 | D101: 0.626 | E101: 0.485 | F101: 2.59e-75 | G101: 3
A102: Ndufa13 | B102: 1.83E-79 | C102: 0.262071201 | D102: 0.961 | E102: 0.896 | F102: 3.34E-75 | G102: 3
A103: Igf2 | B103: 2.16E-79 | C103: 0.347049414 | D103: 0.677 | E103: 0.541 | F103: 3.94E-75 | G103: 3
A104: Ivns1abp | B104: 3.34E-79 | C104: -0.282148658 | D104: 0.241 | E104: 0.513 | F104: 6.10E-75 | G104: 3
A105: Ube2s | B105: 4.90E-79 | C105: -0.488712954 | D105: 0.844 | E105: 0.892 | F105: 8.95E-75 | G105: 3
A106: Ptprd | B106: 3.11E-78 | C106: 0.309743244 | D106: 0.476 | E106: 0.311 | F106: 5.69E-74 | G106: 3
A107: Cpa2 | B107: 3.89E-78 | C107: 0.33019073 | D107: 0.296 | E107: 0.14 | F107: 7.11E-74 | G107: 3
A108: Ntm | B108: 5.67E-78 | C108: 0.272829249 | D108: 0.291 | E108: 0.135 | F108: 1.04e-73 | G108: 3
A109: Crip1 | B109: 1.11E-77 | C109: -0.412444373 | D109: 0.145 | E109: 0.392 | F109: 2.02E-73 | G109: 3
A110: Dhfr | B110: 1.35e-77 | C110: -0.257328724 | D110: 0.132 | E110: 0.377 | F110: 2.46e-73 | G110: 3
A111: Arpc5 | B111: 2.17E-77 | C111: 0.284483274 | D111: 0.759 | E111: 0.671 | F111: 3.97E-73 | G111: 3
A112: Rbms1 | B112: 2.76E-77 | C112: 0.304833497 | D112: 0.636 | E112: 0.499 | F112: 5.03E-73 | G112: 3
A113: Btg2 | B113: 6.08E-77 | C113: 0.279629278 | D113: 0.318 | E113: 0.162 | F113: 1.11e-72 | G113: 3
A114: Bcl2 | B114: 1.23e-76 | C114: -0.318482701 | D114: 0.208 | E114: 0.461 | F114: 2.24E-72 | G114: 3
A115: Parva | B115: 1.84e-76 | C115: 0.322475241 | D115: 0.512 | E115: 0.365 | F115: 3.37e-72 | G115: 3
A116: Mdfi | B116: 2.74e-76 | C116: 0.277130673 | D116: 0.437 | E116: 0.263 | F116: 5.01E-72 | G116: 3
A117: Arl6ip1 | B117: 4.43E-76 | C117: -0.531050899 | D117: 0.376 | E117: 0.605 | F117: 8.08E-72 | G117: 3
A118: Tuba1b | B118: 5.52E-76 | C118: -0.463493918 | D118: 0.943 | E118: 0.911 | F118: 1.01e-71 | G118: 3
A119: Dek | B119: 6.67E-76 | C119: -0.395912637 | D119: 0.662 | E119: 0.773 | F119: 1.22e-71 | G119: 3
A120: Ramp2 | B120: 2.95e-75 | C120: -0.391907276 | D120: 0.333 | E120: 0.58 | F120: 5.39e-71 | G120: 3
A121: Cks1b | B121: 4.55E-75 | C121: -0.459470468 | D121: 0.744 | E121: 0.809 | F121: 8.31E-71 | G121: 3
A122: Phgdh | B122: 6.63E-75 | C122: -0.375744082 | D122: 0.365 | E122: 0.603 | F122: 1.21e-70 | G122: 3
A123: Gstm2 | B123: 1.05e-74 | C123: 0.287481499 | D123: 0.388 | E123: 0.224 | F123: 1.91e-70 | G123: 3
A124: Lsm3 | B124: 2.02E-73 | C124: -0.320719793 | D124: 0.616 | E124: 0.766 | F124: 3.69E-69 | G124: 3
A125: Hmcn1 | B125: 2.45E-73 | C125: 0.308020422 | D125: 0.596 | E125: 0.437 | F125: 4.47e-69 | G125: 3
A126: Arhgef25 | B126: 4.07E-72 | C126: 0.269806999 | D126: 0.361 | E126: 0.202 | F126: 7.43E-68 | G126: 3
A127: Il11ra1 | B127: 5.97E-72 | C127: 0.339421147 | D127: 0.445 | E127: 0.292 | F127: 1.09E-67 | G127: 3
A128: Ctsz | B128: 2.57E-71 | C128: 0.289134284 | D128: 0.537 | E128: 0.399 | F128: 4.70E-67 | G128: 3
A129: Rarb | B129: 2.81E-71 | C129: 0.266707987 | D129: 0.337 | E129: 0.184 | F129: 5.13E-67 | G129: 3
A130: Cdc42ep5 | B130: 3.98E-71 | C130: 0.268793539 | D130: 0.38 | E130: 0.218 | F130: 7.28E-67 | G130: 3
A131: Mgp | B131: 5.41E-71 | C131: 0.72231044 | D131: 0.433 | E131: 0.277 | F131: 9.88E-67 | G131: 3
A132: Cope | B132: 1.35E-70 | C132: 0.295877317 | D132: 0.787 | E132: 0.729 | F132: 2.46E-66 | G132: 3
A133: Nudt4 | B133: 1.97e-70 | C133: -0.269909099 | D133: 0.271 | E133: 0.546 | F133: 3.60E-66 | G133: 3
A134: Wnt4 | B134: 2.40E-70 | C134: -0.550393479 | D134: 0.024 | E134: 0.202 | F134: 4.39E-66 | G134: 3
A135: Zeb2 | B135: 3.09E-70 | C135: -0.371308318 | D135: 0.062 | E135: 0.261 | F135: 5.65E-66 | G135: 3
A136: Bex4 | B136: 1.13E-69 | C136: -0.335000308 | D136: 0.128 | E136: 0.346 | F136: 2.06E-65 | G136: 3
A137: Six3 | B137: 1.56E-68 | C137: -0.375275138 | D137: 0.017 | E137: 0.186 | F137: 2.85E-64 | G137: 3
A138: Flna | B138: 8.40E-68 | C138: 0.283805285 | D138: 0.636 | E138: 0.52 | F138: 1.54e-63 | G138: 3
A139: Osr1 | B139: 1.50E-67 | C139: -0.298917517 | D139: 0.049 | E139: 0.236 | F139: 2.75E-63 | G139: 3
A140: Rasl11b | B140: 3.17E-67 | C140: 0.257533231 | D140: 0.303 | E140: 0.156 | F140: 5.79E-63 | G140: 3
A141: Phlda1 | B141: 4.25e-67 | C141: -0.292378312 | D141: 0.152 | E141: 0.375 | F141: 7.76E-63 | G141: 3
A142: Tubb5 | B142: 9.07E-67 | C142: -0.320828177 | D142: 0.99 | E142: 0.927 | F142: 1.66E-62 | G142: 3
A143: Rabac1 | B143: 3.27E-66 | C143: 0.315779345 | D143: 0.642 | E143: 0.545 | F143: 5.97E-62 | G143: 3
A144: Mxra8 | B144: 3.78E-65 | C144: 0.255671627 | D144: 0.326 | E144: 0.18 | F144: 6.90E-61 | G144: 3
A145: Rbbp7 | B145: 1.52E-64 | C145: 0.27635852 | D145: 0.792 | E145: 0.724 | F145: 2.78E-60 | G145: 3
A146: Etv4 | B146: 1.98E-64 | C146: -0.255539416 | D146: 0.143 | E146: 0.365 | F146: 3.62E-60 | G146: 3
A147: Nab2 | B147: 1.79E-63 | C147: 0.282289691 | D147: 0.435 | E147: 0.287 | F147: 3.26E-59 | G147: 3
A148: Nrep | B148: 2.19e-63 | C148: 0.292215628 | D148: 0.686 | E148: 0.602 | F148: 4.00E-59 | G148: 3
A149: Pmf1 | B149: 2.34E-63 | C149: -0.262884641 | D149: 0.344 | E149: 0.587 | F149: 4.28E-59 | G149: 3
A150: Mmp2 | B150: 6.36e-63 | C150: 0.266720449 | D150: 0.416 | E150: 0.263 | F150: 1.16E-58 | G150: 3
A151: Copz2 | B151: 7.17e-63 | C151: 0.285741437 | D151: 0.529 | E151: 0.4 | F151: 1.31e-58 | G151: 3
A152: Flywch2 | B152: 7.94E-63 | C152: 0.296387723 | D152: 0.491 | E152: 0.356 | F152: 1.45E-58 | G152: 3
A153: Calr | B153: 1.26E-62 | C153: 0.273165599 | D153: 0.884 | E153: 0.806 | F153: 2.31E-58 | G153: 3
A154: Ralb | B154: 2.19E-62 | C154: 0.27107356 | D154: 0.502 | E154: 0.366 | F154: 4.00E-58 | G154: 3
A155: Tmpo | B155: 3.35e-62 | C155: -0.297778955 | D155: 0.496 | E155: 0.695 | F155: 6.11E-58 | G155: 3
A156: Axl | B156: 5.10E-62 | C156: 0.271853472 | D156: 0.402 | E156: 0.255 | F156: 9.32E-58 | G156: 3
A157: Etfb | B157: 5.73e-62 | C157: 0.262170443 | D157: 0.834 | E157: 0.778 | F157: 1.05e-57 | G157: 3
A158: Pid1 | B158: 1.03e-61 | C158: 0.294352826 | D158: 0.348 | E158: 0.192 | F158: 1.88e-57 | G158: 3
A159: Anp32e | B159: 3.96E-61 | C159: -0.262937981 | D159: 0.39 | E159: 0.625 | F159: 7.24E-57 | G159: 3
A160: Shisa3 | B160: 7.44E-61 | C160: 0.29519543 | D160: 0.625 | E160: 0.468 | F160: 1.36E-56 | G160: 3
A161: Nhp2l1 | B161: 7.67E-60 | C161: -0.250774044 | D161: 0.853 | E161: 0.863 | F161: 1.40E-55 | G161: 3
A162: Rab18 | B162: 1.65E-59 | C162: 0.273207377 | D162: 0.689 | E162: 0.623 | F162: 3.01E-55 | G162: 3
A163: Hnrnpab | B163: 9.74E-58 | C163: -0.265927972 | D163: 0.818 | E163: 0.854 | F163: 1.78e-53 | G163: 3
A164: Oaf | B164: 1.08e-57 | C164: 0.270995506 | D164: 0.534 | E164: 0.398 | F164: 1.97E-53 | G164: 3
A165: Igfbp2 | B165: 1.22E-57 | C165: -0.275421938 | D165: 0.248 | E165: 0.478 | F165: 2.23E-53 | G165: 3
A166: Nfic | B166: 2.94e-57 | C166: 0.268141728 | D166: 0.45 | E166: 0.317 | F166: 5.38E-53 | G166: 3
A167: Cotl1 | B167: 4.73E-57 | C167: -0.279803961 | D167: 0.384 | E167: 0.619 | F167: 8.64E-53 | G167: 3
A168: Arhgdib | B168: 5.17E-57 | C168: 0.25593027 | D168: 0.297 | E168: 0.16 | F168: 9.44E-53 | G168: 3
A169: 2210013O21Rik | B169: 5.77E-57 | C169: 0.276961173 | D169: 0.66 | E169: 0.586 | F169: 1.05E-52 | G169: 3
A170: Sec62 | B170: 7.24E-57 | C170: 0.253716508 | D170: 0.779 | E170: 0.716 | F170: 1.32e-52 | G170: 3
A171: Cyr61 | B171: 8.84E-57 | C171: 0.483522136 | D171: 0.249 | E171: 0.122 | F171: 1.62E-52 | G171: 3
A172: Cdh11 | B172: 1.48e-56 | C172: 0.252330911 | D172: 0.592 | E172: 0.456 | F172: 2.71E-52 | G172: 3
A173: Lmnb1 | B173: 2.01E-56 | C173: -0.272250072 | D173: 0.387 | E173: 0.611 | F173: 3.68E-52 | G173: 3
A174: App | B174: 2.22E-56 | C174: 0.327796976 | D174: 0.584 | E174: 0.493 | F174: 4.05E-52 | G174: 3
A175: Cxxc5 | B175: 3.68e-56 | C175: -0.290708153 | D175: 0.334 | E175: 0.552 | F175: 6.71E-52 | G175: 3
A176: Ypel3 | B176: 3.83e-56 | C176: 0.320763497 | D176: 0.665 | E176: 0.587 | F176: 7.00E-52 | G176: 3
A177: Rab34 | B177: 5.17E-56 | C177: 0.26619223 | D177: 0.658 | E177: 0.578 | F177: 9.45E-52 | G177: 3
A178: Kcnq1ot1 | B178: 1.10E-55 | C178: 0.302117722 | D178: 0.76 | E178: 0.684 | F178: 2.01E-51 | G178: 3
A179: Lsm5 | B179: 4.15e-54 | C179: -0.257518286 | D179: 0.686 | E179: 0.8 | F179: 7.59E-50 | G179: 3
A180: Mif | B180: 4.17E-54 | C180: -0.286079544 | D180: 0.98 | E180: 0.914 | F180: 7.62E-50 | G180: 3
A181: Mkrn1 | B181: 1.06E-53 | C181: -0.657016415 | D181: 0.255 | E181: 0.474 | F181: 1.93E-49 | G181: 3
A182: Micu1 | B182: 2.32E-53 | C182: 0.265278154 | D182: 0.375 | E182: 0.25 | F182: 4.24E-49 | G182: 3
A183: Anp32b | B183: 1.57e-52 | C183: -0.252564557 | D183: 0.882 | E183: 0.874 | F183: 2.87E-48 | G183: 3
A184: Phactr2 | B184: 1.94e-52 | C184: 0.252947695 | D184: 0.363 | E184: 0.235 | F184: 3.55E-48 | G184: 3
A185: Pcp4 | B185: 4.69e-52 | C185: -0.391247431 | D185: 0.026 | E185: 0.169 | F185: 8.56E-48 | G185: 3
A186: Cycs | B186: 8.44e-52 | C186: -0.291878792 | D186: 0.785 | E186: 0.842 | F186: 1.54E-47 | G186: 3
A187: Btg1 | B187: 1.50E-51 | C187: -0.269095118 | D187: 0.39 | E187: 0.61 | F187: 2.75E-47 | G187: 3
A188: Rab3ip | B188: 1.23E-50 | C188: -0.285877928 | D188: 0.103 | E188: 0.275 | F188: 2.25e-46 | G188: 3
A189: Ogt | B189: 2.03E-50 | C189: 0.263160321 | D189: 0.714 | E189: 0.641 | F189: 3.72e-46 | G189: 3
A190: Gdnf | B190: 4.33E-50 | C190: 0.2510757 | D190: 0.294 | E190: 0.171 | F190: 7.91E-46 | G190: 3
A191: Myl12b | B191: 1.04E-49 | C191: 0.25617066 | D191: 0.74 | E191: 0.673 | F191: 1.91e-45 | G191: 3
A192: Inafm1 | B192: 1.25e-49 | C192: 0.270750254 | D192: 0.454 | E192: 0.34 | F192: 2.29E-45 | G192: 3
A193: Pttg1 | B193: 2.14E-49 | C193: -0.330507462 | D193: 0.312 | E193: 0.518 | F193: 3.91e-45 | G193: 3
A194: Mt1 | B194: 1.65e-48 | C194: -0.369235134 | D194: 0.04 | E194: 0.184 | F194: 3.02E-44 | G194: 3
A195: Snhg18 | B195: 1.22E-47 | C195: 0.254605575 | D195: 0.52 | E195: 0.399 | F195: 2.22E-43 | G195: 3
A196: Bex1 | B196: 1.32e-47 | C196: -0.301446463 | D196: 0.159 | E196: 0.338 | F196: 2.41E-43 | G196: 3
A197: Emx2 | B197: 2.76E-47 | C197: -0.285598349 | D197: 0.018 | E197: 0.146 | F197: 5.05E-43 | G197: 3
A198: Lhx1os | B198: 4.76e-47 | C198: -0.263259344 | D198: 0.016 | E198: 0.141 | F198: 8.70E-43 | G198: 3
A199: Hoxb7 | B199: 1.33E-46 | C199: -0.250134732 | D199: 0.172 | E199: 0.363 | F199: 2.43e-42 | G199: 3
A200: Cdk2ap1 | B200: 2.08E-46 | C200: -0.267146694 | D200: 0.377 | E200: 0.577 | F200: 3.80E-42 | G200: 3
... 25 more rows

Sheet 4
A1: Symbol | B1: p_val | C1: avg_logFC | D1: pct.1 | E1: pct.2 | F1: p_val_adj | G1: cluster | H1: gene
A2: Hist1h2ap | B2: 0.00E+00 | C2: 1.047705349 | D2: 0.903 | E2: 0.41 | F2: 0 | G2: 4
A3: Cited1 | B3: 0.00E+00 | C3: 0.901138965 | D3: 0.736 | E3: 0.219 | F3: 0 | G3: 4
A4: 2810417H13Rik | B4: 0.00E+00 | C4: 0.805290076 | D4: 0.983 | E4: 0.577 | F4: 0 | G4: 4
A5: Cenpw | B5: 0.00E+00 | C5: 0.797585235 | D5: 0.95 | E5: 0.518 | F5: 0 | G5: 4
A6: Top2a | B6: 0.00E+00 | C6: 0.749813624 | D6: 0.919 | E6: 0.371 | F6: 0 | G6: 4
A7: Fxyd6 | B7: 0.00E+00 | C7: 0.710047402 | D7: 0.993 | E7: 0.656 | F7: 0 | G7: 4
A8: Dut | B8: 0.00E+00 | C8: 0.697978165 | D8: 0.996 | E8: 0.751 | F8: 0 | G8: 4
A9: Stmn1 | B9: 0.00E+00 | C9: 0.687966879 | D9: 1 | E9: 0.85 | F9: 0 | G9: 4
A10: Crym | B10: 0.00E+00 | C10: 0.667814156 | D10: 0.895 | E10: 0.266 | F10: 0 | G10: 4
A11: Fabp5 | B11: 0.00E+00 | C11: 0.666174579 | D11: 0.988 | E11: 0.607 | F11: 0 | G11: 4
A12: Robo2 | B12: 0.00E+00 | C12: 0.648702881 | D12: 0.894 | E12: 0.348 | F12: 0 | G12: 4
A13: Uncx | B13: 0.00E+00 | C13: 0.62091618 | D13: 0.919 | E13: 0.312 | F13: 0 | G13: 4
A14: Six2 | B14: 0.00E+00 | C14: 0.614117817 | D14: 0.8 | E14: 0.19 | F14: 0 | G14: 4
A15: Tsc22d1 | B15: 0.00E+00 | C15: 0.61227784 | D15: 1 | E15: 0.862 | F15: 0 | G15: 4
A16: Spc25 | B16: 0.00E+00 | C16: 0.574138704 | D16: 0.88 | E16: 0.409 | F16: 0 | G16: 4
A17: Rspo1 | B17: 0.00E+00 | C17: 0.539503456 | D17: 0.888 | E17: 0.3 | F17: 0 | G17: 4
A18: Eya1 | B18: 0.00E+00 | C18: 0.533777061 | D18: 0.803 | E18: 0.211 | F18: 0 | G18: 4
A19: Spock2 | B19: 0.00E+00 | C19: 0.531352518 | D19: 0.794 | E19: 0.224 | F19: 0 | G19: 4
A20: Bcl2 | B20: 0.00E+00 | C20: 0.503459143 | D20: 0.875 | E20: 0.404 | F20: 0 | G20: 4
A21: Vcan | B21: 0.00E+00 | C21: 0.490117303 | D21: 0.901 | E21: 0.41 | F21: 0 | G21: 4
A22: Ppp1r1a | B22: 0.00E+00 | C22: 0.432721798 | D22: 0.697 | E22: 0.218 | F22: 0 | G22: 4
A23: Osr1 | B23: 0.00E+00 | C23: 0.410421444 | D23: 0.648 | E23: 0.185 | F23: 0 | G23: 4
A24: Hs3st6 | B24: 0.00E+00 | C24: 0.374376125 | D24: 0.673 | E24: 0.202 | F24: 0 | G24: 4
A25: H3f3a | B25: 0.00E+00 | C25: 0.354490362 | D25: 1 | E25: 0.976 | F25: 0 | G25: 4
A26: Meox2 | B26: 0.00E+00 | C26: 0.250461066 | D26: 0.376 | E26: 0.073 | F26: 0 | G26: 4
A27: Gm266 | B27: 1.74e-307 | C27: 0.456870539 | D27: 0.866 | E27: 0.377 | F27: 3.18E-303 | G27: 4
A28: Gas1 | B28: 4.72E-299 | C28: 0.543039055 | D28: 0.98 | E28: 0.616 | F28: 8.63E-295 | G28: 4
A29: H2afz | B29: 1.68E-294 | C29: 0.56034184 | D29: 1 | E29: 0.941 | F29: 3.07E-290 | G29: 4
A30: Dst | B30: 2.10E-292 | C30: 0.34597867 | D30: 0.663 | E30: 0.227 | F30: 3.84E-288 | G30: 4
A31: Kif26b | B31: 6.18e-285 | C31: 0.303280936 | D31: 0.585 | E31: 0.177 | F31: 1.13e-280 | G31: 4
A32: Dctpp1 | B32: 1.50E-284 | C32: 0.515927775 | D32: 0.994 | E32: 0.748 | F32: 2.75e-280 | G32: 4
A33: Ptma | B33: 1.44E-283 | C33: 0.39647064 | D33: 1 | E33: 0.959 | F33: 2.63E-279 | G33: 4
A34: Ranbp1 | B34: 2.12E-278 | C34: 0.506725436 | D34: 1 | E34: 0.881 | F34: 3.88E-274 | G34: 4
A35: Pkig | B35: 6.30E-277 | C35: 0.466884448 | D35: 0.975 | E35: 0.671 | F35: 1.15E-272 | G35: 4
A36: Mif | B36: 1.15e-274 | C36: 0.49143082 | D36: 1 | E36: 0.913 | F36: 2.09E-270 | G36: 4
A37: Nt5dc2 | B37: 3.28E-271 | C37: 0.483764107 | D37: 0.988 | E37: 0.714 | F37: 5.98E-267 | G37: 4
A38: Lig1 | B38: 5.47E-270 | C38: 0.506218241 | D38: 0.863 | E38: 0.425 | F38: 9.99E-266 | G38: 4
A39: Pax2 | B39: 4.66E-268 | C39: 0.405579184 | D39: 0.802 | E39: 0.322 | F39: 8.51E-264 | G39: 4
A40: Hmga2 | B40: 8.03E-267 | C40: 0.513123454 | D40: 0.89 | E40: 0.475 | F40: 1.47E-262 | G40: 4
A41: Clspn | B41: 1.14E-266 | C41: 0.340942845 | D41: 0.563 | E41: 0.184 | F41: 2.08e-262 | G41: 4
A42: Tpbg | B42: 3.12E-263 | C42: 0.364598513 | D42: 0.675 | E42: 0.245 | F42: 5.70E-259 | G42: 4
A43: Des | B43: 4.58E-261 | C43: 0.326179443 | D43: 0.661 | E43: 0.226 | F43: 8.36E-257 | G43: 4
A44: Shisa2 | B44: 1.09E-256 | C44: 0.315287191 | D44: 0.647 | E44: 0.224 | F44: 1.99E-252 | G44: 4
A45: Cdca5 | B45: 1.22E-256 | C45: 0.264748959 | D45: 0.497 | E45: 0.148 | F45: 2.23e-252 | G45: 4
A46: Sncaip | B46: 6.86E-256 | C46: 0.279948927 | D46: 0.588 | E46: 0.188 | F46: 1.25E-251 | G46: 4
A47: Uhrf1 | B47: 3.37E-255 | C47: 0.408115218 | D47: 0.748 | E47: 0.318 | F47: 6.16E-251 | G47: 4
A48: Fbxo5 | B48: 3.67E-254 | C48: 0.339639763 | D48: 0.631 | E48: 0.227 | F48: 6.71e-250 | G48: 4
A49: Rrm2 | B49: 4.34E-252 | C49: 0.458341684 | D49: 0.736 | E49: 0.315 | F49: 7.93E-248 | G49: 4
A50: Gmnn | B50: 7.85E-247 | C50: 0.415321793 | D50: 0.835 | E50: 0.397 | F50: 1.43E-242 | G50: 4
A51: Cenpf | B51: 1.57e-242 | C51: 0.553247399 | D51: 0.729 | E51: 0.308 | F51: 2.87E-238 | G51: 4
A52: Aes | B52: 3.59E-241 | C52: 0.452079889 | D52: 0.988 | E52: 0.725 | F52: 6.57E-237 | G52: 4
A53: Hmgb2 | B53: 6.34E-240 | C53: 0.573190837 | D53: 0.997 | E53: 0.805 | F53: 1.16e-235 | G53: 4
A54: H2afx | B54: 3.41E-239 | C54: 0.583775934 | D54: 0.963 | E54: 0.657 | F54: 6.23E-235 | G54: 4
A55: Cped1 | B55: 1.11e-237 | C55: 0.311196933 | D55: 0.684 | E55: 0.259 | F55: 2.02E-233 | G55: 4
A56: Ezh2 | B56: 2.61e-236 | C56: 0.429278119 | D56: 0.899 | E56: 0.507 | F56: 4.77E-232 | G56: 4
A57: Smc4 | B57: 6.33E-232 | C57: 0.438991371 | D57: 0.885 | E57: 0.467 | F57: 1.16e-227 | G57: 4
A58: Cks1b | B58: 6.33E-230 | C58: 0.460551377 | D58: 0.995 | E58: 0.788 | F58: 1.16e-225 | G58: 4
A59: Hist1h1b | B59: 1.53e-229 | C59: 0.30319355 | D59: 0.495 | E59: 0.158 | F59: 2.80E-225 | G59: 4
A60: Pbk | B60: 1.62e-229 | C60: 0.332205322 | D60: 0.675 | E60: 0.264 | F60: 2.96E-225 | G60: 4
A61: Foxp1 | B61: 4.47E-228 | C61: 0.342685504 | D61: 0.777 | E61: 0.344 | F61: 8.17e-224 | G61: 4
A62: Mki67 | B62: 1.15E-227 | C62: 0.420426254 | D62: 0.715 | E62: 0.312 | F62: 2.10E-223 | G62: 4
A63: Dek | B63: 7.81E-227 | C63: 0.461309258 | D63: 0.988 | E63: 0.745 | F63: 1.43E-222 | G63: 4
A64: Ttc28 | B64: 1.02e-226 | C64: 0.387115653 | D64: 0.801 | E64: 0.382 | F64: 1.86E-222 | G64: 4
A65: Hoxb5os | B65: 1.36e-223 | C65: 0.346757721 | D65: 0.605 | E65: 0.227 | F65: 2.49E-219 | G65: 4
A66: Dhfr | B66: 1.10E-217 | C66: 0.376564566 | D66: 0.732 | E66: 0.325 | F66: 2.01E-213 | G66: 4
A67: Six3 | B67: 2.65e-217 | C67: 0.537178013 | D67: 0.452 | E67: 0.149 | F67: 4.83E-213 | G67: 4
A68: Wt1 | B68: 2.79e-216 | C68: 0.357176356 | D68: 0.917 | E68: 0.481 | F68: 5.10E-212 | G68: 4
A69: Rad51ap1 | B69: 2.79e-216 | C69: 0.270506916 | D69: 0.554 | E69: 0.196 | F69: 5.10E-212 | G69: 4
A70: Rem1 | B70: 4.47e-216 | C70: 0.350869719 | D70: 0.77 | E70: 0.338 | F70: 8.17e-212 | G70: 4
A71: Tyms | B71: 9.08E-216 | C71: 0.410462013 | D71: 0.898 | E71: 0.491 | F71: 1.66E-211 | G71: 4
A72: Nop10 | B72: 2.03E-211 | C72: 0.401830968 | D72: 0.998 | E72: 0.852 | F72: 3.71E-207 | G72: 4
A73: Pcbp4 | B73: 1.47E-209 | C73: 0.388018224 | D73: 0.946 | E73: 0.591 | F73: 2.68E-205 | G73: 4
A74: Hmgb3 | B74: 4.10E-208 | C74: 0.417799881 | D74: 0.993 | E74: 0.789 | F74: 7.49E-204 | G74: 4
A75: Slc12a2 | B75: 1.08e-206 | C75: 0.290766948 | D75: 0.576 | E75: 0.216 | F75: 1.97e-202 | G75: 4
A76: Sox11 | B76: 1.68e-206 | C76: 0.350884002 | D76: 0.961 | E76: 0.575 | F76: 3.06E-202 | G76: 4
A77: Lsm2 | B77: 4.52E-205 | C77: 0.404380037 | D77: 0.982 | E77: 0.724 | F77: 8.26E-201 | G77: 4
A78: Grb10 | B78: 8.73E-204 | C78: 0.411820839 | D78: 0.955 | E78: 0.673 | F78: 1.60E-199 | G78: 4
A79: Sall1 | B79: 5.17E-202 | C79: 0.30458071 | D79: 0.691 | E79: 0.29 | F79: 9.45E-198 | G79: 4
A80: Dnmt1 | B80: 2.53e-201 | C80: 0.320944881 | D80: 0.693 | E80: 0.305 | F80: 4.63E-197 | G80: 4
A81: Hoxb9 | B81: 3.47e-201 | C81: 0.295396387 | D81: 0.65 | E81: 0.265 | F81: 6.34E-197 | G81: 4
A82: Siva1 | B82: 4.94E-201 | C82: 0.384042151 | D82: 0.997 | E82: 0.833 | F82: 9.02E-197 | G82: 4
A83: Aurkb | B83: 6.32e-201 | C83: 0.268630068 | D83: 0.617 | E83: 0.234 | F83: 1.16E-196 | G83: 4
A84: Anxa2 | B84: 9.35E-201 | C84: -0.988496106 | D84: 0.184 | E84: 0.537 | F84: 1.71e-196 | G84: 4
A85: H2afv | B85: 1.11E-199 | C85: 0.388337775 | D85: 0.999 | E85: 0.898 | F85: 2.03e-195 | G85: 4
A86: Bmp7 | B86: 1.90E-198 | C86: 0.27752619 | D86: 0.618 | E86: 0.24 | F86: 3.47E-194 | G86: 4
A87: Nnat | B87: 1.06e-197 | C87: 0.494643541 | D87: 0.879 | E87: 0.513 | F87: 1.93e-193 | G87: 4
A88: Mis18bp1 | B88: 1.91E-197 | C88: 0.294861795 | D88: 0.538 | E88: 0.199 | F88: 3.49E-193 | G88: 4
A89: Tk1 | B89: 3.30E-197 | C89: 0.318525829 | D89: 0.705 | E89: 0.303 | F89: 6.02E-193 | G89: 4
A90: Usp1 | B90: 5.45E-197 | C90: 0.372707802 | D90: 0.861 | E90: 0.463 | F90: 9.96E-193 | G90: 4
A91: Nhp2l1 | B91: 6.05E-197 | C91: 0.385625114 | D91: 0.998 | E91: 0.851 | F91: 1.11e-192 | G91: 4
A92: Prc1 | B92: 8.34E-195 | C92: 0.294457908 | D92: 0.559 | E92: 0.208 | F92: 1.52E-190 | G92: 4
A93: Cbx5 | B93: 2.96E-193 | C93: 0.392894556 | D93: 0.925 | E93: 0.588 | F93: 5.42E-189 | G93: 4
A94: Hoxd11 | B94: 3.45E-193 | C94: 0.353942394 | D94: 0.88 | E94: 0.473 | F94: 6.30E-189 | G94: 4
A95: Nasp | B95: 5.04E-193 | C95: 0.419512483 | D95: 0.943 | E95: 0.6 | F95: 9.20E-189 | G95: 4
A96: Ftl1 | B96: 5.97E-191 | C96: -0.325416176 | D96: 1 | E96: 1 | F96: 1.09E-186 | G96: 4
A97: Cdca8 | B97: 6.18E-191 | C97: 0.363024499 | D97: 0.772 | E97: 0.364 | F97: 1.13e-186 | G97: 4
A98: Foxc1 | B98: 3.07E-190 | C98: 0.27584598 | D98: 0.597 | E98: 0.234 | F98: 5.61E-186 | G98: 4
A99: Hnrnpab | B99: 3.98E-190 | C99: 0.378280938 | D99: 0.995 | E99: 0.839 | F99: 7.27E-186 | G99: 4
A100: H2afy | B100: 7.38E-190 | C100: 0.377851439 | D100: 0.993 | E100: 0.792 | F100: 1.35E-185 | G100: 4
A101: Spc24 | B101: 2.57E-188 | C101: 0.343508449 | D101: 0.83 | E101: 0.423 | F101: 4.70E-184 | G101: 4
A102: Hn1 | B102: 3.04E-185 | C102: 0.466861459 | D102: 0.977 | E102: 0.774 | F102: 5.54E-181 | G102: 4
A103: Cenpm | B103: 4.86E-185 | C103: 0.316685259 | D103: 0.855 | E103: 0.436 | F103: 8.87E-181 | G103: 4
A104: Phgdh | B104: 1.14e-184 | C104: 0.397807286 | D104: 0.917 | E104: 0.556 | F104: 2.09E-180 | G104: 4
A105: Anp32b | B105: 1.24E-184 | C105: 0.363448232 | D105: 0.999 | E105: 0.864 | F105: 2.26E-180 | G105: 4
A106: Hjurp | B106: 1.49E-184 | C106: 0.294314589 | D106: 0.691 | E106: 0.305 | F106: 2.72e-180 | G106: 4
A107: Ybx1 | B107: 3.12e-183 | C107: 0.324227871 | D107: 1 | E107: 0.913 | F107: 5.70E-179 | G107: 4
A108: Dnajc9 | B108: 4.28E-183 | C108: 0.363493773 | D108: 0.909 | E108: 0.539 | F108: 7.82E-179 | G108: 4
A109: Mis18a | B109: 3.34E-182 | C109: 0.267217327 | D109: 0.67 | E109: 0.286 | F109: 6.10E-178 | G109: 4
A110: Mthfd2 | B110: 1.83E-181 | C110: 0.297150522 | D110: 0.637 | E110: 0.274 | F110: 3.35e-177 | G110: 4
A111: Rnaseh2a | B111: 2.89E-181 | C111: 0.339177167 | D111: 0.762 | E111: 0.382 | F111: 5.28E-177 | G111: 4
A112: Tipin | B112: 3.95E-180 | C112: 0.397180612 | D112: 0.946 | E112: 0.623 | F112: 7.21E-176 | G112: 4
A113: Igfbp7 | B113: 1.82e-179 | C113: -1.137256877 | D113: 0.159 | E113: 0.5 | F113: 3.33E-175 | G113: 4
A114: Rad51 | B114: 2.25E-178 | C114: 0.259737166 | D114: 0.528 | E114: 0.203 | F114: 4.11E-174 | G114: 4
A115: Lyar | B115: 2.56E-177 | C115: 0.3761011 | D115: 0.946 | E115: 0.654 | F115: 4.68E-173 | G115: 4
A116: Atad2 | B116: 2.76E-176 | C116: 0.272814524 | D116: 0.562 | E116: 0.226 | F116: 5.04E-172 | G116: 4
A117: Tubb5 | B117: 5.94E-176 | C117: 0.430248083 | D117: 1 | E117: 0.927 | F117: 1.09e-171 | G117: 4
A118: Zbtb20 | B118: 7.82E-175 | C118: 0.345015237 | D118: 0.886 | E118: 0.5 | F118: 1.43e-170 | G118: 4
A119: Ccdc34 | B119: 8.46E-175 | C119: 0.365802148 | D119: 0.958 | E119: 0.667 | F119: 1.55E-170 | G119: 4
A120: Fam213a | B120: 8.56E-175 | C120: 0.321858566 | D120: 0.812 | E120: 0.424 | F120: 1.56E-170 | G120: 4
A121: Birc5 | B121: 1.58E-174 | C121: 0.390140013 | D121: 0.879 | E121: 0.493 | F121: 2.89E-170 | G121: 4
A122: Dpy30 | B122: 7.81e-174 | C122: 0.36407878 | D122: 0.972 | E122: 0.738 | F122: 1.43E-169 | G122: 4
A123: Capn6 | B123: 1.24e-173 | C123: 0.286325644 | D123: 0.601 | E123: 0.25 | F123: 2.26E-169 | G123: 4
A124: Fen1 | B124: 1.44e-173 | C124: 0.304045184 | D124: 0.674 | E124: 0.31 | F124: 2.63E-169 | G124: 4
A125: Maged2 | B125: 3.71E-172 | C125: -1.007120359 | D125: 0.564 | E125: 0.722 | F125: 6.78E-168 | G125: 4
A126: Rplp1 | B126: 1.48e-171 | C126: 0.255711912 | D126: 1 | E126: 0.985 | F126: 2.71E-167 | G126: 4
A127: Tcf19 | B127: 2.10E-171 | C127: 0.27575492 | D127: 0.532 | E127: 0.211 | F127: 3.83e-167 | G127: 4
A128: Ppp1r14b | B128: 5.43E-171 | C128: 0.390800976 | D128: 0.95 | E128: 0.698 | F128: 9.92e-167 | G128: 4
A129: Sumo2 | B129: 6.06E-171 | C129: 0.304412653 | D129: 0.999 | E129: 0.911 | F129: 1.11E-166 | G129: 4
A130: Smc2 | B130: 1.86E-170 | C130: 0.307877955 | D130: 0.873 | E130: 0.459 | F130: 3.39E-166 | G130: 4
A131: Snrpd1 | B131: 2.70E-170 | C131: 0.349928846 | D131: 0.998 | E131: 0.86 | F131: 4.93E-166 | G131: 4
A132: Cks2 | B132: 3.37E-170 | C132: 0.421898433 | D132: 0.917 | E132: 0.565 | F132: 6.16E-166 | G132: 4
A133: Nr2f6 | B133: 3.53E-170 | C133: 0.341303945 | D133: 0.869 | E133: 0.523 | F133: 6.45E-166 | G133: 4
A134: Cited2 | B134: 1.11e-169 | C134: 0.403298039 | D134: 0.854 | E134: 0.49 | F134: 2.02E-165 | G134: 4
A135: Cenph | B135: 1.72E-169 | C135: 0.254664514 | D135: 0.565 | E135: 0.23 | F135: 3.15e-165 | G135: 4
A136: Ifitm3 | B136: 5.98E-168 | C136: -0.981326345 | D136: 0.168 | E136: 0.49 | F136: 1.09e-163 | G136: 4
A137: Nhp2 | B137: 5.99E-168 | C137: 0.356077392 | D137: 0.981 | E137: 0.744 | F137: 1.09e-163 | G137: 4
A138: Hells | B138: 1.10E-166 | C138: 0.33515488 | D138: 0.66 | E138: 0.308 | F138: 2.00E-162 | G138: 4
A139: Pcna | B139: 2.35E-164 | C139: 0.376473435 | D139: 0.729 | E139: 0.387 | F139: 4.29E-160 | G139: 4
A140: Lsm8 | B140: 8.75E-164 | C140: 0.346192676 | D140: 0.981 | E140: 0.738 | F140: 1.60E-159 | G140: 4
A141: Cdk1 | B141: 4.80E-163 | C141: 0.263831363 | D141: 0.765 | E141: 0.368 | F141: 8.77E-159 | G141: 4
A142: Ybx3 | B142: 2.89E-161 | C142: 0.323655094 | D142: 0.815 | E142: 0.47 | F142: 5.28E-157 | G142: 4
A143: Sms | B143: 2.80E-159 | C143: 0.35211653 | D143: 0.901 | E143: 0.566 | F143: 5.11E-155 | G143: 4
A144: Whsc1 | B144: 1.99E-158 | C144: 0.267588009 | D144: 0.679 | E144: 0.319 | F144: 3.63e-154 | G144: 4
A145: Hoxa10 | B145: 3.48E-158 | C145: 0.342301661 | D145: 0.93 | E145: 0.597 | F145: 6.35E-154 | G145: 4
A146: Myl6 | B146: 1.80E-157 | C146: -0.62706065 | D146: 0.961 | E146: 0.929 | F146: 3.29E-153 | G146: 4
A147: Bbx | B147: 1.83E-156 | C147: 0.323509185 | D147: 0.778 | E147: 0.422 | F147: 3.35E-152 | G147: 4
A148: Rpl12 | B148: 3.70E-154 | C148: 0.251521672 | D148: 1 | E148: 0.953 | F148: 6.76E-150 | G148: 4
A149: Col3a1 | B149: 3.85E-153 | C149: -1.207335172 | D149: 0.131 | E149: 0.442 | F149: 7.03E-149 | G149: 4
A150: Tpm2 | B150: 4.56E-153 | C150: 0.306123018 | D150: 0.88 | E150: 0.515 | F150: 8.33E-149 | G150: 4
A151: Pfdn6 | B151: 6.61E-153 | C151: 0.331992997 | D151: 0.956 | E151: 0.706 | F151: 1.21E-148 | G151: 4
A152: Rfc5 | B152: 1.95E-152 | C152: 0.276764056 | D152: 0.712 | E152: 0.352 | F152: 3.55E-148 | G152: 4
A153: Hoxc10 | B153: 3.69E-152 | C153: 0.338313479 | D153: 0.949 | E153: 0.612 | F153: 6.74e-148 | G153: 4
A154: Hspe1 | B154: 7.15E-152 | C154: 0.33616668 | D154: 1 | E154: 0.904 | F154: 1.31E-147 | G154: 4
A155: Ube2s | B155: 3.46E-151 | C155: 0.377992425 | D155: 0.995 | E155: 0.879 | F155: 6.32E-147 | G155: 4
A156: Nmral1 | B156: 3.47E-151 | C156: 0.312351272 | D156: 0.732 | E156: 0.381 | F156: 6.33E-147 | G156: 4
A157: Rnps1 | B157: 1.01e-150 | C157: 0.324959466 | D157: 0.937 | E157: 0.634 | F157: 1.84E-146 | G157: 4
A158: Rps5 | B158: 8.70E-150 | C158: 0.271913834 | D158: 1 | E158: 0.98 | F158: 1.59e-145 | G158: 4
A159: Gm1673 | B159: 1.44E-148 | C159: 0.344027828 | D159: 0.914 | E159: 0.603 | F159: 2.63E-144 | G159: 4
A160: Nucks1 | B160: 1.68e-146 | C160: 0.351648522 | D160: 0.977 | E160: 0.737 | F160: 3.07E-142 | G160: 4
A161: Rplp0 | B161: 4.42e-146 | C161: 0.260722644 | D161: 1 | E161: 0.994 | F161: 8.07E-142 | G161: 4
A162: Nusap1 | B162: 6.25E-146 | C162: 0.316881492 | D162: 0.582 | E162: 0.263 | F162: 1.14e-141 | G162: 4
A163: Fstl1 | B163: 9.70E-146 | C163: -0.627650038 | D163: 0.415 | E163: 0.614 | F163: 1.77E-141 | G163: 4
A164: Dtymk | B164: 1.44E-145 | C164: 0.326048987 | D164: 0.977 | E164: 0.744 | F164: 2.63E-141 | G164: 4
A165: Erdr1 | B165: 2.99E-145 | C165: 0.406063908 | D165: 0.785 | E165: 0.446 | F165: 5.46E-141 | G165: 4
A166: Rps21 | B166: 5.03E-145 | C166: 0.259169357 | D166: 1 | E166: 0.946 | F166: 9.19E-141 | G166: 4
A167: Hmgn1 | B167: 1.17e-144 | C167: 0.298837363 | D167: 1 | E167: 0.922 | F167: 2.13e-140 | G167: 4
A168: Tshz2 | B168: 4.03E-144 | C168: 0.322735403 | D168: 0.948 | E168: 0.669 | F168: 7.37E-140 | G168: 4
A169: Gins2 | B169: 4.11E-144 | C169: 0.31103716 | D169: 0.8 | E169: 0.441 | F169: 7.51E-140 | G169: 4
A170: Paics | B170: 2.02E-143 | C170: 0.320757827 | D170: 0.939 | E170: 0.648 | F170: 3.68E-139 | G170: 4
A171: Ncl | B171: 5.45E-143 | C171: 0.333925414 | D171: 0.999 | E171: 0.872 | F171: 9.96E-139 | G171: 4
A172: Ran | B172: 7.15E-143 | C172: 0.319696599 | D172: 0.999 | E172: 0.906 | F172: 1.31e-138 | G172: 4
A173: Tmpo | B173: 1.54E-141 | C173: 0.306983215 | D173: 0.945 | E173: 0.657 | F173: 2.81E-137 | G173: 4
A174: Nxt1 | B174: 7.04E-141 | C174: 0.304824356 | D174: 0.833 | E174: 0.492 | F174: 1.29e-136 | G174: 4
A175: Syce2 | B175: 9.15E-140 | C175: 0.299938127 | D175: 0.798 | E175: 0.443 | F175: 1.67e-135 | G175: 4
A176: Ebf1 | B176: 1.12E-139 | C176: -0.724114858 | D176: 0.037 | E176: 0.344 | F176: 2.04E-135 | G176: 4
A177: Tmsb4x | B177: 1.36e-139 | C177: -1.474909474 | D177: 0.962 | E177: 0.909 | F177: 2.48e-135 | G177: 4
A178: Hic1 | B178: 2.89e-139 | C178: -0.684316677 | D178: 0.071 | E178: 0.377 | F178: 5.28E-135 | G178: 4
A179: Nap1l1 | B179: 5.25E-139 | C179: 0.31015014 | D179: 0.994 | E179: 0.837 | F179: 9.59E-135 | G179: 4
A180: Col1a2 | B180: 8.93E-139 | C180: -1.124077853 | D180: 0.143 | E180: 0.435 | F180: 1.63e-134 | G180: 4
A181: Cycs | B181: 3.75E-137 | C181: 0.324653404 | D181: 0.992 | E181: 0.824 | F181: 6.85E-133 | G181: 4
A182: Hoxc8 | B182: 2.70E-136 | C182: 0.302935819 | D182: 0.757 | E182: 0.399 | F182: 4.94E-132 | G182: 4
A183: Cxxc5 | B183: 4.88E-136 | C183: 0.281257709 | D183: 0.859 | E183: 0.507 | F183: 8.92E-132 | G183: 4
A184: Plac8 | B184: 7.91E-136 | C184: -0.839940946 | D184: 0.102 | E184: 0.398 | F184: 1.44e-131 | G184: 4
A185: Lsm3 | B185: 5.47e-135 | C185: 0.298834603 | D185: 0.972 | E185: 0.736 | F185: 1.00E-130 | G185: 4
A186: Cbx1 | B186: 6.54E-135 | C186: 0.309907004 | D186: 0.995 | E186: 0.816 | F186: 1.19e-130 | G186: 4
A187: Cdca3 | B187: 9.83E-135 | C187: 0.338400338 | D187: 0.707 | E187: 0.374 | F187: 1.80E-130 | G187: 4
A188: Hoxb2 | B188: 1.58e-134 | C188: 0.263291885 | D188: 0.74 | E188: 0.381 | F188: 2.88e-130 | G188: 4
A189: Cenpe | B189: 5.58E-134 | C189: 0.269830574 | D189: 0.598 | E189: 0.278 | F189: 1.02e-129 | G189: 4
A190: Anxa5 | B190: 7.76e-134 | C190: -0.570415826 | D190: 0.318 | E190: 0.56 | F190: 1.42e-129 | G190: 4
A191: Dcakd | B191: 1.71e-132 | C191: 0.314703786 | D191: 0.943 | E191: 0.661 | F191: 3.13E-128 | G191: 4
A192: Col1a1 | B192: 2.75e-132 | C192: -1.229127491 | D192: 0.218 | E192: 0.478 | F192: 5.02E-128 | G192: 4
A193: Ube2c | B193: 4.05E-132 | C193: 0.560521487 | D193: 0.797 | E193: 0.499 | F193: 7.40E-128 | G193: 4
A194: Ipo5 | B194: 2.01e-131 | C194: 0.262335717 | D194: 0.766 | E194: 0.423 | F194: 3.67e-127 | G194: 4
A195: Hist3h2ba | B195: 7.73e-129 | C195: 0.261294375 | D195: 0.781 | E195: 0.432 | F195: 1.41e-124 | G195: 4
A196: Srsf2 | B196: 5.71E-128 | C196: 0.307251308 | D196: 0.997 | E196: 0.852 | F196: 1.04e-123 | G196: 4
A197: Fzd2 | B197: 6.53E-128 | C197: 0.264926481 | D197: 0.725 | E197: 0.383 | F197: 1.19e-123 | G197: 4
A198: Ppil1 | B198: 5.18E-127 | C198: 0.279857606 | D198: 0.891 | E198: 0.556 | F198: 9.46E-123 | G198: 4
A199: Dtl | B199: 7.47e-127 | C199: 0.292172406 | D199: 0.608 | E199: 0.301 | F199: 1.37e-122 | G199: 4
A200: Cnbp | B200: 8.50E-127 | C200: 0.287741531 | D200: 0.999 | E200: 0.899 | F200: 1.55E-122 | G200: 4
... 226 more rows

Sheet 5
A1: Symbol | B1: p_val | C1: avg_logFC | D1: pct.1 | E1: pct.2 | F1: p_val_adj | G1: cluster
A2: Tmsb4x | B2: 0.00E+00 | C2: 1.443408962 | D2: 1 | E2: 0.906 | F2: 0 | G2: 5
A3: Col1a2 | B3: 0.00E+00 | C3: 1.27368299 | D3: 0.974 | E3: 0.366 | F3: 0 | G3: 5
A4: Myl9 | B4: 0.00E+00 | C4: 1.236544806 | D4: 0.865 | E4: 0.383 | F4: 0 | G4: 5
A5: Col3a1 | B5: 0.00E+00 | C5: 1.230357525 | D5: 0.97 | E5: 0.372 | F5: 0 | G5: 5
A6: Ptn | B6: 0.00E+00 | C6: 1.225282433 | D6: 0.917 | E6: 0.691 | F6: 0 | G6: 5
A7: Acta2 | B7: 0.00E+00 | C7: 1.135628262 | D7: 0.573 | E7: 0.165 | F7: 0 | G7: 5
A8: Zeb2 | B8: 0.00E+00 | C8: 1.121452282 | D8: 0.8 | E8: 0.198 | F8: 0 | G8: 5
A9: Plac8 | B9: 0.00E+00 | C9: 1.114370897 | D9: 0.797 | E9: 0.34 | F9: 0 | G9: 5
A10: Cnn2 | B10: 0.00E+00 | C10: 1.101670353 | D10: 0.929 | E10: 0.421 | F10: 0 | G10: 5
A11: Bgn | B11: 0.00E+00 | C11: 1.061795313 | D11: 0.812 | E11: 0.201 | F11: 0 | G11: 5
A12: Lgals1 | B12: 0.00E+00 | C12: 1.050816049 | D12: 0.999 | E12: 0.798 | F12: 0 | G12: 5
A13: Igfbp7 | B13: 0.00E+00 | C13: 1.03334226 | D13: 0.852 | E13: 0.442 | F13: 0 | G13: 5
A14: Dcn | B14: 0.00E+00 | C14: 1.030836488 | D14: 0.422 | E14: 0.098 | F14: 0 | G14: 5
A15: Col1a1 | B15: 0.00E+00 | C15: 1.019797304 | D15: 0.936 | E15: 0.418 | F15: 0 | G15: 5
A16: Fbln5 | B16: 0.00E+00 | C16: 1.008549009 | D16: 0.651 | E16: 0.133 | F16: 0 | G16: 5
A17: Gucy1a3 | B17: 0.00E+00 | C17: 1.003194595 | D17: 0.773 | E17: 0.164 | F17: 0 | G17: 5
A18: S100a6 | B18: 0.00E+00 | C18: 0.982331089 | D18: 0.811 | E18: 0.284 | F18: 0 | G18: 5
A19: S100a10 | B19: 0.00E+00 | C19: 0.963251989 | D19: 0.948 | E19: 0.576 | F19: 0 | G19: 5
A20: Cald1 | B20: 0.00E+00 | C20: 0.952897345 | D20: 0.969 | E20: 0.563 | F20: 0 | G20: 5
A21: Vim | B21: 0.00E+00 | C21: 0.948099926 | D21: 0.956 | E21: 0.559 | F21: 0 | G21: 5
A22: Pdlim2 | B22: 0.00E+00 | C22: 0.946151209 | D22: 0.848 | E22: 0.323 | F22: 0 | G22: 5
A23: Ecm1 | B23: 0.00E+00 | C23: 0.942188609 | D23: 0.782 | E23: 0.278 | F23: 0 | G23: 5
A24: Csrp1 | B24: 0.00E+00 | C24: 0.925349993 | D24: 0.793 | E24: 0.358 | F24: 0 | G24: 5
A25: Ifitm3 | B25: 0.00E+00 | C25: 0.857735932 | D25: 0.883 | E25: 0.431 | F25: 0 | G25: 5
A26: Anxa2 | B26: 0.00E+00 | C26: 0.854873102 | D26: 0.925 | E26: 0.475 | F26: 0 | G26: 5
A27: Emilin1 | B27: 0.00E+00 | C27: 0.848628041 | D27: 0.896 | E27: 0.38 | F27: 0 | G27: 5
A28: Ace2 | B28: 0.00E+00 | C28: 0.820625103 | D28: 0.461 | E28: 0.054 | F28: 0 | G28: 5
A29: Snai2 | B29: 0.00E+00 | C29: 0.819353822 | D29: 0.697 | E29: 0.22 | F29: 0 | G29: 5
A30: Lbh | B30: 0.00E+00 | C30: 0.8124754 | D30: 0.756 | E30: 0.262 | F30: 0 | G30: 5
A31: Ebf1 | B31: 0.00E+00 | C31: 0.793046763 | D31: 0.772 | E31: 0.283 | F31: 0 | G31: 5
A32: Serpine2 | B32: 0.00E+00 | C32: 0.79188959 | D32: 0.739 | E32: 0.34 | F32: 0 | G32: 5
A33: Snhg18 | B33: 0.00E+00 | C33: 0.779964193 | D33: 0.774 | E33: 0.378 | F33: 0 | G33: 5
A34: Eva1b | B34: 0.00E+00 | C34: 0.777084093 | D34: 0.962 | E34: 0.678 | F34: 0 | G34: 5
A35: Lhfp | B35: 0.00E+00 | C35: 0.771048846 | D35: 0.865 | E35: 0.44 | F35: 0 | G35: 5
A36: Gpc3 | B36: 0.00E+00 | C36: 0.761055168 | D36: 0.944 | E36: 0.701 | F36: 0 | G36: 5
A37: Maged2 | B37: 0.00E+00 | C37: 0.760819724 | D37: 0.97 | E37: 0.688 | F37: 0 | G37: 5
A38: Meg3 | B38: 0.00E+00 | C38: 0.755042762 | D38: 0.85 | E38: 0.409 | F38: 0 | G38: 5
A39: Tpm4 | B39: 0.00E+00 | C39: 0.735292742 | D39: 0.964 | E39: 0.765 | F39: 0 | G39: 5
A40: Cfh | B40: 0.00E+00 | C40: 0.728542179 | D40: 0.652 | E40: 0.187 | F40: 0 | G40: 5
A41: Selm | B41: 0.00E+00 | C41: 0.727758309 | D41: 0.896 | E41: 0.489 | F41: 0 | G41: 5
A42: Cygb | B42: 0.00E+00 | C42: 0.71400023 | D42: 0.559 | E42: 0.137 | F42: 0 | G42: 5
A43: Tcf21 | B43: 0.00E+00 | C43: 0.703844084 | D43: 0.524 | E43: 0.166 | F43: 0 | G43: 5
A44: Pcolce | B44: 0.00E+00 | C44: 0.69390934 | D44: 0.638 | E44: 0.179 | F44: 0 | G44: 5
A45: S100a11 | B45: 0.00E+00 | C45: 0.69137387 | D45: 0.997 | E45: 0.849 | F45: 0 | G45: 5
A46: Akap12 | B46: 0.00E+00 | C46: 0.690520691 | D46: 0.724 | E46: 0.301 | F46: 0 | G46: 5
A47: Pid1 | B47: 0.00E+00 | C47: 0.683369156 | D47: 0.581 | E47: 0.173 | F47: 0 | G47: 5
A48: Alx1 | B48: 0.00E+00 | C48: 0.667986586 | D48: 0.388 | E48: 0.054 | F48: 0 | G48: 5
A49: Olfml3 | B49: 0.00E+00 | C49: 0.665355416 | D49: 0.645 | E49: 0.227 | F49: 0 | G49: 5
A50: Anxa5 | B50: 0.00E+00 | C50: 0.656267802 | D50: 0.86 | E50: 0.514 | F50: 0 | G50: 5
A51: G0s2 | B51: 0.00E+00 | C51: 0.64484284 | D51: 0.466 | E51: 0.118 | F51: 0 | G51: 5
A52: Tgfb1i1 | B52: 0.00E+00 | C52: 0.635476449 | D52: 0.555 | E52: 0.148 | F52: 0 | G52: 5
A53: Myl6 | B53: 0.00E+00 | C53: 0.632318837 | D53: 0.997 | E53: 0.926 | F53: 0 | G53: 5
A54: Glipr2 | B54: 0.00E+00 | C54: 0.628065228 | D54: 0.561 | E54: 0.156 | F54: 0 | G54: 5
A55: Col14a1 | B55: 0.00E+00 | C55: 0.624625669 | D55: 0.388 | E55: 0.059 | F55: 0 | G55: 5
A56: Mfap2 | B56: 0.00E+00 | C56: 0.609097603 | D56: 0.99 | E56: 0.807 | F56: 0 | G56: 5
A57: Nkain4 | B57: 0.00E+00 | C57: 0.607420141 | D57: 0.497 | E57: 0.112 | F57: 0 | G57: 5
A58: Vstm4 | B58: 0.00E+00 | C58: 0.591550482 | D58: 0.49 | E58: 0.095 | F58: 0 | G58: 5
A59: Ccdc80 | B59: 0.00E+00 | C59: 0.588146283 | D59: 0.557 | E59: 0.186 | F59: 0 | G59: 5
A60: Ndufa4l2 | B60: 0.00E+00 | C60: 0.549306165 | D60: 0.34 | E60: 0.059 | F60: 0 | G60: 5
A61: Col6a1 | B61: 0.00E+00 | C61: 0.547683966 | D61: 0.467 | E61: 0.115 | F61: 0 | G61: 5
A62: Figf | B62: 0.00E+00 | C62: 0.524318765 | D62: 0.36 | E62: 0.071 | F62: 0 | G62: 5
A63: Gata6 | B63: 0.00E+00 | C63: 0.46789484 | D63: 0.378 | E63: 0.069 | F63: 0 | G63: 5
A64: S1pr3 | B64: 0.00E+00 | C64: 0.458520713 | D64: 0.442 | E64: 0.111 | F64: 0 | G64: 5
A65: Clca3a1 | B65: 0.00E+00 | C65: 0.278177285 | D65: 0.186 | E65: 0.015 | F65: 0 | G65: 5
A66: Serping1 | B66: 1.69E-307 | C66: 0.587328091 | D66: 0.559 | E66: 0.186 | F66: 3.10E-303 | G66: 5
A67: Col6a2 | B67: 4.15E-307 | C67: 0.493762179 | D67: 0.407 | E67: 0.096 | F67: 7.59E-303 | G67: 5
A68: Fn1 | B68: 3.40E-306 | C68: 0.689825843 | D68: 0.795 | E68: 0.397 | F68: 6.21e-302 | G68: 5
A69: Tagln2 | B69: 9.06E-305 | C69: 0.672572558 | D69: 0.758 | E69: 0.38 | F69: 1.66e-300 | G69: 5
A70: Actb | B70: 3.60E-302 | C70: 0.621011877 | D70: 0.999 | E70: 0.949 | F70: 6.58E-298 | G70: 5
A71: Sfrp1 | B71: 1.15E-301 | C71: 0.64751393 | D71: 0.785 | E71: 0.355 | F71: 2.10E-297 | G71: 5
A72: Cd81 | B72: 5.09e-300 | C72: 0.60378768 | D72: 0.977 | E72: 0.812 | F72: 9.30E-296 | G72: 5
A73: Fhl2 | B73: 3.04E-295 | C73: 0.751271543 | D73: 0.758 | E73: 0.352 | F73: 5.55E-291 | G73: 5
A74: Tmsb10 | B74: 4.12E-294 | C74: 0.459543377 | D74: 1 | E74: 0.952 | F74: 7.53E-290 | G74: 5
A75: Gng11 | B75: 5.44E-292 | C75: 0.524298472 | D75: 0.631 | E75: 0.246 | F75: 9.95E-288 | G75: 5
A76: Marcks | B76: 5.23e-287 | C76: 0.617326191 | D76: 0.948 | E76: 0.752 | F76: 9.56E-283 | G76: 5
A77: Serpinh1 | B77: 7.00E-284 | C77: 0.561289233 | D77: 0.992 | E77: 0.876 | F77: 1.28e-279 | G77: 5
A78: Myl12a | B78: 9.11E-282 | C78: 0.591536865 | D78: 0.985 | E78: 0.865 | F78: 1.66E-277 | G78: 5
A79: Penk | B79: 2.88e-277 | C79: 1.180553232 | D79: 0.496 | E79: 0.163 | F79: 5.26E-273 | G79: 5
A80: Rasgrp2 | B80: 1.84E-275 | C80: 0.772779579 | D80: 0.592 | E80: 0.242 | F80: 3.35E-271 | G80: 5
A81: Fblim1 | B81: 9.79E-275 | C81: 0.568028387 | D81: 0.56 | E81: 0.219 | F81: 1.79E-270 | G81: 5
A82: Fbln1 | B82: 1.09e-265 | C82: 0.644821286 | D82: 0.707 | E82: 0.37 | F82: 2.00E-261 | G82: 5
A83: Emp3 | B83: 1.02E-264 | C83: 0.573590115 | D83: 0.87 | E83: 0.519 | F83: 1.86E-260 | G83: 5
A84: Cdh11 | B84: 2.13e-259 | C84: 0.59404141 | D84: 0.766 | E84: 0.442 | F84: 3.89E-255 | G84: 5
A85: Gpx8 | B85: 3.06E-257 | C85: 0.563735489 | D85: 0.842 | E85: 0.576 | F85: 5.58E-253 | G85: 5
A86: Ifitm1 | B86: 1.45e-254 | C86: 0.710147308 | D86: 0.697 | E86: 0.339 | F86: 2.65E-250 | G86: 5
A87: Tmem119 | B87: 3.48E-251 | C87: 0.396670922 | D87: 0.363 | E87: 0.091 | F87: 6.35E-247 | G87: 5
A88: Creb3l1 | B88: 2.35E-250 | C88: 0.394491841 | D88: 0.381 | E88: 0.102 | F88: 4.29E-246 | G88: 5
A89: Anxa6 | B89: 3.97e-250 | C89: 0.551320118 | D89: 0.675 | E89: 0.338 | F89: 7.26e-246 | G89: 5
A90: Mylk | B90: 4.21E-250 | C90: 0.514417471 | D90: 0.527 | E90: 0.195 | F90: 7.68E-246 | G90: 5
A91: Pdgfrb | B91: 1.11E-249 | C91: 0.503631849 | D91: 0.45 | E91: 0.138 | F91: 2.03e-245 | G91: 5
A92: 2019-09-07 | B92: 3.94E-249 | C92: 0.61704104 | D92: 0.887 | E92: 0.679 | F92: 7.20E-245 | G92: 5
A93: Tuba1a | B93: 3.10E-248 | C93: 0.662736757 | D93: 0.948 | E93: 0.788 | F93: 5.67E-244 | G93: 5
A94: Ldb2 | B94: 6.02E-239 | C94: 0.537737261 | D94: 0.541 | E94: 0.205 | F94: 1.10E-234 | G94: 5
A95: Ogn | B95: 1.49E-238 | C95: 0.506480441 | D95: 0.39 | E95: 0.106 | F95: 2.72E-234 | G95: 5
A96: Lox | B96: 7.38E-237 | C96: 0.356610295 | D96: 0.236 | E96: 0.04 | F96: 1.35e-232 | G96: 5
A97: Efemp2 | B97: 7.99E-237 | C97: 0.564694077 | D97: 0.758 | E97: 0.474 | F97: 1.46E-232 | G97: 5
A98: Nid1 | B98: 1.20E-236 | C98: 0.494309523 | D98: 0.501 | E98: 0.183 | F98: 2.20E-232 | G98: 5
A99: Hmgn3 | B99: 2.55e-234 | C99: 0.570522491 | D99: 0.873 | E99: 0.653 | F99: 4.66E-230 | G99: 5
A100: Rcn3 | B100: 1.61e-232 | C100: 0.568975068 | D100: 0.846 | E100: 0.621 | F100: 2.93E-228 | G100: 5
A101: Cd63 | B101: 7.09E-232 | C101: 0.517257638 | D101: 0.977 | E101: 0.836 | F101: 1.30E-227 | G101: 5
A102: Meis1 | B102: 3.89e-228 | C102: 0.517108078 | D102: 0.754 | E102: 0.385 | F102: 7.11E-224 | G102: 5
A103: Hic1 | B103: 9.84E-228 | C103: 0.47186537 | D103: 0.732 | E103: 0.322 | F103: 1.80E-223 | G103: 5
A104: Oaf | B104: 8.43E-225 | C104: 0.54052862 | D104: 0.695 | E104: 0.385 | F104: 1.54e-220 | G104: 5
A105: Sox11 | B105: 2.53E-219 | C105: -0.764080558 | D105: 0.22 | E105: 0.637 | F105: 4.62E-215 | G105: 5
A106: Rarres2 | B106: 1.64E-218 | C106: 0.542098757 | D106: 0.569 | E106: 0.242 | F106: 2.99E-214 | G106: 5
A107: Rsu1 | B107: 2.70E-218 | C107: 0.547007901 | D107: 0.727 | E107: 0.449 | F107: 4.93E-214 | G107: 5
A108: Tpm1 | B108: 1.27e-217 | C108: 0.681074335 | D108: 0.837 | E108: 0.633 | F108: 2.33E-213 | G108: 5
A109: Fstl1 | B109: 2.30E-217 | C109: 0.515057974 | D109: 0.857 | E109: 0.577 | F109: 4.21E-213 | G109: 5
A110: Tagln | B110: 5.51e-213 | C110: 0.362210726 | D110: 0.193 | E110: 0.029 | F110: 1.01e-208 | G110: 5
A111: Ifitm2 | B111: 9.12E-212 | C111: 0.42730748 | D111: 0.996 | E111: 0.89 | F111: 1.67E-207 | G111: 5
A112: Actg1 | B112: 8.76E-208 | C112: 0.419583016 | D112: 1 | E112: 0.924 | F112: 1.60E-203 | G112: 5
A113: Ccnd2 | B113: 1.12e-207 | C113: 0.544095605 | D113: 0.919 | E113: 0.644 | F113: 2.04E-203 | G113: 5
A114: Phgdh | B114: 6.23E-207 | C114: -0.637127296 | D114: 0.197 | E114: 0.616 | F114: 1.14E-202 | G114: 5
A115: Map1lc3a | B115: 5.96E-205 | C115: 0.524725661 | D115: 0.847 | E115: 0.647 | F115: 1.09e-200 | G115: 5
A116: Col6a3 | B116: 7.28E-203 | C116: 0.388672625 | D116: 0.366 | E116: 0.109 | F116: 1.33e-198 | G116: 5
A117: Pbx1 | B117: 2.59E-201 | C117: 0.467648428 | D117: 0.957 | E117: 0.749 | F117: 4.72E-197 | G117: 5
A118: Nenf | B118: 1.51E-200 | C118: 0.46550523 | D118: 0.921 | E118: 0.766 | F118: 2.75E-196 | G118: 5
A119: S100a13 | B119: 4.09E-199 | C119: 0.420832502 | D119: 0.478 | E119: 0.19 | F119: 7.46E-195 | G119: 5
A120: Capns1 | B120: 1.02e-198 | C120: 0.496567093 | D120: 0.888 | E120: 0.719 | F120: 1.87E-194 | G120: 5
A121: Col5a2 | B121: 4.59E-195 | C121: 0.430444398 | D121: 0.465 | E121: 0.173 | F121: 8.39E-191 | G121: 5
A122: Pmp22 | B122: 2.00E-194 | C122: 0.456173051 | D122: 0.421 | E122: 0.146 | F122: 3.65E-190 | G122: 5
A123: Fzd1 | B123: 2.57E-193 | C123: 0.428673867 | D123: 0.484 | E123: 0.196 | F123: 4.69E-189 | G123: 5
A124: Aspn | B124: 3.85E-193 | C124: 0.309989144 | D124: 0.209 | E124: 0.038 | F124: 7.02E-189 | G124: 5
A125: Cnrip1 | B125: 7.08E-193 | C125: 0.416119673 | D125: 0.535 | E125: 0.235 | F125: 1.29e-188 | G125: 5
A126: Col5a1 | B126: 3.46e-192 | C126: 0.379009567 | D126: 0.36 | E126: 0.112 | F126: 6.32E-188 | G126: 5
A127: Cldn11 | B127: 4.88E-192 | C127: 0.581747967 | D127: 0.301 | E127: 0.082 | F127: 8.91E-188 | G127: 5
A128: Lsp1 | B128: 1.33e-191 | C128: 0.57352145 | D128: 0.897 | E128: 0.65 | F128: 2.43E-187 | G128: 5
A129: Nfia | B129: 1.64E-191 | C129: 0.46267111 | D129: 0.586 | E129: 0.263 | F129: 3.00E-187 | G129: 5
A130: Gnas | B130: 1.16e-190 | C130: 0.379390353 | D130: 0.999 | E130: 0.965 | F130: 2.12e-186 | G130: 5
A131: Igfbp4 | B131: 1.75e-190 | C131: 0.506041152 | D131: 0.894 | E131: 0.715 | F131: 3.19E-186 | G131: 5
A132: Gabarap | B132: 4.43E-189 | C132: 0.427636924 | D132: 0.98 | E132: 0.917 | F132: 8.10E-185 | G132: 5
A133: Lrp1 | B133: 1.42E-188 | C133: 0.431407961 | D133: 0.481 | E133: 0.201 | F133: 2.59E-184 | G133: 5
A134: Lgals9 | B134: 3.06E-184 | C134: 0.319759743 | D134: 0.281 | E134: 0.071 | F134: 5.58E-180 | G134: 5
A135: Laptm4a | B135: 3.82E-182 | C135: 0.462771902 | D135: 0.929 | E135: 0.795 | F135: 6.98E-178 | G135: 5
A136: Kdelr3 | B136: 2.73E-181 | C136: 0.398738704 | D136: 0.419 | E136: 0.157 | F136: 4.98e-177 | G136: 5
A137: Ilk | B137: 3.02E-181 | C137: 0.491928858 | D137: 0.739 | E137: 0.506 | F137: 5.52E-177 | G137: 5
A138: Rbp1 | B138: 8.69E-179 | C138: 0.43998054 | D138: 0.976 | E138: 0.843 | F138: 1.59E-174 | G138: 5
A139: Flna | B139: 6.98E-178 | C139: 0.521794775 | D139: 0.734 | E139: 0.513 | F139: 1.27E-173 | G139: 5
A140: 2019-09-11 | B140: 9.64E-175 | C140: 0.562828223 | D140: 0.694 | E140: 0.467 | F140: 1.76E-170 | G140: 5
A141: Hist3h2ba | B141: 1.44e-174 | C141: -0.564915086 | D141: 0.099 | E141: 0.489 | F141: 2.64E-170 | G141: 5
A142: Ech1 | B142: 3.17e-173 | C142: 0.483463321 | D142: 0.684 | E142: 0.442 | F142: 5.79E-169 | G142: 5
A143: Uncx | B143: 2.64E-172 | C143: -0.710405045 | D143: 0.024 | E143: 0.387 | F143: 4.82E-168 | G143: 5
A144: Pax2 | B144: 7.45E-172 | C144: -0.542539965 | D144: 0.023 | E144: 0.387 | F144: 1.36E-167 | G144: 5
A145: Timp3 | B145: 1.18e-171 | C145: 0.4795495 | D145: 0.518 | E145: 0.225 | F145: 2.15E-167 | G145: 5
A146: Fkbp1a | B146: 1.45E-171 | C146: 0.377620617 | D146: 0.987 | E146: 0.883 | F146: 2.65e-167 | G146: 5
A147: Gapdh | B147: 2.68E-171 | C147: -0.481715571 | D147: 0.966 | E147: 0.94 | F147: 4.89E-167 | G147: 5
A148: Fam212a | B148: 1.16E-170 | C148: 0.41129489 | D148: 0.55 | E148: 0.25 | F148: 2.12e-166 | G148: 5
A149: Ppp1r14a | B149: 1.48e-170 | C149: 0.451607584 | D149: 0.415 | E149: 0.161 | F149: 2.70E-166 | G149: 5
A150: Fbn1 | B150: 1.45E-169 | C150: 0.417242312 | D150: 0.442 | E150: 0.184 | F150: 2.64E-165 | G150: 5
A151: Rhoj | B151: 3.35E-169 | C151: 0.342485279 | D151: 0.356 | E151: 0.119 | F151: 6.11E-165 | G151: 5
A152: Mdfi | B152: 4.89E-167 | C152: 0.418370602 | D152: 0.533 | E152: 0.256 | F152: 8.93E-163 | G152: 5
A153: Arap1 | B153: 7.64E-167 | C153: 0.367019437 | D153: 0.434 | E153: 0.168 | F153: 1.40E-162 | G153: 5
A154: Sepw1 | B154: 1.54E-166 | C154: 0.373471112 | D154: 0.997 | E154: 0.942 | F154: 2.81E-162 | G154: 5
A155: Lrrc17 | B155: 1.28E-164 | C155: 0.344641472 | D155: 0.375 | E155: 0.131 | F155: 2.33E-160 | G155: 5
A156: Adm | B156: 8.55E-164 | C156: 0.324378548 | D156: 0.196 | E156: 0.039 | F156: 1.56e-159 | G156: 5
A157: Id3 | B157: 1.03e-163 | C157: 0.51326496 | D157: 0.962 | E157: 0.836 | F157: 1.87E-159 | G157: 5
A158: Alcam | B158: 9.45E-162 | C158: 0.535504619 | D158: 0.786 | E158: 0.531 | F158: 1.73E-157 | G158: 5
A159: Cdc42ep5 | B159: 4.03E-161 | C159: 0.412469229 | D159: 0.471 | E159: 0.211 | F159: 7.35E-157 | G159: 5
A160: Cdc42 | B160: 6.64E-161 | C160: 0.397985749 | D160: 0.96 | E160: 0.85 | F160: 1.21E-156 | G160: 5
A161: Cmtm3 | B161: 2.62E-160 | C161: 0.439218262 | D161: 0.717 | E161: 0.487 | F161: 4.78E-156 | G161: 5
A162: Arf4 | B162: 3.97e-158 | C162: 0.416923758 | D162: 0.91 | E162: 0.785 | F162: 7.26E-154 | G162: 5
A163: Frem1 | B163: 6.79E-158 | C163: 0.330358977 | D163: 0.35 | E163: 0.125 | F163: 1.24E-153 | G163: 5
A164: Sepp1 | B164: 7.98E-158 | C164: 0.385147242 | D164: 0.756 | E164: 0.46 | F164: 1.46E-153 | G164: 5
A165: Gucy1b3 | B165: 1.04e-157 | C165: 0.308535311 | D165: 0.293 | E165: 0.087 | F165: 1.90E-153 | G165: 5
A166: Rspo1 | B166: 2.57E-157 | C166: -0.589516356 | D166: 0.029 | E166: 0.372 | F166: 4.70E-153 | G166: 5
A167: Ppic | B167: 3.23E-157 | C167: 0.438515297 | D167: 0.831 | E167: 0.651 | F167: 5.91E-153 | G167: 5
A168: Cyr61 | B168: 4.77E-157 | C168: 0.508277202 | D168: 0.34 | E168: 0.115 | F168: 8.72E-153 | G168: 5
A169: Rhoc | B169: 1.71E-152 | C169: 0.413305191 | D169: 0.764 | E169: 0.548 | F169: 3.13E-148 | G169: 5
A170: Cd24a | B170: 2.84E-150 | C170: -0.625455245 | D170: 0.605 | E170: 0.835 | F170: 5.19E-146 | G170: 5
A171: Tax1bp3 | B171: 3.22E-150 | C171: 0.454298205 | D171: 0.706 | E171: 0.5 | F171: 5.89E-146 | G171: 5
A172: 1810058I24Rik | B172: 6.16E-150 | C172: 0.391676426 | D172: 0.918 | E172: 0.85 | F172: 1.13e-145 | G172: 5
A173: Ppib | B173: 8.52E-150 | C173: 0.379107711 | D173: 0.979 | E173: 0.869 | F173: 1.56e-145 | G173: 5
A174: Arf5 | B174: 2.28E-149 | C174: 0.349516215 | D174: 0.971 | E174: 0.923 | F174: 4.17E-145 | G174: 5
A175: Mxd4 | B175: 9.52E-146 | C175: 0.452003568 | D175: 0.679 | E175: 0.453 | F175: 1.74E-141 | G175: 5
A176: Actn1 | B176: 1.31e-145 | C176: 0.43715946 | D176: 0.618 | E176: 0.38 | F176: 2.40E-141 | G176: 5
A177: Dlc1 | B177: 6.57E-145 | C177: 0.429307979 | D177: 0.499 | E177: 0.254 | F177: 1.20E-140 | G177: 5
A178: Ptrf | B178: 2.18E-144 | C178: 0.269808646 | D178: 0.288 | E178: 0.089 | F178: 3.98E-140 | G178: 5
A179: Vcam1 | B179: 2.47E-144 | C179: 0.257733981 | D179: 0.196 | E179: 0.045 | F179: 4.51e-140 | G179: 5
A180: Hist1h2ap | B180: 3.25e-143 | C180: -1.443099293 | D180: 0.151 | E180: 0.473 | F180: 5.93E-139 | G180: 5
A181: Morf4l1 | B181: 9.17E-142 | C181: 0.351856351 | D181: 0.984 | E181: 0.888 | F181: 1.68E-137 | G181: 5
A182: Tspan4 | B182: 2.64e-140 | C182: 0.453191644 | D182: 0.566 | E182: 0.325 | F182: 4.82E-136 | G182: 5
A183: Dstn | B183: 1.91e-139 | C183: 0.419202595 | D183: 0.915 | E183: 0.798 | F183: 3.49E-135 | G183: 5
A184: Tmem45a | B184: 4.67E-139 | C184: 0.262939102 | D184: 0.287 | E184: 0.091 | F184: 8.52E-135 | G184: 5
A185: Matn2 | B185: 4.92E-139 | C185: 0.278381394 | D185: 0.271 | E185: 0.081 | F185: 8.99E-135 | G185: 5
A186: Aes | B186: 6.09E-139 | C186: -0.483624315 | D186: 0.503 | E186: 0.766 | F186: 1.11e-134 | G186: 5
A187: Copz2 | B187: 2.11e-138 | C187: 0.412209117 | D187: 0.62 | E187: 0.393 | F187: 3.86E-134 | G187: 5
A188: Ahnak | B188: 4.50E-138 | C188: 0.31983706 | D188: 0.324 | E188: 0.113 | F188: 8.21e-134 | G188: 5
A189: Rcn1 | B189: 7.95E-138 | C189: 0.396326946 | D189: 0.811 | E189: 0.614 | F189: 1.45E-133 | G189: 5
A190: Sdc2 | B190: 9.42E-138 | C190: 0.464399229 | D190: 0.46 | E190: 0.227 | F190: 1.72E-133 | G190: 5
A191: Pde3a | B191: 2.23E-137 | C191: 0.302657615 | D191: 0.299 | E191: 0.101 | F191: 4.07E-133 | G191: 5
A192: Mmp2 | B192: 9.73E-136 | C192: 0.388130688 | D192: 0.499 | E192: 0.257 | F192: 1.78E-131 | G192: 5
A193: Ostc | B193: 2.23E-135 | C193: 0.381384554 | D193: 0.923 | E193: 0.806 | F193: 4.07E-131 | G193: 5
A194: Pfdn5 | B194: 4.75e-135 | C194: 0.310512575 | D194: 0.999 | E194: 0.917 | F194: 8.67E-131 | G194: 5
A195: Bex4 | B195: 1.82E-134 | C195: -0.477415078 | D195: 0.04 | E195: 0.352 | F195: 3.33E-130 | G195: 5
A196: Pth1r | B196: 2.44E-134 | C196: 0.336576264 | D196: 0.393 | E196: 0.17 | F196: 4.46E-130 | G196: 5
A197: Emp1 | B197: 5.66E-132 | C197: 0.350421834 | D197: 0.442 | E197: 0.195 | F197: 1.03e-127 | G197: 5
A198: Rrbp1 | B198: 1.16E-131 | C198: 0.417958075 | D198: 0.764 | E198: 0.587 | F198: 2.12E-127 | G198: 5
A199: Bex1 | B199: 2.44E-131 | C199: -0.505960241 | D199: 0.04 | E199: 0.347 | F199: 4.46E-127 | G199: 5
A200: Gpx7 | B200: 1.95e-130 | C200: 0.443109169 | D200: 0.569 | E200: 0.349 | F200: 3.56E-126 | G200: 5
... 340 more rows

Sheet 6
A1: Symbol | B1: p_val | C1: avg_logFC | D1: pct.1 | E1: pct.2 | F1: p_val_adj | G1: cluster
A2: Hba-a1 | B2: 0.00E+00 | C2: 2.967667521 | D2: 1 | E2: 0.899 | F2: 0 | G2: 6
A3: Hbb-bs | B3: 0.00E+00 | C3: 2.900746913 | D3: 1 | E3: 0.937 | F3: 0 | G3: 6
A4: Hba-a2 | B4: 0.00E+00 | C4: 2.785262565 | D4: 1 | E4: 0.526 | F4: 0 | G4: 6
A5: Hbb-bt | B5: 0.00E+00 | C5: 2.771876947 | D5: 1 | E5: 0.718 | F5: 0 | G5: 6
A6: Alas2 | B6: 0.00E+00 | C6: 2.228229427 | D6: 0.982 | E6: 0.099 | F6: 0 | G6: 6
A7: Mkrn1 | B7: 0.00E+00 | C7: 1.589635835 | D7: 0.948 | E7: 0.425 | F7: 0 | G7: 6
A8: Snca | B8: 0.00E+00 | C8: 1.435065752 | D8: 0.796 | E8: 0.089 | F8: 0 | G8: 6
A9: Fech | B9: 0.00E+00 | C9: 1.307302026 | D9: 0.863 | E9: 0.249 | F9: 0 | G9: 6
A10: Ube2l6 | B10: 0.00E+00 | C10: 1.000079231 | D10: 0.735 | E10: 0.166 | F10: 0 | G10: 6
A11: Fam220a | B11: 0.00E+00 | C11: 0.841325616 | D11: 0.822 | E11: 0.47 | F11: 0 | G11: 6
A12: 2019-03-02 | B12: 0.00E+00 | C12: 0.812832389 | D12: 0.779 | E12: 0.379 | F12: 0 | G12: 6
A13: Oaz1 | B13: 0.00E+00 | C13: -0.613532511 | D13: 0.99 | E13: 0.999 | F13: 0 | G13: 6
A14: Dctn3 | B14: 0.00E+00 | C14: -0.695919541 | D14: 0.028 | E14: 0.651 | F14: 0 | G14: 6
A15: Mrpl27 | B15: 0.00E+00 | C15: -0.700900484 | D15: 0.018 | E15: 0.652 | F15: 0 | G15: 6
A16: Ube2v2 | B16: 0.00E+00 | C16: -0.700967045 | D16: 0.015 | E16: 0.64 | F16: 0 | G16: 6
A17: Nap1l4 | B17: 0.00E+00 | C17: -0.70182424 | D17: 0.023 | E17: 0.652 | F17: 0 | G17: 6
A18: Zfand6 | B18: 0.00E+00 | C18: -0.70256465 | D18: 0.055 | E18: 0.68 | F18: 0 | G18: 6
A19: Rab7 | B19: 0.00E+00 | C19: -0.706146754 | D19: 0.021 | E19: 0.648 | F19: 0 | G19: 6
A20: Mrps7 | B20: 0.00E+00 | C20: -0.708287985 | D20: 0.026 | E20: 0.657 | F20: 0 | G20: 6
A21: Cops4 | B21: 0.00E+00 | C21: -0.708925582 | D21: 0.032 | E21: 0.657 | F21: 0 | G21: 6
A22: Coq7 | B22: 0.00E+00 | C22: -0.713524156 | D22: 0.025 | E22: 0.649 | F22: 0 | G22: 6
A23: Mydgf | B23: 0.00E+00 | C23: -0.714158689 | D23: 0.025 | E23: 0.656 | F23: 0 | G23: 6
A24: BC031181 | B24: 0.00E+00 | C24: -0.714202991 | D24: 0.017 | E24: 0.642 | F24: 0 | G24: 6
A25: Tcf25 | B25: 0.00E+00 | C25: -0.716272374 | D25: 0.025 | E25: 0.651 | F25: 0 | G25: 6
A26: Mrps18c | B26: 0.00E+00 | C26: -0.717483342 | D26: 0.031 | E26: 0.665 | F26: 0 | G26: 6
A27: Clns1a | B27: 0.00E+00 | C27: -0.718108079 | D27: 0.019 | E27: 0.648 | F27: 0 | G27: 6
A28: Rer1 | B28: 0.00E+00 | C28: -0.719088004 | D28: 0.018 | E28: 0.648 | F28: 0 | G28: 6
A29: Rbbp6 | B29: 0.00E+00 | C29: -0.719409574 | D29: 0.02 | E29: 0.648 | F29: 0 | G29: 6
A30: Snrnp40 | B30: 0.00E+00 | C30: -0.719696797 | D30: 0.019 | E30: 0.644 | F30: 0 | G30: 6
A31: Ralbp1 | B31: 0.00E+00 | C31: -0.719795636 | D31: 0.036 | E31: 0.665 | F31: 0 | G31: 6
A32: Polr2h | B32: 0.00E+00 | C32: -0.720296682 | D32: 0.033 | E32: 0.661 | F32: 0 | G32: 6
A33: Ociad1 | B33: 0.00E+00 | C33: -0.721228302 | D33: 0.026 | E33: 0.667 | F33: 0 | G33: 6
A34: Ap3s1 | B34: 0.00E+00 | C34: -0.722950486 | D34: 0.054 | E34: 0.67 | F34: 0 | G34: 6
A35: Sssca1 | B35: 0.00E+00 | C35: -0.722955941 | D35: 0.025 | E35: 0.646 | F35: 0 | G35: 6
A36: Matr3 | B36: 0.00E+00 | C36: -0.723239355 | D36: 0.022 | E36: 0.653 | F36: 0 | G36: 6
A37: Sdhc | B37: 0.00E+00 | C37: -0.726794667 | D37: 0.02 | E37: 0.667 | F37: 0 | G37: 6
A38: Grpel1 | B38: 0.00E+00 | C38: -0.727137697 | D38: 0.025 | E38: 0.668 | F38: 0 | G38: 6
A39: Cops5 | B39: 0.00E+00 | C39: -0.729400653 | D39: 0.019 | E39: 0.659 | F39: 0 | G39: 6
A40: Mrps36 | B40: 0.00E+00 | C40: -0.729994866 | D40: 0.043 | E40: 0.662 | F40: 0 | G40: 6
A41: Klhdc2 | B41: 0.00E+00 | C41: -0.730294399 | D41: 0.027 | E41: 0.665 | F41: 0 | G41: 6
A42: Rrp1 | B42: 0.00E+00 | C42: -0.730926318 | D42: 0.027 | E42: 0.663 | F42: 0 | G42: 6
A43: Gipc1 | B43: 0.00E+00 | C43: -0.73172989 | D43: 0.022 | E43: 0.648 | F43: 0 | G43: 6
A44: Dph3 | B44: 0.00E+00 | C44: -0.732279126 | D44: 0.067 | E44: 0.684 | F44: 0 | G44: 6
A45: Pnkd | B45: 0.00E+00 | C45: -0.733313968 | D45: 0.021 | E45: 0.67 | F45: 0 | G45: 6
A46: Glo1 | B46: 0.00E+00 | C46: -0.734546188 | D46: 0.094 | E46: 0.72 | F46: 0 | G46: 6
A47: Mrpl13 | B47: 0.00E+00 | C47: -0.735187775 | D47: 0.024 | E47: 0.661 | F47: 0 | G47: 6
A48: Psmc5 | B48: 0.00E+00 | C48: -0.736036758 | D48: 0.036 | E48: 0.662 | F48: 0 | G48: 6
A49: Smim7 | B49: 0.00E+00 | C49: -0.736939293 | D49: 0.022 | E49: 0.664 | F49: 0 | G49: 6
A50: Mrps15 | B50: 0.00E+00 | C50: -0.737501201 | D50: 0.025 | E50: 0.669 | F50: 0 | G50: 6
A51: Dnajb6 | B51: 0.00E+00 | C51: -0.738288446 | D51: 0.135 | E51: 0.756 | F51: 0 | G51: 6
A52: Trappc1 | B52: 0.00E+00 | C52: -0.739105589 | D52: 0.025 | E52: 0.673 | F52: 0 | G52: 6
A53: Actl6a | B53: 0.00E+00 | C53: -0.739295783 | D53: 0.018 | E53: 0.657 | F53: 0 | G53: 6
A54: Timm17a | B54: 0.00E+00 | C54: -0.739556311 | D54: 0.031 | E54: 0.673 | F54: 0 | G54: 6
A55: Tm2d2 | B55: 0.00E+00 | C55: -0.739640154 | D55: 0.018 | E55: 0.67 | F55: 0 | G55: 6
A56: Imp3 | B56: 0.00E+00 | C56: -0.740262175 | D56: 0.018 | E56: 0.66 | F56: 0 | G56: 6
A57: Ahsa1 | B57: 0.00E+00 | C57: -0.740400262 | D57: 0.059 | E57: 0.68 | F57: 0 | G57: 6
A58: Tmem147 | B58: 0.00E+00 | C58: -0.742467379 | D58: 0.023 | E58: 0.647 | F58: 0 | G58: 6
A59: Scp2 | B59: 0.00E+00 | C59: -0.743218678 | D59: 0.039 | E59: 0.685 | F59: 0 | G59: 6
A60: Rab18 | B60: 0.00E+00 | C60: -0.744198563 | D60: 0.018 | E60: 0.667 | F60: 0 | G60: 6
A61: Dgcr6 | B61: 0.00E+00 | C61: -0.746067585 | D61: 0.016 | E61: 0.672 | F61: 0 | G61: 6
A62: Ppp2ca | B62: 0.00E+00 | C62: -0.746592517 | D62: 0.033 | E62: 0.671 | F62: 0 | G62: 6
A63: Psenen | B63: 0.00E+00 | C63: -0.747238497 | D63: 0.154 | E63: 0.763 | F63: 0 | G63: 6
A64: Canx | B64: 0.00E+00 | C64: -0.747430002 | D64: 0.03 | E64: 0.659 | F64: 0 | G64: 6
A65: Prpf40a | B65: 0.00E+00 | C65: -0.74745686 | D65: 0.024 | E65: 0.667 | F65: 0 | G65: 6
A66: Psmd4 | B66: 0.00E+00 | C66: -0.748816106 | D66: 0.192 | E66: 0.785 | F66: 0 | G66: 6
A67: Polr2g | B67: 0.00E+00 | C67: -0.749112876 | D67: 0.027 | E67: 0.676 | F67: 0 | G67: 6
A68: Psmg4 | B68: 0.00E+00 | C68: -0.750181357 | D68: 0.023 | E68: 0.662 | F68: 0 | G68: 6
A69: Ube3a | B69: 0.00E+00 | C69: -0.751412749 | D69: 0.017 | E69: 0.66 | F69: 0 | G69: 6
A70: Nol7 | B70: 0.00E+00 | C70: -0.751851342 | D70: 0.03 | E70: 0.659 | F70: 0 | G70: 6
A71: Gm16286 | B71: 0.00E+00 | C71: -0.752668333 | D71: 0.023 | E71: 0.677 | F71: 0 | G71: 6
A72: Galk1 | B72: 0.00E+00 | C72: -0.753401583 | D72: 0.025 | E72: 0.659 | F72: 0 | G72: 6
A73: Wbp1 | B73: 0.00E+00 | C73: -0.753420777 | D73: 0.031 | E73: 0.665 | F73: 0 | G73: 6
A74: Caprin1 | B74: 0.00E+00 | C74: -0.75670188 | D74: 0.032 | E74: 0.673 | F74: 0 | G74: 6
A75: Mtch2 | B75: 0.00E+00 | C75: -0.756972066 | D75: 0.04 | E75: 0.684 | F75: 0 | G75: 6
A76: Pbrm1 | B76: 0.00E+00 | C76: -0.757151722 | D76: 0.016 | E76: 0.656 | F76: 0 | G76: 6
A77: Nsmce4a | B77: 0.00E+00 | C77: -0.757686414 | D77: 0.028 | E77: 0.66 | F77: 0 | G77: 6
A78: Tra2a | B78: 0.00E+00 | C78: -0.75845751 | D78: 0.013 | E78: 0.645 | F78: 0 | G78: 6
A79: Ak2 | B79: 0.00E+00 | C79: -0.75903239 | D79: 0.022 | E79: 0.662 | F79: 0 | G79: 6
A80: Rala | B80: 0.00E+00 | C80: -0.759062504 | D80: 0.021 | E80: 0.659 | F80: 0 | G80: 6
A81: Knop1 | B81: 0.00E+00 | C81: -0.759344012 | D81: 0.018 | E81: 0.652 | F81: 0 | G81: 6
A82: Txndc9 | B82: 0.00E+00 | C82: -0.760857159 | D82: 0.018 | E82: 0.677 | F82: 0 | G82: 6
A83: Uqcc3 | B83: 0.00E+00 | C83: -0.761212711 | D83: 0.023 | E83: 0.683 | F83: 0 | G83: 6
A84: Spag7 | B84: 0.00E+00 | C84: -0.761365907 | D84: 0.027 | E84: 0.682 | F84: 0 | G84: 6
A85: Zmat2 | B85: 0.00E+00 | C85: -0.765174479 | D85: 0.052 | E85: 0.705 | F85: 0 | G85: 6
A86: Rp9 | B86: 0.00E+00 | C86: -0.765602288 | D86: 0.02 | E86: 0.669 | F86: 0 | G86: 6
A87: Plekhj1 | B87: 0.00E+00 | C87: -0.765668123 | D87: 0.039 | E87: 0.688 | F87: 0 | G87: 6
A88: Immp1l | B88: 0.00E+00 | C88: -0.767339208 | D88: 0.037 | E88: 0.695 | F88: 0 | G88: 6
A89: Copz1 | B89: 0.00E+00 | C89: -0.76768606 | D89: 0.037 | E89: 0.702 | F89: 0 | G89: 6
A90: Mrpl21 | B90: 0.00E+00 | C90: -0.7691851 | D90: 0.02 | E90: 0.677 | F90: 0 | G90: 6
A91: Adh5 | B91: 0.00E+00 | C91: -0.76919259 | D91: 0.034 | E91: 0.682 | F91: 0 | G91: 6
A92: Tmem14c | B92: 0.00E+00 | C92: -0.769323796 | D92: 0.018 | E92: 0.666 | F92: 0 | G92: 6
A93: Ywhaz | B93: 0.00E+00 | C93: -0.769781591 | D93: 0.079 | E93: 0.706 | F93: 0 | G93: 6
A94: Arl2bp | B94: 0.00E+00 | C94: -0.770242163 | D94: 0.064 | E94: 0.708 | F94: 0 | G94: 6
A95: Ptbp1 | B95: 0.00E+00 | C95: -0.77152953 | D95: 0.026 | E95: 0.68 | F95: 0 | G95: 6
A96: Polr2c | B96: 0.00E+00 | C96: -0.771809557 | D96: 0.071 | E96: 0.722 | F96: 0 | G96: 6
A97: Aurkaip1 | B97: 0.00E+00 | C97: -0.772083387 | D97: 0.047 | E97: 0.696 | F97: 0 | G97: 6
A98: Psmc4 | B98: 0.00E+00 | C98: -0.773314294 | D98: 0.035 | E98: 0.681 | F98: 0 | G98: 6
A99: Ssr3 | B99: 0.00E+00 | C99: -0.774157293 | D99: 0.026 | E99: 0.679 | F99: 0 | G99: 6
A100: Ubap2l | B100: 0.00E+00 | C100: -0.774383242 | D100: 0.015 | E100: 0.68 | F100: 0 | G100: 6
A101: Ccnd3 | B101: 0.00E+00 | C101: -0.774473596 | D101: 0.07 | E101: 0.691 | F101: 0 | G101: 6
A102: Rtn4 | B102: 0.00E+00 | C102: -0.774749857 | D102: 0.019 | E102: 0.674 | F102: 0 | G102: 6
A103: Echs1 | B103: 0.00E+00 | C103: -0.775085122 | D103: 0.02 | E103: 0.682 | F103: 0 | G103: 6
A104: Tmem50a | B104: 0.00E+00 | C104: -0.776621281 | D104: 0.019 | E104: 0.683 | F104: 0 | G104: 6
A105: Ebna1bp2 | B105: 0.00E+00 | C105: -0.776809276 | D105: 0.021 | E105: 0.676 | F105: 0 | G105: 6
A106: Sys1 | B106: 0.00E+00 | C106: -0.776946133 | D106: 0.022 | E106: 0.69 | F106: 0 | G106: 6
A107: Ddost | B107: 0.00E+00 | C107: -0.777689138 | D107: 0.03 | E107: 0.683 | F107: 0 | G107: 6
A108: Mrps12 | B108: 0.00E+00 | C108: -0.779887198 | D108: 0.027 | E108: 0.691 | F108: 0 | G108: 6
A109: Smarcc1 | B109: 0.00E+00 | C109: -0.780337749 | D109: 0.03 | E109: 0.673 | F109: 0 | G109: 6
A110: Sf3b4 | B110: 0.00E+00 | C110: -0.780937821 | D110: 0.025 | E110: 0.684 | F110: 0 | G110: 6
A111: Fundc2 | B111: 0.00E+00 | C111: -0.781168409 | D111: 0.118 | E111: 0.736 | F111: 0 | G111: 6
A112: Alyref | B112: 0.00E+00 | C112: -0.783306772 | D112: 0.022 | E112: 0.642 | F112: 0 | G112: 6
A113: Ift20 | B113: 0.00E+00 | C113: -0.783520836 | D113: 0.09 | E113: 0.732 | F113: 0 | G113: 6
A114: Mrps18a | B114: 0.00E+00 | C114: -0.783972991 | D114: 0.035 | E114: 0.701 | F114: 0 | G114: 6
A115: Drap1 | B115: 0.00E+00 | C115: -0.7845518 | D115: 0.023 | E115: 0.693 | F115: 0 | G115: 6
A116: Naa38 | B116: 0.00E+00 | C116: -0.784772735 | D116: 0.07 | E116: 0.718 | F116: 0 | G116: 6
A117: Rcn2 | B117: 0.00E+00 | C117: -0.784774381 | D117: 0.018 | E117: 0.676 | F117: 0 | G117: 6
A118: Phb | B118: 0.00E+00 | C118: -0.784825177 | D118: 0.031 | E118: 0.684 | F118: 0 | G118: 6
A119: Ufc1 | B119: 0.00E+00 | C119: -0.78541375 | D119: 0.03 | E119: 0.705 | F119: 0 | G119: 6
A120: Ccdc12 | B120: 0.00E+00 | C120: -0.785636807 | D120: 0.021 | E120: 0.688 | F120: 0 | G120: 6
A121: Eif4b | B121: 0.00E+00 | C121: -0.786435811 | D121: 0.033 | E121: 0.686 | F121: 0 | G121: 6
A122: Ergic3 | B122: 0.00E+00 | C122: -0.788251394 | D122: 0.034 | E122: 0.688 | F122: 0 | G122: 6
A123: Ankrd11 | B123: 0.00E+00 | C123: -0.788343687 | D123: 0.018 | E123: 0.659 | F123: 0 | G123: 6
A124: Hdac2 | B124: 0.00E+00 | C124: -0.78978976 | D124: 0.028 | E124: 0.69 | F124: 0 | G124: 6
A125: Prpf19 | B125: 0.00E+00 | C125: -0.790319792 | D125: 0.039 | E125: 0.704 | F125: 0 | G125: 6
A126: Gar1 | B126: 0.00E+00 | C126: -0.791386799 | D126: 0.025 | E126: 0.667 | F126: 0 | G126: 6
A127: B230219D22Rik | B127: 0.00E+00 | C127: -0.792017857 | D127: 0.016 | E127: 0.671 | F127: 0 | G127: 6
A128: Stra13 | B128: 0.00E+00 | C128: -0.792073131 | D128: 0.034 | E128: 0.68 | F128: 0 | G128: 6
A129: Sae1 | B129: 0.00E+00 | C129: -0.792199086 | D129: 0.033 | E129: 0.676 | F129: 0 | G129: 6
A130: Mrpl11 | B130: 0.00E+00 | C130: -0.792755962 | D130: 0.027 | E130: 0.699 | F130: 0 | G130: 6
A131: Chtop | B131: 0.00E+00 | C131: -0.793462187 | D131: 0.029 | E131: 0.698 | F131: 0 | G131: 6
A132: Tbcb | B132: 0.00E+00 | C132: -0.793567193 | D132: 0.026 | E132: 0.694 | F132: 0 | G132: 6
A133: Guk1 | B133: 0.00E+00 | C133: -0.79417759 | D133: 0.033 | E133: 0.702 | F133: 0 | G133: 6
A134: Rpl7l1 | B134: 0.00E+00 | C134: -0.794807945 | D134: 0.023 | E134: 0.69 | F134: 0 | G134: 6
A135: Txnl1 | B135: 0.00E+00 | C135: -0.79518035 | D135: 0.059 | E135: 0.713 | F135: 0 | G135: 6
A136: Ssna1 | B136: 0.00E+00 | C136: -0.797324925 | D136: 0.038 | E136: 0.698 | F136: 0 | G136: 6
A137: Ube2e3 | B137: 0.00E+00 | C137: -0.797649924 | D137: 0.372 | E137: 0.888 | F137: 0 | G137: 6
A138: Grcc10 | B138: 0.00E+00 | C138: -0.798619528 | D138: 0.033 | E138: 0.706 | F138: 0 | G138: 6
A139: Arpc5l | B139: 0.00E+00 | C139: -0.798761371 | D139: 0.023 | E139: 0.688 | F139: 0 | G139: 6
A140: Sdhd | B140: 0.00E+00 | C140: -0.800011116 | D140: 0.017 | E140: 0.695 | F140: 0 | G140: 6
A141: Srsf10 | B141: 0.00E+00 | C141: -0.8004168 | D141: 0.027 | E141: 0.689 | F141: 0 | G141: 6
A142: Pole4 | B142: 0.00E+00 | C142: -0.803580065 | D142: 0.045 | E142: 0.698 | F142: 0 | G142: 6
A143: P4hb | B143: 0.00E+00 | C143: -0.805407386 | D143: 0.057 | E143: 0.702 | F143: 0 | G143: 6
A144: Fam92a | B144: 0.00E+00 | C144: -0.805773158 | D144: 0.018 | E144: 0.7 | F144: 0 | G144: 6
A145: Arpc3 | B145: 0.00E+00 | C145: -0.806923579 | D145: 0.074 | E145: 0.724 | F145: 0 | G145: 6
A146: Suclg1 | B146: 0.00E+00 | C146: -0.808050075 | D146: 0.029 | E146: 0.707 | F146: 0 | G146: 6
A147: Nop56 | B147: 0.00E+00 | C147: -0.808507379 | D147: 0.035 | E147: 0.671 | F147: 0 | G147: 6
A148: Srsf9 | B148: 0.00E+00 | C148: -0.808840965 | D148: 0.021 | E148: 0.699 | F148: 0 | G148: 6
A149: Prkar1a | B149: 0.00E+00 | C149: -0.808870926 | D149: 0.034 | E149: 0.699 | F149: 0 | G149: 6
A150: Stoml2 | B150: 0.00E+00 | C150: -0.80978084 | D150: 0.037 | E150: 0.716 | F150: 0 | G150: 6
A151: Snrnp70 | B151: 0.00E+00 | C151: -0.812121003 | D151: 0.029 | E151: 0.702 | F151: 0 | G151: 6
A152: Pcbp4 | B152: 0.00E+00 | C152: -0.813146829 | D152: 0.03 | E152: 0.656 | F152: 0 | G152: 6
A153: Kif5b | B153: 0.00E+00 | C153: -0.813983184 | D153: 0.023 | E153: 0.688 | F153: 0 | G153: 6
A154: 2810428I15Rik | B154: 0.00E+00 | C154: -0.815202538 | D154: 0.087 | E154: 0.742 | F154: 0 | G154: 6
A155: Txnl4a | B155: 0.00E+00 | C155: -0.816063004 | D155: 0.054 | E155: 0.709 | F155: 0 | G155: 6
A156: Uqcrc2 | B156: 0.00E+00 | C156: -0.816205146 | D156: 0.047 | E156: 0.71 | F156: 0 | G156: 6
A157: Smc6 | B157: 0.00E+00 | C157: -0.817131019 | D157: 0.018 | E157: 0.665 | F157: 0 | G157: 6
A158: Gm1673 | B158: 0.00E+00 | C158: -0.817604828 | D158: 0.031 | E158: 0.664 | F158: 0 | G158: 6
A159: Hspa9 | B159: 0.00E+00 | C159: -0.818117517 | D159: 0.033 | E159: 0.699 | F159: 0 | G159: 6
A160: Rtf1 | B160: 0.00E+00 | C160: -0.820417322 | D160: 0.029 | E160: 0.702 | F160: 0 | G160: 6
A161: 1810037I17Rik | B161: 0.00E+00 | C161: -0.821417017 | D161: 0.041 | E161: 0.688 | F161: 0 | G161: 6
A162: Ctxn1 | B162: 0.00E+00 | C162: -0.821437245 | D162: 0.031 | E162: 0.655 | F162: 0 | G162: 6
A163: Gm2000 | B163: 0.00E+00 | C163: -0.82190127 | D163: 0.065 | E163: 0.699 | F163: 0 | G163: 6
A164: Ppp1r11 | B164: 0.00E+00 | C164: -0.823467128 | D164: 0.034 | E164: 0.723 | F164: 0 | G164: 6
A165: Bag1 | B165: 0.00E+00 | C165: -0.82534152 | D165: 0.342 | E165: 0.859 | F165: 0 | G165: 6
A166: Tomm40 | B166: 0.00E+00 | C166: -0.826582815 | D166: 0.018 | E166: 0.688 | F166: 0 | G166: 6
A167: Ctnnbip1 | B167: 0.00E+00 | C167: -0.827153177 | D167: 0.021 | E167: 0.701 | F167: 0 | G167: 6
A168: Papola | B168: 0.00E+00 | C168: -0.82741265 | D168: 0.034 | E168: 0.71 | F168: 0 | G168: 6
A169: Ube2e1 | B169: 0.00E+00 | C169: -0.828098613 | D169: 0.027 | E169: 0.704 | F169: 0 | G169: 6
A170: Rab11b | B170: 0.00E+00 | C170: -0.82809887 | D170: 0.049 | E170: 0.737 | F170: 0 | G170: 6
A171: Arl1 | B171: 0.00E+00 | C171: -0.829160358 | D171: 0.022 | E171: 0.699 | F171: 0 | G171: 6
A172: Pnn | B172: 0.00E+00 | C172: -0.831035368 | D172: 0.028 | E172: 0.701 | F172: 0 | G172: 6
A173: Bccip | B173: 0.00E+00 | C173: -0.831380966 | D173: 0.027 | E173: 0.708 | F173: 0 | G173: 6
A174: Eif6 | B174: 0.00E+00 | C174: -0.832228289 | D174: 0.029 | E174: 0.719 | F174: 0 | G174: 6
A175: Rnps1 | B175: 0.00E+00 | C175: -0.832679285 | D175: 0.031 | E175: 0.698 | F175: 0 | G175: 6
A176: Dpm3 | B176: 0.00E+00 | C176: -0.832796673 | D176: 0.029 | E176: 0.718 | F176: 0 | G176: 6
A177: Arpc5 | B177: 0.00E+00 | C177: -0.833045213 | D177: 0.072 | E177: 0.716 | F177: 0 | G177: 6
A178: Atrx | B178: 0.00E+00 | C178: -0.833140657 | D178: 0.02 | E178: 0.699 | F178: 0 | G178: 6
A179: Gm11808 | B179: 0.00E+00 | C179: -0.833255342 | D179: 0.222 | E179: 0.804 | F179: 0 | G179: 6
A180: Gpi1 | B180: 0.00E+00 | C180: -0.833402873 | D180: 0.038 | E180: 0.688 | F180: 0 | G180: 6
A181: Csde1 | B181: 0.00E+00 | C181: -0.833588894 | D181: 0.036 | E181: 0.716 | F181: 0 | G181: 6
A182: Elavl1 | B182: 0.00E+00 | C182: -0.833615536 | D182: 0.029 | E182: 0.714 | F182: 0 | G182: 6
A183: Ict1 | B183: 0.00E+00 | C183: -0.834521678 | D183: 0.029 | E183: 0.724 | F183: 0 | G183: 6
A184: Eif4e2 | B184: 0.00E+00 | C184: -0.834834363 | D184: 0.034 | E184: 0.731 | F184: 0 | G184: 6
A185: Mpc2 | B185: 0.00E+00 | C185: -0.83533231 | D185: 0.16 | E185: 0.764 | F185: 0 | G185: 6
A186: Zc3h15 | B186: 0.00E+00 | C186: -0.835568908 | D186: 0.032 | E186: 0.717 | F186: 0 | G186: 6
A187: Cwc15 | B187: 0.00E+00 | C187: -0.836095613 | D187: 0.039 | E187: 0.726 | F187: 0 | G187: 6
A188: Hypk | B188: 0.00E+00 | C188: -0.836628616 | D188: 0.086 | E188: 0.744 | F188: 0 | G188: 6
A189: Pdcd6 | B189: 0.00E+00 | C189: -0.836682439 | D189: 0.023 | E189: 0.725 | F189: 0 | G189: 6
A190: Ndufs3 | B190: 0.00E+00 | C190: -0.836770377 | D190: 0.039 | E190: 0.73 | F190: 0 | G190: 6
A191: Slbp | B191: 0.00E+00 | C191: -0.837490799 | D191: 0.039 | E191: 0.657 | F191: 0 | G191: 6
A192: Smarce1 | B192: 0.00E+00 | C192: -0.837540309 | D192: 0.031 | E192: 0.72 | F192: 0 | G192: 6
A193: Rbm17 | B193: 0.00E+00 | C193: -0.837853953 | D193: 0.017 | E193: 0.716 | F193: 0 | G193: 6
A194: Srp19 | B194: 0.00E+00 | C194: -0.839888128 | D194: 0.024 | E194: 0.717 | F194: 0 | G194: 6
A195: Arf5 | B195: 0.00E+00 | C195: -0.839942545 | D195: 0.538 | E195: 0.951 | F195: 0 | G195: 6
A196: Fam32a | B196: 0.00E+00 | C196: -0.840332483 | D196: 0.059 | E196: 0.75 | F196: 0 | G196: 6
A197: Aimp1 | B197: 0.00E+00 | C197: -0.84042636 | D197: 0.021 | E197: 0.716 | F197: 0 | G197: 6
A198: Map1lc3a | B198: 0.00E+00 | C198: -0.841477545 | D198: 0.053 | E198: 0.701 | F198: 0 | G198: 6
A199: Sec11a | B199: 0.00E+00 | C199: -0.84240451 | D199: 0.03 | E199: 0.726 | F199: 0 | G199: 6
A200: Dynll2 | B200: 0.00E+00 | C200: -0.842600326 | D200: 0.039 | E200: 0.702 | F200: 0 | G200: 6
... 3601 more rows

Sheet 7
A1: Symbol | B1: p_val | C1: avg_logFC | D1: pct.1 | E1: pct.2 | F1: p_val_adj | G1: cluster | H1: gene
A2: Calb1 | B2: 0.00E+00 | C2: 2.778774629 | D2: 0.982 | E2: 0.081 | F2: 0 | G2: 7
A3: Rprm | B3: 0.00E+00 | C3: 2.507648285 | D3: 0.981 | E3: 0.074 | F3: 0 | G3: 7
A4: Wfdc2 | B4: 0.00E+00 | C4: 2.01432079 | D4: 0.999 | E4: 0.249 | F4: 0 | G4: 7
A5: Epcam | B5: 0.00E+00 | C5: 1.956424044 | D5: 0.993 | E5: 0.131 | F5: 0 | G5: 7
A6: Krt18 | B6: 0.00E+00 | C6: 1.534739164 | D6: 0.958 | E6: 0.086 | F6: 0 | G6: 7
A7: Wfdc15b | B7: 0.00E+00 | C7: 1.419928032 | D7: 0.953 | E7: 0.035 | F7: 0 | G7: 7
A8: Spint2 | B8: 0.00E+00 | C8: 1.41840923 | D8: 0.984 | E8: 0.226 | F8: 0 | G8: 7
A9: Gata3 | B9: 0.00E+00 | C9: 1.374787673 | D9: 0.923 | E9: 0.048 | F9: 0 | G9: 7
A10: Cldn3 | B10: 0.00E+00 | C10: 1.326413813 | D10: 0.915 | E10: 0.027 | F10: 0 | G10: 7
A11: Bex1 | B11: 0.00E+00 | C11: 1.238003976 | D11: 0.971 | E11: 0.283 | F11: 0 | G11: 7
A12: Ldhb | B12: 0.00E+00 | C12: 1.217700221 | D12: 0.992 | E12: 0.64 | F12: 0 | G12: 7
A13: Cldn7 | B13: 0.00E+00 | C13: 1.203067786 | D13: 0.923 | E13: 0.071 | F13: 0 | G13: 7
A14: Hoxb7 | B14: 0.00E+00 | C14: 1.153502465 | D14: 0.95 | E14: 0.309 | F14: 0 | G14: 7
A15: Bex4 | B15: 0.00E+00 | C15: 1.142621927 | D15: 0.969 | E15: 0.288 | F15: 0 | G15: 7
A16: Sct | B16: 0.00E+00 | C16: 1.138817514 | D16: 0.677 | E16: 0.122 | F16: 0 | G16: 7
A17: Krt8 | B17: 0.00E+00 | C17: 1.126205601 | D17: 0.851 | E17: 0.038 | F17: 0 | G17: 7
A18: Crlf1 | B18: 0.00E+00 | C18: 1.1182236 | D18: 0.74 | E18: 0.014 | F18: 0 | G18: 7
A19: Mgst1 | B19: 0.00E+00 | C19: 1.117375406 | D19: 0.965 | E19: 0.338 | F19: 0 | G19: 7
A20: Cldn6 | B20: 0.00E+00 | C20: 1.111592988 | D20: 0.872 | E20: 0.071 | F20: 0 | G20: 7
A21: Fam149a | B21: 0.00E+00 | C21: 1.10839946 | D21: 0.906 | E21: 0.117 | F21: 0 | G21: 7
A22: Sox9 | B22: 0.00E+00 | C22: 1.0197891 | D22: 0.795 | E22: 0.098 | F22: 0 | G22: 7
A23: Lcn2 | B23: 0.00E+00 | C23: 0.971082456 | D23: 0.415 | E23: 0.005 | F23: 0 | G23: 7
A24: Mia | B24: 0.00E+00 | C24: 0.963110143 | D24: 0.763 | E24: 0.01 | F24: 0 | G24: 7
A25: Mal2 | B25: 0.00E+00 | C25: 0.948479267 | D25: 0.792 | E25: 0.018 | F25: 0 | G25: 7
A26: Pcbd1 | B26: 0.00E+00 | C26: 0.926343514 | D26: 0.937 | E26: 0.266 | F26: 0 | G26: 7
A27: Cited4 | B27: 0.00E+00 | C27: 0.920998841 | D27: 0.706 | E27: 0.022 | F27: 0 | G27: 7
A28: Crip1 | B28: 0.00E+00 | C28: 0.920987358 | D28: 0.853 | E28: 0.342 | F28: 0 | G28: 7
A29: Cldn8 | B29: 0.00E+00 | C29: 0.914594152 | D29: 0.751 | E29: 0.013 | F29: 0 | G29: 7
A30: Mpped2 | B30: 0.00E+00 | C30: 0.899541427 | D30: 0.836 | E30: 0.097 | F30: 0 | G30: 7
A31: Atox1 | B31: 0.00E+00 | C31: 0.896488153 | D31: 0.998 | E31: 0.824 | F31: 0 | G31: 7
A32: Ly6e | B32: 0.00E+00 | C32: 0.884927625 | D32: 0.868 | E32: 0.342 | F32: 0 | G32: 7
A33: Krt23 | B33: 0.00E+00 | C33: 0.883232724 | D33: 0.539 | E33: 0.013 | F33: 0 | G33: 7
A34: S100a6 | B34: 0.00E+00 | C34: 0.877812126 | D34: 0.842 | E34: 0.292 | F34: 0 | G34: 7
A35: Hoxb8 | B35: 0.00E+00 | C35: 0.877672108 | D35: 0.874 | E35: 0.283 | F35: 0 | G35: 7
A36: Crip2 | B36: 0.00E+00 | C36: 0.860268911 | D36: 0.907 | E36: 0.387 | F36: 0 | G36: 7
A37: Emx2 | B37: 0.00E+00 | C37: 0.856023951 | D37: 0.824 | E37: 0.092 | F37: 0 | G37: 7
A38: Rab3ip | B38: 0.00E+00 | C38: 0.855454807 | D38: 0.886 | E38: 0.222 | F38: 0 | G38: 7
A39: Pdzk1ip1 | B39: 0.00E+00 | C39: 0.84850314 | D39: 0.489 | E39: 0.03 | F39: 0 | G39: 7
A40: S100a16 | B40: 0.00E+00 | C40: 0.833619602 | D40: 0.928 | E40: 0.34 | F40: 0 | G40: 7
A41: Gfra1 | B41: 0.00E+00 | C41: 0.82745533 | D41: 0.81 | E41: 0.155 | F41: 0 | G41: 7
A42: Hoxb9 | B42: 0.00E+00 | C42: 0.827359167 | D42: 0.82 | E42: 0.261 | F42: 0 | G42: 7
A43: Ret | B43: 0.00E+00 | C43: 0.826845754 | D43: 0.705 | E43: 0.01 | F43: 0 | G43: 7
A44: Aldh1a3 | B44: 0.00E+00 | C44: 0.821318842 | D44: 0.686 | E44: 0.046 | F44: 0 | G44: 7
A45: Npnt | B45: 0.00E+00 | C45: 0.815046627 | D45: 0.766 | E45: 0.073 | F45: 0 | G45: 7
A46: Bspry | B46: 0.00E+00 | C46: 0.787245187 | D46: 0.762 | E46: 0.02 | F46: 0 | G46: 7
A47: Pantr1 | B47: 0.00E+00 | C47: 0.781943914 | D47: 0.77 | E47: 0.059 | F47: 0 | G47: 7
A48: Bex2 | B48: 0.00E+00 | C48: 0.761426434 | D48: 0.883 | E48: 0.406 | F48: 0 | G48: 7
A49: 1700011H14Rik | B49: 0.00E+00 | C49: 0.754158271 | D49: 0.712 | E49: 0.056 | F49: 0 | G49: 7
A50: Tmem238 | B50: 0.00E+00 | C50: 0.751330129 | D50: 0.815 | E50: 0.171 | F50: 0 | G50: 7
A51: Arl4c | B51: 0.00E+00 | C51: 0.747913529 | D51: 0.829 | E51: 0.171 | F51: 0 | G51: 7
A52: Tspan15 | B52: 0.00E+00 | C52: 0.745759646 | D52: 0.767 | E52: 0.118 | F52: 0 | G52: 7
A53: Cd9 | B53: 0.00E+00 | C53: 0.737052773 | D53: 0.811 | E53: 0.203 | F53: 0 | G53: 7
A54: Spsb4 | B54: 0.00E+00 | C54: 0.735152482 | D54: 0.781 | E54: 0.145 | F54: 0 | G54: 7
A55: Crb3 | B55: 0.00E+00 | C55: 0.720948249 | D55: 0.755 | E55: 0.057 | F55: 0 | G55: 7
A56: Cxcl14 | B56: 0.00E+00 | C56: 0.719247833 | D56: 0.651 | E56: 0.054 | F56: 0 | G56: 7
A57: Psph | B57: 0.00E+00 | C57: 0.714193403 | D57: 0.82 | E57: 0.232 | F57: 0 | G57: 7
A58: Mt2 | B58: 0.00E+00 | C58: 0.708787762 | D58: 0.639 | E58: 0.104 | F58: 0 | G58: 7
A59: Dbi | B59: 0.00E+00 | C59: 0.695473204 | D59: 0.994 | E59: 0.815 | F59: 0 | G59: 7
A60: Hoxb4 | B60: 0.00E+00 | C60: 0.686554548 | D60: 0.848 | E60: 0.321 | F60: 0 | G60: 7
A61: Plac8 | B61: 0.00E+00 | C61: 0.686366345 | D61: 0.874 | E61: 0.344 | F61: 0 | G61: 7
A62: Cndp2 | B62: 0.00E+00 | C62: 0.683039471 | D62: 0.792 | E62: 0.199 | F62: 0 | G62: 7
A63: Chchd10 | B63: 0.00E+00 | C63: 0.676950851 | D63: 0.833 | E63: 0.308 | F63: 0 | G63: 7
A64: Vldlr | B64: 0.00E+00 | C64: 0.676388579 | D64: 0.716 | E64: 0.089 | F64: 0 | G64: 7
A65: Ethe1 | B65: 0.00E+00 | C65: 0.675677286 | D65: 0.805 | E65: 0.263 | F65: 0 | G65: 7
A66: Kcnk1 | B66: 0.00E+00 | C66: 0.673722814 | D66: 0.706 | E66: 0.036 | F66: 0 | G66: 7
A67: Cdh16 | B67: 0.00E+00 | C67: 0.671602791 | D67: 0.658 | E67: 0.037 | F67: 0 | G67: 7
A68: Rab25 | B68: 0.00E+00 | C68: 0.669635055 | D68: 0.683 | E68: 0.012 | F68: 0 | G68: 7
A69: 0610040J01Rik | B69: 0.00E+00 | C69: 0.665144534 | D69: 0.698 | E69: 0.056 | F69: 0 | G69: 7
A70: 2810001G20Rik | B70: 0.00E+00 | C70: 0.66303314 | D70: 0.677 | E70: 0.231 | F70: 0 | G70: 7
A71: Myl12b | B71: 0.00E+00 | C71: 0.650536183 | D71: 0.971 | E71: 0.66 | F71: 0 | G71: 7
A72: Cystm1 | B72: 0.00E+00 | C72: 0.646746829 | D72: 0.673 | E72: 0.082 | F72: 0 | G72: 7
A73: Wnt11 | B73: 0.00E+00 | C73: 0.644343485 | D73: 0.505 | E73: 0.026 | F73: 0 | G73: 7
A74: Rassf10 | B74: 0.00E+00 | C74: 0.642177453 | D74: 0.667 | E74: 0.064 | F74: 0 | G74: 7
A75: Tfcp2l1 | B75: 0.00E+00 | C75: 0.640346144 | D75: 0.591 | E75: 0.028 | F75: 0 | G75: 7
A76: Mapk13 | B76: 0.00E+00 | C76: 0.63973295 | D76: 0.706 | E76: 0.052 | F76: 0 | G76: 7
A77: Emb | B77: 0.00E+00 | C77: 0.63840035 | D77: 0.691 | E77: 0.087 | F77: 0 | G77: 7
A78: Tacstd2 | B78: 0.00E+00 | C78: 0.635730456 | D78: 0.483 | E78: 0.01 | F78: 0 | G78: 7
A79: Hoxd9 | B79: 0.00E+00 | C79: 0.619207042 | D79: 0.874 | E79: 0.373 | F79: 0 | G79: 7
A80: Emid1 | B80: 0.00E+00 | C80: 0.61816882 | D80: 0.829 | E80: 0.225 | F80: 0 | G80: 7
A81: Ezr | B81: 0.00E+00 | C81: 0.605147885 | D81: 0.778 | E81: 0.253 | F81: 0 | G81: 7
A82: Grb7 | B82: 0.00E+00 | C82: 0.595636576 | D82: 0.672 | E82: 0.05 | F82: 0 | G82: 7
A83: Ppfibp1 | B83: 0.00E+00 | C83: 0.585416223 | D83: 0.727 | E83: 0.228 | F83: 0 | G83: 7
A84: Cldn4 | B84: 0.00E+00 | C84: 0.584913504 | D84: 0.577 | E84: 0.011 | F84: 0 | G84: 7
A85: Hoxd4 | B85: 0.00E+00 | C85: 0.584004727 | D85: 0.767 | E85: 0.253 | F85: 0 | G85: 7
A86: Wbp5 | B86: 0.00E+00 | C86: 0.57915937 | D86: 0.999 | E86: 0.879 | F86: 0 | G86: 7
A87: Rab20 | B87: 0.00E+00 | C87: 0.57267916 | D87: 0.621 | E87: 0.079 | F87: 0 | G87: 7
A88: Ehf | B88: 0.00E+00 | C88: 0.571115856 | D88: 0.601 | E88: 0.004 | F88: 0 | G88: 7
A89: Plscr1 | B89: 0.00E+00 | C89: 0.570002788 | D89: 0.7 | E89: 0.155 | F89: 0 | G89: 7
A90: Fras1 | B90: 0.00E+00 | C90: 0.563582426 | D90: 0.709 | E90: 0.181 | F90: 0 | G90: 7
A91: Mal | B91: 0.00E+00 | C91: 0.562404584 | D91: 0.538 | E91: 0.018 | F91: 0 | G91: 7
A92: Krt7 | B92: 0.00E+00 | C92: 0.562061368 | D92: 0.441 | E92: 0.009 | F92: 0 | G92: 7
A93: Tesc | B93: 0.00E+00 | C93: 0.561879075 | D93: 0.442 | E93: 0.011 | F93: 0 | G93: 7
A94: Tpd52l1 | B94: 0.00E+00 | C94: 0.559634997 | D94: 0.714 | E94: 0.216 | F94: 0 | G94: 7
A95: Rras2 | B95: 0.00E+00 | C95: 0.554652672 | D95: 0.757 | E95: 0.284 | F95: 0 | G95: 7
A96: Tbx3 | B96: 0.00E+00 | C96: 0.552883954 | D96: 0.633 | E96: 0.079 | F96: 0 | G96: 7
A97: Id4 | B97: 0.00E+00 | C97: 0.552383485 | D97: 0.616 | E97: 0.111 | F97: 0 | G97: 7
A98: Arg2 | B98: 0.00E+00 | C98: 0.513075865 | D98: 0.505 | E98: 0.015 | F98: 0 | G98: 7
A99: Nrtn | B99: 0.00E+00 | C99: 0.504464463 | D99: 0.594 | E99: 0.121 | F99: 0 | G99: 7
A100: Rnf128 | B100: 0.00E+00 | C100: 0.502438176 | D100: 0.552 | E100: 0.016 | F100: 0 | G100: 7
A101: 1500015O10Rik | B101: 0.00E+00 | C101: 0.501876184 | D101: 0.271 | E101: 0.033 | F101: 0 | G101: 7
A102: Apoc1 | B102: 0.00E+00 | C102: 0.494994022 | D102: 0.477 | E102: 0.023 | F102: 0 | G102: 7
A103: Lsr | B103: 0.00E+00 | C103: 0.491603651 | D103: 0.652 | E103: 0.129 | F103: 0 | G103: 7
A104: Plpp2 | B104: 0.00E+00 | C104: 0.486787899 | D104: 0.643 | E104: 0.147 | F104: 0 | G104: 7
A105: Sema3c | B105: 0.00E+00 | C105: 0.481456693 | D105: 0.645 | E105: 0.132 | F105: 0 | G105: 7
A106: Capg | B106: 0.00E+00 | C106: 0.480730497 | D106: 0.599 | E106: 0.118 | F106: 0 | G106: 7
A107: Hacd4 | B107: 0.00E+00 | C107: 0.480072244 | D107: 0.546 | E107: 0.075 | F107: 0 | G107: 7
A108: Dact2 | B108: 0.00E+00 | C108: 0.479347664 | D108: 0.568 | E108: 0.055 | F108: 0 | G108: 7
A109: Frem2 | B109: 0.00E+00 | C109: 0.478714119 | D109: 0.581 | E109: 0.088 | F109: 0 | G109: 7
A110: 9230102O04Rik | B110: 0.00E+00 | C110: 0.477163728 | D110: 0.485 | E110: 0.009 | F110: 0 | G110: 7
A111: B4galt6 | B111: 0.00E+00 | C111: 0.473603132 | D111: 0.594 | E111: 0.11 | F111: 0 | G111: 7
A112: Camkk2 | B112: 0.00E+00 | C112: 0.465390297 | D112: 0.646 | E112: 0.193 | F112: 0 | G112: 7
A113: Gm16136 | B113: 0.00E+00 | C113: 0.459686604 | D113: 0.503 | E113: 0.011 | F113: 0 | G113: 7
A114: Limch1 | B114: 0.00E+00 | C114: 0.451390112 | D114: 0.58 | E114: 0.106 | F114: 0 | G114: 7
A115: Kitl | B115: 0.00E+00 | C115: 0.438617507 | D115: 0.527 | E115: 0.053 | F115: 0 | G115: 7
A116: Gstt3 | B116: 0.00E+00 | C116: 0.436773258 | D116: 0.507 | E116: 0.031 | F116: 0 | G116: 7
A117: Hoxd8 | B117: 0.00E+00 | C117: 0.43638679 | D117: 0.582 | E117: 0.102 | F117: 0 | G117: 7
A118: Stard10 | B118: 0.00E+00 | C118: 0.430267557 | D118: 0.622 | E118: 0.126 | F118: 0 | G118: 7
A119: Dcdc2a | B119: 0.00E+00 | C119: 0.428672901 | D119: 0.494 | E119: 0.047 | F119: 0 | G119: 7
A120: Prss8 | B120: 0.00E+00 | C120: 0.417505685 | D120: 0.489 | E120: 0.036 | F120: 0 | G120: 7
A121: Lix1 | B121: 0.00E+00 | C121: 0.415418714 | D121: 0.443 | E121: 0.053 | F121: 0 | G121: 7
A122: Tspan8 | B122: 0.00E+00 | C122: 0.406143645 | D122: 0.301 | E122: 0.024 | F122: 0 | G122: 7
A123: Fhl1 | B123: 0.00E+00 | C123: 0.405503614 | D123: 0.55 | E123: 0.098 | F123: 0 | G123: 7
A124: Gm17750 | B124: 0.00E+00 | C124: 0.402337641 | D124: 0.431 | E124: 0.048 | F124: 0 | G124: 7
A125: Cdh3 | B125: 0.00E+00 | C125: 0.395919989 | D125: 0.516 | E125: 0.053 | F125: 0 | G125: 7
A126: Lamc2 | B126: 0.00E+00 | C126: 0.393773466 | D126: 0.508 | E126: 0.045 | F126: 0 | G126: 7
A127: Acer2 | B127: 0.00E+00 | C127: 0.383301842 | D127: 0.449 | E127: 0.065 | F127: 0 | G127: 7
A128: Cdh1 | B128: 0.00E+00 | C128: 0.382452133 | D128: 0.481 | E128: 0.032 | F128: 0 | G128: 7
A129: Fermt1 | B129: 0.00E+00 | C129: 0.377411965 | D129: 0.442 | E129: 0.026 | F129: 0 | G129: 7
A130: 4930523C07Rik | B130: 0.00E+00 | C130: 0.376122073 | D130: 0.533 | E130: 0.109 | F130: 0 | G130: 7
A131: Atp1b1 | B131: 0.00E+00 | C131: 0.374980999 | D131: 0.515 | E131: 0.116 | F131: 0 | G131: 7
A132: Sema6a | B132: 0.00E+00 | C132: 0.374302479 | D132: 0.525 | E132: 0.113 | F132: 0 | G132: 7
A133: Kdf1 | B133: 0.00E+00 | C133: 0.372176063 | D133: 0.479 | E133: 0.023 | F133: 0 | G133: 7
A134: Pou3f3 | B134: 0.00E+00 | C134: 0.367932913 | D134: 0.505 | E134: 0.044 | F134: 0 | G134: 7
A135: Ap1s3 | B135: 0.00E+00 | C135: 0.367827463 | D135: 0.452 | E135: 0.026 | F135: 0 | G135: 7
A136: Cmtm8 | B136: 0.00E+00 | C136: 0.362014747 | D136: 0.532 | E136: 0.093 | F136: 0 | G136: 7
A137: Fuca2 | B137: 0.00E+00 | C137: 0.361917982 | D137: 0.499 | E137: 0.087 | F137: 0 | G137: 7
A138: Slco4c1 | B138: 0.00E+00 | C138: 0.35889215 | D138: 0.403 | E138: 0.002 | F138: 0 | G138: 7
A139: Car2 | B139: 0.00E+00 | C139: 0.356536874 | D139: 0.526 | E139: 0.082 | F139: 0 | G139: 7
A140: Mgll | B140: 0.00E+00 | C140: 0.349302737 | D140: 0.442 | E140: 0.043 | F140: 0 | G140: 7
A141: Hs3st3b1 | B141: 0.00E+00 | C141: 0.334397622 | D141: 0.35 | E141: 0.037 | F141: 0 | G141: 7
A142: Gclc | B142: 0.00E+00 | C142: 0.319165303 | D142: 0.452 | E142: 0.087 | F142: 0 | G142: 7
A143: Esrp1 | B143: 0.00E+00 | C143: 0.319005149 | D143: 0.404 | E143: 0.01 | F143: 0 | G143: 7
A144: Lama5 | B144: 0.00E+00 | C144: 0.317572948 | D144: 0.414 | E144: 0.047 | F144: 0 | G144: 7
A145: Mboat1 | B145: 0.00E+00 | C145: 0.316232609 | D145: 0.432 | E145: 0.059 | F145: 0 | G145: 7
A146: Plet1 | B146: 0.00E+00 | C146: 0.313983103 | D146: 0.345 | E146: 0.026 | F146: 0 | G146: 7
A147: St14 | B147: 0.00E+00 | C147: 0.313843983 | D147: 0.387 | E147: 0.012 | F147: 0 | G147: 7
A148: Veph1 | B148: 0.00E+00 | C148: 0.311386565 | D148: 0.397 | E148: 0.013 | F148: 0 | G148: 7
A149: Ppp1r1b | B149: 0.00E+00 | C149: 0.310267296 | D149: 0.251 | E149: 0.012 | F149: 0 | G149: 7
A150: Vav3 | B150: 0.00E+00 | C150: 0.305586992 | D150: 0.398 | E150: 0.028 | F150: 0 | G150: 7
A151: Blnk | B151: 0.00E+00 | C151: 0.305362688 | D151: 0.367 | E151: 0.019 | F151: 0 | G151: 7
A152: Dcbld1 | B152: 0.00E+00 | C152: 0.304607767 | D152: 0.456 | E152: 0.086 | F152: 0 | G152: 7
A153: Smim22 | B153: 0.00E+00 | C153: 0.302679866 | D153: 0.382 | E153: 0.01 | F153: 0 | G153: 7
A154: Prr15l | B154: 0.00E+00 | C154: 0.301999953 | D154: 0.379 | E154: 0.027 | F154: 0 | G154: 7
A155: Spint1 | B155: 0.00E+00 | C155: 0.300167328 | D155: 0.374 | E155: 0.019 | F155: 0 | G155: 7
A156: Efnb2 | B156: 0.00E+00 | C156: 0.293326846 | D156: 0.388 | E156: 0.057 | F156: 0 | G156: 7
A157: Tmed6 | B157: 0.00E+00 | C157: 0.292885108 | D157: 0.351 | E157: 0.018 | F157: 0 | G157: 7
A158: Scn8a | B158: 0.00E+00 | C158: 0.28806399 | D158: 0.404 | E158: 0.035 | F158: 0 | G158: 7
A159: St6galnac2 | B159: 0.00E+00 | C159: 0.287514526 | D159: 0.374 | E159: 0.039 | F159: 0 | G159: 7
A160: Tfap2b | B160: 0.00E+00 | C160: 0.284310554 | D160: 0.407 | E160: 0.025 | F160: 0 | G160: 7
A161: H2-DMb2 | B161: 0.00E+00 | C161: 0.280984631 | D161: 0.388 | E161: 0.053 | F161: 0 | G161: 7
A162: Tmem229a | B162: 0.00E+00 | C162: 0.278950807 | D162: 0.352 | E162: 0.014 | F162: 0 | G162: 7
A163: Krtcap3 | B163: 0.00E+00 | C163: 0.277555413 | D163: 0.367 | E163: 0.04 | F163: 0 | G163: 7
A164: Plscr2 | B164: 0.00E+00 | C164: 0.276961531 | D164: 0.276 | E164: 0.034 | F164: 0 | G164: 7
A165: Col9a3 | B165: 0.00E+00 | C165: 0.2761397 | D165: 0.316 | E165: 0.009 | F165: 0 | G165: 7
A166: Cela1 | B166: 0.00E+00 | C166: 0.275738541 | D166: 0.34 | E166: 0.032 | F166: 0 | G166: 7
A167: Adora1 | B167: 0.00E+00 | C167: 0.273008749 | D167: 0.322 | E167: 0.028 | F167: 0 | G167: 7
A168: Rrad | B168: 0.00E+00 | C168: 0.269990533 | D168: 0.307 | E168: 0.017 | F168: 0 | G168: 7
A169: Tuba4a | B169: 0.00E+00 | C169: 0.267482733 | D169: 0.375 | E169: 0.045 | F169: 0 | G169: 7
A170: Arrdc1 | B170: 0.00E+00 | C170: 0.265431296 | D170: 0.383 | E170: 0.054 | F170: 0 | G170: 7
A171: Ap1m2 | B171: 0.00E+00 | C171: 0.262220782 | D171: 0.32 | E171: 0.013 | F171: 0 | G171: 7
A172: Tmem54 | B172: 0.00E+00 | C172: 0.256220636 | D172: 0.315 | E172: 0.006 | F172: 0 | G172: 7
A173: Lad1 | B173: 0.00E+00 | C173: 0.254122423 | D173: 0.338 | E173: 0.033 | F173: 0 | G173: 7
A174: Nr2f2 | B174: 0.00E+00 | C174: -1.10724135 | D174: 0.322 | E174: 0.794 | F174: 0 | G174: 7
A175: Meis2 | B175: 0.00E+00 | C175: -1.311646657 | D175: 0.138 | E175: 0.781 | F175: 0 | G175: 7
A176: Rassf7 | B176: 7.56E-308 | C176: 0.33327613 | D176: 0.506 | E176: 0.119 | F176: 1.38e-303 | G176: 7
A177: Mfhas1 | B177: 2.11E-307 | C177: 0.306858743 | D177: 0.488 | E177: 0.109 | F177: 3.85E-303 | G177: 7
A178: Krt19 | B178: 4.07E-307 | C178: 0.299225935 | D178: 0.167 | E178: 0.011 | F178: 7.43E-303 | G178: 7
A179: 4931406C07Rik | B179: 1.31E-306 | C179: 0.423284278 | D179: 0.48 | E179: 0.11 | F179: 2.40E-302 | G179: 7
A180: Fam171a2 | B180: 3.52e-306 | C180: 0.408273197 | D180: 0.621 | E180: 0.18 | F180: 6.43E-302 | G180: 7
A181: Cd24a | B181: 7.67E-303 | C181: 0.665304603 | D181: 1 | E181: 0.806 | F181: 1.40E-298 | G181: 7
A182: Prom1 | B182: 1.23e-302 | C182: 0.298340011 | D182: 0.465 | E182: 0.101 | F182: 2.25e-298 | G182: 7
A183: Arhgef28 | B183: 2.55E-301 | C183: 0.260386214 | D183: 0.385 | E183: 0.07 | F183: 4.66E-297 | G183: 7
A184: Lsp1 | B184: 1.54E-300 | C184: -1.208858708 | D184: 0.154 | E184: 0.701 | F184: 2.82E-296 | G184: 7
A185: Hoxc10 | B185: 2.05E-298 | C185: -0.945099114 | D185: 0.093 | E185: 0.673 | F185: 3.75E-294 | G185: 7
A186: Col18a1 | B186: 6.65E-296 | C186: 0.407810582 | D186: 0.607 | E186: 0.175 | F186: 1.21e-291 | G186: 7
A187: Etv4 | B187: 7.61e-292 | C187: 0.756641071 | D187: 0.741 | E187: 0.322 | F187: 1.39e-287 | G187: 7
A188: Nudt4 | B188: 5.54e-291 | C188: 0.651734478 | D188: 0.885 | E188: 0.501 | F188: 1.01e-286 | G188: 7
A189: Etv5 | B189: 7.00E-290 | C189: 0.50933389 | D189: 0.618 | E189: 0.201 | F189: 1.28e-285 | G189: 7
A190: Hoxb6 | B190: 9.45E-287 | C190: 0.472647739 | D190: 0.659 | E190: 0.218 | F190: 1.73e-282 | G190: 7
A191: Trib1 | B191: 6.86E-286 | C191: 0.289893847 | D191: 0.42 | E191: 0.088 | F191: 1.25E-281 | G191: 7
A192: Mecom | B192: 7.60E-284 | C192: 0.457202743 | D192: 0.751 | E192: 0.257 | F192: 1.39e-279 | G192: 7
A193: Fkbp4 | B193: 5.71E-281 | C193: 0.613886053 | D193: 0.989 | E193: 0.766 | F193: 1.04E-276 | G193: 7
A194: Fxyd4 | B194: 7.62E-279 | C194: 0.453202069 | D194: 0.195 | E194: 0.018 | F194: 1.39E-274 | G194: 7
A195: Tox3 | B195: 1.77E-278 | C195: 0.36154319 | D195: 0.528 | E195: 0.141 | F195: 3.24E-274 | G195: 7
A196: Cdca7l | B196: 5.56E-275 | C196: 0.360004985 | D196: 0.549 | E196: 0.155 | F196: 1.02e-270 | G196: 7
A197: Espn | B197: 2.40E-274 | C197: 0.425736058 | D197: 0.669 | E197: 0.221 | F197: 4.39E-270 | G197: 7
A198: Mt1 | B198: 4.48E-274 | C198: 0.40952738 | D198: 0.548 | E198: 0.148 | F198: 8.19E-270 | G198: 7
A199: Mfap4 | B199: 1.08E-272 | C199: -1.030548964 | D199: 0.142 | E199: 0.666 | F199: 1.98e-268 | G199: 7
A200: Hoxa10 | B200: 8.68E-271 | C200: -0.78836705 | D200: 0.105 | E200: 0.655 | F200: 1.58E-266 | G200: 7
... 415 more rows

Sheet 8
A1: Symbol | B1: p_val | C1: avg_logFC | D1: pct.1 | E1: pct.2 | F1: p_val_adj | G1: cluster
A2: Hic1 | B2: 1.64E-297 | C2: 0.779556832 | D2: 0.876 | E2: 0.328 | F2: 3.00E-293 | G2: 8
A3: Cenpa | B3: 6.44E-290 | C3: 1.084156995 | D3: 0.884 | E3: 0.44 | F3: 1.18e-285 | G3: 8
A4: Ccnb2 | B4: 8.42E-287 | C4: 0.87338442 | D4: 0.785 | E4: 0.312 | F4: 1.54E-282 | G4: 8
A5: Mest | B5: 3.23e-256 | C5: 0.807803283 | D5: 0.997 | E5: 0.856 | F5: 5.90E-252 | G5: 8
A6: Pttg1 | B6: 3.41E-243 | C6: 0.917321911 | D6: 0.856 | E6: 0.484 | F6: 6.22e-239 | G6: 8
A7: Anxa2 | B7: 2.70E-235 | C7: 0.718729241 | D7: 0.94 | E7: 0.489 | F7: 4.94E-231 | G7: 8
A8: Maged2 | B8: 7.02E-234 | C8: 0.748411383 | D8: 0.979 | E8: 0.697 | F8: 1.28e-229 | G8: 8
A9: Dynll1 | B9: 3.96E-223 | C9: 0.672590918 | D9: 0.996 | E9: 0.936 | F9: 7.23E-219 | G9: 8
A10: Hmgb1 | B10: 1.09e-212 | C10: 0.533693638 | D10: 1 | E10: 0.917 | F10: 2.00E-208 | G10: 8
A11: Fhl2 | B11: 3.78E-210 | C11: 0.648713217 | D11: 0.833 | E11: 0.362 | F11: 6.91E-206 | G11: 8
A12: Lgals1 | B12: 5.31E-209 | C12: 0.706455919 | D12: 1 | E12: 0.805 | F12: 9.70E-205 | G12: 8
A13: Hist1h2bc | B13: 1.50E-207 | C13: 0.768603255 | D13: 0.681 | E13: 0.274 | F13: 2.75E-203 | G13: 8
A14: Sub1 | B14: 6.56E-207 | C14: 0.479307823 | D14: 1 | E14: 0.915 | F14: 1.20E-202 | G14: 8
A15: Fibin | B15: 6.90E-205 | C15: 0.565862659 | D15: 0.604 | E15: 0.193 | F15: 1.26e-200 | G15: 8
A16: Emilin1 | B16: 1.60E-204 | C16: 0.686783881 | D16: 0.85 | E16: 0.399 | F16: 2.92E-200 | G16: 8
A17: Emp3 | B17: 9.66E-198 | C17: 0.642738827 | D17: 0.91 | E17: 0.529 | F17: 1.77E-193 | G17: 8
A18: Emp1 | B18: 3.32E-191 | C18: 0.547211615 | D18: 0.578 | E18: 0.196 | F18: 6.06e-187 | G18: 8
A19: Hmgn2 | B19: 1.94e-189 | C19: 0.51176588 | D19: 1 | E19: 0.906 | F19: 3.55E-185 | G19: 8
A20: Cald1 | B20: 1.85E-183 | C20: 0.60673262 | D20: 0.945 | E20: 0.577 | F20: 3.39E-179 | G20: 8
A21: Tuba1b | B21: 2.77e-175 | C21: 0.567903892 | D21: 0.998 | E21: 0.91 | F21: 5.05e-171 | G21: 8
A22: Actg1 | B22: 2.57E-174 | C22: 0.493794164 | D22: 1 | E22: 0.927 | F22: 4.70E-170 | G22: 8
A23: Pbx1 | B23: 2.29E-172 | C23: 0.592142972 | D23: 0.979 | E23: 0.754 | F23: 4.18E-168 | G23: 8
A24: Cnn2 | B24: 1.05e-170 | C24: 0.603986674 | D24: 0.85 | E24: 0.441 | F24: 1.91E-166 | G24: 8
A25: Meis1 | B25: 2.45e-169 | C25: 0.542270337 | D25: 0.81 | E25: 0.395 | F25: 4.47E-165 | G25: 8
A26: Aldh1a2 | B26: 1.97e-162 | C26: 0.639812686 | D26: 0.849 | E26: 0.518 | F26: 3.60E-158 | G26: 8
A27: Polr2m | B27: 1.92e-160 | C27: 0.530831312 | D27: 0.982 | E27: 0.864 | F27: 3.51E-156 | G27: 8
A28: Oaz1 | B28: 7.52E-157 | C28: 0.297903326 | D28: 1 | E28: 0.999 | F28: 1.37E-152 | G28: 8
A29: Pfn1 | B29: 1.90E-156 | C29: 0.414411733 | D29: 1 | E29: 0.939 | F29: 3.47E-152 | G29: 8
A30: Pdgfra | B30: 2.07E-154 | C30: 0.434709105 | D30: 0.55 | E30: 0.196 | F30: 3.79E-150 | G30: 8
A31: Birc5 | B31: 4.80E-154 | C31: 0.711062713 | D31: 0.854 | E31: 0.507 | F31: 8.77E-150 | G31: 8
A32: Lockd | B32: 8.61E-154 | C32: 0.557613053 | D32: 0.665 | E32: 0.312 | F32: 1.57e-149 | G32: 8
A33: Ccnd2 | B33: 1.34e-152 | C33: 0.628533755 | D33: 0.933 | E33: 0.653 | F33: 2.45e-148 | G33: 8
A34: Actb | B34: 1.38e-152 | C34: 0.495285611 | D34: 1 | E34: 0.951 | F34: 2.53E-148 | G34: 8
A35: Ifitm2 | B35: 1.64e-151 | C35: 0.461845386 | D35: 0.997 | E35: 0.894 | F35: 3.00E-147 | G35: 8
A36: 2700094K13Rik | B36: 1.85e-150 | C36: 0.495304559 | D36: 0.985 | E36: 0.852 | F36: 3.39E-146 | G36: 8
A37: Ptms | B37: 2.84E-147 | C37: 0.540635575 | D37: 0.984 | E37: 0.847 | F37: 5.19E-143 | G37: 8
A38: Arpc1b | B38: 7.47E-146 | C38: 0.509749056 | D38: 0.909 | E38: 0.59 | F38: 1.36E-141 | G38: 8
A39: Plagl1 | B39: 3.11e-145 | C39: 0.469715688 | D39: 0.728 | E39: 0.35 | F39: 5.68E-141 | G39: 8
A40: Hnrnpk | B40: 3.04E-144 | C40: 0.423399317 | D40: 0.997 | E40: 0.905 | F40: 5.54e-140 | G40: 8
A41: Ran | B41: 1.10E-143 | C41: 0.460718843 | D41: 0.997 | E41: 0.909 | F41: 2.01e-139 | G41: 8
A42: Tubb6 | B42: 2.86E-142 | C42: 0.571980368 | D42: 0.602 | E42: 0.255 | F42: 5.22E-138 | G42: 8
A43: Mfap2 | B43: 5.07E-142 | C43: 0.48562072 | D43: 0.988 | E43: 0.813 | F43: 9.26E-138 | G43: 8
A44: Tubb4b | B44: 6.87E-142 | C44: 0.807144816 | D44: 0.829 | E44: 0.568 | F44: 1.26E-137 | G44: 8
A45: Tpm4 | B45: 2.93E-141 | C45: 0.484820921 | D45: 0.965 | E45: 0.772 | F45: 5.35E-137 | G45: 8
A46: Psma3 | B46: 9.89E-137 | C46: 0.453392908 | D46: 0.978 | E46: 0.857 | F46: 1.81E-132 | G46: 8
A47: Eif4a1 | B47: 1.34e-135 | C47: 0.412836937 | D47: 0.998 | E47: 0.912 | F47: 2.44E-131 | G47: 8
A48: Morf4l1 | B48: 1.35E-134 | C48: 0.42270044 | D48: 0.991 | E48: 0.891 | F48: 2.47E-130 | G48: 8
A49: Ebf1 | B49: 1.83E-134 | C49: 0.423376369 | D49: 0.709 | E49: 0.302 | F49: 3.34E-130 | G49: 8
A50: Prdx1 | B50: 2.35E-132 | C50: 0.388415881 | D50: 1 | E50: 0.918 | F50: 4.30E-128 | G50: 8
A51: Cdkn1c | B51: 5.82E-131 | C51: 0.544575654 | D51: 0.947 | E51: 0.752 | F51: 1.06E-126 | G51: 8
A52: Ptn | B52: 3.63E-129 | C52: 0.666577111 | D52: 0.923 | E52: 0.699 | F52: 6.63e-125 | G52: 8
A53: Cdkn3 | B53: 2.02E-128 | C53: 0.41518856 | D53: 0.387 | E53: 0.128 | F53: 3.68E-124 | G53: 8
A54: Ifitm3 | B54: 4.17E-125 | C54: 0.540995024 | D54: 0.805 | E54: 0.449 | F54: 7.61E-121 | G54: 8
A55: Uqcc2 | B55: 5.55E-125 | C55: 0.469770999 | D55: 0.932 | E55: 0.768 | F55: 1.01E-120 | G55: 8
A56: Cxcl12 | B56: 1.68E-123 | C56: 0.560784676 | D56: 0.637 | E56: 0.306 | F56: 3.06E-119 | G56: 8
A57: Knstrn | B57: 5.26E-123 | C57: 0.557856326 | D57: 0.641 | E57: 0.338 | F57: 9.61E-119 | G57: 8
A58: Ecm1 | B58: 1.02e-122 | C58: 0.519764834 | D58: 0.664 | E58: 0.3 | F58: 1.87E-118 | G58: 8
A59: Eva1b | B59: 3.19E-121 | C59: 0.450035073 | D59: 0.935 | E59: 0.689 | F59: 5.83E-117 | G59: 8
A60: Sfrp1 | B60: 4.47E-121 | C60: 0.45735535 | D60: 0.739 | E60: 0.372 | F60: 8.17E-117 | G60: 8
A61: Loxl1 | B61: 3.43E-120 | C61: 0.429696301 | D61: 0.559 | E61: 0.239 | F61: 6.26E-116 | G61: 8
A62: Myl9 | B62: 5.08E-119 | C62: 0.339345133 | D62: 0.776 | E62: 0.403 | F62: 9.29e-115 | G62: 8
A63: Morf4l2 | B63: 7.98E-119 | C63: 0.414657211 | D63: 0.986 | E63: 0.858 | F63: 1.46E-114 | G63: 8
A64: Dnaja1 | B64: 9.37E-119 | C64: 0.449192722 | D64: 0.97 | E64: 0.837 | F64: 1.71E-114 | G64: 8
A65: Cd24a | B65: 2.74e-118 | C65: -0.804116463 | D65: 0.659 | E65: 0.825 | F65: 5.00E-114 | G65: 8
A66: Gpc3 | B66: 3.39e-117 | C66: 0.522311374 | D66: 0.92 | E66: 0.71 | F66: 6.20E-113 | G66: 8
A67: Dad1 | B67: 3.81e-117 | C67: 0.402199338 | D67: 0.982 | E67: 0.874 | F67: 6.96E-113 | G67: 8
A68: Lmnb1 | B68: 4.51e-117 | C68: 0.52267643 | D68: 0.822 | E68: 0.582 | F68: 8.24E-113 | G68: 8
A69: Arf4 | B69: 1.46E-115 | C69: 0.425645343 | D69: 0.946 | E69: 0.787 | F69: 2.67E-111 | G69: 8
A70: H2afv | B70: 1.93E-114 | C70: 0.404250687 | D70: 1 | E70: 0.901 | F70: 3.52E-110 | G70: 8
A71: Ostc | B71: 1.61e-113 | C71: 0.419688085 | D71: 0.963 | E71: 0.808 | F71: 2.94E-109 | G71: 8
A72: H2afx | B72: 3.62E-109 | C72: 0.494054063 | D72: 0.91 | E72: 0.669 | F72: 6.61E-105 | G72: 8
A73: Tceb2 | B73: 9.80E-109 | C73: 0.323682679 | D73: 0.999 | E73: 0.96 | F73: 1.79e-104 | G73: 8
A74: Crabp1 | B74: 1.15e-108 | C74: 0.476870122 | D74: 0.495 | E74: 0.202 | F74: 2.11E-104 | G74: 8
A75: Calm1 | B75: 1.19E-108 | C75: 0.362779888 | D75: 0.995 | E75: 0.87 | F75: 2.18e-104 | G75: 8
A76: Dhrs3 | B76: 2.18E-108 | C76: 0.426843785 | D76: 0.678 | E76: 0.36 | F76: 3.99E-104 | G76: 8
A77: Arpc5 | B77: 3.81E-106 | C77: 0.443763801 | D77: 0.849 | E77: 0.67 | F77: 6.96E-102 | G77: 8
A78: Cd63 | B78: 5.93E-106 | C78: 0.416037806 | D78: 0.966 | E78: 0.842 | F78: 1.08e-101 | G78: 8
A79: Hnrnpdl | B79: 1.11e-105 | C79: 0.412331598 | D79: 0.932 | E79: 0.783 | F79: 2.03E-101 | G79: 8
A80: Txn1 | B80: 2.69e-105 | C80: 0.357673977 | D80: 0.997 | E80: 0.898 | F80: 4.92E-101 | G80: 8
A81: Calm2 | B81: 2.94E-105 | C81: 0.43342787 | D81: 0.995 | E81: 0.896 | F81: 5.38e-101 | G81: 8
A82: Hmgn3 | B82: 1.31E-104 | C82: 0.488623878 | D82: 0.864 | E82: 0.66 | F82: 2.39E-100 | G82: 8
A83: Cdc42 | B83: 1.85e-104 | C83: 0.374629814 | D83: 0.969 | E83: 0.853 | F83: 3.38e-100 | G83: 8
A84: 2019-09-07 | B84: 2.94E-103 | C84: 0.450884548 | D84: 0.874 | E84: 0.687 | F84: 5.37E-99 | G84: 8
A85: H3f3b | B85: 2.67E-102 | C85: 0.311530158 | D85: 1 | E85: 0.939 | F85: 4.87e-98 | G85: 8
A86: Islr | B86: 2.70E-102 | C86: 0.356315196 | D86: 0.469 | E86: 0.189 | F86: 4.93E-98 | G86: 8
A87: Hnrnpa2b1 | B87: 3.53E-102 | C87: 0.377184532 | D87: 0.989 | E87: 0.888 | F87: 6.44E-98 | G87: 8
A88: Tnnt1 | B88: 1.20E-100 | C88: 0.34531851 | D88: 0.438 | E88: 0.171 | F88: 2.20E-96 | G88: 8
A89: Cacybp | B89: 1.28E-100 | C89: 0.447889475 | D89: 0.877 | E89: 0.71 | F89: 2.33E-96 | G89: 8
A90: Sepp1 | B90: 4.72E-100 | C90: 0.329214379 | D90: 0.791 | E90: 0.468 | F90: 8.62E-96 | G90: 8
A91: Eif2s2 | B91: 5.29E-100 | C91: 0.377021076 | D91: 0.97 | E91: 0.857 | F91: 9.66E-96 | G91: 8
A92: Mdk | B92: 2.85E-98 | C92: 0.355071232 | D92: 0.999 | E92: 0.912 | F92: 5.21E-94 | G92: 8
A93: Tceal8 | B93: 2.59E-97 | C93: 0.38963795 | D93: 0.917 | E93: 0.787 | F93: 4.73E-93 | G93: 8
A94: Serpinh1 | B94: 2.04E-96 | C94: 0.349515475 | D94: 0.991 | E94: 0.88 | F94: 3.72E-92 | G94: 8
A95: Marcks | B95: 3.81e-96 | C95: 0.363797801 | D95: 0.939 | E95: 0.759 | F95: 6.95E-92 | G95: 8
A96: Uncx | B96: 5.83E-95 | C96: -0.680406841 | D96: 0.033 | E96: 0.375 | F96: 1.06E-90 | G96: 8
A97: Pax2 | B97: 1.25E-94 | C97: -0.519252809 | D97: 0.033 | E97: 0.375 | F97: 2.29E-90 | G97: 8
A98: Serpine2 | B98: 4.29E-94 | C98: 0.503212404 | D98: 0.645 | E98: 0.357 | F98: 7.84E-90 | G98: 8
A99: Tpi1 | B99: 8.44e-94 | C99: 0.405813936 | D99: 0.963 | E99: 0.835 | F99: 1.54E-89 | G99: 8
A100: Selm | B100: 1.29E-93 | C100: 0.379952173 | D100: 0.809 | E100: 0.507 | F100: 2.36e-89 | G100: 8
A101: Pdlim2 | B101: 1.52e-93 | C101: 0.374044766 | D101: 0.663 | E101: 0.349 | F101: 2.77E-89 | G101: 8
A102: Slc40a1 | B102: 7.51E-93 | C102: 0.339836522 | D102: 0.508 | E102: 0.224 | F102: 1.37e-88 | G102: 8
A103: Mmp14 | B103: 8.32E-93 | C103: 0.44237583 | D103: 0.696 | E103: 0.452 | F103: 1.52e-88 | G103: 8
A104: Sfr1 | B104: 3.04E-92 | C104: 0.402673612 | D104: 0.955 | E104: 0.834 | F104: 5.55E-88 | G104: 8
A105: Nucks1 | B105: 3.19e-92 | C105: 0.417490523 | D105: 0.931 | E105: 0.747 | F105: 5.83E-88 | G105: 8
A106: Srsf3 | B106: 7.59E-92 | C106: 0.370616311 | D106: 0.991 | E106: 0.896 | F106: 1.39E-87 | G106: 8
A107: Rspo1 | B107: 1.12e-91 | C107: -0.574579112 | D107: 0.026 | E107: 0.36 | F107: 2.04E-87 | G107: 8
A108: Fam212a | B108: 1.16E-91 | C108: 0.369042112 | D108: 0.546 | E108: 0.26 | F108: 2.12e-87 | G108: 8
A109: Cd81 | B109: 1.59e-91 | C109: 0.353173246 | D109: 0.963 | E109: 0.818 | F109: 2.91E-87 | G109: 8
A110: Psma4 | B110: 2.76E-91 | C110: 0.399792618 | D110: 0.94 | E110: 0.791 | F110: 5.04E-87 | G110: 8
A111: Camk2n1 | B111: 4.29E-91 | C111: 0.488396985 | D111: 0.754 | E111: 0.513 | F111: 7.84E-87 | G111: 8
A112: Dlk1 | B112: 5.19E-91 | C112: 0.28214563 | D112: 0.509 | E112: 0.223 | F112: 9.48e-87 | G112: 8
A113: Atp5j | B113: 6.43E-91 | C113: 0.297650385 | D113: 0.999 | E113: 0.923 | F113: 1.17E-86 | G113: 8
A114: Hsp90b1 | B114: 1.78E-90 | C114: 0.446129128 | D114: 0.891 | E114: 0.712 | F114: 3.26E-86 | G114: 8
A115: Ube2d3 | B115: 3.13E-90 | C115: 0.353019109 | D115: 0.977 | E115: 0.893 | F115: 5.73E-86 | G115: 8
A116: Foxd1 | B116: 3.21E-90 | C116: 0.448566838 | D116: 0.514 | E116: 0.245 | F116: 5.87E-86 | G116: 8
A117: Vim | B117: 9.27E-90 | C117: 0.362002173 | D117: 0.867 | E117: 0.577 | F117: 1.69E-85 | G117: 8
A118: Psmb6 | B118: 5.45E-89 | C118: 0.332360378 | D118: 0.99 | E118: 0.887 | F118: 9.97E-85 | G118: 8
A119: Meis2 | B119: 3.04E-88 | C119: 0.39338009 | D119: 0.958 | E119: 0.733 | F119: 5.56E-84 | G119: 8
A120: C1d | B120: 8.55E-87 | C120: 0.387087095 | D120: 0.892 | E120: 0.755 | F120: 1.56E-82 | G120: 8
A121: Hspa5 | B121: 2.88E-86 | C121: 0.454384986 | D121: 0.881 | E121: 0.725 | F121: 5.25E-82 | G121: 8
A122: Olfml3 | B122: 3.95E-85 | C122: 0.331468571 | D122: 0.53 | E122: 0.246 | F122: 7.21E-81 | G122: 8
A123: H2afz | B123: 8.11E-85 | C123: 0.374866758 | D123: 1 | E123: 0.943 | F123: 1.48E-80 | G123: 8
A124: Kif20a | B124: 1.44E-84 | C124: 0.416862257 | D124: 0.379 | E124: 0.162 | F124: 2.63e-80 | G124: 8
A125: Eny2 | B125: 5.26E-84 | C125: 0.378813658 | D125: 0.937 | E125: 0.813 | F125: 9.60E-80 | G125: 8
A126: Myl6 | B126: 5.51E-84 | C126: 0.312329969 | D126: 0.996 | E126: 0.929 | F126: 1.01E-79 | G126: 8
A127: Sfpq | B127: 9.58E-84 | C127: 0.379335721 | D127: 0.926 | E127: 0.778 | F127: 1.75E-79 | G127: 8
A128: Mrfap1 | B128: 1.06E-83 | C128: 0.303628582 | D128: 1 | E128: 0.907 | F128: 1.94E-79 | G128: 8
A129: Arf1 | B129: 1.72E-82 | C129: 0.350653307 | D129: 0.96 | E129: 0.855 | F129: 3.15E-78 | G129: 8
A130: Oaf | B130: 3.31E-82 | C130: 0.370192927 | D130: 0.652 | E130: 0.398 | F130: 6.05E-78 | G130: 8
A131: Shisa3 | B131: 4.02E-81 | C131: 0.436540045 | D131: 0.723 | E131: 0.469 | F131: 7.34E-77 | G131: 8
A132: Maged1 | B132: 4.48E-80 | C132: 0.401112342 | D132: 0.9 | E132: 0.753 | F132: 8.18E-76 | G132: 8
A133: Hmgb2 | B133: 1.36e-79 | C133: 0.53841314 | D133: 0.928 | E133: 0.815 | F133: 2.49E-75 | G133: 8
A134: Elavl1 | B134: 1.89E-79 | C134: 0.365822795 | D134: 0.834 | E134: 0.665 | F134: 3.45e-75 | G134: 8
A135: Cdc20 | B135: 3.36e-79 | C135: 0.746736426 | D135: 0.551 | E135: 0.332 | F135: 6.14E-75 | G135: 8
A136: Gpx8 | B136: 8.35E-79 | C136: 0.358088834 | D136: 0.791 | E136: 0.587 | F136: 1.53E-74 | G136: 8
A137: Crabp2 | B137: 3.72E-78 | C137: 0.533856194 | D137: 0.562 | E137: 0.335 | F137: 6.79E-74 | G137: 8
A138: Cks1b | B138: 3.72E-78 | C138: 0.424323417 | D138: 0.941 | E138: 0.797 | F138: 6.79E-74 | G138: 8
A139: Rbm3 | B139: 4.96E-78 | C139: 0.304874274 | D139: 0.999 | E139: 0.915 | F139: 9.07e-74 | G139: 8
A140: Lsm6 | B140: 5.61E-78 | C140: 0.350189201 | D140: 0.948 | E140: 0.792 | F140: 1.03e-73 | G140: 8
A141: Lhfp | B141: 1.54e-77 | C141: 0.391334216 | D141: 0.732 | E141: 0.46 | F141: 2.81e-73 | G141: 8
A142: Myl12a | B142: 1.88E-77 | C142: 0.339926162 | D142: 0.975 | E142: 0.869 | F142: 3.43E-73 | G142: 8
A143: Ubb | B143: 4.35E-77 | C143: 0.342543374 | D143: 1 | E143: 0.989 | F143: 7.96E-73 | G143: 8
A144: Calm3 | B144: 3.81E-76 | C144: 0.378311318 | D144: 0.942 | E144: 0.837 | F144: 6.96E-72 | G144: 8
A145: Pax8 | B145: 6.54E-76 | C145: -0.470833321 | D145: 0.024 | E145: 0.314 | F145: 1.20E-71 | G145: 8
A146: Prelid1 | B146: 1.02E-73 | C146: 0.332690916 | D146: 0.947 | E146: 0.818 | F146: 1.87E-69 | G146: 8
A147: Tacc3 | B147: 1.60E-73 | C147: 0.419688656 | D147: 0.473 | E147: 0.257 | F147: 2.92E-69 | G147: 8
A148: Sptssa | B148: 1.56E-72 | C148: 0.360697499 | D148: 0.897 | E148: 0.777 | F148: 2.85E-68 | G148: 8
A149: Laptm4b | B149: 2.85E-72 | C149: 0.359624867 | D149: 0.554 | E149: 0.333 | F149: 5.21E-68 | G149: 8
A150: Lsm5 | B150: 3.86E-72 | C150: 0.348701521 | D150: 0.92 | E150: 0.784 | F150: 7.05E-68 | G150: 8
A151: Hmgn1 | B151: 3.16e-71 | C151: 0.282962338 | D151: 1 | E151: 0.924 | F151: 5.77E-67 | G151: 8
A152: Ptgr1 | B152: 3.34e-71 | C152: 0.317714091 | D152: 0.395 | E152: 0.18 | F152: 6.10E-67 | G152: 8
A153: Ywhae | B153: 6.27E-71 | C153: 0.274459451 | D153: 0.996 | E153: 0.902 | F153: 1.14e-66 | G153: 8
A154: Dkk1 | B154: 1.24e-70 | C154: 0.500218854 | D154: 0.341 | E154: 0.138 | F154: 2.26E-66 | G154: 8
A155: Ptma | B155: 1.91e-70 | C155: 0.251037027 | D155: 1 | E155: 0.961 | F155: 3.48E-66 | G155: 8
A156: Cops6 | B156: 6.44E-70 | C156: 0.341583873 | D156: 0.864 | E156: 0.732 | F156: 1.18e-65 | G156: 8
A157: Foxp1 | B157: 6.49E-70 | C157: -0.346741149 | D157: 0.087 | E157: 0.391 | F157: 1.19e-65 | G157: 8
A158: Cpa2 | B158: 3.28E-69 | C158: 0.299566734 | D158: 0.346 | E158: 0.144 | F158: 5.99E-65 | G158: 8
A159: Rbbp7 | B159: 5.94E-69 | C159: 0.345408047 | D159: 0.864 | E159: 0.723 | F159: 1.09e-64 | G159: 8
A160: Arl1 | B160: 1.49e-68 | C160: 0.358719326 | D160: 0.806 | E160: 0.652 | F160: 2.72E-64 | G160: 8
A161: Snrpa1 | B161: 8.04E-68 | C161: 0.361700535 | D161: 0.835 | E161: 0.681 | F161: 1.47e-63 | G161: 8
A162: Ndufa5 | B162: 1.55E-67 | C162: 0.310735428 | D162: 0.937 | E162: 0.813 | F162: 2.83E-63 | G162: 8
A163: Crym | B163: 2.49E-67 | C163: -0.732308113 | D163: 0.057 | E163: 0.327 | F163: 4.55e-63 | G163: 8
A164: Sarnp | B164: 3.60E-67 | C164: 0.316881598 | D164: 0.901 | E164: 0.774 | F164: 6.57E-63 | G164: 8
A165: Hdgf | B165: 5.64E-67 | C165: 0.330512462 | D165: 0.963 | E165: 0.832 | F165: 1.03E-62 | G165: 8
A166: Sar1a | B166: 6.24E-67 | C166: 0.343944098 | D166: 0.765 | E166: 0.619 | F166: 1.14E-62 | G166: 8
A167: Shfm1 | B167: 1.27e-66 | C167: 0.259263367 | D167: 0.999 | E167: 0.916 | F167: 2.32E-62 | G167: 8
A168: Cdca3 | B168: 6.59E-66 | C168: 0.380563433 | D168: 0.627 | E168: 0.389 | F168: 1.20E-61 | G168: 8
A169: Crip2 | B169: 9.48E-66 | C169: -0.490152553 | D169: 0.138 | E169: 0.431 | F169: 1.73E-61 | G169: 8
A170: Chd3 | B170: 5.81E-65 | C170: 0.346217809 | D170: 0.804 | E170: 0.629 | F170: 1.06e-60 | G170: 8
A171: Tmed2 | B171: 5.84E-65 | C171: 0.322317126 | D171: 0.933 | E171: 0.821 | F171: 1.07E-60 | G171: 8
A172: Rangap1 | B172: 7.42E-65 | C172: 0.360930163 | D172: 0.529 | E172: 0.329 | F172: 1.35e-60 | G172: 8
A173: Ntn1 | B173: 9.40E-65 | C173: 0.256990779 | D173: 0.33 | E173: 0.131 | F173: 1.72E-60 | G173: 8
A174: Rnf26 | B174: 2.31E-64 | C174: 0.416376423 | D174: 0.617 | E174: 0.431 | F174: 4.23E-60 | G174: 8
A175: Tmed9 | B175: 3.65E-64 | C175: 0.32472228 | D175: 0.905 | E175: 0.788 | F175: 6.67E-60 | G175: 8
A176: Cox7c | B176: 5.04E-64 | C176: 0.262775203 | D176: 1 | E176: 0.926 | F176: 9.21E-60 | G176: 8
A177: Fn1 | B177: 8.92e-64 | C177: 0.283699832 | D177: 0.674 | E177: 0.416 | F177: 1.63e-59 | G177: 8
A178: Cox6b2 | B178: 1.21e-63 | C178: 0.384083347 | D178: 0.683 | E178: 0.49 | F178: 2.22e-59 | G178: 8
A179: Rcn3 | B179: 1.28E-63 | C179: 0.31495325 | D179: 0.802 | E179: 0.63 | F179: 2.34E-59 | G179: 8
A180: Lsm4 | B180: 1.39E-63 | C180: 0.30012227 | D180: 0.975 | E180: 0.849 | F180: 2.53E-59 | G180: 8
A181: 1110004F10Rik | B181: 1.41E-63 | C181: 0.311542896 | D181: 0.939 | E181: 0.815 | F181: 2.58E-59 | G181: 8
A182: Bud31 | B182: 3.13e-63 | C182: 0.3239634 | D182: 0.825 | E182: 0.683 | F182: 5.72E-59 | G182: 8
A183: Pdia6 | B183: 6.96E-63 | C183: 0.33785933 | D183: 0.879 | E183: 0.737 | F183: 1.27e-58 | G183: 8
A184: Hist1h2ap | B184: 7.39E-63 | C184: -1.342058289 | D184: 0.204 | E184: 0.46 | F184: 1.35E-58 | G184: 8
A185: Fbln1 | B185: 1.41E-62 | C185: 0.327155156 | D185: 0.608 | E185: 0.386 | F185: 2.57E-58 | G185: 8
A186: Eya1 | B186: 1.90E-62 | C186: -0.353583351 | D186: 0.019 | E186: 0.268 | F186: 3.47E-58 | G186: 8
A187: Cnbp | B187: 1.97e-62 | C187: 0.276090132 | D187: 0.99 | E187: 0.903 | F187: 3.60E-58 | G187: 8
A188: Psma2 | B188: 2.51e-62 | C188: 0.29437434 | D188: 0.936 | E188: 0.826 | F188: 4.58E-58 | G188: 8
A189: Hnrnpa3 | B189: 2.83E-62 | C189: 0.29658939 | D189: 0.979 | E189: 0.866 | F189: 5.16E-58 | G189: 8
A190: Zbtb20 | B190: 3.98E-62 | C190: -0.434383433 | D190: 0.246 | E190: 0.543 | F190: 7.27E-58 | G190: 8
A191: Snrpf | B191: 4.63E-62 | C191: 0.287123723 | D191: 0.988 | E191: 0.879 | F191: 8.45e-58 | G191: 8
A192: Fxyd6 | B192: 5.03E-62 | C192: -0.669679651 | D192: 0.496 | E192: 0.691 | F192: 9.20E-58 | G192: 8
A193: Mdfi | B193: 8.36E-62 | C193: 0.29873619 | D193: 0.492 | E193: 0.267 | F193: 1.53e-57 | G193: 8
A194: Spock2 | B194: 1.11e-61 | C194: -0.337929344 | D194: 0.026 | E194: 0.279 | F194: 2.03E-57 | G194: 8
A195: Ndufb8 | B195: 1.38E-61 | C195: 0.262279583 | D195: 0.989 | E195: 0.909 | F195: 2.53E-57 | G195: 8
A196: Nde1 | B196: 3.83E-61 | C196: 0.419794933 | D196: 0.564 | E196: 0.385 | F196: 6.99E-57 | G196: 8
A197: Chchd10 | B197: 4.51E-61 | C197: -0.420141996 | D197: 0.081 | E197: 0.351 | F197: 8.23E-57 | G197: 8
A198: Akap12 | B198: 2.42E-60 | C198: 0.301284846 | D198: 0.568 | E198: 0.322 | F198: 4.42E-56 | G198: 8
A199: Pkm | B199: 2.74E-60 | C199: 0.317197946 | D199: 0.969 | E199: 0.877 | F199: 5.00E-56 | G199: 8
A200: Cox7a2 | B200: 2.84E-60 | C200: 0.25623343 | D200: 0.999 | E200: 0.936 | F200: 5.18E-56 | G200: 8
... 249 more rows

Sheet 9
A1: gene | B1: p_val | C1: avg_logFC | D1: pct.1 | E1: pct.2 | F1: p_val_adj | G1: cluster
A2: Hbb-bt | B2: 0.00E+00 | C2: 2.795696304 | D2: 1 | E2: 0.723 | F2: 0 | G2: 9
A3: Hba-a2 | B3: 0.00E+00 | C3: 2.594525549 | D3: 1 | E3: 0.534 | F3: 0 | G3: 9
A4: Hbb-bs | B4: 0.00E+00 | C4: 2.548766213 | D4: 1 | E4: 0.938 | F4: 0 | G4: 9
A5: Hba-a1 | B5: 0.00E+00 | C5: 2.465723231 | D5: 1 | E5: 0.9 | F5: 0 | G5: 9
A6: Alas2 | B6: 0.00E+00 | C6: 2.129166282 | D6: 0.998 | E6: 0.112 | F6: 0 | G6: 9
A7: Snca | B7: 0.00E+00 | C7: 2.106750914 | D7: 0.981 | E7: 0.091 | F7: 0 | G7: 9
A8: Gypa | B8: 0.00E+00 | C8: 2.077224199 | D8: 0.926 | E8: 0.028 | F8: 0 | G8: 9
A9: Mkrn1 | B9: 0.00E+00 | C9: 1.960674645 | D9: 0.994 | E9: 0.431 | F9: 0 | G9: 9
A10: Bpgm | B10: 0.00E+00 | C10: 1.810221101 | D10: 0.97 | E10: 0.322 | F10: 0 | G10: 9
A11: Car2 | B11: 0.00E+00 | C11: 1.768473092 | D11: 0.719 | E11: 0.08 | F11: 0 | G11: 9
A12: Gpx1 | B12: 0.00E+00 | C12: 1.766877426 | D12: 0.963 | E12: 0.845 | F12: 0 | G12: 9
A13: Fech | B13: 0.00E+00 | C13: 1.506192806 | D13: 0.978 | E13: 0.253 | F13: 0 | G13: 9
A14: Ube2l6 | B14: 0.00E+00 | C14: 1.340945597 | D14: 0.925 | E14: 0.166 | F14: 0 | G14: 9
A15: Blvrb | B15: 0.00E+00 | C15: 1.111085803 | D15: 0.929 | E15: 0.425 | F15: 0 | G15: 9
A16: Fam220a | B16: 0.00E+00 | C16: 1.032787206 | D16: 0.908 | E16: 0.472 | F16: 0 | G16: 9
A17: 2019-03-02 | B17: 0.00E+00 | C17: 1.006034914 | D17: 0.947 | E17: 0.377 | F17: 0 | G17: 9
A18: Pnpo | B18: 0.00E+00 | C18: 0.829734519 | D18: 0.492 | E18: 0.072 | F18: 0 | G18: 9
A19: Fam210b | B19: 0.00E+00 | C19: 0.826459114 | D19: 0.729 | E19: 0.089 | F19: 0 | G19: 9
A20: Slc25a37 | B20: 0.00E+00 | C20: 0.789768437 | D20: 0.696 | E20: 0.089 | F20: 0 | G20: 9
A21: Trim10 | B21: 0.00E+00 | C21: 0.684068581 | D21: 0.484 | E21: 0.002 | F21: 0 | G21: 9
A22: Rhd | B22: 0.00E+00 | C22: 0.608795356 | D22: 0.481 | E22: 0.006 | F22: 0 | G22: 9
A23: Slc4a1 | B23: 0.00E+00 | C23: 0.599417772 | D23: 0.464 | E23: 0.005 | F23: 0 | G23: 9
A24: Tspo2 | B24: 0.00E+00 | C24: 0.592832385 | D24: 0.547 | E24: 0.02 | F24: 0 | G24: 9
A25: Fam46c | B25: 0.00E+00 | C25: 0.535706245 | D25: 0.564 | E25: 0.03 | F25: 0 | G25: 9
A26: Isg20 | B26: 0.00E+00 | C26: 0.518076236 | D26: 0.409 | E26: 0.017 | F26: 0 | G26: 9
A27: Cdr2 | B27: 0.00E+00 | C27: 0.382538464 | D27: 0.48 | E27: 0.079 | F27: 0 | G27: 9
A28: Ctse | B28: 0.00E+00 | C28: 0.378662645 | D28: 0.345 | E28: 0.004 | F28: 0 | G28: 9
A29: Dhrs11 | B29: 0.00E+00 | C29: 0.372727111 | D29: 0.411 | E29: 0.033 | F29: 0 | G29: 9
A30: AI662270 | B30: 0.00E+00 | C30: 0.34953416 | D30: 0.342 | E30: 0.023 | F30: 0 | G30: 9
A31: Rec114 | B31: 0.00E+00 | C31: 0.327499361 | D31: 0.336 | E31: 0.017 | F31: 0 | G31: 9
A32: Eif1 | B32: 0.00E+00 | C32: -0.908261909 | D32: 0.963 | E32: 0.977 | F32: 0 | G32: 9
A33: Eif4h | B33: 0.00E+00 | C33: -0.942622864 | D33: 0.121 | E33: 0.792 | F33: 0 | G33: 9
A34: Mrps24 | B34: 0.00E+00 | C34: -0.947365582 | D34: 0.135 | E34: 0.8 | F34: 0 | G34: 9
A35: Thoc7 | B35: 0.00E+00 | C35: -0.951167955 | D35: 0.111 | E35: 0.789 | F35: 0 | G35: 9
A36: Tmem234 | B36: 0.00E+00 | C36: -0.951467472 | D36: 0.194 | E36: 0.827 | F36: 0 | G36: 9
A37: Ndufb6 | B37: 0.00E+00 | C37: -0.952341974 | D37: 0.245 | E37: 0.837 | F37: 0 | G37: 9
A38: C1d | B38: 0.00E+00 | C38: -0.953467428 | D38: 0.097 | E38: 0.792 | F38: 0 | G38: 9
A39: Snrpb2 | B39: 0.00E+00 | C39: -0.960041761 | D39: 0.102 | E39: 0.794 | F39: 0 | G39: 9
A40: Scand1 | B40: 0.00E+00 | C40: -0.961514041 | D40: 0.169 | E40: 0.813 | F40: 0 | G40: 9
A41: Cdc37 | B41: 0.00E+00 | C41: -0.962980189 | D41: 0.154 | E41: 0.814 | F41: 0 | G41: 9
A42: Cox14 | B42: 0.00E+00 | C42: -0.964080354 | D42: 0.154 | E42: 0.812 | F42: 0 | G42: 9
A43: Nsa2 | B43: 0.00E+00 | C43: -0.964280227 | D43: 0.1 | E43: 0.792 | F43: 0 | G43: 9
A44: Mrps14 | B44: 0.00E+00 | C44: -0.966108046 | D44: 0.225 | E44: 0.836 | F44: 0 | G44: 9
A45: Rnf187 | B45: 0.00E+00 | C45: -0.967184496 | D45: 0.216 | E45: 0.83 | F45: 0 | G45: 9
A46: Ndufs7 | B46: 0.00E+00 | C46: -0.967187982 | D46: 0.162 | E46: 0.815 | F46: 0 | G46: 9
A47: Ctbp1 | B47: 0.00E+00 | C47: -0.968060537 | D47: 0.139 | E47: 0.814 | F47: 0 | G47: 9
A48: Ndufb11 | B48: 0.00E+00 | C48: -0.968783255 | D48: 0.513 | E48: 0.909 | F48: 0 | G48: 9
A49: Gtf2h5 | B49: 0.00E+00 | C49: -0.969685113 | D49: 0.148 | E49: 0.805 | F49: 0 | G49: 9
A50: Txndc17 | B50: 0.00E+00 | C50: -0.970294721 | D50: 0.14 | E50: 0.812 | F50: 0 | G50: 9
A51: Arhgdia | B51: 0.00E+00 | C51: -0.970303334 | D51: 0.157 | E51: 0.809 | F51: 0 | G51: 9
A52: Srp14 | B52: 0.00E+00 | C52: -0.971997087 | D52: 0.257 | E52: 0.853 | F52: 0 | G52: 9
A53: Sarnp | B53: 0.00E+00 | C53: -0.973904951 | D53: 0.131 | E53: 0.81 | F53: 0 | G53: 9
A54: Romo1 | B54: 0.00E+00 | C54: -0.975241387 | D54: 0.26 | E54: 0.84 | F54: 0 | G54: 9
A55: 2410015M20Rik | B55: 0.00E+00 | C55: -0.976146498 | D55: 0.227 | E55: 0.845 | F55: 0 | G55: 9
A56: Esd | B56: 0.00E+00 | C56: -0.9768778 | D56: 0.191 | E56: 0.838 | F56: 0 | G56: 9
A57: Anapc5 | B57: 0.00E+00 | C57: -0.979296495 | D57: 0.181 | E57: 0.824 | F57: 0 | G57: 9
A58: Tsen34 | B58: 0.00E+00 | C58: -0.979981791 | D58: 0.087 | E58: 0.785 | F58: 0 | G58: 9
A59: Hsd17b10 | B59: 0.00E+00 | C59: -0.980098253 | D59: 0.131 | E59: 0.814 | F59: 0 | G59: 9
A60: Ndufs5 | B60: 0.00E+00 | C60: -0.985076891 | D60: 0.329 | E60: 0.865 | F60: 0 | G60: 9
A61: Pfdn2 | B61: 0.00E+00 | C61: -0.987263482 | D61: 0.169 | E61: 0.819 | F61: 0 | G61: 9
A62: Rsrp1 | B62: 0.00E+00 | C62: -0.989674855 | D62: 0.153 | E62: 0.825 | F62: 0 | G62: 9
A63: Hnrnpm | B63: 0.00E+00 | C63: -0.992726243 | D63: 0.149 | E63: 0.808 | F63: 0 | G63: 9
A64: Etfb | B64: 0.00E+00 | C64: -0.994384968 | D64: 0.151 | E64: 0.812 | F64: 0 | G64: 9
A65: Srsf1 | B65: 0.00E+00 | C65: -0.99677478 | D65: 0.113 | E65: 0.79 | F65: 0 | G65: 9
A66: Sdhb | B66: 0.00E+00 | C66: -0.998088532 | D66: 0.165 | E66: 0.824 | F66: 0 | G66: 9
A67: Ndufv2 | B67: 0.00E+00 | C67: -1.000597427 | D67: 0.22 | E67: 0.847 | F67: 0 | G67: 9
A68: Atp5k | B68: 0.00E+00 | C68: -1.001422134 | D68: 0.429 | E68: 0.894 | F68: 0 | G68: 9
A69: Gdi2 | B69: 0.00E+00 | C69: -1.002475369 | D69: 0.12 | E69: 0.81 | F69: 0 | G69: 9
A70: Ndufa8 | B70: 0.00E+00 | C70: -1.005580161 | D70: 0.112 | E70: 0.822 | F70: 0 | G70: 9
A71: Psmb7 | B71: 0.00E+00 | C71: -1.006311272 | D71: 0.148 | E71: 0.822 | F71: 0 | G71: 9
A72: Tra2b | B72: 0.00E+00 | C72: -1.006410948 | D72: 0.118 | E72: 0.808 | F72: 0 | G72: 9
A73: Tmed10 | B73: 0.00E+00 | C73: -1.008949143 | D73: 0.129 | E73: 0.816 | F73: 0 | G73: 9
A74: Rbm25 | B74: 0.00E+00 | C74: -1.008963671 | D74: 0.076 | E74: 0.796 | F74: 0 | G74: 9
A75: Psmb4 | B75: 0.00E+00 | C75: -1.009288099 | D75: 0.156 | E75: 0.83 | F75: 0 | G75: 9
A76: Ube2d2a | B76: 0.00E+00 | C76: -1.010625692 | D76: 0.138 | E76: 0.829 | F76: 0 | G76: 9
A77: Ewsr1 | B77: 0.00E+00 | C77: -1.012400112 | D77: 0.17 | E77: 0.82 | F77: 0 | G77: 9
A78: Gnai2 | B78: 0.00E+00 | C78: -1.01261071 | D78: 0.09 | E78: 0.781 | F78: 0 | G78: 9
A79: Rac1 | B79: 0.00E+00 | C79: -1.012618118 | D79: 0.211 | E79: 0.838 | F79: 0 | G79: 9
A80: Nudt21 | B80: 0.00E+00 | C80: -1.012718549 | D80: 0.117 | E80: 0.808 | F80: 0 | G80: 9
A81: Phf5a | B81: 0.00E+00 | C81: -1.013223809 | D81: 0.129 | E81: 0.8 | F81: 0 | G81: 9
A82: Pfdn1 | B82: 0.00E+00 | C82: -1.014652238 | D82: 0.156 | E82: 0.833 | F82: 0 | G82: 9
A83: Paip2 | B83: 0.00E+00 | C83: -1.015269238 | D83: 0.403 | E83: 0.879 | F83: 0 | G83: 9
A84: Psma6 | B84: 0.00E+00 | C84: -1.015330477 | D84: 0.152 | E84: 0.822 | F84: 0 | G84: 9
A85: Ndufb7 | B85: 0.00E+00 | C85: -1.015537746 | D85: 0.41 | E85: 0.89 | F85: 0 | G85: 9
A86: 2310036O22Rik | B86: 0.00E+00 | C86: -1.016508561 | D86: 0.302 | E86: 0.857 | F86: 0 | G86: 9
A87: Maged1 | B87: 0.00E+00 | C87: -1.016842744 | D87: 0.11 | E87: 0.79 | F87: 0 | G87: 9
A88: Tead2 | B88: 0.00E+00 | C88: -1.017505402 | D88: 0.078 | E88: 0.771 | F88: 0 | G88: 9
A89: Spcs2 | B89: 0.00E+00 | C89: -1.017820709 | D89: 0.11 | E89: 0.812 | F89: 0 | G89: 9
A90: Tomm22 | B90: 0.00E+00 | C90: -1.018502501 | D90: 0.117 | E90: 0.8 | F90: 0 | G90: 9
A91: Tmem258 | B91: 0.00E+00 | C91: -1.018521922 | D91: 0.263 | E91: 0.863 | F91: 0 | G91: 9
A92: Vdac3 | B92: 0.00E+00 | C92: -1.01887422 | D92: 0.139 | E92: 0.828 | F92: 0 | G92: 9
A93: Psma1 | B93: 0.00E+00 | C93: -1.019153737 | D93: 0.138 | E93: 0.825 | F93: 0 | G93: 9
A94: Mettl9 | B94: 0.00E+00 | C94: -1.019289151 | D94: 0.118 | E94: 0.811 | F94: 0 | G94: 9
A95: Mrpl30 | B95: 0.00E+00 | C95: -1.019451887 | D95: 0.193 | E95: 0.844 | F95: 0 | G95: 9
A96: Snrpc | B96: 0.00E+00 | C96: -1.021420018 | D96: 0.131 | E96: 0.82 | F96: 0 | G96: 9
A97: Srsf11 | B97: 0.00E+00 | C97: -1.022325552 | D97: 0.128 | E97: 0.816 | F97: 0 | G97: 9
A98: Brk1 | B98: 0.00E+00 | C98: -1.023023028 | D98: 0.203 | E98: 0.848 | F98: 0 | G98: 9
A99: Ndufa11 | B99: 0.00E+00 | C99: -1.025238521 | D99: 0.388 | E99: 0.888 | F99: 0 | G99: 9
A100: Rpl10-ps3 | B100: 0.00E+00 | C100: -1.031632755 | D100: 0.134 | E100: 0.805 | F100: 0 | G100: 9
A101: Sptssa | B101: 0.00E+00 | C101: -1.031686808 | D101: 0.093 | E101: 0.814 | F101: 0 | G101: 9
A102: Ubl5 | B102: 0.00E+00 | C102: -1.033207169 | D102: 0.454 | E102: 0.906 | F102: 0 | G102: 9
A103: Cfdp1 | B103: 0.00E+00 | C103: -1.036466263 | D103: 0.128 | E103: 0.832 | F103: 0 | G103: 9
A104: Cct2 | B104: 0.00E+00 | C104: -1.037993337 | D104: 0.1 | E104: 0.798 | F104: 0 | G104: 9
A105: Hnrnpu | B105: 0.00E+00 | C105: -1.03921749 | D105: 0.138 | E105: 0.804 | F105: 0 | G105: 9
A106: Rab2a | B106: 0.00E+00 | C106: -1.039546485 | D106: 0.08 | E106: 0.808 | F106: 0 | G106: 9
A107: Cnn3 | B107: 0.00E+00 | C107: -1.043533564 | D107: 0.124 | E107: 0.796 | F107: 0 | G107: 9
A108: Atp5h | B108: 0.00E+00 | C108: -1.045114124 | D108: 0.784 | E108: 0.956 | F108: 0 | G108: 9
A109: Sumo3 | B109: 0.00E+00 | C109: -1.046241388 | D109: 0.133 | E109: 0.823 | F109: 0 | G109: 9
A110: Tomm5 | B110: 0.00E+00 | C110: -1.04660766 | D110: 0.143 | E110: 0.826 | F110: 0 | G110: 9
A111: Myeov2 | B111: 0.00E+00 | C111: -1.048615783 | D111: 0.155 | E111: 0.842 | F111: 0 | G111: 9
A112: Hnrnpr | B112: 0.00E+00 | C112: -1.049908238 | D112: 0.102 | E112: 0.812 | F112: 0 | G112: 9
A113: Timm8b | B113: 0.00E+00 | C113: -1.05105078 | D113: 0.248 | E113: 0.842 | F113: 0 | G113: 9
A114: Polr2f | B114: 0.00E+00 | C114: -1.052228956 | D114: 0.187 | E114: 0.839 | F114: 0 | G114: 9
A115: Mrpl54 | B115: 0.00E+00 | C115: -1.052746055 | D115: 0.187 | E115: 0.841 | F115: 0 | G115: 9
A116: Psmb5 | B116: 0.00E+00 | C116: -1.056525671 | D116: 0.234 | E116: 0.853 | F116: 0 | G116: 9
A117: Emg1 | B117: 0.00E+00 | C117: -1.057231473 | D117: 0.139 | E117: 0.834 | F117: 0 | G117: 9
A118: C1qbp | B118: 0.00E+00 | C118: -1.058152333 | D118: 0.126 | E118: 0.804 | F118: 0 | G118: 9
A119: Ppp1cc | B119: 0.00E+00 | C119: -1.058179396 | D119: 0.133 | E119: 0.826 | F119: 0 | G119: 9
A120: Uqcrfs1 | B120: 0.00E+00 | C120: -1.062379865 | D120: 0.169 | E120: 0.835 | F120: 0 | G120: 9
A121: Glrx3 | B121: 0.00E+00 | C121: -1.065178023 | D121: 0.116 | E121: 0.832 | F121: 0 | G121: 9
A122: Nenf | B122: 0.00E+00 | C122: -1.066771844 | D122: 0.121 | E122: 0.808 | F122: 0 | G122: 9
A123: Usmg5 | B123: 0.00E+00 | C123: -1.067259296 | D123: 0.301 | E123: 0.869 | F123: 0 | G123: 9
A124: Psma2 | B124: 0.00E+00 | C124: -1.06846725 | D124: 0.209 | E124: 0.86 | F124: 0 | G124: 9
A125: Hnrnpdl | B125: 0.00E+00 | C125: -1.070163452 | D125: 0.143 | E125: 0.819 | F125: 0 | G125: 9
A126: Mdh2 | B126: 0.00E+00 | C126: -1.070899135 | D126: 0.243 | E126: 0.86 | F126: 0 | G126: 9
A127: Impdh2 | B127: 0.00E+00 | C127: -1.071478534 | D127: 0.119 | E127: 0.807 | F127: 0 | G127: 9
A128: Stub1 | B128: 0.00E+00 | C128: -1.07241531 | D128: 0.153 | E128: 0.835 | F128: 0 | G128: 9
A129: Lsm6 | B129: 0.00E+00 | C129: -1.072530799 | D129: 0.219 | E129: 0.826 | F129: 0 | G129: 9
A130: Sfpq | B130: 0.00E+00 | C130: -1.072986088 | D130: 0.131 | E130: 0.815 | F130: 0 | G130: 9
A131: Trmt112 | B131: 0.00E+00 | C131: -1.07317934 | D131: 0.138 | E131: 0.843 | F131: 0 | G131: 9
A132: Ddx39b | B132: 0.00E+00 | C132: -1.075319536 | D132: 0.13 | E132: 0.819 | F132: 0 | G132: 9
A133: Tmed9 | B133: 0.00E+00 | C133: -1.076131291 | D133: 0.102 | E133: 0.825 | F133: 0 | G133: 9
A134: Arf4 | B134: 0.00E+00 | C134: -1.076150617 | D134: 0.12 | E134: 0.826 | F134: 0 | G134: 9
A135: Mrpl42 | B135: 0.00E+00 | C135: -1.077243697 | D135: 0.154 | E135: 0.819 | F135: 0 | G135: 9
A136: Cox7a2 | B136: 0.00E+00 | C136: -1.077388479 | D136: 0.766 | E136: 0.947 | F136: 0 | G136: 9
A137: Srsf5 | B137: 0.00E+00 | C137: -1.077458357 | D137: 0.144 | E137: 0.839 | F137: 0 | G137: 9
A138: Sf3b6 | B138: 0.00E+00 | C138: -1.080365548 | D138: 0.164 | E138: 0.845 | F138: 0 | G138: 9
A139: Psma5 | B139: 0.00E+00 | C139: -1.082371394 | D139: 0.154 | E139: 0.847 | F139: 0 | G139: 9
A140: Clic1 | B140: 0.00E+00 | C140: -1.082889147 | D140: 0.144 | E140: 0.822 | F140: 0 | G140: 9
A141: Anp32a | B141: 0.00E+00 | C141: -1.084794601 | D141: 0.148 | E141: 0.836 | F141: 0 | G141: 9
A142: Idh2 | B142: 0.00E+00 | C142: -1.08533161 | D142: 0.158 | E142: 0.832 | F142: 0 | G142: 9
A143: Lsm5 | B143: 0.00E+00 | C143: -1.089732778 | D143: 0.155 | E143: 0.82 | F143: 0 | G143: 9
A144: Sf3b5 | B144: 0.00E+00 | C144: -1.090805101 | D144: 0.206 | E144: 0.85 | F144: 0 | G144: 9
A145: Cdc26 | B145: 0.00E+00 | C145: -1.09084709 | D145: 0.12 | E145: 0.84 | F145: 0 | G145: 9
A146: Ndufc1 | B146: 0.00E+00 | C146: -1.091558727 | D146: 0.252 | E146: 0.866 | F146: 0 | G146: 9
A147: Anapc11 | B147: 0.00E+00 | C147: -1.091943932 | D147: 0.138 | E147: 0.825 | F147: 0 | G147: 9
A148: Psma4 | B148: 0.00E+00 | C148: -1.093162771 | D148: 0.118 | E148: 0.829 | F148: 0 | G148: 9
A149: Npc2 | B149: 0.00E+00 | C149: -1.093984337 | D149: 0.134 | E149: 0.831 | F149: 0 | G149: 9
A150: Ndufb9 | B150: 0.00E+00 | C150: -1.095587449 | D150: 0.361 | E150: 0.902 | F150: 0 | G150: 9
A151: Pgam1 | B151: 0.00E+00 | C151: -1.09756847 | D151: 0.283 | E151: 0.853 | F151: 0 | G151: 9
A152: 2010107E04Rik | B152: 0.00E+00 | C152: -1.099554978 | D152: 0.492 | E152: 0.925 | F152: 0 | G152: 9
A153: Tmed2 | B153: 0.00E+00 | C153: -1.099672529 | D153: 0.166 | E153: 0.856 | F153: 0 | G153: 9
A154: Son | B154: 0.00E+00 | C154: -1.099721034 | D154: 0.103 | E154: 0.832 | F154: 0 | G154: 9
A155: Rbm8a | B155: 0.00E+00 | C155: -1.100066819 | D155: 0.173 | E155: 0.848 | F155: 0 | G155: 9
A156: Banf1 | B156: 0.00E+00 | C156: -1.101965331 | D156: 0.156 | E156: 0.836 | F156: 0 | G156: 9
A157: Cox6c | B157: 0.00E+00 | C157: -1.102279643 | D157: 0.847 | E157: 0.975 | F157: 0 | G157: 9
A158: Mbd3 | B158: 0.00E+00 | C158: -1.103402477 | D158: 0.147 | E158: 0.832 | F158: 0 | G158: 9
A159: Vdac1 | B159: 0.00E+00 | C159: -1.104567148 | D159: 0.12 | E159: 0.836 | F159: 0 | G159: 9
A160: Spcs1 | B160: 0.00E+00 | C160: -1.105821787 | D160: 0.162 | E160: 0.862 | F160: 0 | G160: 9
A161: Vdac2 | B161: 0.00E+00 | C161: -1.107338541 | D161: 0.146 | E161: 0.844 | F161: 0 | G161: 9
A162: Uqcrq | B162: 0.00E+00 | C162: -1.107696668 | D162: 0.554 | E162: 0.924 | F162: 0 | G162: 9
A163: Sf3b2 | B163: 0.00E+00 | C163: -1.109075095 | D163: 0.113 | E163: 0.833 | F163: 0 | G163: 9
A164: Mrpl52 | B164: 0.00E+00 | C164: -1.109642617 | D164: 0.206 | E164: 0.863 | F164: 0 | G164: 9
A165: Atp5l | B165: 0.00E+00 | C165: -1.110985451 | D165: 0.784 | E165: 0.958 | F165: 0 | G165: 9
A166: Ndufa13 | B166: 0.00E+00 | C166: -1.112114967 | D166: 0.437 | E166: 0.922 | F166: 0 | G166: 9
A167: Hspd1 | B167: 0.00E+00 | C167: -1.114797287 | D167: 0.137 | E167: 0.815 | F167: 0 | G167: 9
A168: Srsf6 | B168: 0.00E+00 | C168: -1.1157316 | D168: 0.148 | E168: 0.841 | F168: 0 | G168: 9
A169: Srp9 | B169: 0.00E+00 | C169: -1.116632168 | D169: 0.157 | E169: 0.849 | F169: 0 | G169: 9
A170: Prdx6 | B170: 0.00E+00 | C170: -1.117502052 | D170: 0.209 | E170: 0.829 | F170: 0 | G170: 9
A171: Serf1 | B171: 0.00E+00 | C171: -1.117959932 | D171: 0.121 | E171: 0.82 | F171: 0 | G171: 9
A172: Edf1 | B172: 0.00E+00 | C172: -1.119720414 | D172: 0.31 | E172: 0.892 | F172: 0 | G172: 9
A173: Calr | B173: 0.00E+00 | C173: -1.122673056 | D173: 0.258 | E173: 0.838 | F173: 0 | G173: 9
A174: Atp6v1g1 | B174: 0.00E+00 | C174: -1.122817697 | D174: 0.426 | E174: 0.913 | F174: 0 | G174: 9
A175: Atp5j2 | B175: 0.00E+00 | C175: -1.123503232 | D175: 0.743 | E175: 0.957 | F175: 0 | G175: 9
A176: Tceb2 | B176: 0.00E+00 | C176: -1.127337122 | D176: 0.828 | E176: 0.968 | F176: 0 | G176: 9
A177: Mlf2 | B177: 0.00E+00 | C177: -1.128793536 | D177: 0.152 | E177: 0.847 | F177: 0 | G177: 9
A178: Fubp1 | B178: 0.00E+00 | C178: -1.129226389 | D178: 0.106 | E178: 0.834 | F178: 0 | G178: 9
A179: Mrps33 | B179: 0.00E+00 | C179: -1.13019121 | D179: 0.183 | E179: 0.864 | F179: 0 | G179: 9
A180: Smdt1 | B180: 0.00E+00 | C180: -1.130294754 | D180: 0.245 | E180: 0.88 | F180: 0 | G180: 9
A181: Eny2 | B181: 0.00E+00 | C181: -1.130931878 | D181: 0.171 | E181: 0.849 | F181: 0 | G181: 9
A182: Fkbp4 | B182: 0.00E+00 | C182: -1.131268927 | D182: 0.151 | E182: 0.808 | F182: 0 | G182: 9
A183: Zfp706 | B183: 0.00E+00 | C183: -1.131289228 | D183: 0.146 | E183: 0.842 | F183: 0 | G183: 9
A184: Capzb | B184: 0.00E+00 | C184: -1.131469835 | D184: 0.113 | E184: 0.848 | F184: 0 | G184: 9
A185: Laptm4a | B185: 0.00E+00 | C185: -1.134516457 | D185: 0.152 | E185: 0.836 | F185: 0 | G185: 9
A186: 1110004F10Rik | B186: 0.00E+00 | C186: -1.136033599 | D186: 0.119 | E186: 0.853 | F186: 0 | G186: 9
A187: Eif3i | B187: 0.00E+00 | C187: -1.138533877 | D187: 0.21 | E187: 0.869 | F187: 0 | G187: 9
A188: Ttc3 | B188: 0.00E+00 | C188: -1.143308822 | D188: 0.096 | E188: 0.835 | F188: 0 | G188: 9
A189: Nono | B189: 0.00E+00 | C189: -1.144896829 | D189: 0.16 | E189: 0.857 | F189: 0 | G189: 9
A190: Cnpy2 | B190: 0.00E+00 | C190: -1.144910305 | D190: 0.109 | E190: 0.849 | F190: 0 | G190: 9
A191: Cct4 | B191: 0.00E+00 | C191: -1.146073949 | D191: 0.13 | E191: 0.836 | F191: 0 | G191: 9
A192: mt-Nd3 | B192: 0.00E+00 | C192: -1.146128421 | D192: 0.067 | E192: 0.783 | F192: 0 | G192: 9
A193: Tcp1 | B193: 0.00E+00 | C193: -1.14697969 | D193: 0.191 | E193: 0.858 | F193: 0 | G193: 9
A194: Npm3 | B194: 0.00E+00 | C194: -1.149052447 | D194: 0.101 | E194: 0.815 | F194: 0 | G194: 9
A195: Atox1 | B195: 0.00E+00 | C195: -1.149348669 | D195: 0.221 | E195: 0.863 | F195: 0 | G195: 9
A196: Hsbp1 | B196: 0.00E+00 | C196: -1.155440679 | D196: 0.178 | E196: 0.877 | F196: 0 | G196: 9
A197: Csnk1a1 | B197: 0.00E+00 | C197: -1.155546598 | D197: 0.118 | E197: 0.854 | F197: 0 | G197: 9
A198: Pgls | B198: 0.00E+00 | C198: -1.156336965 | D198: 0.117 | E198: 0.848 | F198: 0 | G198: 9
A199: Cirbp | B199: 0.00E+00 | C199: -1.15858971 | D199: 0.085 | E199: 0.789 | F199: 0 | G199: 9
A200: Dynlrb1 | B200: 0.00E+00 | C200: -1.158924818 | D200: 0.234 | E200: 0.886 | F200: 0 | G200: 9
... 3393 more rows

Sheet 10
A1: gene | B1: p_val | C1: avg_logFC | D1: pct.1 | E1: pct.2 | F1: p_val_adj | G1: cluster
A2: Osr2 | B2: 0.00E+00 | C2: 1.577842014 | D2: 0.734 | E2: 0.046 | F2: 0 | G2: 10
A3: Fxyd2 | B3: 0.00E+00 | C3: 1.443545039 | D3: 0.578 | E3: 0.06 | F3: 0 | G3: 10
A4: Clu | B4: 0.00E+00 | C4: 1.196297025 | D4: 0.889 | E4: 0.099 | F4: 0 | G4: 10
A5: Lhx1os | B5: 0.00E+00 | C5: 1.134310027 | D5: 0.838 | E5: 0.099 | F5: 0 | G5: 10
A6: Ly6a | B6: 0.00E+00 | C6: 1.079834764 | D6: 0.507 | E6: 0.062 | F6: 0 | G6: 10
A7: Rab3ip | B7: 0.00E+00 | C7: 1.064673316 | D7: 0.955 | E7: 0.229 | F7: 0 | G7: 10
A8: Emid1 | B8: 0.00E+00 | C8: 1.02454899 | D8: 0.904 | E8: 0.232 | F8: 0 | G8: 10
A9: Prss23 | B9: 0.00E+00 | C9: 1.023996369 | D9: 0.851 | E9: 0.145 | F9: 0 | G9: 10
A10: Mpc2 | B10: 0.00E+00 | C10: 0.970083982 | D10: 0.991 | E10: 0.716 | F10: 0 | G10: 10
A11: Lhx1 | B11: 0.00E+00 | C11: 0.946947611 | D11: 0.709 | E11: 0.079 | F11: 0 | G11: 10
A12: Atp1b1 | B12: 0.00E+00 | C12: 0.941872274 | D12: 0.786 | E12: 0.11 | F12: 0 | G12: 10
A13: Pcbd1 | B13: 0.00E+00 | C13: 0.928789433 | D13: 0.952 | E13: 0.276 | F13: 0 | G13: 10
A14: Clec18a | B14: 0.00E+00 | C14: 0.900991382 | D14: 0.836 | E14: 0.048 | F14: 0 | G14: 10
A15: Chchd10 | B15: 0.00E+00 | C15: 0.877455346 | D15: 0.921 | E15: 0.312 | F15: 0 | G15: 10
A16: Stard10 | B16: 0.00E+00 | C16: 0.861066315 | D16: 0.796 | E16: 0.126 | F16: 0 | G16: 10
A17: Spint2 | B17: 0.00E+00 | C17: 0.848922113 | D17: 0.94 | E17: 0.24 | F17: 0 | G17: 10
A18: Hes5 | B18: 0.00E+00 | C18: 0.829155272 | D18: 0.465 | E18: 0.011 | F18: 0 | G18: 10
A19: Emx2 | B19: 0.00E+00 | C19: 0.811494397 | D19: 0.831 | E19: 0.103 | F19: 0 | G19: 10
A20: Prnp | B20: 0.00E+00 | C20: 0.81025432 | D20: 0.615 | E20: 0.081 | F20: 0 | G20: 10
A21: Pdgfa | B21: 0.00E+00 | C21: 0.786205268 | D21: 0.852 | E21: 0.246 | F21: 0 | G21: 10
A22: Nrarp | B22: 0.00E+00 | C22: 0.776465577 | D22: 0.652 | E22: 0.062 | F22: 0 | G22: 10
A23: Arl4c | B23: 0.00E+00 | C23: 0.770946433 | D23: 0.813 | E23: 0.182 | F23: 0 | G23: 10
A24: Car4 | B24: 0.00E+00 | C24: 0.76447577 | D24: 0.703 | E24: 0.025 | F24: 0 | G24: 10
A25: Ly6e | B25: 0.00E+00 | C25: 0.742444925 | D25: 0.899 | E25: 0.349 | F25: 0 | G25: 10
A26: Pax8 | B26: 0.00E+00 | C26: 0.742302629 | D26: 0.873 | E26: 0.275 | F26: 0 | G26: 10
A27: Hnf1b | B27: 0.00E+00 | C27: 0.73083234 | D27: 0.767 | E27: 0.053 | F27: 0 | G27: 10
A28: Ddah1 | B28: 0.00E+00 | C28: 0.709717557 | D28: 0.806 | E28: 0.241 | F28: 0 | G28: 10
A29: Lfng | B29: 0.00E+00 | C29: 0.701820485 | D29: 0.605 | E29: 0.065 | F29: 0 | G29: 10
A30: Gm17750 | B30: 0.00E+00 | C30: 0.697032037 | D30: 0.684 | E30: 0.042 | F30: 0 | G30: 10
A31: Aldob | B31: 0.00E+00 | C31: 0.694675793 | D31: 0.294 | E31: 0.008 | F31: 0 | G31: 10
A32: Tpd52 | B32: 0.00E+00 | C32: 0.684050696 | D32: 0.891 | E32: 0.329 | F32: 0 | G32: 10
A33: Dll1 | B33: 0.00E+00 | C33: 0.680305934 | D33: 0.523 | E33: 0.017 | F33: 0 | G33: 10
A34: 1700011H14Rik | B34: 0.00E+00 | C34: 0.671338256 | D34: 0.712 | E34: 0.067 | F34: 0 | G34: 10
A35: Jag1 | B35: 0.00E+00 | C35: 0.669414394 | D35: 0.653 | E35: 0.074 | F35: 0 | G35: 10
A36: Ezr | B36: 0.00E+00 | C36: 0.654518133 | D36: 0.849 | E36: 0.258 | F36: 0 | G36: 10
A37: Tspan13 | B37: 0.00E+00 | C37: 0.638718194 | D37: 0.848 | E37: 0.305 | F37: 0 | G37: 10
A38: Lgr4 | B38: 0.00E+00 | C38: 0.634694522 | D38: 0.655 | E38: 0.118 | F38: 0 | G38: 10
A39: Irx1 | B39: 0.00E+00 | C39: 0.627413694 | D39: 0.271 | E39: 0.004 | F39: 0 | G39: 10
A40: Cldn6 | B40: 0.00E+00 | C40: 0.614302178 | D40: 0.665 | E40: 0.093 | F40: 0 | G40: 10
A41: Dcdc2a | B41: 0.00E+00 | C41: 0.614004793 | D41: 0.618 | E41: 0.049 | F41: 0 | G41: 10
A42: Pdzk1 | B42: 0.00E+00 | C42: 0.593089189 | D42: 0.336 | E42: 0.005 | F42: 0 | G42: 10
A43: Spink1 | B43: 0.00E+00 | C43: 0.588464632 | D43: 0.307 | E43: 0.007 | F43: 0 | G43: 10
A44: Npnt | B44: 0.00E+00 | C44: 0.549133482 | D44: 0.533 | E44: 0.094 | F44: 0 | G44: 10
A45: Tst | B45: 0.00E+00 | C45: 0.541186421 | D45: 0.606 | E45: 0.109 | F45: 0 | G45: 10
A46: Kif12 | B46: 0.00E+00 | C46: 0.537360914 | D46: 0.619 | E46: 0.039 | F46: 0 | G46: 10
A47: Epcam | B47: 0.00E+00 | C47: 0.535661957 | D47: 0.709 | E47: 0.157 | F47: 0 | G47: 10
A48: Palm | B48: 0.00E+00 | C48: 0.534363688 | D48: 0.807 | E48: 0.256 | F48: 0 | G48: 10
A49: Pantr1 | B49: 0.00E+00 | C49: 0.534136205 | D49: 0.556 | E49: 0.08 | F49: 0 | G49: 10
A50: Irx3 | B50: 0.00E+00 | C50: 0.514902256 | D50: 0.55 | E50: 0.035 | F50: 0 | G50: 10
A51: Lama1 | B51: 0.00E+00 | C51: 0.503212443 | D51: 0.6 | E51: 0.044 | F51: 0 | G51: 10
A52: Folr1 | B52: 0.00E+00 | C52: 0.494178226 | D52: 0.46 | E52: 0.02 | F52: 0 | G52: 10
A53: Enpp2 | B53: 0.00E+00 | C53: 0.479912839 | D53: 0.55 | E53: 0.072 | F53: 0 | G53: 10
A54: Epha7 | B54: 0.00E+00 | C54: 0.47655353 | D54: 0.604 | E54: 0.098 | F54: 0 | G54: 10
A55: Smagp | B55: 0.00E+00 | C55: 0.475380801 | D55: 0.569 | E55: 0.106 | F55: 0 | G55: 10
A56: Itga6 | B56: 0.00E+00 | C56: 0.462265153 | D56: 0.623 | E56: 0.098 | F56: 0 | G56: 10
A57: Hoxb3os | B57: 0.00E+00 | C57: 0.456957825 | D57: 0.566 | E57: 0.073 | F57: 0 | G57: 10
A58: Smtnl2 | B58: 0.00E+00 | C58: 0.447225837 | D58: 0.649 | E58: 0.132 | F58: 0 | G58: 10
A59: Ptpn13 | B59: 0.00E+00 | C59: 0.444891966 | D59: 0.617 | E59: 0.105 | F59: 0 | G59: 10
A60: Tmem27 | B60: 0.00E+00 | C60: 0.444493639 | D60: 0.455 | E60: 0.005 | F60: 0 | G60: 10
A61: Rbm47 | B61: 0.00E+00 | C61: 0.443724726 | D61: 0.512 | E61: 0.035 | F61: 0 | G61: 10
A62: Cpb2 | B62: 0.00E+00 | C62: 0.4434694 | D62: 0.434 | E62: 0.004 | F62: 0 | G62: 10
A63: Cystm1 | B63: 0.00E+00 | C63: 0.438955864 | D63: 0.59 | E63: 0.095 | F63: 0 | G63: 10
A64: Lsr | B64: 0.00E+00 | C64: 0.43683289 | D64: 0.681 | E64: 0.136 | F64: 0 | G64: 10
A65: 2019-09-04 | B65: 0.00E+00 | C65: 0.4312972 | D65: 0.563 | E65: 0.095 | F65: 0 | G65: 10
A66: Crb3 | B66: 0.00E+00 | C66: 0.427577829 | D66: 0.596 | E66: 0.075 | F66: 0 | G66: 10
A67: H2-DMb2 | B67: 0.00E+00 | C67: 0.423503194 | D67: 0.514 | E67: 0.052 | F67: 0 | G67: 10
A68: Eva1a | B68: 0.00E+00 | C68: 0.41981395 | D68: 0.607 | E68: 0.129 | F68: 0 | G68: 10
A69: 0610040J01Rik | B69: 0.00E+00 | C69: 0.417976336 | D69: 0.579 | E69: 0.072 | F69: 0 | G69: 10
A70: Dpp4 | B70: 0.00E+00 | C70: 0.409021268 | D70: 0.481 | E70: 0.023 | F70: 0 | G70: 10
A71: Hdc | B71: 0.00E+00 | C71: 0.386153598 | D71: 0.188 | E71: 0.003 | F71: 0 | G71: 10
A72: Fermt1 | B72: 0.00E+00 | C72: 0.385916328 | D72: 0.454 | E72: 0.032 | F72: 0 | G72: 10
A73: Frem2 | B73: 0.00E+00 | C73: 0.374303476 | D73: 0.536 | E73: 0.098 | F73: 0 | G73: 10
A74: Dact2 | B74: 0.00E+00 | C74: 0.373237992 | D74: 0.55 | E74: 0.064 | F74: 0 | G74: 10
A75: Steap2 | B75: 0.00E+00 | C75: 0.370116789 | D75: 0.472 | E75: 0.036 | F75: 0 | G75: 10
A76: Eaf2 | B76: 0.00E+00 | C76: 0.366496762 | D76: 0.394 | E76: 0.012 | F76: 0 | G76: 10
A77: Hnf4a | B77: 0.00E+00 | C77: 0.359197874 | D77: 0.344 | E77: 0.002 | F77: 0 | G77: 10
A78: Hacd4 | B78: 0.00E+00 | C78: 0.345317168 | D78: 0.486 | E78: 0.085 | F78: 0 | G78: 10
A79: Papss2 | B79: 0.00E+00 | C79: 0.334344169 | D79: 0.354 | E79: 0.03 | F79: 0 | G79: 10
A80: Pou3f3 | B80: 0.00E+00 | C80: 0.329861445 | D80: 0.398 | E80: 0.056 | F80: 0 | G80: 10
A81: Lrp2 | B81: 0.00E+00 | C81: 0.324570971 | D81: 0.251 | E81: 0.009 | F81: 0 | G81: 10
A82: Myo5b | B82: 0.00E+00 | C82: 0.31711637 | D82: 0.444 | E82: 0.045 | F82: 0 | G82: 10
A83: Ggt1 | B83: 0.00E+00 | C83: 0.313946071 | D83: 0.35 | E83: 0.013 | F83: 0 | G83: 10
A84: Keg1 | B84: 0.00E+00 | C84: 0.307926849 | D84: 0.228 | E84: 0.001 | F84: 0 | G84: 10
A85: Cpn1 | B85: 0.00E+00 | C85: 0.298183057 | D85: 0.35 | E85: 0.011 | F85: 0 | G85: 10
A86: Gpc4 | B86: 0.00E+00 | C86: 0.297441179 | D86: 0.39 | E86: 0.044 | F86: 0 | G86: 10
A87: Irx2 | B87: 0.00E+00 | C87: 0.292037491 | D87: 0.188 | E87: 0.003 | F87: 0 | G87: 10
A88: Grb7 | B88: 0.00E+00 | C88: 0.29188609 | D88: 0.47 | E88: 0.069 | F88: 0 | G88: 10
A89: Dusp14 | B89: 0.00E+00 | C89: 0.291882721 | D89: 0.409 | E89: 0.031 | F89: 0 | G89: 10
A90: Rph3al | B90: 0.00E+00 | C90: 0.28410556 | D90: 0.403 | E90: 0.03 | F90: 0 | G90: 10
A91: Asb9 | B91: 0.00E+00 | C91: 0.283582194 | D91: 0.267 | E91: 0.002 | F91: 0 | G91: 10
A92: Slc39a5 | B92: 0.00E+00 | C92: 0.283458907 | D92: 0.253 | E92: 0.003 | F92: 0 | G92: 10
A93: Fam134b | B93: 0.00E+00 | C93: 0.276598853 | D93: 0.368 | E93: 0.027 | F93: 0 | G93: 10
A94: Amn | B94: 0.00E+00 | C94: 0.275947571 | D94: 0.259 | E94: 0.004 | F94: 0 | G94: 10
A95: Svopl | B95: 0.00E+00 | C95: 0.275491269 | D95: 0.361 | E95: 0.039 | F95: 0 | G95: 10
A96: Me3 | B96: 0.00E+00 | C96: 0.275402766 | D96: 0.377 | E96: 0.019 | F96: 0 | G96: 10
A97: Tmem252 | B97: 0.00E+00 | C97: 0.274662342 | D97: 0.289 | E97: 0.009 | F97: 0 | G97: 10
A98: Fut9 | B98: 0.00E+00 | C98: 0.268789597 | D98: 0.246 | E98: 0.005 | F98: 0 | G98: 10
A99: Slc47a1 | B99: 0.00E+00 | C99: 0.25763347 | D99: 0.334 | E99: 0.005 | F99: 0 | G99: 10
A100: Spata13 | B100: 0.00E+00 | C100: 0.257177862 | D100: 0.434 | E100: 0.068 | F100: 0 | G100: 10
A101: Mcmdc2 | B101: 0.00E+00 | C101: 0.251226366 | D101: 0.315 | E101: 0.009 | F101: 0 | G101: 10
A102: Prr15l | B102: 0.00E+00 | C102: 0.250640719 | D102: 0.319 | E102: 0.036 | F102: 0 | G102: 10
A103: Hoga1 | B103: 0.00E+00 | C103: 0.250121664 | D103: 0.347 | E103: 0.029 | F103: 0 | G103: 10
